Workbook

Sheet INDICE
F1: TODO O MUNDO - DÉCADA
F2: Trocas comerciais com Portugal (PT) 2011-2020 Produtos da Floresta (NC 1301, 3803-05-06, 44-48)
C3: Fonte
D4: Estatísticas do Comércio Internacional | F4: 1. Todo o Mundo - Síntese
D5: dados: 2019 provisórios; 2020 preliminares | F5: 2. Evolução da balança comercial
F6: 3. Principais transações de Produtos da Floresta (NC 2 e 4 dígitos)
C7: Data | D7: 2021-12-30 | F7: 3A Principais produtos agrícolas e agroalimentares transacionados (NC 2D)
F8: 3B Principais origens/destinos para Produtos da Floresta
F9: 4. Evolução da balança comercial por país e produto
F10: 4A Evolução da balança comercial por produto
F11: 5.1. Trocas comerciais por país
F12: 5.1A Trocas comerciais por país (produtos agrícolas e agroalimentares)
F13: 5.2. Trocas comerciais por produto (NC 2 dígitos)

Sheet 1
A1: Todo o Mundo - Síntese para Produtos da Floresta 2011-2020
A3: • As trocas comerciais de bens transacionáveis (excluindo serviços) entre Portugal e Todo o Mundo representam um total de 51 mil milhões de € em exportações e 64,7 mil milhões de € em importações, na média do período 2011-2020, correspondendo a um saldo negativo da balança comercial de cerca de -13,7 mil milhões. No que se refere ao total da economia (incluindo serviços), as exportações totalizam 67,5 mil milhões de € e as importações 67,4 mil milhões, correspondendo a um saldo positivo de cerca de 0,1 mil milhões.
A4: • No que respeita aos produtos dos setores agrícola e agroalimentar, mar e florestas, Portugal exportou para Todo o Mundo 10,4 mil milhões de € em média anual, no mesmo período, enquanto as importações ascenderam a 12,1 mil milhões de € . Estes setores representam perto de 20,4% do total de exportações de bens transacionáveis e as importações 18,7% das correspondentes importações. Se nos referirmos apenas ao setor agrícola e agroalimentar, as exportações representam, em média, 5,4 mil milhões de € e as importações 8,2 mil milhões. Quanto ao setor Produtos da Floresta, corresponde a 4057 milhões de € de exportações e a 2020 milhões de importações.
A5: • As principais exportações do setor Produtos da Floresta (NC 4 dígitos) neste período são Papel e cartão p/ escrita, etc. (28%), Pastas químicas de madeira, à soda ou ao sulfato (12%) e Cortiça aglomerada e suas obras (11%). As importações mais relevantes do mesmo setor referem-se a Papel, cartão, pasta de celulose, etc. (9%), Papel e cartão revestidos (8%) e Papéis e cartões, não revestidos (8%).
A6: • Os principais destinos das exportações do setor Produtos da Floresta no mesmo período são Espanha (23%), França (12%) e Alemanha (10%). As principais origens das importações são Espanha (52%), Alemanha (7%) e França (6%).
A8: Trocas PT-Todo o Mundo (milhões de euros) Produtos da Floresta | H8: Trocas PT-Todo o Mundo (milhões de euros) produtos agrícolas e agroalimentares, do mar e da floresta
B10: 2018 | C10: 2019 | D10: 2020 | E10: média 2011-2020 | F10: TVMA* 2011-2020 | G10: TVT* 2011-2020 | I10: 2018 | J10: 2019 | K10: 2020 | L10: média 2011-2020 | M10: TVMA* 2011-2020 | N10: TVT* 2011-2020
A11: Exportações | B11: 4453.025693 | C11: 4467.779025 | D11: 4018.687722 | E11: 4057.034038 | F11: 0.0087487557 | G11: 0.08155126155 | H11: Exportações | I11: 11650.70959 | J11: 11827.78062 | K11: 11535.40309 | L11: 10420.46897 | M11: 0.03226116554 | N11: 0.3307801135
A12: Importações | B12: 2330.485358 | C12: 2336.950167 | D12: 2036.069734 | E12: 2019.984276 | F12: -0.0004902104938 | G12: -0.004403253304 | H12: Importações | I12: 13630.59679 | J12: 13833.32078 | K12: 13045.35199 | L12: 12077.58541 | M12: 0.01703303514 | N12: 0.1641676815
A13: Saldo | B13: 2122.540335 | C13: 2130.828858 | D13: 1982.617988 | E13: 2037.049762 | H13: Saldo | I13: -1979.8872 | J13: -2005.540159 | K13: -1509.948902 | L13: -1657.116437
A14: *TVMA - Taxa de variação média anual; TVT - Taxa de variação total
C15: Saldo da Balança Comercial PT-Todo o Mundo (milhões de euros)
C16: 2011 | D16: 2012 | E16: 2013 | F16: 2014 | G16: 2015 | H16: 2016 | I16: 2017 | J16: 2018 | K16: 2019 | L16: 2020 | M16: média 2011-2020
A17: Total Economia (bens e serviços) | C17: -7378.114 | D17: -832.742 | E17: 1872.986 | F17: 258.937 | G17: 1328.685 | H17: 2139.817 | I17: 1977.876 | J17: 949.34 | K17: 813.713 | L17: -4010.291 | M17: 113.0498
A18: Total bens transacionáveis* | C18: -16723.40841 | D18: -11161.06726 | E18: -9709.911546 | F18: -10978.42505 | G18: -10710.79818 | H18: -11385.17367 | I18: -14670.57693 | J18: -17589.25468 | K18: -20074.3184 | L18: -14388.17541 | M18: -13739.11095
A19: Agrícola e Agroalimentar (AA) | C19: -3495.734942 | D19: -2982.54503 | E19: -3010.443241 | F19: -2379.878712 | G19: -2384.775008 | H19: -2504.559947 | I19: -2848.388302 | J19: -2988.999761 | K19: -3025.413711 | L19: -2467.369548 | M19: -2808.81082
B20: Mar (M) | C20: -712.442204 | D20: -676.287217 | E20: -626.201725 | F20: -676.327948 | G20: -865.883351 | H20: -969.930835 | I20: -1076.900088 | J20: -1113.427774 | K20: -1110.955306 | L20: -1025.197342 | M20: -885.355379
B21: Florestas (F) | C21: 1670.595419 | D21: 2049.489449 | E21: 2127.812011 | F21: 2017.282822 | G21: 2163.388095 | H21: 2067.075817 | I21: 2038.866826 | J21: 2122.540335 | K21: 2130.828858 | L21: 1982.617988 | M21: 2037.049762
B22: AA + M + F | C22: -2537.581727 | D22: -1609.342798 | E22: -1508.832955 | F22: -1038.923838 | G22: -1087.270264 | H22: -1407.414965 | I22: -1886.421564 | J22: -1979.8872 | K22: -2005.540159 | L22: -1509.948902 | M22: -1657.116437
B23: Produtos da Floresta | C23: 1670.595419 | D23: 2049.489449 | E23: 2127.812011 | F23: 2017.282822 | G23: 2163.388095 | H23: 2067.075817 | I23: 2038.866826 | J23: 2122.540335 | K23: 2130.828858 | L23: 1982.617988 | M23: 2037.049762
B24: *exclui serviços
A25: Evolução das trocas comerciais PT-Todo o Mundo (em milhões de euros 2011-2020)
F34: Exportações | H34: Importações | J34: Saldo
A35: Principais transações de Produtos da Floresta (NC 2 dígitos)
A54: Principais origens e destinos em Todo o Mundo para Produtos da Floresta (média 2011-2020)
A69: Principais transações de Produtos da Floresta (NC 4 dígitos - média 2011-2020)
A91: Fonte: GPP a partir de dados INE/Comércio Internacional (2019 provisórios; 2020 preliminares) | L91: 2021-12-30

Sheet 2
A1: Evolução da balança comercial Portugal-Todo o Mundo 2011-2020 em milhões de euros
A3: Total da Economia (TE)(1) | B3: 2011 | C3: 2012 | D3: 2013 | E3: 2014 | F3: 2015 | G3: 2016 | H3: 2017 | I3: 2018 | J3: 2019 | K3: 2020 | L3: média período | M3: var. 11/12 | N3: var. 12/13 | O3: var. 13/14 | P3: var. 14/15 | Q3: var. 15/16 | R3: var. 16/17 | S3: var. 17/18 | T3: var. 18/19 | U3: var. 19/20 | V3: TVMA* 2011-2020 | W3: TVT* 2011-2020
A4: Exportações | B4: 60673.692 | C4: 63578.725 | D4: 67526.029 | E4: 69595.217 | F4: 72990.707 | G4: 74989.089 | H4: 83717.008 | I4: 89143.718 | J4: 93162.742 | K4: 74302.273 | L4: 67537.6927 | M4: 0.04787961478 | N4: 0.06208529661 | O4: 0.03064282071 | P4: 0.04878912871 | Q4: 0.02737858122 | R4: 0.1163891856 | S4: 0.06482207295 | T4: 0.04508476974 | U4: -0.202446478 | V4: 0.02276996076 | W4: 0.224620928
A5: Importações | B5: 68051.806 | C5: 64411.467 | D5: 65653.043 | E5: 69336.28 | F5: 71662.022 | G5: 72849.272 | H5: 81739.132 | I5: 88194.378 | J5: 92349.029 | K5: 78312.564 | L5: 67424.6429 | M5: -0.05349364277 | N5: 0.01927569822 | O5: 0.05610154277 | P5: 0.03354293019 | Q5: 0.01656735279 | R5: 0.1220308694 | S5: 0.07897375274 | T5: 0.04710788935 | U5: -0.1519936393 | V5: 0.01572669206 | W5: 0.1507786289
A6: Saldo (exp-imp) | B6: -7378.114 | C6: -832.742 | D6: 1872.986 | E6: 258.937 | F6: 1328.685 | G6: 2139.817 | H6: 1977.876 | I6: 949.34 | J6: 813.713 | K6: -4010.291 | L6: 113.0498
A7: Cobertura (exp/imp) | B7: 0.8915809229 | C7: 0.9870715256 | D7: 1.028528548 | E7: 1.00373451 | F7: 1.018540992 | G7: 1.02937321 | H7: 1.024197419 | I7: 1.010764178 | J7: 1.008811278 | K7: 0.9487912182 | L7: 1.001676684
A8: (1) Todas as transações entre PT e Todo o Mundo (inclui bens e serviços) | H8: *TVMA - Taxa de variação média anual; TVT - Taxa de variação total | V8: Exportações
A9: Fonte: GPP a partir de INE/Contas Nacionais (2019 provisórios; 2020 preliminares) | V9: Importações
A24: Total de Bens Transacionáveis (BT)(1) | B24: 2011 | C24: 2012 | D24: 2013 | E24: 2014 | F24: 2015 | G24: 2016 | H24: 2017 | I24: 2018 | J24: 2019 | K24: 2020 | L24: média período | M24: var. 11/12 | N24: var. 12/13 | O24: var. 13/14 | P24: var. 14/15 | Q24: var. 15/16 | R24: var. 16/17 | S24: var. 17/18 | T24: var. 18/19 | U24: var. 19/20 | V24: TVMA* 2011-2020 | W24: TVT* 2011-2020
A25: Exportações | B25: 42828.03339 | C25: 45213.01563 | D25: 47302.91332 | E25: 48053.69564 | F25: 49634.00136 | G25: 50038.84123 | H25: 55017.9877 | I25: 57849.99162 | J25: 59902.80994 | K25: 53757.39256 | L25: 50959.86824 | M25: 0.05568740956 | N25: 0.04622336427 | O25: 0.01587179885 | P25: 0.03288624731 | Q25: 0.008156502718 | R25: 0.09950563092 | S25: 0.05147414581 | T25: 0.0354851966 | U25: -0.1025898015 | V25: 0.02557584797 | W25: 0.2551917122
A26: Importações | B26: 59551.44181 | C26: 56374.08289 | D26: 57012.82486 | E26: 59032.12069 | F26: 60344.79954 | G26: 61424.0149 | H26: 69688.56463 | I26: 75439.2463 | J26: 79977.12835 | K26: 68145.56797 | L26: 64698.97919 | M26: -0.05335486127 | N26: 0.01133041893 | O26: 0.03541827359 | P26: 0.02223668799 | Q26: 0.0178841485 | R26: 0.1345491619 | S26: 0.08251973197 | T26: 0.06015280199 | U26: -0.1479367992 | V26: 0.01509114015 | W26: 0.1443143257
A27: Saldo (exp-imp) | B27: -16723.40841 | C27: -11161.06726 | D27: -9709.911546 | E27: -10978.42505 | F27: -10710.79818 | G27: -11385.17367 | H27: -14670.57693 | I27: -17589.25468 | J27: -20074.3184 | K27: -14388.17541 | L27: -13739.11095
A28: Cobertura (exp/imp) | B28: 0.7191771029 | C28: 0.8020177591 | D28: 0.8296889942 | E28: 0.8140262467 | F28: 0.8225066905 | G28: 0.8146462147 | H28: 0.7894837265 | I28: 0.7668421207 | J28: 0.74899926 | K28: 0.7888611712 | L28: 0.7876456302
A29: Exp BT / Exp TE | B29: 0.7058748525 | C29: 0.7451831945 | D29: 0.7440053779 | E29: 0.7116321862 | F29: 0.7131812142 | G29: 0.6855508501 | H29: 0.733679905 | I29: 0.6910183844 | J29: 0.6719801607 | K29: 0.577026732 | L29: 0.7545396682 | V29: Exportações
A30: Imp BT / Imp TE | B30: 0.8750898074 | C30: 0.8283995121 | D30: 0.8851347054 | E30: 0.8991528495 | F30: 0.8703206971 | G30: 0.857134828 | H30: 0.9566130548 | I30: 0.9229269317 | J30: 0.9068279652 | K30: 0.737913205 | L30: 0.959574666 | V30: Importações
A31: (1) Todos os produtos transacionados entre PT e Todo o Mundo (exclui serviços) | D31: TE - Total da Economia (bens e serviços) | H31: *TVMA - Taxa de variação média anual; TVT - Taxa de variação total
A43: Agro(1) + Mar + Florestas (AMF) | B43: 2011 | C43: 2012 | D43: 2013 | E43: 2014 | F43: 2015 | G43: 2016 | H43: 2017 | I43: 2018 | J43: 2019 | K43: 2020 | L43: média período | M43: var. 11/12 | N43: var. 12/13 | O43: var. 13/14 | P43: var. 14/15 | Q43: var. 15/16 | R43: var. 16/17 | S43: var. 17/18 | T43: var. 18/19 | U43: var. 19/20 | V43: TVMA* 2011-2020 | W43: TVT* 2011-2020
A44: Exportações | B44: 8668.151088 | C44: 8976.636159 | D44: 9515.868858 | E44: 9967.994201 | F44: 10404.70208 | G44: 10510.5231 | H44: 11146.92093 | I44: 11650.70959 | J44: 11827.78062 | K44: 11535.40309 | L44: 10420.46897 | M44: 0.03558833572 | N44: 0.06007068677 | O44: 0.04751277574 | P44: 0.04381100873 | Q44: 0.01017049995 | R44: 0.06054863442 | S44: 0.04519532079 | T44: 0.01519830415 | U44: -0.02471955986 | V44: 0.03226116554 | W44: 0.3307801135
A45: Importações | B45: 11205.73281 | C45: 10585.97896 | D45: 11024.70181 | E45: 11006.91804 | F45: 11491.97235 | G45: 11917.93807 | H45: 13033.34249 | I45: 13630.59679 | J45: 13833.32078 | K45: 13045.35199 | L45: 12077.58541 | M45: -0.05530685661 | N45: 0.04144376801 | O45: -0.001613084354 | P45: 0.04406813109 | Q45: 0.03706637209 | R45: 0.09359038565 | S45: 0.04582510615 | T45: 0.01487271541 | U45: -0.05696165083 | V45: 0.01703303514 | W45: 0.1641676815
A46: Saldo (exp-imp) | B46: -2537.581727 | C46: -1609.342798 | D46: -1508.832955 | E46: -1038.923838 | F46: -1087.270264 | G46: -1407.414965 | H46: -1886.421564 | I46: -1979.8872 | J46: -2005.540159 | K46: -1509.948902 | L46: -1657.116437
A47: Cobertura (exp/imp) | B47: 0.7735461153 | C47: 0.847974117 | D47: 0.8631407016 | E47: 0.9056117403 | F47: 0.9053887156 | G47: 0.8819078471 | H47: 0.8552618743 | I47: 0.8547468442 | J47: 0.8550210618 | K47: 0.8842538781 | L47: 0.8627940618
A48: Exp AMF / Exp BT | B48: 0.2023943292 | C48: 0.198540974 | D48: 0.2011687693 | E48: 0.2074344973 | F48: 0.2096285167 | G48: 0.2100472922 | H48: 0.2026050278 | I48: 0.201395182 | J48: 0.1974495125 | K48: 0.2145826376 | L48: 0.2044838288 | V48: Exportações
A49: Imp AMF / Imp BT | B49: 0.1881689591 | C49: 0.1877809521 | D49: 0.193372313 | E49: 0.1864564225 | F49: 0.1904384874 | G49: 0.1940273375 | H49: 0.1870226853 | I49: 0.1806830988 | J49: 0.17296596 | K49: 0.1914336087 | L49: 0.186673508 | V49: Importações
A50: Exp AMF / Exp TE | B50: 0.1428650673 | C50: 0.1479493972 | D50: 0.1496706462 | E50: 0.1476170648 | F50: 0.14950312 | G50: 0.1439980997 | H50: 0.1486472375 | I50: 0.1391677733 | J50: 0.1326821551 | K50: 0.1238199181 | L50: 0.1542911603
A51: Imp AMF / Imp TE | B51: 0.1646647381 | C51: 0.1555576491 | D51: 0.1711605453 | E51: 0.1676528236 | F51: 0.1657425571 | G51: 0.1663075885 | H51: 0.1789083423 | I51: 0.166757298 | J51: 0.1568503695 | K51: 0.1412613877 | L51: 0.1791271691
A52: (1) Produtos agrícolas e agroalimentares | B52: BT - Total de Bens Transacionáveis (exclui serviços); TE - Total da Economia (bens e serviços) | M52: *TVMA - Taxa de variação média anual; TVT - Taxa de variação total
A64: Produtos da Floresta | B64: 2011 | C64: 2012 | D64: 2013 | E64: 2014 | F64: 2015 | G64: 2016 | H64: 2017 | I64: 2018 | J64: 2019 | K64: 2020 | L64: média período | M64: var. 11/12 | N64: var. 12/13 | O64: var. 13/14 | P64: var. 14/15 | Q64: var. 15/16 | R64: var. 16/17 | S64: var. 17/18 | T64: var. 18/19 | U64: var. 19/20 | V64: TVMA* 2011-2020 | W64: TVT* 2011-2020
A65: Exportações | B65: 3715.670135 | C65: 3718.236156 | D65: 3874.976897 | E65: 3915.819219 | F65: 4127.678882 | G65: 4080.574224 | H65: 4197.892423 | I65: 4453.025693 | J65: 4467.779025 | K65: 4018.687722 | L65: 4057.034038 | M65: 0.0006905944034 | N65: 0.04215459547 | O65: 0.0105400169 | P65: 0.05410353521 | Q65: -0.01141189985 | R65: 0.02875041417 | S65: 0.06077651457 | T65: 0.003313102824 | U65: -0.1005177965 | V65: 0.0087487557 | W65: 0.08155126155
A66: Importações | B66: 2045.074716 | C66: 1668.746707 | D66: 1747.164886 | E66: 1898.536397 | F66: 1964.290787 | G66: 2013.498407 | H66: 2159.025597 | I66: 2330.485358 | J66: 2336.950167 | K66: 2036.069734 | L66: 2019.984276 | M66: -0.1840167531 | N66: 0.04699225992 | O66: 0.08663836608 | P66: 0.03463425305 | Q66: 0.02505108731 | R66: 0.07227579098 | S66: 0.07941534424 | T66: 0.002774018287 | U66: -0.1287491865 | V66: -0.0004902104938 | W66: -0.004403253304
A67: Saldo (exp-imp) | B67: 1670.595419 | C67: 2049.489449 | D67: 2127.812011 | E67: 2017.282822 | F67: 2163.388095 | G67: 2067.075817 | H67: 2038.866826 | I67: 2122.540335 | J67: 2130.828858 | K67: 1982.617988 | L67: 2037.049762
A68: Cobertura (exp/imp) | B68: 1.81688723 | C68: 2.228160895 | D68: 2.217865599 | E68: 2.062546299 | F68: 2.101358368 | G68: 2.026609115 | H68: 1.944345833 | I68: 1.910771796 | J68: 1.911799014 | K68: 1.973747586 | L68: 2.008448326
A69: Exp Agrícola & Agroalimentar / Exp TE | B69: 0.06124021817 | C69: 0.06128251032 | D69: 0.06094769747 | E69: 0.05798977486 | F69: 0.05930980691 | G69: 0.05590539387 | H69: 0.05598004295 | I69: 0.05319140996 | J69: 0.05011883199 | K69: 0.04313621128 | L69: 0.06007066388 | V69: Exportações
A70: Imp Produtos da Floresta / Imp TE | B70: 0.03005173318 | C70: 0.02452171081 | D70: 0.02712505967 | E70: 0.02891772125 | F70: 0.0283299131 | G70: 0.02809714757 | H70: 0.02963688638 | I70: 0.02851125649 | J70: 0.02649772264 | K70: 0.02204754891 | L70: 0.0299591394 | V70: Importações
A71: Exp Produtos da Floresta / Exp BT | B71: 0.08675789759 | C71: 0.08223818085 | D71: 0.08191835608 | E71: 0.0814884093 | F71: 0.08316232358 | G71: 0.08154813588 | H71: 0.07630036282 | I71: 0.07697539046 | J71: 0.07458379714 | K71: 0.07475600155 | L71: 0.07961233374
A72: Imp Produtos da Floresta / Imp BT | B72: 0.03434131322 | C72: 0.02960131006 | D72: 0.03064512046 | E72: 0.03216107392 | F72: 0.0325511196 | G72: 0.03278031256 | H72: 0.03098105993 | I72: 0.03089221423 | J72: 0.02922023103 | K72: 0.02987824146 | L72: 0.03122126965
A73: Exp Produtos da Floresta / Exp AMF | B73: 0.4286577492 | C73: 0.4142126394 | D73: 0.4072120954 | E73: 0.3928392353 | F73: 0.3967128371 | G73: 0.3882370253 | H73: 0.3765965912 | I73: 0.3822106849 | J73: 0.377736041 | K73: 0.3483786124 | L73: 0.3893331527
A74: Imp Produtos da Floresta / Imp AMF | B74: 0.1825025413 | C74: 0.157637448 | D74: 0.1584772918 | E74: 0.1724857394 | F74: 0.1709272114 | G74: 0.1689468762 | H74: 0.1656540215 | I74: 0.1709745651 | J74: 0.16893631 | K74: 0.1560762588 | L74: 0.167250672
A75: Exp Produtos da Floresta / Exp AA | B75: 0.893969913 | C75: 0.8310634227 | D75: 0.8032990233 | E75: 0.759642735 | F75: 0.7673404176 | G75: 0.7459847586 | H75: 0.7128379373 | I75: 0.7291821712 | J75: 0.7101113896 | K75: 0.6073202575 | L75: 0.7462866954 | M75: APENAS PARA PRODUTOS AA ou alterar para prod M ou F!!
A76: Imp Produtos da Floresta / Imp AA | B76: 0.2672564751 | C76: 0.2237941263 | D76: 0.2230156032 | E76: 0.2519725403 | F76: 0.2530006026 | G76: 0.2524886258 | H76: 0.2471023439 | I76: 0.2562133885 | J76: 0.250824495 | K76: 0.2241268837 | L76: 0.24499194
A77: AA - Produtos agrícolas e agroalimentares; AMF - Agroalimentar, Mar e Florestas; BT - Total de Bens Transacionáveis (exclui serviços); TE - Total da Economia (bens e serviços) | M77: *TVMA - Taxa de variação média anual; TVT - Taxa de variação total
A89: Agroalimentar (AA)(1) | B89: 2011 | C89: 2012 | D89: 2013 | E89: 2014 | F89: 2015 | G89: 2016 | H89: 2017 | I89: 2018 | J89: 2019 | K89: 2020 | L89: média período | M89: var. 11/12 | N89: var. 12/13 | O89: var. 13/14 | P89: var. 14/15 | Q89: var. 15/16 | R89: var. 16/17 | S89: var. 17/18 | T89: var. 18/19 | U89: var. 19/20 | V89: TVMA* 2011-2020 | W89: TVT* 2011-2020
A90: Exportações | B90: 4156.370456 | C90: 4474.070275 | D90: 4823.828717 | E90: 5154.816914 | F90: 5379.201704 | G90: 5470.050396 | H90: 5888.985705 | I90: 6106.876812 | J90: 6291.659436 | K90: 6617.081634 | L90: 5436.294205 | M90: 0.07643683891 | N90: 0.07817455259 | O90: 0.06861524661 | P90: 0.04352914832 | Q90: 0.01688887999 | R90: 0.07658710225 | S90: 0.03699976837 | T90: 0.03025812206 | U90: 0.0517227929 | V90: 0.05302610615 | W90: 0.5920336515
A91: Importações | B91: 7652.105398 | C91: 7456.615305 | D91: 7834.271958 | E91: 7534.695626 | F91: 7763.976712 | G91: 7974.610343 | H91: 8737.374007 | I91: 9095.876573 | J91: 9317.073147 | K91: 9084.451182 | L91: 8245.105025 | M91: -0.02554722953 | N91: 0.05064719548 | O91: -0.03823920507 | P91: 0.03043003956 | Q91: 0.02712960623 | R91: 0.09564901998 | S91: 0.04103092825 | T91: 0.02431833504 | U91: -0.02496727903 | V91: 0.01924772378 | W91: 0.1871832273
A92: Saldo (exp-imp) | B92: -3495.734942 | C92: -2982.54503 | D92: -3010.443241 | E92: -2379.878712 | F92: -2384.775008 | G92: -2504.559947 | H92: -2848.388302 | I92: -2988.999761 | J92: -3025.413711 | K92: -2467.369548 | L92: -2808.81082
A93: Cobertura (exp/imp) | B93: 0.5431669116 | C93: 0.6000135574 | D93: 0.6157341413 | E93: 0.6841440146 | F93: 0.6928410406 | G93: 0.6859332507 | H93: 0.6739994992 | I93: 0.6713895866 | J93: 0.6752828208 | K93: 0.7283964107 | L93: 0.6593359561
A94: Exp AA / Exp AMF | B94: 0.4794990782 | C94: 0.4984127902 | D94: 0.5069246738 | E94: 0.5171368291 | F94: 0.5169971866 | G94: 0.5204355998 | H94: 0.5283060447 | I94: 0.5241635081 | J94: 0.5319391387 | K94: 0.5736324585 | L94: 0.5216938143 | V94: Exportações
A95: Imp AA / Imp AMF | B95: 0.6828741613 | C95: 0.7043859935 | D95: 0.7106107803 | E95: 0.6845418126 | F95: 0.675600017 | G95: 0.6691266809 | H95: 0.6703862815 | I95: 0.6673131567 | J95: 0.6735239713 | K95: 0.6963745546 | L95: 0.6826782627 | V95: Importações
A96: Exp AA / Exp BT | B96: 0.09704789426 | C96: 0.09895536081 | D96: 0.1019774128 | E96: 0.1072720182 | F96: 0.1083773534 | G96: 0.1093160885 | H96: 0.1070374609 | I96: 0.1055640051 | J96: 0.1050311236 | K96: 0.123091566 | L96: 0.1066779486
A97: Imp AA / Imp BT | B97: 0.1284957201 | C97: 0.1322702725 | D97: 0.1374124502 | E97: 0.1276372175 | F97: 0.1286602453 | G97: 0.1298288683 | H97: 0.1253774425 | I97: 0.120572209 | J97: 0.1164967202 | K97: 0.133309494 | L97: 0.1274379461
A98: Exp AA / Exp TE | B98: 0.06850366805 | C98: 0.07373987189 | D98: 0.07587174353 | E98: 0.07633822084 | F98: 0.07729269246 | G98: 0.07494173739 | H98: 0.07853123412 | I98: 0.07294666828 | J98: 0.07057883132 | K98: 0.07102712406 | L98: 0.08049274394
A99: Imp AA / Imp TE | B99: 0.112445295 | C99: 0.1095726292 | D99: 0.1216285286 | E99: 0.1147653678 | F99: 0.1119756744 | G99: 0.1112808447 | H99: 0.1199376983 | I99: 0.1112793389 | J99: 0.1056424838 | K99: 0.09837083595 | L99: 0.1222862246
A100: (1) Produtos agrícolas e agroalimentares | B100: AMF - Agroalimentar, Mar e Florestas; BT - Total de Bens Transacionáveis (exclui serviços); TE - Total da Economia (bens e serviços) | M100: *TVMA - Taxa de variação média anual; TVT - Taxa de variação total
A112: Mar (M) | B112: 2011 | C112: 2012 | D112: 2013 | E112: 2014 | F112: 2015 | G112: 2016 | H112: 2017 | I112: 2018 | J112: 2019 | K112: 2020 | L112: média período | M112: var. 11/12 | N112: var. 12/13 | O112: var. 13/14 | P112: var. 14/15 | Q112: var. 15/16 | R112: var. 16/17 | S112: var. 17/18 | T112: var. 18/19 | U112: var. 19/20 | V112: TVMA* 2011-2020 | W112: TVT* 2011-2020
A113: Exportações | B113: 796.110497 | C113: 784.329728 | D113: 817.063244 | E113: 897.358068 | F113: 897.821496 | G113: 959.898484 | H113: 1060.042797 | I113: 1090.807087 | J113: 1068.342159 | K113: 899.633733 | L113: 927.1407293 | M113: -0.01479790688 | N113: 0.04173438139 | O113: 0.09827247106 | P113: 0.0005164359875 | Q113: 0.06914179297 | R113: 0.104328025 | S113: 0.02902174336 | T113: -0.02059477635 | U113: -0.1579160989 | V113: 0.01367597503 | W113: 0.1300362656
A114: Importações | B114: 1508.552701 | C114: 1460.616945 | D114: 1443.264969 | E114: 1573.686016 | F114: 1763.704847 | G114: 1929.829319 | H114: 2136.942885 | I114: 2204.234861 | J114: 2179.297465 | K114: 1924.831075 | L114: 1812.496108 | M114: -0.0317759903 | N114: -0.01187989504 | O114: 0.09036528275 | P114: 0.1207476136 | Q114: 0.09419063075 | R114: 0.1073222196 | S114: 0.03148983366 | T114: -0.01131340242 | U114: -0.1167653311 | V114: 0.02744628474 | W114: 0.2759455296
A115: Saldo (exp-imp) | B115: -712.442204 | C115: -676.287217 | D115: -626.201725 | E115: -676.327948 | F115: -865.883351 | G115: -969.930835 | H115: -1076.900088 | I115: -1113.427774 | J115: -1110.955306 | K115: -1025.197342 | L115: -885.355379
A116: Cobertura (exp/imp) | B116: 0.5277313126 | C116: 0.5369852313 | D116: 0.566121441 | E116: 0.5702268806 | F116: 0.5090542772 | G116: 0.4974007155 | H116: 0.496055746 | I116: 0.494868812 | J116: 0.4902231917 | K116: 0.4673832134 | L116: 0.5115270179
A117: Exp M / Exp AMF | B117: 0.09184317266 | C117: 0.0873745704 | D117: 0.0858632308 | E117: 0.0900239356 | F117: 0.08628997629 | G117: 0.09132737491 | H117: 0.09509736403 | I117: 0.09362580694 | J117: 0.0903248203 | K117: 0.07798892904 | L117: 0.08897303296 | V117: Exportações
A118: Imp M/ Imp AMF | B118: 0.1346232974 | C118: 0.1379765585 | D118: 0.1309119279 | E118: 0.1429724479 | F118: 0.1534727716 | G118: 0.161926443 | H118: 0.163959697 | I118: 0.1617122782 | J118: 0.1575397188 | K118: 0.1475491866 | L118: 0.1500710653 | V118: Importações
A119: Exp M / Exp BT | B119: 0.01858853732 | C119: 0.01734743231 | D119: 0.01727300047 | E119: 0.01867406983 | F119: 0.01808883973 | G119: 0.0191830678 | H119: 0.01926720408 | I119: 0.01885578643 | J119: 0.01783459173 | K119: 0.0167350701 | L119: 0.01819354644
A120: Imp M / Imp BT | B120: 0.02533192573 | C120: 0.02590936952 | D120: 0.0253147423 | E120: 0.02665813116 | F120: 0.02922712248 | G120: 0.0314181566 | H120: 0.0306641828 | I120: 0.02921867555 | J120: 0.02724900869 | K120: 0.02824587324 | L120: 0.0280142922
A121: Exp M / Exp TE | B121: 0.01312118104 | C121: 0.01292701502 | D121: 0.01285120524 | E121: 0.01328906914 | F121: 0.01290062068 | G121: 0.01315096844 | H121: 0.01413596046 | I121: 0.01302969508 | J121: 0.01198449182 | K121: 0.009656582811 | L121: 0.01372775249
A122: Imp M / Imp TE | B122: 0.02216771001 | C122: 0.02146330907 | D122: 0.02240695696 | E122: 0.02396973459 | F122: 0.02543696961 | G122: 0.02692959625 | H122: 0.02933375758 | I122: 0.02696670257 | J122: 0.0247101631 | K122: 0.02084300285 | L122: 0.02688180508
A123: AMF - Agroalimentar, Mar e Florestas; BT - Total de Bens Transacionáveis (exclui serviços); TE - Total da Economia (bens e serviços) | M123: *TVMA - Taxa de variação média anual; TVT - Taxa de variação total
A135: Florestas (F) | B135: 2011 | C135: 2012 | D135: 2013 | E135: 2014 | F135: 2015 | G135: 2016 | H135: 2017 | I135: 2018 | J135: 2019 | K135: 2020 | L135: média período | M135: var. 11/12 | N135: var. 12/13 | O135: var. 13/14 | P135: var. 14/15 | Q135: var. 15/16 | R135: var. 16/17 | S135: var. 17/18 | T135: var. 18/19 | U135: var. 19/20 | V135: TVMA* 2011-2020 | W135: TVT* 2011-2020
A136: Exportações | B136: 3715.670135 | C136: 3718.236156 | D136: 3874.976897 | E136: 3915.819219 | F136: 4127.678882 | G136: 4080.574224 | H136: 4197.892423 | I136: 4453.025693 | J136: 4467.779025 | K136: 4018.687722 | L136: 4057.034038 | M136: 0.0006905944034 | N136: 0.04215459547 | O136: 0.0105400169 | P136: 0.05410353521 | Q136: -0.01141189985 | R136: 0.02875041417 | S136: 0.06077651457 | T136: 0.003313102824 | U136: -0.1005177965 | V136: 0.0087487557 | W136: 0.08155126155
A137: Importações | B137: 2045.074716 | C137: 1668.746707 | D137: 1747.164886 | E137: 1898.536397 | F137: 1964.290787 | G137: 2013.498407 | H137: 2159.025597 | I137: 2330.485358 | J137: 2336.950167 | K137: 2036.069734 | L137: 2019.984276 | M137: -0.1840167531 | N137: 0.04699225992 | O137: 0.08663836608 | P137: 0.03463425305 | Q137: 0.02505108731 | R137: 0.07227579098 | S137: 0.07941534424 | T137: 0.002774018287 | U137: -0.1287491865 | V137: -0.0004902104938 | W137: -0.004403253304
A138: Saldo (exp-imp) | B138: 1670.595419 | C138: 2049.489449 | D138: 2127.812011 | E138: 2017.282822 | F138: 2163.388095 | G138: 2067.075817 | H138: 2038.866826 | I138: 2122.540335 | J138: 2130.828858 | K138: 1982.617988 | L138: 2037.049762
A139: Cobertura (exp/imp) | B139: 1.81688723 | C139: 2.228160895 | D139: 2.217865599 | E139: 2.062546299 | F139: 2.101358368 | G139: 2.026609115 | H139: 1.944345833 | I139: 1.910771796 | J139: 1.911799014 | K139: 1.973747586 | L139: 2.008448326
A140: Exp F / Exp AMF | B140: 0.4286577492 | C140: 0.4142126394 | D140: 0.4072120954 | E140: 0.3928392353 | F140: 0.3967128371 | G140: 0.3882370253 | H140: 0.3765965912 | I140: 0.3822106849 | J140: 0.377736041 | K140: 0.3483786124 | L140: 0.3893331527 | V140: Exportações
A141: Imp F / Imp AMF | B141: 0.1825025413 | C141: 0.157637448 | D141: 0.1584772918 | E141: 0.1724857394 | F141: 0.1709272114 | G141: 0.1689468762 | H141: 0.1656540215 | I141: 0.1709745651 | J141: 0.16893631 | K141: 0.1560762588 | L141: 0.167250672 | V141: Importações
A142: Exp F / Exp BT | B142: 0.08675789759 | C142: 0.08223818085 | D142: 0.08191835608 | E142: 0.0814884093 | F142: 0.08316232358 | G142: 0.08154813588 | H142: 0.07630036282 | I142: 0.07697539046 | J142: 0.07458379714 | K142: 0.07475600155 | L142: 0.07961233374
A143: Imp F / Imp BT | B143: 0.03434131322 | C143: 0.02960131006 | D143: 0.03064512046 | E143: 0.03216107392 | F143: 0.0325511196 | G143: 0.03278031256 | H143: 0.03098105993 | I143: 0.03089221423 | J143: 0.02922023103 | K143: 0.02987824146 | L143: 0.03122126965
A144: Exp F / Exp TE | B144: 0.06124021817 | C144: 0.06128251032 | D144: 0.06094769747 | E144: 0.05798977486 | F144: 0.05930980691 | G144: 0.05590539387 | H144: 0.05598004295 | I144: 0.05319140996 | J144: 0.05011883199 | K144: 0.04313621128 | L144: 0.06007066388
A145: Imp F / Imp TE | B145: 0.03005173318 | C145: 0.02452171081 | D145: 0.02712505967 | E145: 0.02891772125 | F145: 0.0283299131 | G145: 0.02809714757 | H145: 0.02963688638 | I145: 0.02851125649 | J145: 0.02649772264 | K145: 0.02204754891 | L145: 0.0299591394
A146: AMF - Agroalimentar, Mar e Florestas; BT - Total de Bens Transacionáveis (exclui serviços); TE - Total da Economia (bens e serviços) | M146: *TVMA - Taxa de variação média anual; TVT - Taxa de variação total
A157: Fonte: GPP a partir de dados INE/Comércio Internacional (2019 provisórios; 2020 preliminares) | M157: 2021-12-30

Sheet 3
A1: Principais transações de Produtos da Floresta entre Portugal e Todo o Mundo em 2011-2020 (NC a 2 e 4 dígitos) em milhões de euros
AC4: P | AE4: Cód.NC | AF4: Descritivo | AG4: Média export quinquénio | AH4: % do total | AI4: % acumulada | AN4: P | AO4: NC | AP4: Exportações | AQ4: 2011 | AR4: 2012 | AS4: 2013 | AT4: 2014 | AU4: 2015 | AV4: 2016 | AW4: 2017 | AX4: 2018 | AY4: 2019 | AZ4: 2020 | BA4: média período
AC5: 1 | AD5: º | AE5: 48 | AF5: Papel e cartão | AG5: 1755.746022 | AH5: 0.4327659088 | AN5: 1º | AO5: 48 | AP5: Papel e cartão | AQ5: 1572.21152 | AR5: 1601.243062 | AS5: 1696.977485 | AT5: 1707.832598 | AU5: 1762.072461 | AV5: 1776.722858 | AW5: 1842.146682 | AX5: 1954.895799 | AY5: 1961.624439 | AZ5: 1681.733319 | BA5: 1755.746022
AC6: 2 | AD6: º | AE6: 45 | AF6: Cortiça e suas obras | AG6: 929.6393947 | AH6: 0.2291426165 | AN6: 2º | AO6: 45 | AP6: Cortiça e suas obras | AQ6: 817.03511 | AR6: 835.816228 | AS6: 833.694778 | AT6: 841.784693 | AU6: 901.525278 | AV6: 934.835844 | AW6: 988.035679 | AX6: 1064.6548 | AY6: 1063.721436 | AZ6: 1015.290101 | BA6: 929.6393947
AC7: 3 | AD7: º | AE7: 44 | AF7: Madeira e suas obras | AG7: 652.5891166 | AH7: 0.1608537445 | AI7: 0.8227622698 | AN7: 3º | AO7: 44 | AP7: Madeira e suas obras | AQ7: 613.893974 | AR7: 620.129326 | AS7: 684.013276 | AT7: 710.991547 | AU7: 668.539287 | AV7: 622.408304 | AW7: 614.051867 | AX7: 649.783708 | AY7: 699.594649 | AZ7: 642.485228 | BA7: 652.5891166
AC8: 4 | AD8: º | AE8: 47 | AF8: Pastas de madeira | AG8: 589.9115764 | AH8: 0.1454046407 | AO8: - | AP8: Outros | AQ8: 712.529531 | AR8: 661.04754 | AS8: 660.291358 | AT8: 655.210381 | AU8: 795.541856 | AV8: 746.607218 | AW8: 753.658195 | AX8: 783.691386 | AY8: 742.838501 | AZ8: 679.179074 | BA8: 719.059504
AC9: 5 | AD9: º | AE9: 38f | AF9: Tall oil, essências e colofónias (NC 3803,3805,3806) (f) | AG9: 127.7783409 | AH9: 0.03149550625 | AP9: Total | AQ9: 3715.670135 | AR9: 3718.236156 | AS9: 3874.976897 | AT9: 3915.819219 | AU9: 4127.678882 | AV9: 4080.574224 | AW9: 4197.892423 | AX9: 4453.025693 | AY9: 4467.779025 | AZ9: 4018.687722 | BA9: 4057.034038
AC10: 6 | AD10: º | AE10: 46 | AF10: Obras de espartaria ou de cestaria | AG10: 0.9823238 | AH10: 0.0002421285577
AC11: 7 | AD11: º | AE11: 13f | AF11: Gomas e resinas (NC 1301) (f) | AG11: 0.3872629 | AH11: 9.54546835e-05
AC12: 8 | AD12: º | AG12: 0 | AH12: 0
AC13: 9 | AD13: º | AG13: 0 | AH13: 0
AC14: 10 | AD14: º | AG14: 0 | AH14: 0 | AI14: 1
AG15: 0 | AH15: 0
AE16: Total | AG16: 4057.034038 | AH16: 1
AC38: P | AE38: Cód.NC | AF38: Descritivo | AG38: Média import quinquénio | AH38: % do total | AI38: % acumulada | AN38: P | AO38: NC | AP38: Importações | AQ38: 2011 | AR38: 2012 | AS38: 2013 | AT38: 2014 | AU38: 2015 | AV38: 2016 | AW38: 2017 | AX38: 2018 | AY38: 2019 | AZ38: 2020 | BA38: média período
AC39: 1 | AD39: º | AE39: 48 | AF39: Papel e cartão | AG39: 1023.585604 | AH39: 0.506729491 | AN39: 1º | AO39: 48 | AP39: Papel e cartão | AQ39: 1132.138077 | AR39: 924.99701 | AS39: 945.952113 | AT39: 987.106518 | AU39: 1010.41693 | AV39: 984.994018 | AW39: 1050.289074 | AX39: 1108.034903 | AY39: 1109.152319 | AZ39: 982.775076 | BA39: 1023.585604
AC40: 2 | AD40: º | AE40: 44 | AF40: Madeira e suas obras | AG40: 663.8895633 | AH40: 0.3286607581 | AN40: 2º | AO40: 44 | AP40: Madeira e suas obras | AQ40: 602.409617 | AR40: 489.184754 | AS40: 546.473711 | AT40: 610.843473 | AU40: 618.59552 | AV40: 697.109753 | AW40: 738.355854 | AX40: 780.704524 | AY40: 824.089086 | AZ40: 731.129341 | BA40: 663.8895633
AC41: 3 | AD41: º | AE41: 45 | AF41: Cortiça e suas obras | AG41: 162.3171452 | AH41: 0.08035564789 | AI41: 0.915745897 | AN41: 3º | AO41: 45 | AP41: Cortiça e suas obras | AQ41: 136.688405 | AR41: 132.303843 | AS41: 133.687542 | AT41: 135.004242 | AU41: 147.482873 | AV41: 167.8086 | AW41: 175.228807 | AX41: 220.102427 | AY41: 202.823449 | AZ41: 172.041264 | BA41: 162.3171452
AC42: 4 | AD42: º | AE42: 47 | AF42: Pastas de madeira | AG42: 79.153497 | AH42: 0.03918520454 | AO42: - | AP42: Outros | AQ42: 173.838617 | AR42: 122.2611 | AS42: 121.05152 | AT42: 165.582164 | AU42: 187.795464 | AV42: 163.586036 | AW42: 195.151862 | AX42: 221.643504 | AY42: 200.885313 | AZ42: 150.124053 | BA42: 170.1919633
AC43: 5 | AD43: º | AE43: 38f | AF43: Tall oil, essências e colofónias (NC 3803,3805,3806) (f) | AG43: 64.8810366 | AH43: 0.03211957508 | AP43: Total | AQ43: 2045.074716 | AR43: 1668.746707 | AS43: 1747.164886 | AT43: 1898.536397 | AU43: 1964.290787 | AV43: 2013.498407 | AW43: 2159.025597 | AX43: 2330.485358 | AY43: 2336.950167 | AZ43: 2036.069734 | BA43: 2019.984276
AC44: 6 | AD44: º | AE44: 13f | AF44: Gomas e resinas (NC 1301) (f) | AG44: 20.0859379 | AH44: 0.009943611018
AC45: 7 | AD45: º | AE45: 46 | AF45: Obras de espartaria ou de cestaria | AG45: 6.0714918 | AH45: 0.003005712407
AC46: 8 | AD46: º | AG46: 0 | AH46: 0
AC47: 9 | AD47: º | AG47: 0 | AH47: 0
AC48: 10 | AD48: º | AG48: 0 | AH48: 0 | AI48: 1
AG49: 0 | AH49: 0
AE50: Total | AG50: 2019.984276 | AH50: 1
AC62: DESAGREGAÇÃO A 4 DÍGITOS | AN62: DESAGREGAÇÃO A 4 DÍGITOS
AC64: P | AE64: Cód.NC | AF64: Descritivo | AG64: Média export quinquénio | AH64: % do total | AI64: % acumulada | AN64: P | AO64: NC | AP64: Exportações | AQ64: 2011 | AR64: 2012 | AS64: 2013 | AT64: 2014 | AU64: 2015 | AV64: 2016 | AW64: 2017 | AX64: 2018 | AY64: 2019 | AZ64: 2020 | BA64: média período
AC65: 1 | AD65: º | AE65: 4802 | AF65: Papel e cartão p/ escrita, etc. | AG65: 1138.275376 | AH65: 0.2805683575 | AN65: 1º | AO65: 4802 | AP65: Papel e cartão p/ escrita, etc. | AQ65: 1088.367584 | AR65: 1099.514621 | AS65: 1156.556423 | AT65: 1151.899119 | AU65: 1193.17374 | AV65: 1178.05486 | AW65: 1180.331227 | AX65: 1208.762807 | AY65: 1180.672153 | AZ65: 945.421227 | BA65: 1138.275376
AC66: 2 | AD66: º | AE66: 4703 | AF66: Pastas químicas de madeira, à soda ou ao sulfato | AG66: 477.3620872 | AH66: 0.1176628253 | AN66: 2º | AO66: 4703 | AP66: Pastas químicas de madeira, à soda ou ao sulfato | AQ66: 407.788553 | AR66: 415.006322 | AS66: 433.754185 | AT66: 417.193725 | AU66: 522.926839 | AV66: 495.352819 | AW66: 502.353294 | AX66: 552.198032 | AY66: 543.855676 | AZ66: 483.191427 | BA66: 477.3620872
AC67: 3 | AD67: º | AE67: 4504 | AF67: Cortiça aglomerada e suas obras | AG67: 455.2814013 | AH67: 0.1122202567 | AI67: 0.5104514395 | AN67: 3º | AO67: 4504 | AP67: Cortiça aglomerada e suas obras | AQ67: 402.617625 | AR67: 417.197267 | AS67: 416.311254 | AT67: 405.517406 | AU67: 441.401556 | AV67: 459.917434 | AW67: 482.289926 | AX67: 503.863426 | AY67: 513.59927 | AZ67: 510.098849 | BA67: 455.2814013
AC68: 4 | AD68: º | AE68: 4503 | AF68: Obras de cortiça natural | AG68: 409.643653 | AH68: 0.1009712142 | AN68: - | AO68: - | AP68: Outros | AQ68: 1816.896373 | AR68: 1786.517946 | AS68: 1868.355035 | AT68: 1941.208969 | AU68: 1970.176747 | AV68: 1947.249111 | AW68: 2032.917976 | AX68: 2188.201428 | AY68: 2229.651926 | AZ68: 2079.976219 | BA68: 1986.115173
AC69: 5 | AD69: º | AE69: 4804 | AF69: Papel e cartão "kraft", não revestidos | AG69: 151.0722578 | AH69: 0.03723711864 | AP69: Total | AQ69: 3715.670135 | AR69: 3718.236156 | AS69: 3874.976897 | AT69: 3915.819219 | AU69: 4127.678882 | AV69: 4080.574224 | AW69: 4197.892423 | AX69: 4453.025693 | AY69: 4467.779025 | AZ69: 4018.687722 | BA69: 4057.034038
AC70: 6 | AD70: º | AE70: 4819 | AF70: Embalagens de papel, cartão etc. | AG70: 142.0824225 | AH70: 0.03502125474
AC71: 7 | AD71: º | AE71: 4818 | AF71: Papel para toucador, etc., pasta de celulose, etc. | AG71: 122.0612975 | AH71: 0.03008633804
AC72: 8 | AD72: º | AE72: 3806 | AF72: Colofónias e derivados | AG72: 118.0770718 | AH72: 0.02910428424
AC73: 9 | AD73: º | AE73: 4418 | AF73: Obras de marcenaria ou carpintaria | AG73: 116.3119062 | AH73: 0.02866919654
AC74: 10 | AD74: º | AE74: 4401 | AF74: Lenha, resíduos de madeira, etc. | AG74: 99.0807907 | AH74: 0.02442197669 | AI74: 0.7959628226
AE75: - | AF75: Outros | AG75: 827.7857735 | AH75: 0.2040371774
AE76: Total | AG76: 4057.034038 | AH76: 1
AC89: DESAGREGAÇÃO A 4 DÍGITOS | AN89: DESAGREGAÇÃO A 4 DÍGITOS
G91: média 2011-2020 em milhões de euros | I91: Cód. NC | J91: Descritivo | K91: Export | L91: Import | M91: Saldo | AC91: P | AE91: Cód.NC | AF91: Descritivo | AG91: Média import quinquénio | AH91: % do total | AI91: % acumulada | AN91: P | AO91: NC | AP91: Importações | AQ91: 2011 | AR91: 2012 | AS91: 2013 | AT91: 2014 | AU91: 2015 | AV91: 2016 | AW91: 2017 | AX91: 2018 | AY91: 2019 | AZ91: 2020 | BA91: média período
I92: 4802 | J92: Papel e cartão p/ escrita, etc. | K92: 1138.275376 | L92: 59.8130592 | M92: 1078.462317 | AC92: 1 | AD92: º | AE92: 4811 | AF92: Papel, cartão, pasta de celulose, etc. | AG92: 177.5264473 | AH92: 0.08788506398 | AN92: 1º | AO92: 4811 | AP92: Papel, cartão, pasta de celulose, etc. | AQ92: 164.955513 | AR92: 171.645866 | AS92: 184.953889 | AT92: 188.669039 | AU92: 181.484714 | AV92: 175.712337 | AW92: 175.282887 | AX92: 181.652481 | AY92: 183.515248 | AZ92: 167.392499 | BA92: 177.5264473
I93: 4504 | J93: Cortiça aglomerada e suas obras | K93: 455.2814013 | L93: 9.3359327 | M93: 445.9454686 | AC93: 2 | AD93: º | AE93: 4810 | AF93: Papel e cartão revestidos | AG93: 157.603243 | AH93: 0.07802201478 | AN93: 2º | AO93: 4810 | AP93: Papel e cartão revestidos | AQ93: 188.323415 | AR93: 166.887548 | AS93: 162.20538 | AT93: 159.018837 | AU93: 157.34318 | AV93: 153.918905 | AW93: 152.216427 | AX93: 152.662599 | AY93: 153.514157 | AZ93: 129.941982 | BA93: 157.603243
I94: 4703 | J94: Pastas químicas de madeira, à soda ou ao sulfato | K94: 477.3620872 | L94: 72.2428836 | M94: 405.1192036 | AC94: 3 | AD94: º | AE94: 4805 | AF94: Papéis e cartões, não revestidos | AG94: 152.7621591 | AH94: 0.07562541993 | AI94: 0.2415324987 | AN94: 3º | AO94: 4805 | AP94: Papéis e cartões, não revestidos | AQ94: 128.876722 | AR94: 116.545882 | AS94: 132.36147 | AT94: 141.009068 | AU94: 148.176105 | AV94: 149.170004 | AW94: 174.139637 | AX94: 193.698238 | AY94: 187.544722 | AZ94: 156.099743 | BA94: 152.7621591
I95: 4503 | J95: Obras de cortiça natural | K95: 409.643653 | L95: 24.1158612 | M95: 385.5277918 | AC95: 4 | AD95: º | AE95: 4403 | AF95: Madeira em bruto | AG95: 146.5916776 | AH95: 0.07257070234 | AN95: - | AO95: - | AP95: Outros | AQ95: 1562.919066 | AR95: 1213.667411 | AS95: 1267.644147 | AT95: 1409.839453 | AU95: 1477.286788 | AV95: 1534.697161 | AW95: 1657.386646 | AX95: 1802.47204 | AY95: 1812.37604 | AZ95: 1582.63551 | BA95: 1532.092426
I96: 4418 | J96: Obras de marcenaria ou carpintaria | K96: 116.3119062 | L96: 36.3171416 | M96: 79.9947646 | AC96: 5 | AD96: º | AE96: 4501 | AF96: Cortiça natural em bruto | AG96: 117.6008937 | AH96: 0.0582187174 | AP96: Total | AQ96: 2045.074716 | AR96: 1668.746707 | AS96: 1747.164886 | AT96: 1898.536397 | AU96: 1964.290787 | AV96: 2013.498407 | AW96: 2159.025597 | AX96: 2330.485358 | AY96: 2336.950167 | AZ96: 2036.069734 | BA96: 2019.984276
I97: 4804 | J97: Papel e cartão "kraft", não revestidos | K97: 151.0722578 | L97: 81.5936188 | M97: 69.478639 | AC97: 6 | AD97: º | AE97: 4819 | AF97: Embalagens de papel, cartão etc. | AG97: 105.8080128 | AH97: 0.05238061211
I98: 3806 | J98: Colofónias e derivados | K98: 118.0770718 | L98: 63.8460921 | M98: 54.2309797 | AC98: 7 | AD98: º | AE98: 4401 | AF98: Lenha, resíduos de madeira, etc. | AG98: 91.4081932 | AH98: 0.04525193305
I99: 4707 | J99: Papel ou cartão para reciclar | K99: 50.7234916 | L99: 4.7416829 | M99: 45.9818087 | AC99: 8 | AD99: º | AE99: 4411 | AF99: Outros painéis de fibras de madeira | AG99: 88.780666 | AH99: 0.04395116688
I100: 4702 | J100: Pastas químicas de madeira para dissolução | K100: 37.0820581 | L100: 0.0724056 | M100: 37.0096525 | AC100: 9 | AD100: º | AE100: 4818 | AF100: Papel para toucador, etc., pasta de celulose, etc. | AG100: 85.1605861 | AH100: 0.04215903417
I101: 4818 | J101: Papel para toucador, etc., pasta de celulose, etc. | K101: 122.0612975 | L101: 85.1605861 | M101: 36.9007114 | AC101: 10 | AD101: º | AE101: 4804 | AF101: Papel e cartão "kraft", não revestidos | AG101: 81.5936188 | AH101: 0.04039319503 | AI101: 0.5964578597
I102: - | J102: Outros | K102: 747.4871537 | L102: 697.1594172 | M102: 50.3277365 | AE102: - | AF102: Outros | AG102: 815.148778 | AH102: 0.4035421403
I103: 4823 | J103: Papéis, cartões, pasta de celulose, etc. | K103: 23.0795723 | L103: 36.4911728 | M103: -13.4116005 | AE103: Total | AG103: 2019.984276 | AH103: 1
I104: 4813 | J104: Papel para cigarros | K104: 1.6911038 | L104: 19.6467733 | M104: -17.9556695
I105: 1301 | J105: Goma-laca; gomas, resinas, etc. | K105: 0.3872629 | L105: 20.0859379 | M105: -19.698675
I106: 4801 | J106: Papel de jornal | K106: 0.1773985 | L106: 24.3359172 | M106: -24.1585187
J107: Madeira contraplacada, folheada etc. | K107: 5.3168679 | L107: 32.9413727 | M107: -27.6245048
I108: 4501 | J108: Cortiça natural em bruto | K108: 60.4688825 | L108: 117.6008937 | M108: -57.1320112
I109: 4403 | J109: Madeira em bruto | K109: 55.8291147 | L109: 146.5916776 | M109: -90.7625629
I110: 4805 | J110: Papéis e cartões, não revestidos | K110: 41.3621775 | L110: 152.7621591 | M110: -111.3999816
I111: 4810 | J111: Papel e cartão revestidos | K111: 14.6014421 | L111: 157.603243 | M111: -143.0018009
I112: 4811 | J112: Papel, cartão, pasta de celulose, etc. | K112: 30.7424611 | L112: 177.5264473 | M112: -146.7839862
I113: Total | K113: 4057.034038 | L113: 2019.984276 | M113: 2037.049762
A116: Fonte: GPP a partir de dados INE/Comércio Internacional (2019 provisórios; 2020 preliminares) | Y116: 2021-12-30

Sheet 3A
A1: Principais produtos agrícolas e agroalimentares transacionados entre Portugal e Todo o Mundo em 2011-2020 (NC 2 dígitos) em milhões de euros
AC4: P | AE4: Cód.NC | AF4: Descritivo | AG4: Média export quinquénio | AH4: % do total | AI4: % acumulada | AN4: P | AO4: NC | AP4: Exportações | AQ4: 2011 | AR4: 2012 | AS4: 2013 | AT4: 2014 | AU4: 2015 | AV4: 2016 | AW4: 2017 | AX4: 2018 | AY4: 2019 | AZ4: 2020 | BA4: média período
AC5: 1 | AD5: º | AE5: 22 | AF5: Bebidas, líquidos alcoólicos e vinagres | AG5: 1093.27927 | AH5: 0.2011074509 | AN5: 1º | AO5: 22 | AP5: Bebidas, líquidos alcoólicos e vinagres | AQ5: 1031.719373 | AR5: 1106.47112 | AS5: 1097.151762 | AT5: 1159.344139 | AU5: 1059.288431 | AV5: 1006.119222 | AW5: 1078.398257 | AX5: 1090.840732 | AY5: 1135.764179 | AZ5: 1167.695485 | BA5: 1093.27927
AC6: 2 | AD6: º | AE6: 15 | AF6: Gorduras e óleos animais ou vegetais | AG6: 625.9009827 | AH6: 0.1151337582 | AN6: 2º | AO6: 15 | AP6: Gorduras e óleos animais ou vegetais | AQ6: 415.709734 | AR6: 439.942097 | AS6: 536.384637 | AT6: 524.803551 | AU6: 592.20783 | AV6: 599.135721 | AW6: 759.753283 | AX6: 816.699821 | AY6: 771.591783 | AZ6: 802.78137 | BA6: 625.9009827
AC7: 3 | AD7: º | AE7: 24 | AF7: Tabaco | AG7: 562.850908 | AH7: 0.1035357703 | AI7: 0.4197769794 | AN7: 3º | AO7: 24 | AP7: Tabaco | AQ7: 387.429433 | AR7: 411.528998 | AS7: 460.428646 | AT7: 563.697778 | AU7: 714.552027 | AV7: 656.199074 | AW7: 553.167679 | AX7: 587.898534 | AY7: 607.806963 | AZ7: 685.799948 | BA7: 562.850908
AC8: 4 | AD8: º | AE8: 08 | AF8: Frutas | AG8: 522.0830083 | AH8: 0.09603656252 | AO8: - | AP8: Outros | AQ8: 2321.511916 | AR8: 2516.12806 | AS8: 2729.863672 | AT8: 2906.971446 | AU8: 3013.153416 | AV8: 3208.596379 | AW8: 3497.666486 | AX8: 3611.437725 | AY8: 3776.496511 | AZ8: 3960.804831 | BA8: 3154.263044
AC9: 5 | AD9: º | AE9: 20 | AF9: Preparações de produtos vegetais | AG9: 410.4087216 | AH9: 0.07549420729 | AP9: Total | AQ9: 4156.370456 | AR9: 4474.070275 | AS9: 4823.828717 | AT9: 5154.816914 | AU9: 5379.201704 | AV9: 5470.050396 | AW9: 5888.985705 | AX9: 6106.876812 | AY9: 6291.659436 | AZ9: 6617.081634 | BA9: 5436.294205
AC10: 6 | AD10: º | AE10: 04 | AF10: Leite e laticínios; ovos; mel, etc. | AG10: 331.5355528 | AH10: 0.06098557957
AC11: 7 | AD11: º | AE11: 19a | AF11: Preparações à base de cereais (exc. NC 19022010) (a) | AG11: 311.1304255 | AH11: 0.05723208012
AC12: 8 | AD12: º | AE12: 07 | AF12: Produtos hortícolas | AG12: 256.3863117 | AH12: 0.04716196402
AC13: 9 | AD13: º | AE13: 02 | AF13: Carnes e miudezas | AG13: 193.5357365 | AH13: 0.03560067377
AC14: 10 | AD14: º | AE14: 21 | AF14: Preparações alimentícias diversas | AG14: 167.8498288 | AH14: 0.0308757809 | AI14: 0.8231638276
AE15: - | AF15: Outros | AG15: 961.333459 | AH15: 0.1768361724
AE16: Total | AG16: 5436.294205 | AH16: 1
AC38: P | AE38: Cód.NC | AF38: Descritivo | AG38: Média import quinquénio | AH38: % do total | AI38: % acumulada | AN38: P | AO38: NC | AP38: Importações | AQ38: 2011 | AR38: 2012 | AS38: 2013 | AT38: 2014 | AU38: 2015 | AV38: 2016 | AW38: 2017 | AX38: 2018 | AY38: 2019 | AZ38: 2020 | BA38: média período
AC39: 1 | AD39: º | AE39: 02 | AF39: Carnes e miudezas | AG39: 965.0967579 | AH39: 0.117050875 | AN39: 1º | AO39: 02 | AP39: Carnes e miudezas | AQ39: 796.89738 | AR39: 794.758824 | AS39: 898.104206 | AT39: 959.857388 | AU39: 934.522579 | AV39: 931.358889 | AW39: 1027.780381 | AX39: 1125.824426 | AY39: 1165.965459 | AZ39: 1015.898047 | BA39: 965.0967579
AC40: 2 | AD40: º | AE40: 10 | AF40: Cereais | AG40: 778.3323015 | AH40: 0.09439931925 | AN40: 2º | AO40: 10 | AP40: Cereais | AQ40: 829.52501 | AR40: 834.330103 | AS40: 746.740469 | AT40: 710.988357 | AU40: 729.365585 | AV40: 737.446415 | AW40: 770.612636 | AX40: 856.184287 | AY40: 796.616051 | AZ40: 771.514102 | BA40: 778.3323015
AC41: 3 | AD41: º | AE41: 08 | AF41: Frutas | AG41: 643.7676368 | AH41: 0.07807876732 | AI41: 0.2895289616 | AN41: 3º | AO41: 08 | AP41: Frutas | AQ41: 478.958235 | AR41: 450.23829 | AS41: 535.091613 | AT41: 509.633802 | AU41: 553.923014 | AV41: 673.769371 | AW41: 755.955282 | AX41: 814.572377 | AY41: 779.192888 | AZ41: 886.341496 | BA41: 643.7676368
AC42: 4 | AD42: º | AE42: 12 | AF42: Sementes e frutos oleaginosos | AG42: 630.8288161 | AH42: 0.07650949432 | AO42: - | AP42: Outros | AQ42: 5546.724773 | AR42: 5377.288088 | AS42: 5654.33567 | AT42: 5354.216079 | AU42: 5546.165534 | AV42: 5632.035668 | AW42: 6183.025708 | AX42: 6299.295483 | AY42: 6575.298749 | AZ42: 6410.697537 | BA42: 5857.908329
AC43: 5 | AD43: º | AE43: 15 | AF43: Gorduras e óleos animais ou vegetais | AG43: 604.6193408 | AH43: 0.07333070215 | AP43: Total | AQ43: 7652.105398 | AR43: 7456.615305 | AS43: 7834.271958 | AT43: 7534.695626 | AU43: 7763.976712 | AV43: 7974.610343 | AW43: 8737.374007 | AX43: 9095.876573 | AY43: 9317.073147 | AZ43: 9084.451182 | BA43: 8245.105025
AC44: 6 | AD44: º | AE44: 04 | AF44: Leite e laticínios; ovos; mel, etc. | AG44: 528.6301963 | AH44: 0.06411442846
AC45: 7 | AD45: º | AE45: 19a | AF45: Preparações à base de cereais (exc. NC 19022010) (a) | AG45: 501.8620763 | AH45: 0.06086788158
AC46: 8 | AD46: º | AE46: 22 | AF46: Bebidas, líquidos alcoólicos e vinagres | AG46: 440.0165119 | AH46: 0.05336699903
AC47: 9 | AD47: º | AE47: 21 | AF47: Preparações alimentícias diversas | AG47: 374.8913608 | AH47: 0.04546835482
AC48: 10 | AD48: º | AE48: 07 | AF48: Produtos hortícolas | AG48: 363.7116917 | AH48: 0.04411243891 | AI48: 0.7072992609
AE49: - | AF49: Outros | AG49: 2413.348335 | AH49: 0.2927007391
AE50: Total | AG50: 8245.105025 | AH50: 1
A56: Fonte: GPP a partir de dados INE/Comércio Internacional (2019 provisórios; 2020 preliminares) | Y56: 2021-12-30

Sheet 3B
A1: Principais origens e destinos em Todo o Mundo para Produtos da Floresta (2011-2020) em milhões de euros
AC4: P | AE4: País | AF4: Média export quinquénio | AG4: % do total | AH4: % acumulada | AM4: P | AN4: Exportações | AO4: 2011 | AP4: 2012 | AQ4: 2013 | AR4: 2014 | AS4: 2015 | AT4: 2016 | AU4: 2017 | AV4: 2018 | AW4: 2019 | AX4: 2020 | AY4: média período
AC5: 1 | AD5: º | AE5: Espanha | AF5: 941.8147978 | AG5: 0.2321436767 | AM5: 1º | AN5: Espanha | AO5: 886.481866 | AP5: 864.888257 | AQ5: 924.764698 | AR5: 900.085232 | AS5: 912.849346 | AT5: 909.004109 | AU5: 954.863615 | AV5: 1034.482206 | AW5: 1059.289253 | AX5: 971.439396 | AY5: 941.8147978
AC6: 2 | AD6: º | AE6: França | AF6: 471.269819 | AG6: 0.1161611696 | AM6: 2º | AN6: França | AO6: 435.468026 | AP6: 444.094542 | AQ6: 437.966784 | AR6: 437.317576 | AS6: 439.088308 | AT6: 475.284936 | AU6: 510.600054 | AV6: 527.209004 | AW6: 535.030277 | AX6: 470.638683 | AY6: 471.269819
AC7: 3 | AD7: º | AE7: Alemanha | AF7: 386.9076474 | AG7: 0.09536711889 | AH7: 0.4436719652 | AM7: 3º | AN7: Alemanha | AO7: 429.963726 | AP7: 425.928625 | AQ7: 436.220605 | AR7: 414.549104 | AS7: 432.038026 | AT7: 371.063167 | AU7: 344.764464 | AV7: 372.852632 | AW7: 351.089336 | AX7: 290.606789 | AY7: 386.9076474
AC8: 4 | AD8: º | AE8: Estados Unidos | AF8: 292.1425603 | AG8: 0.07200890049 | AN8: Outros | AO8: 1963.756517 | AP8: 1983.324732 | AQ8: 2076.02481 | AR8: 2163.867307 | AS8: 2343.703202 | AT8: 2325.222012 | AU8: 2387.66429 | AV8: 2518.481851 | AW8: 2522.370159 | AX8: 2286.002854 | AY8: 2257.041773
AC9: 5 | AD9: º | AE9: Itália | AF9: 267.0381987 | AG9: 0.06582103976 | AN9: Total | AO9: 3715.670135 | AP9: 3718.236156 | AQ9: 3874.976897 | AR9: 3915.819219 | AS9: 4127.678882 | AT9: 4080.574224 | AU9: 4197.892423 | AV9: 4453.025693 | AW9: 4467.779025 | AX9: 4018.687722 | AY9: 4057.034038
AC10: 6 | AD10: º | AE10: Reino Unido | AF10: 246.6346487 | AG10: 0.06079186086
AC11: 7 | AD11: º | AE11: Países Baixos | AF11: 199.0211628 | AG11: 0.04905582772
AC12: 8 | AD12: º | AE12: Turquia | AF12: 106.6254506 | AG12: 0.02628162584
AC13: 9 | AD13: º | AE13: China | AF13: 96.6951386 | AG13: 0.02383394808
AC14: 10 | AD14: º | AE14: Polónia | AF14: 72.539776 | AG14: 0.01788000183 | AH14: 0.7593451697
AE15: Outros | AF15: 976.3448377 | AG15: 0.2406548303
AE16: Total | AF16: 4057.034038 | AG16: 1
AC38: P | AE38: País | AF38: Média import quinquénio | AG38: % do total | AH38: % acumulada | AM38: P | AN38: Importações | AO38: 2011 | AP38: 2012 | AQ38: 2013 | AR38: 2014 | AS38: 2015 | AT38: 2016 | AU38: 2017 | AV38: 2018 | AW38: 2019 | AX38: 2020 | AY38: média período
AC39: 1 | AD39: º | AE39: Espanha | AF39: 1059.868889 | AG39: 0.5246916531 | AM39: 1º | AN39: Espanha | AO39: 1073.96111 | AP39: 898.279437 | AQ39: 967.768768 | AR39: 1017.268857 | AS39: 993.927866 | AT39: 1033.5058 | AU39: 1134.786453 | AV39: 1194.038806 | AW39: 1184.713617 | AX39: 1100.438174 | AY39: 1059.868889
AC40: 2 | AD40: º | AE40: Alemanha | AF40: 142.8087569 | AG40: 0.07069795474 | AM40: 2º | AN40: Alemanha | AO40: 144.244021 | AP40: 112.420282 | AQ40: 130.645566 | AR40: 152.497124 | AS40: 162.967024 | AT40: 145.824241 | AU40: 149.915519 | AV40: 145.396948 | AW40: 149.118978 | AX40: 135.057866 | AY40: 142.8087569
AC41: 3 | AD41: º | AE41: França | AF41: 128.5829813 | AG41: 0.06365543675 | AH41: 0.6590450446 | AM41: 3º | AN41: França | AO41: 129.591295 | AP41: 117.078614 | AQ41: 115.712675 | AR41: 119.790555 | AS41: 125.724118 | AT41: 123.952355 | AU41: 136.826945 | AV41: 159.171741 | AW41: 135.486391 | AX41: 122.495124 | AY41: 128.5829813
AC42: 4 | AD42: º | AE42: Itália | AF42: 90.5823378 | AG42: 0.04484309056 | AN42: Outros | AO42: 697.27829 | AP42: 540.968374 | AQ42: 533.037877 | AR42: 608.979861 | AS42: 681.671779 | AT42: 710.216011 | AU42: 737.49668 | AV42: 831.877863 | AW42: 867.631181 | AX42: 678.07857 | AY42: 688.7236486
AC43: 5 | AD43: º | AE43: Uruguai | AF43: 65.0578449 | AG43: 0.03220710462 | AN43: Total | AO43: 2045.074716 | AP43: 1668.746707 | AQ43: 1747.164886 | AR43: 1898.536397 | AS43: 1964.290787 | AT43: 2013.498407 | AU43: 2159.025597 | AV43: 2330.485358 | AW43: 2336.950167 | AX43: 2036.069734 | AY43: 2019.984276
AC44: 6 | AD44: º | AE44: Suécia | AF44: 57.7568623 | AG44: 0.02859272867
AC45: 7 | AD45: º | AE45: Países Baixos | AF45: 52.8961292 | AG45: 0.02618640642
AC46: 8 | AD46: º | AE46: Finlândia | AF46: 52.476047 | AG46: 0.02597844331
AC47: 9 | AD47: º | AE47: Brasil | AF47: 46.3639441 | AG47: 0.02295262625
AC48: 10 | AD48: º | AE48: Estados Unidos | AF48: 44.9062813 | AG48: 0.02223100538 | AH48: 0.8620364498
AE49: Outros | AF49: 278.684202 | AG49: 0.1379635502
AE50: Total | AF50: 2019.984276 | AG50: 1
A57: Fonte: GPP a partir de dados INE/Comércio Internacional (2019 provisórios; 2020 preliminares) | Y57: 2021-12-30

Sheet 4
A1: Evolução da balança comercial por país e por produto 2011-2020 em euros (NC 2 dígitos) Produtos da Floresta
A2: =+aux!A55 -> Evolução da balança comercial Portugal-Espanha
A4: Selecione o país:
A19: =+aux!A56 -> Evolução da balança comercial Portugal-Espanha para Papel e cartão
M21: Selecione o produto:
A38: Fonte: GPP a partir de dados INE/Comércio Internacional (2019 provisórios; 2020 preliminares) | R38: 2021-12-30

Sheet 4A
A1: Evolução da balança comercial Portugal-Todo o Mundo 2011-2020 por produto em euros (NC 2 dígitos)
A3: =+aux!A31 -> Evolução da balança comercial Portugal-Todo o Mundo para Papel e cartão
A5: Selecione o produto:
U7: Para obter uma maior desagregação deste produto, clique no botão respetivo:
A20: =+aux!A43 -> Evolução da balança comercial Portugal-Todo o Mundo para Pastas de madeira
A22: Selecione o produto:
A38: Fonte: GPP a partir de dados INE/Comércio Internacional (2019 provisórios; 2020 preliminares) | R38: 2021-12-30

Sheet 5.1
A1: Trocas comerciais Portugal-Todo o Mundo (2011-2020) por país em milhares de euros | C1: Produtos da Floresta
A2: Cód. País | B2: País | C2: Importações | O2: Exportações | AA2: Saldo período (exp-imp) | AB2: Evolução das importações | AC2: =+"Variação das Importações " & INDEX(C3:K3,1,aux!$BA$1) & "-"& L3 &"" -> Variação das Importações 2011-2020 | AG2: Evolução das exportações | AH2: ="Variação das Exportações " & INDEX(O3:W3,1,aux!BA1) & "-"& X3 &"" -> Variação das Exportações 2011-2020
C3: 2011 | D3: 2012 | E3: 2013 | F3: 2014 | G3: 2015 | H3: 2016 | I3: 2017 | J3: 2018 | K3: 2019 | L3: 2020 | M3: média período | N3: % Total | O3: 2011 | P3: 2012 | Q3: 2013 | R3: 2014 | S3: 2015 | T3: 2016 | U3: 2017 | V3: 2018 | W3: 2019 | X3: 2020 | Y3: média período | Z3: % Total | AC3: variação total em valor | AD3: % no total de variação | AE3: taxa de variação média anual | AF3: taxa de variação total | AH3: variação total em valor | AI3: % no total de variação | AJ3: taxa de variação média anual | AK3: taxa de variação total | CC3: filtro
A4: 0660 | B4: Afeganistão | C4: 0 | D4: 0 | E4: 0 | F4: 0 | G4: 0 | H4: 0 | I4: 0 | J4: 0 | K4: 0 | L4: 0 | M4: 0 | N4: 0 | O4: 0.025 | P4: 0 | Q4: 0 | R4: 0 | S4: 41.56 | T4: 79.696 | U4: 0 | V4: 0 | W4: 244.776 | X4: 207.595 | Y4: 57.3652 | Z4: 1.413968911e-05 | AA4: 57.3652 | AC4: =L4-INDEX($C4:$L4,1,aux!$BA$1) -> 0 | AD4: =AC4/$AC$252 -> 0 | AE4: =+IF(INDEX($C4:$L4,1,aux!$BA$1)>0,(L4/INDEX($C4:$L4,1,aux!$BA$1))^(1/($L$3-INDEX($C$3:$L$3,1,aux!$BA$1)))-1,"n.d.") -> n.d. | AF4: =IF(INDEX($C4:$L4,1,aux!$BA$1)>0,(L4-INDEX($C4:$L4,1,aux!$BA$1))/INDEX($C4:$L4,1,aux!$BA$1),"n.d.") -> n.d. | AH4: =X4-INDEX($O4:$X4,1,aux!$BA$1) -> 207.57 | AI4: =AH4/$AH$252 -> 0.000685009745 | AJ4: =+IF(INDEX($O4:$X4,1,aux!$BA$1)>0,(X4/INDEX($O4:$X4,1,aux!$BA$1))^(1/($X$3-INDEX($O$3:$X$3,1,aux!$BA$1)))-1,"n.d.") -> 1.725682143 | AK4: =IF(INDEX($O4:$X4,1,aux!$BA$1)>0,(X4-INDEX($O4:$X4,1,aux!$BA$1))/INDEX($O4:$X4,1,aux!$BA$1),"n.d.") -> 8302.8 | CC4: =+IF(ISNA(MATCH('5.1'!A4,AUX_2d_pais!$G$2:$G$40000,0)),0,1) -> 1
A5: 0388 | B5: África do Sul | C5: 334.32 | D5: 769.247 | E5: 140.639 | F5: 613.472 | G5: 627.29 | H5: 432.325 | I5: 1502.574 | J5: 4032.596 | K5: 1245.931 | L5: 754.154 | M5: 1045.2548 | N5: 0.0005174568994 | O5: 10550.478 | P5: 10386.727 | Q5: 11007.037 | R5: 12116.336 | S5: 15586.614 | T5: 10409.841 | U5: 12650.428 | V5: 16185.93 | W5: 13560.572 | X5: 9877.783 | Y5: 12233.1746 | Z5: 0.003015299967 | AA5: 11187.9198 | AC5: =L5-INDEX($C5:$L5,1,aux!$BA$1) -> 419.834 | AD5: -0.04662241413 | AE5: =+IF(INDEX($C5:$L5,1,aux!$BA$1)>0,(L5/INDEX($C5:$L5,1,aux!$BA$1))^(1/($L$3-INDEX($C$3:$L$3,1,aux!$BA$1)))-1,"n.d.") -> 0.09459963215 | AF5: =IF(INDEX($C5:$L5,1,aux!$BA$1)>0,(L5-INDEX($C5:$L5,1,aux!$BA$1))/INDEX($C5:$L5,1,aux!$BA$1),"n.d.") -> 1.255784877 | AH5: =X5-INDEX($O5:$X5,1,aux!$BA$1) -> -672.695 | AI5: -0.002219986657 | AJ5: =+IF(INDEX($O5:$X5,1,aux!$BA$1)>0,(X5/INDEX($O5:$X5,1,aux!$BA$1))^(1/($X$3-INDEX($O$3:$X$3,1,aux!$BA$1)))-1,"n.d.") -> -0.007293613015 | AK5: =IF(INDEX($O5:$X5,1,aux!$BA$1)>0,(X5-INDEX($O5:$X5,1,aux!$BA$1))/INDEX($O5:$X5,1,aux!$BA$1),"n.d.") -> -0.06375967041 | CC5: =+IF(ISNA(MATCH('5.1'!A5,AUX_2d_pais!$G$2:$G$40000,0)),0,1) -> 1
A6: 0070 | B6: Albânia | C6: 0 | D6: 4.072 | E6: 9.813 | F6: 0 | G6: 7.471 | H6: 0 | I6: 0.211 | J6: 0.018 | K6: 0 | L6: 0 | M6: 2.1585 | N6: 1.068572675e-06 | O6: 78.209 | P6: 345.658 | Q6: 574.672 | R6: 304.605 | S6: 893.426 | T6: 835.146 | U6: 1065.303 | V6: 1115.469 | W6: 716.904 | X6: 785.758 | Y6: 671.515 | Z6: 0.0001655187001 | AA6: 669.3565 | AC6: =L6-INDEX($C6:$L6,1,aux!$BA$1) -> 0 | AD6: 0 | AE6: =+IF(INDEX($C6:$L6,1,aux!$BA$1)>0,(L6/INDEX($C6:$L6,1,aux!$BA$1))^(1/($L$3-INDEX($C$3:$L$3,1,aux!$BA$1)))-1,"n.d.") -> n.d. | AF6: =IF(INDEX($C6:$L6,1,aux!$BA$1)>0,(L6-INDEX($C6:$L6,1,aux!$BA$1))/INDEX($C6:$L6,1,aux!$BA$1),"n.d.") -> n.d. | AH6: =X6-INDEX($O6:$X6,1,aux!$BA$1) -> 707.549 | AI6: 0.002335009684 | AJ6: =+IF(INDEX($O6:$X6,1,aux!$BA$1)>0,(X6/INDEX($O6:$X6,1,aux!$BA$1))^(1/($X$3-INDEX($O$3:$X$3,1,aux!$BA$1)))-1,"n.d.") -> 0.2922213067 | AK6: =IF(INDEX($O6:$X6,1,aux!$BA$1)>0,(X6-INDEX($O6:$X6,1,aux!$BA$1))/INDEX($O6:$X6,1,aux!$BA$1),"n.d.") -> 9.046899973 | CC6: =+IF(ISNA(MATCH('5.1'!A6,AUX_2d_pais!$G$2:$G$40000,0)),0,1) -> 1
A7: 0004 | B7: Alemanha | C7: 144244.021 | D7: 112420.282 | E7: 130645.566 | F7: 152497.124 | G7: 162967.024 | H7: 145824.241 | I7: 149915.519 | J7: 145396.948 | K7: 149118.978 | L7: 135057.866 | M7: 142808.7569 | N7: 0.07069795474 | O7: 429963.726 | P7: 425928.625 | Q7: 436220.605 | R7: 414549.104 | S7: 432038.026 | T7: 371063.167 | U7: 344764.464 | V7: 372852.632 | W7: 351089.336 | X7: 290606.789 | Y7: 386907.6474 | Z7: 0.09536711889 | AA7: 244098.8905 | AC7: =L7-INDEX($C7:$L7,1,aux!$BA$1) -> -9186.155 | AD7: 1.020119196 | AE7: =+IF(INDEX($C7:$L7,1,aux!$BA$1)>0,(L7/INDEX($C7:$L7,1,aux!$BA$1))^(1/($L$3-INDEX($C$3:$L$3,1,aux!$BA$1)))-1,"n.d.") -> -0.007284795419 | AF7: =IF(INDEX($C7:$L7,1,aux!$BA$1)>0,(L7-INDEX($C7:$L7,1,aux!$BA$1))/INDEX($C7:$L7,1,aux!$BA$1),"n.d.") -> -0.06368482337 | AH7: =X7-INDEX($O7:$X7,1,aux!$BA$1) -> -139356.937 | AI7: -0.4598971907 | AJ7: =+IF(INDEX($O7:$X7,1,aux!$BA$1)>0,(X7/INDEX($O7:$X7,1,aux!$BA$1))^(1/($X$3-INDEX($O$3:$X$3,1,aux!$BA$1)))-1,"n.d.") -> -0.04259188503 | AK7: =IF(INDEX($O7:$X7,1,aux!$BA$1)>0,(X7-INDEX($O7:$X7,1,aux!$BA$1))/INDEX($O7:$X7,1,aux!$BA$1),"n.d.") -> -0.3241132416 | CC7: =+IF(ISNA(MATCH('5.1'!A7,AUX_2d_pais!$G$2:$G$40000,0)),0,1) -> 1
A8: 0043 | B8: Andorra | C8: 0.25 | D8: 0.04 | E8: 0.097 | F8: 0.33 | G8: 0 | H8: 0 | I8: 0 | J8: 0 | K8: 0 | L8: 43.481 | M8: 4.4198 | N8: 2.188036834e-06 | O8: 14.267 | P8: 36.765 | Q8: 10.436 | R8: 28.322 | S8: 14.329 | T8: 77.426 | U8: 95.279 | V8: 85.343 | W8: 42.654 | X8: 31.704 | Y8: 43.6525 | Z8: 1.075970761e-05 | AA8: 39.2327 | AC8: =L8-INDEX($C8:$L8,1,aux!$BA$1) -> 43.231 | AD8: -0.004800786942 | AE8: =+IF(INDEX($C8:$L8,1,aux!$BA$1)>0,(L8/INDEX($C8:$L8,1,aux!$BA$1))^(1/($L$3-INDEX($C$3:$L$3,1,aux!$BA$1)))-1,"n.d.") -> 0.7738987799 | AF8: =IF(INDEX($C8:$L8,1,aux!$BA$1)>0,(L8-INDEX($C8:$L8,1,aux!$BA$1))/INDEX($C8:$L8,1,aux!$BA$1),"n.d.") -> 172.924 | AH8: =X8-INDEX($O8:$X8,1,aux!$BA$1) -> 17.437 | AI8: 5.754451473e-05 | AJ8: =+IF(INDEX($O8:$X8,1,aux!$BA$1)>0,(X8/INDEX($O8:$X8,1,aux!$BA$1))^(1/($X$3-INDEX($O$3:$X$3,1,aux!$BA$1)))-1,"n.d.") -> 0.09277629733 | AK8: =IF(INDEX($O8:$X8,1,aux!$BA$1)>0,(X8-INDEX($O8:$X8,1,aux!$BA$1))/INDEX($O8:$X8,1,aux!$BA$1),"n.d.") -> 1.22219107 | CC8: =+IF(ISNA(MATCH('5.1'!A8,AUX_2d_pais!$G$2:$G$40000,0)),0,1) -> 1
A9: 0330 | B9: Angola | C9: 824.732 | D9: 337.734 | E9: 735.294 | F9: 558.063 | G9: 787.38 | H9: 2551.327 | I9: 4476.427 | J9: 691.432 | K9: 2046.355 | L9: 2095.877 | M9: 1510.4621 | N9: 0.0007477593357 | O9: 83372.063 | P9: 90658.946 | Q9: 104766.252 | R9: 104358.756 | S9: 73318.955 | T9: 68276.837 | U9: 61176.738 | V9: 59462.432 | W9: 48897.178 | X9: 27674.878 | Y9: 72196.3035 | Z9: 0.01779534084 | AA9: 70685.8414 | AC9: =L9-INDEX($C9:$L9,1,aux!$BA$1) -> 1271.145 | AD9: -0.1411601933 | AE9: =+IF(INDEX($C9:$L9,1,aux!$BA$1)>0,(L9/INDEX($C9:$L9,1,aux!$BA$1))^(1/($L$3-INDEX($C$3:$L$3,1,aux!$BA$1)))-1,"n.d.") -> 0.1091898401 | AF9: =IF(INDEX($C9:$L9,1,aux!$BA$1)>0,(L9-INDEX($C9:$L9,1,aux!$BA$1))/INDEX($C9:$L9,1,aux!$BA$1),"n.d.") -> 1.541282501 | AH9: =X9-INDEX($O9:$X9,1,aux!$BA$1) -> -55697.185 | AI9: -0.1838084236 | AJ9: =+IF(INDEX($O9:$X9,1,aux!$BA$1)>0,(X9/INDEX($O9:$X9,1,aux!$BA$1))^(1/($X$3-INDEX($O$3:$X$3,1,aux!$BA$1)))-1,"n.d.") -> -0.1153224255 | AK9: =IF(INDEX($O9:$X9,1,aux!$BA$1)>0,(X9-INDEX($O9:$X9,1,aux!$BA$1))/INDEX($O9:$X9,1,aux!$BA$1),"n.d.") -> -0.6680557371 | CC9: =+IF(ISNA(MATCH('5.1'!A9,AUX_2d_pais!$G$2:$G$40000,0)),0,1) -> 1
A10: 0446 | B10: Anguila | C10: 0 | D10: 0 | E10: 0 | F10: 0 | G10: 0 | H10: 0 | I10: 0 | J10: 0 | K10: 0 | L10: 0 | M10: 0 | N10: 0 | O10: 0 | P10: 0 | Q10: 0 | R10: 0 | S10: 0 | T10: 0 | U10: 0.013 | V10: 2.054 | W10: 0 | X10: 0 | Y10: 0.2067 | Z10: 5.094854963e-08 | AA10: 0.2067 | AC10: =L10-INDEX($C10:$L10,1,aux!$BA$1) -> 0 | AD10: 0 | AE10: =+IF(INDEX($C10:$L10,1,aux!$BA$1)>0,(L10/INDEX($C10:$L10,1,aux!$BA$1))^(1/($L$3-INDEX($C$3:$L$3,1,aux!$BA$1)))-1,"n.d.") -> n.d. | AF10: =IF(INDEX($C10:$L10,1,aux!$BA$1)>0,(L10-INDEX($C10:$L10,1,aux!$BA$1))/INDEX($C10:$L10,1,aux!$BA$1),"n.d.") -> n.d. | AH10: =X10-INDEX($O10:$X10,1,aux!$BA$1) -> 0 | AI10: 0 | AJ10: =+IF(INDEX($O10:$X10,1,aux!$BA$1)>0,(X10/INDEX($O10:$X10,1,aux!$BA$1))^(1/($X$3-INDEX($O$3:$X$3,1,aux!$BA$1)))-1,"n.d.") -> n.d. | AK10: =IF(INDEX($O10:$X10,1,aux!$BA$1)>0,(X10-INDEX($O10:$X10,1,aux!$BA$1))/INDEX($O10:$X10,1,aux!$BA$1),"n.d.") -> n.d. | CC10: =+IF(ISNA(MATCH('5.1'!A10,AUX_2d_pais!$G$2:$G$40000,0)),0,1) -> 1
A11: 0891 | B11: Antárctica | C11: 0 | D11: 0 | E11: 0 | F11: 0 | G11: 0 | H11: 0 | I11: 0 | J11: 0 | K11: 0 | L11: 0 | M11: 0 | N11: 0 | O11: 0.968 | P11: 0 | Q11: 0 | R11: 0 | S11: 0 | T11: 0 | U11: 0 | V11: 0 | W11: 0 | X11: 0 | Y11: 0.0968 | Z11: 2.385979489e-08 | AA11: 0.0968 | AC11: =L11-INDEX($C11:$L11,1,aux!$BA$1) -> 0 | AD11: 0 | AE11: =+IF(INDEX($C11:$L11,1,aux!$BA$1)>0,(L11/INDEX($C11:$L11,1,aux!$BA$1))^(1/($L$3-INDEX($C$3:$L$3,1,aux!$BA$1)))-1,"n.d.") -> n.d. | AF11: =IF(INDEX($C11:$L11,1,aux!$BA$1)>0,(L11-INDEX($C11:$L11,1,aux!$BA$1))/INDEX($C11:$L11,1,aux!$BA$1),"n.d.") -> n.d. | AH11: =X11-INDEX($O11:$X11,1,aux!$BA$1) -> -0.968 | AI11: -3.194534052e-06 | AJ11: =+IF(INDEX($O11:$X11,1,aux!$BA$1)>0,(X11/INDEX($O11:$X11,1,aux!$BA$1))^(1/($X$3-INDEX($O$3:$X$3,1,aux!$BA$1)))-1,"n.d.") -> -1 | AK11: =IF(INDEX($O11:$X11,1,aux!$BA$1)>0,(X11-INDEX($O11:$X11,1,aux!$BA$1))/INDEX($O11:$X11,1,aux!$BA$1),"n.d.") -> -1 | BO11: =SUM(C11:L11,O11:X11) -> 0.968 | CC11: =+IF(ISNA(MATCH('5.1'!A11,AUX_2d_pais!$G$2:$G$40000,0)),0,1) -> 1
A12: 0459 | B12: Antígua e Barbuda | C12: 0 | D12: 0 | E12: 0 | F12: 0 | G12: 0 | H12: 0 | I12: 0 | J12: 0 | K12: 0 | L12: 0 | M12: 0 | N12: 0 | O12: 14.04 | P12: 19.09 | Q12: 10.474 | R12: 13.409 | S12: 87.376 | T12: 54.784 | U12: 8.569 | V12: 275.35 | W12: 74.754 | X12: 31.137 | Y12: 58.8983 | Z12: 1.451757601e-05 | AA12: 58.8983 | AC12: =L12-INDEX($C12:$L12,1,aux!$BA$1) -> 0 | AD12: 0 | AE12: =+IF(INDEX($C12:$L12,1,aux!$BA$1)>0,(L12/INDEX($C12:$L12,1,aux!$BA$1))^(1/($L$3-INDEX($C$3:$L$3,1,aux!$BA$1)))-1,"n.d.") -> n.d. | AF12: =IF(INDEX($C12:$L12,1,aux!$BA$1)>0,(L12-INDEX($C12:$L12,1,aux!$BA$1))/INDEX($C12:$L12,1,aux!$BA$1),"n.d.") -> n.d. | AH12: =X12-INDEX($O12:$X12,1,aux!$BA$1) -> 17.097 | AI12: 5.642246765e-05 | AJ12: =+IF(INDEX($O12:$X12,1,aux!$BA$1)>0,(X12/INDEX($O12:$X12,1,aux!$BA$1))^(1/($X$3-INDEX($O$3:$X$3,1,aux!$BA$1)))-1,"n.d.") -> 0.09253260459 | AK12: =IF(INDEX($O12:$X12,1,aux!$BA$1)>0,(X12-INDEX($O12:$X12,1,aux!$BA$1))/INDEX($O12:$X12,1,aux!$BA$1),"n.d.") -> 1.217735043 | CC12: =+IF(ISNA(MATCH('5.1'!A12,AUX_2d_pais!$G$2:$G$40000,0)),0,1) -> 1
A13: 0478 | B13: Antilhas Holandesas | C13: 0 | D13: 0 | E13: 0 | F13: 0 | G13: 0 | H13: 0 | I13: 0 | J13: 0 | K13: 0 | L13: 0 | M13: 0 | N13: 0 | O13: 251.764 | P13: 182.34 | Q13: 0 | R13: 0 | S13: 0 | T13: 0 | U13: 0 | V13: 0 | W13: 0 | X13: 0 | Y13: 43.4104 | Z13: 1.070003347e-05 | AA13: 43.4104 | AC13: =L13-INDEX($C13:$L13,1,aux!$BA$1) -> 0 | AD13: 0 | AE13: =+IF(INDEX($C13:$L13,1,aux!$BA$1)>0,(L13/INDEX($C13:$L13,1,aux!$BA$1))^(1/($L$3-INDEX($C$3:$L$3,1,aux!$BA$1)))-1,"n.d.") -> n.d. | AF13: =IF(INDEX($C13:$L13,1,aux!$BA$1)>0,(L13-INDEX($C13:$L13,1,aux!$BA$1))/INDEX($C13:$L13,1,aux!$BA$1),"n.d.") -> n.d. | AH13: =X13-INDEX($O13:$X13,1,aux!$BA$1) -> -251.764 | AI13: -0.0008308560651 | AJ13: =+IF(INDEX($O13:$X13,1,aux!$BA$1)>0,(X13/INDEX($O13:$X13,1,aux!$BA$1))^(1/($X$3-INDEX($O$3:$X$3,1,aux!$BA$1)))-1,"n.d.") -> -1 | AK13: =IF(INDEX($O13:$X13,1,aux!$BA$1)>0,(X13-INDEX($O13:$X13,1,aux!$BA$1))/INDEX($O13:$X13,1,aux!$BA$1),"n.d.") -> -1 | BO13: 434.104 | CC13: =+IF(ISNA(MATCH('5.1'!A13,AUX_2d_pais!$G$2:$G$40000,0)),0,1) -> 1
A14: 0632 | B14: Arábia Saudita | C14: 0 | D14: 15.579 | E14: 1.675 | F14: 0 | G14: 1.621 | H14: 13.805 | I14: 0 | J14: 1.004 | K14: 30.479 | L14: 14.501 | M14: 7.8664 | N14: 3.89428774e-06 | O14: 29075.656 | P14: 17778.916 | Q14: 15991.626 | R14: 11676.229 | S14: 11305.804 | T14: 9353.261 | U14: 16529.578 | V14: 10340.239 | W14: 10892.342 | X14: 5852.323 | Y14: 13879.5974 | Z14: 0.003421119288 | AA14: 13871.731 | AC14: =L14-INDEX($C14:$L14,1,aux!$BA$1) -> 14.501 | AD14: -0.001610330815 | AE14: =+IF(INDEX($C14:$L14,1,aux!$BA$1)>0,(L14/INDEX($C14:$L14,1,aux!$BA$1))^(1/($L$3-INDEX($C$3:$L$3,1,aux!$BA$1)))-1,"n.d.") -> n.d. | AF14: =IF(INDEX($C14:$L14,1,aux!$BA$1)>0,(L14-INDEX($C14:$L14,1,aux!$BA$1))/INDEX($C14:$L14,1,aux!$BA$1),"n.d.") -> n.d. | AH14: =X14-INDEX($O14:$X14,1,aux!$BA$1) -> -23223.333 | AI14: -0.07664021495 | AJ14: =+IF(INDEX($O14:$X14,1,aux!$BA$1)>0,(X14/INDEX($O14:$X14,1,aux!$BA$1))^(1/($X$3-INDEX($O$3:$X$3,1,aux!$BA$1)))-1,"n.d.") -> -0.1631563842 | AK14: =IF(INDEX($O14:$X14,1,aux!$BA$1)>0,(X14-INDEX($O14:$X14,1,aux!$BA$1))/INDEX($O14:$X14,1,aux!$BA$1),"n.d.") -> -0.7987208612 | CC14: =+IF(ISNA(MATCH('5.1'!A14,AUX_2d_pais!$G$2:$G$40000,0)),0,1) -> 1
A15: 0208 | B15: Argélia | C15: 1779.931 | D15: 2347.724 | E15: 1184.562 | F15: 806.704 | G15: 800.304 | H15: 608.334 | I15: 1262.563 | J15: 3669.65 | K15: 4502.891 | L15: 3731.545 | M15: 2069.4208 | N15: 0.001024473717 | O15: 34333.975 | P15: 45189.942 | Q15: 34735.288 | R15: 42790.225 | S15: 54992.632 | T15: 43625.053 | U15: 54393.982 | V15: 55021.762 | W15: 37338.197 | X15: 37049.313 | Y15: 43947.0369 | Z15: 0.01083230668 | AA15: 41877.6161 | AC15: =L15-INDEX($C15:$L15,1,aux!$BA$1) -> 1951.614 | AD15: -0.2167260301 | AE15: =+IF(INDEX($C15:$L15,1,aux!$BA$1)>0,(L15/INDEX($C15:$L15,1,aux!$BA$1))^(1/($L$3-INDEX($C$3:$L$3,1,aux!$BA$1)))-1,"n.d.") -> 0.08572693718 | AF15: =IF(INDEX($C15:$L15,1,aux!$BA$1)>0,(L15-INDEX($C15:$L15,1,aux!$BA$1))/INDEX($C15:$L15,1,aux!$BA$1),"n.d.") -> 1.096454863 | AH15: =X15-INDEX($O15:$X15,1,aux!$BA$1) -> 2715.338 | AI15: 0.008960991429 | AJ15: =+IF(INDEX($O15:$X15,1,aux!$BA$1)>0,(X15/INDEX($O15:$X15,1,aux!$BA$1))^(1/($X$3-INDEX($O$3:$X$3,1,aux!$BA$1)))-1,"n.d.") -> 0.008493020604 | AK15: =IF(INDEX($O15:$X15,1,aux!$BA$1)>0,(X15-INDEX($O15:$X15,1,aux!$BA$1))/INDEX($O15:$X15,1,aux!$BA$1),"n.d.") -> 0.0790860365 | CC15: =+IF(ISNA(MATCH('5.1'!A15,AUX_2d_pais!$G$2:$G$40000,0)),0,1) -> 1
A16: 0528 | B16: Argentina | C16: 1454.982 | D16: 655.948 | E16: 4.874 | F16: 464.905 | G16: 93.835 | H16: 304.553 | I16: 1171.02 | J16: 8463.755 | K16: 10492.861 | L16: 6449.1 | M16: 2955.5833 | N16: 0.001463171439 | O16: 17569.231 | P16: 18090.18 | Q16: 18456.007 | R16: 17348.805 | S16: 19372.616 | T16: 16768.184 | U16: 20765.845 | V16: 12023.305 | W16: 12842.159 | X16: 14421.306 | Y16: 16765.7638 | Z16: 0.004132517412 | AA16: 13810.1805 | AC16: =L16-INDEX($C16:$L16,1,aux!$BA$1) -> 4994.118 | AD16: -0.5545950009 | AE16: =+IF(INDEX($C16:$L16,1,aux!$BA$1)>0,(L16/INDEX($C16:$L16,1,aux!$BA$1))^(1/($L$3-INDEX($C$3:$L$3,1,aux!$BA$1)))-1,"n.d.") -> 0.179910469 | AF16: =IF(INDEX($C16:$L16,1,aux!$BA$1)>0,(L16-INDEX($C16:$L16,1,aux!$BA$1))/INDEX($C16:$L16,1,aux!$BA$1),"n.d.") -> 3.432425968 | AH16: =X16-INDEX($O16:$X16,1,aux!$BA$1) -> -3147.925 | AI16: -0.01038858844 | AJ16: =+IF(INDEX($O16:$X16,1,aux!$BA$1)>0,(X16/INDEX($O16:$X16,1,aux!$BA$1))^(1/($X$3-INDEX($O$3:$X$3,1,aux!$BA$1)))-1,"n.d.") -> -0.02169915968 | AK16: =IF(INDEX($O16:$X16,1,aux!$BA$1)>0,(X16-INDEX($O16:$X16,1,aux!$BA$1))/INDEX($O16:$X16,1,aux!$BA$1),"n.d.") -> -0.1791726115 | CC16: =+IF(ISNA(MATCH('5.1'!A16,AUX_2d_pais!$G$2:$G$40000,0)),0,1) -> 1
A17: 0077 | B17: Arménia | C17: 0 | D17: 0 | E17: 0 | F17: 0 | G17: 0 | H17: 0 | I17: 0 | J17: 0 | K17: 0.304 | L17: 0.524 | M17: 0.0828 | N17: 4.099041809e-08 | O17: 1719.555 | P17: 1964.068 | Q17: 2499.016 | R17: 1709.098 | S17: 1069.129 | T17: 1350.859 | U17: 1638.359 | V17: 1706.376 | W17: 2012.635 | X17: 1556.36 | Y17: 1722.5455 | Z17: 0.000424582462 | AA17: 1722.4627 | AC17: =L17-INDEX($C17:$L17,1,aux!$BA$1) -> 0.524 | AD17: -5.819001082e-05 | AE17: =+IF(INDEX($C17:$L17,1,aux!$BA$1)>0,(L17/INDEX($C17:$L17,1,aux!$BA$1))^(1/($L$3-INDEX($C$3:$L$3,1,aux!$BA$1)))-1,"n.d.") -> n.d. | AF17: =IF(INDEX($C17:$L17,1,aux!$BA$1)>0,(L17-INDEX($C17:$L17,1,aux!$BA$1))/INDEX($C17:$L17,1,aux!$BA$1),"n.d.") -> n.d. | AH17: =X17-INDEX($O17:$X17,1,aux!$BA$1) -> -163.195 | AI17: -0.0005385660998 | AJ17: =+IF(INDEX($O17:$X17,1,aux!$BA$1)>0,(X17/INDEX($O17:$X17,1,aux!$BA$1))^(1/($X$3-INDEX($O$3:$X$3,1,aux!$BA$1)))-1,"n.d.") -> -0.01101837861 | AK17: =IF(INDEX($O17:$X17,1,aux!$BA$1)>0,(X17-INDEX($O17:$X17,1,aux!$BA$1))/INDEX($O17:$X17,1,aux!$BA$1),"n.d.") -> -0.09490536796 | CC17: =+IF(ISNA(MATCH('5.1'!A17,AUX_2d_pais!$G$2:$G$40000,0)),0,1) -> 1
A18: 0474 | B18: Aruba | C18: 0 | D18: 0 | E18: 0 | F18: 0 | G18: 0 | H18: 0 | I18: 0 | J18: 0 | K18: 0 | L18: 0 | M18: 0 | N18: 0 | O18: 0 | P18: 4.349 | Q18: 5.765 | R18: 18.838 | S18: 17.44 | T18: 141.519 | U18: 54.289 | V18: 12.194 | W18: 28.096 | X18: 41.467 | Y18: 32.3957 | Z18: 7.985069807e-06 | AA18: 32.3957 | AC18: =L18-INDEX($C18:$L18,1,aux!$BA$1) -> 0 | AD18: 0 | AE18: =+IF(INDEX($C18:$L18,1,aux!$BA$1)>0,(L18/INDEX($C18:$L18,1,aux!$BA$1))^(1/($L$3-INDEX($C$3:$L$3,1,aux!$BA$1)))-1,"n.d.") -> n.d. | AF18: =IF(INDEX($C18:$L18,1,aux!$BA$1)>0,(L18-INDEX($C18:$L18,1,aux!$BA$1))/INDEX($C18:$L18,1,aux!$BA$1),"n.d.") -> n.d. | AH18: =X18-INDEX($O18:$X18,1,aux!$BA$1) -> 41.467 | AI18: 0.0001368468425 | AJ18: =+IF(INDEX($O18:$X18,1,aux!$BA$1)>0,(X18/INDEX($O18:$X18,1,aux!$BA$1))^(1/($X$3-INDEX($O$3:$X$3,1,aux!$BA$1)))-1,"n.d.") -> n.d. | AK18: =IF(INDEX($O18:$X18,1,aux!$BA$1)>0,(X18-INDEX($O18:$X18,1,aux!$BA$1))/INDEX($O18:$X18,1,aux!$BA$1),"n.d.") -> n.d. | BO18: 323.957 | CC18: =+IF(ISNA(MATCH('5.1'!A18,AUX_2d_pais!$G$2:$G$40000,0)),0,1) -> 1
A19: 0800 | B19: Austrália | C19: 4251.818 | D19: 2714.902 | E19: 3680.042 | F19: 3520.84 | G19: 4087.392 | H19: 1800.88 | I19: 1105.365 | J19: 675.12 | K19: 677.535 | L19: 686.277 | M19: 2320.0171 | N19: 0.001148532257 | O19: 15744.327 | P19: 15301.301 | Q19: 13854.418 | R19: 13925.291 | S19: 16076.413 | T19: 19236.024 | U19: 26450.447 | V19: 25515.092 | W19: 25808.341 | X19: 20520.36 | Y19: 19243.2014 | Z19: 0.004743169819 | AA19: 16923.1843 | AC19: =L19-INDEX($C19:$L19,1,aux!$BA$1) -> -3565.541 | AD19: 0.3959520408 | AE19: =+IF(INDEX($C19:$L19,1,aux!$BA$1)>0,(L19/INDEX($C19:$L19,1,aux!$BA$1))^(1/($L$3-INDEX($C$3:$L$3,1,aux!$BA$1)))-1,"n.d.") -> -0.1834333436 | AF19: =IF(INDEX($C19:$L19,1,aux!$BA$1)>0,(L19-INDEX($C19:$L19,1,aux!$BA$1))/INDEX($C19:$L19,1,aux!$BA$1),"n.d.") -> -0.8385921034 | AH19: =X19-INDEX($O19:$X19,1,aux!$BA$1) -> 4776.033 | AI19: 0.0157615703 | AJ19: =+IF(INDEX($O19:$X19,1,aux!$BA$1)>0,(X19/INDEX($O19:$X19,1,aux!$BA$1))^(1/($X$3-INDEX($O$3:$X$3,1,aux!$BA$1)))-1,"n.d.") -> 0.02987506102 | AK19: =IF(INDEX($O19:$X19,1,aux!$BA$1)>0,(X19-INDEX($O19:$X19,1,aux!$BA$1))/INDEX($O19:$X19,1,aux!$BA$1),"n.d.") -> 0.3033494541 | CC19: =+IF(ISNA(MATCH('5.1'!A19,AUX_2d_pais!$G$2:$G$40000,0)),0,1) -> 1
A20: 0038 | B20: Áustria | C20: 33035.222 | D20: 37532.108 | E20: 30734.014 | F20: 26094.718 | G20: 32814.038 | H20: 35077.479 | I20: 36989.052 | J20: 36220.075 | K20: 35004.779 | L20: 33056.483 | M20: 33655.7968 | N20: 0.01666141524 | O20: 16855.785 | P20: 17995.611 | Q20: 17053.735 | R20: 13703.3 | S20: 13546.056 | T20: 13586.051 | U20: 15504.722 | V20: 14308.794 | W20: 15348.213 | X20: 14403.691 | Y20: 15230.5958 | Z20: 0.003754120784 | AA20: -18425.201 | AC20: =L20-INDEX($C20:$L20,1,aux!$BA$1) -> 21.261 | AD20: -0.002361026374 | AE20: =+IF(INDEX($C20:$L20,1,aux!$BA$1)>0,(L20/INDEX($C20:$L20,1,aux!$BA$1))^(1/($L$3-INDEX($C$3:$L$3,1,aux!$BA$1)))-1,"n.d.") -> 7.148908791e-05 | AF20: =IF(INDEX($C20:$L20,1,aux!$BA$1)>0,(L20-INDEX($C20:$L20,1,aux!$BA$1))/INDEX($C20:$L20,1,aux!$BA$1),"n.d.") -> 0.0006435858067 | AH20: =X20-INDEX($O20:$X20,1,aux!$BA$1) -> -2452.094 | AI20: -0.008092249774 | AJ20: =+IF(INDEX($O20:$X20,1,aux!$BA$1)>0,(X20/INDEX($O20:$X20,1,aux!$BA$1))^(1/($X$3-INDEX($O$3:$X$3,1,aux!$BA$1)))-1,"n.d.") -> -0.01731603815 | AK20: =IF(INDEX($O20:$X20,1,aux!$BA$1)>0,(X20-INDEX($O20:$X20,1,aux!$BA$1))/INDEX($O20:$X20,1,aux!$BA$1),"n.d.") -> -0.1454749215 | CC20: =+IF(ISNA(MATCH('5.1'!A20,AUX_2d_pais!$G$2:$G$40000,0)),0,1) -> 1
A21: 0078 | B21: Azerbaijão | C21: 0 | D21: 0.023 | E21: 0 | F21: 0 | G21: 0 | H21: 0 | I21: 0 | J21: 5.351 | K21: 0 | L21: 0 | M21: 0.5374 | N21: 2.660416749e-07 | O21: 440.143 | P21: 886.854 | Q21: 791.647 | R21: 643.898 | S21: 421.388 | T21: 348.411 | U21: 520.931 | V21: 700.486 | W21: 690.151 | X21: 327.025 | Y21: 577.0934 | Z21: 0.0001422451462 | AA21: 576.556 | AC21: =L21-INDEX($C21:$L21,1,aux!$BA$1) -> 0 | AD21: 0 | AE21: =+IF(INDEX($C21:$L21,1,aux!$BA$1)>0,(L21/INDEX($C21:$L21,1,aux!$BA$1))^(1/($L$3-INDEX($C$3:$L$3,1,aux!$BA$1)))-1,"n.d.") -> n.d. | AF21: =IF(INDEX($C21:$L21,1,aux!$BA$1)>0,(L21-INDEX($C21:$L21,1,aux!$BA$1))/INDEX($C21:$L21,1,aux!$BA$1),"n.d.") -> n.d. | AH21: =X21-INDEX($O21:$X21,1,aux!$BA$1) -> -113.118 | AI21: -0.000373305065 | AJ21: =+IF(INDEX($O21:$X21,1,aux!$BA$1)>0,(X21/INDEX($O21:$X21,1,aux!$BA$1))^(1/($X$3-INDEX($O$3:$X$3,1,aux!$BA$1)))-1,"n.d.") -> -0.03246821891 | AK21: =IF(INDEX($O21:$X21,1,aux!$BA$1)>0,(X21-INDEX($O21:$X21,1,aux!$BA$1))/INDEX($O21:$X21,1,aux!$BA$1),"n.d.") -> -0.2570028377 | CC21: =+IF(ISNA(MATCH('5.1'!A21,AUX_2d_pais!$G$2:$G$40000,0)),0,1) -> 1
A22: 0453 | B22: Bahamas | C22: 0 | D22: 0 | E22: 0 | F22: 0 | G22: 0.049 | H22: 0.005 | I22: 0 | J22: 0 | K22: 0 | L22: 0 | M22: 0.0054 | N22: 2.673288137e-09 | O22: 32.24 | P22: 18.611 | Q22: 71.868 | R22: 89.453 | S22: 226.855 | T22: 75.183 | U22: 72.728 | V22: 136.89 | W22: 232.813 | X22: 152.664 | Y22: 110.9305 | Z22: 2.734275803e-05 | AA22: 110.9251 | AC22: =L22-INDEX($C22:$L22,1,aux!$BA$1) -> 0 | AD22: 0 | AE22: =+IF(INDEX($C22:$L22,1,aux!$BA$1)>0,(L22/INDEX($C22:$L22,1,aux!$BA$1))^(1/($L$3-INDEX($C$3:$L$3,1,aux!$BA$1)))-1,"n.d.") -> n.d. | AF22: =IF(INDEX($C22:$L22,1,aux!$BA$1)>0,(L22-INDEX($C22:$L22,1,aux!$BA$1))/INDEX($C22:$L22,1,aux!$BA$1),"n.d.") -> n.d. | AH22: =X22-INDEX($O22:$X22,1,aux!$BA$1) -> 120.424 | AI22: 0.0003974158767 | AJ22: =+IF(INDEX($O22:$X22,1,aux!$BA$1)>0,(X22/INDEX($O22:$X22,1,aux!$BA$1))^(1/($X$3-INDEX($O$3:$X$3,1,aux!$BA$1)))-1,"n.d.") -> 0.1886061035 | AK22: =IF(INDEX($O22:$X22,1,aux!$BA$1)>0,(X22-INDEX($O22:$X22,1,aux!$BA$1))/INDEX($O22:$X22,1,aux!$BA$1),"n.d.") -> 3.735235732 | BO22: 1109.359 | CC22: =+IF(ISNA(MATCH('5.1'!A22,AUX_2d_pais!$G$2:$G$40000,0)),0,1) -> 1
A23: 0666 | B23: Bangladesh | C23: 12.907 | D23: 9.177 | E23: 14.686 | F23: 57.893 | G23: 1.378 | H23: 42.674 | I23: 106.568 | J23: 33.241 | K23: 147.861 | L23: 116.054 | M23: 54.2439 | N23: 2.685362488e-05 | O23: 2226.242 | P23: 115.239 | Q23: 76.1 | R23: 273.277 | S23: 139.126 | T23: 180.437 | U23: 385.252 | V23: 105.167 | W23: 84.978 | X23: 215.559 | Y23: 380.1377 | Z23: 9.369842512e-05 | AA23: 325.8938 | AC23: =L23-INDEX($C23:$L23,1,aux!$BA$1) -> 103.147 | AD23: -0.01145443711 | AE23: =+IF(INDEX($C23:$L23,1,aux!$BA$1)>0,(L23/INDEX($C23:$L23,1,aux!$BA$1))^(1/($L$3-INDEX($C$3:$L$3,1,aux!$BA$1)))-1,"n.d.") -> 0.2763848622 | AF23: =IF(INDEX($C23:$L23,1,aux!$BA$1)>0,(L23-INDEX($C23:$L23,1,aux!$BA$1))/INDEX($C23:$L23,1,aux!$BA$1),"n.d.") -> 7.99155497 | AH23: =X23-INDEX($O23:$X23,1,aux!$BA$1) -> -2010.683 | AI23: -0.006635532346 | AJ23: =+IF(INDEX($O23:$X23,1,aux!$BA$1)>0,(X23/INDEX($O23:$X23,1,aux!$BA$1))^(1/($X$3-INDEX($O$3:$X$3,1,aux!$BA$1)))-1,"n.d.") -> -0.2285058396 | AK23: =IF(INDEX($O23:$X23,1,aux!$BA$1)>0,(X23-INDEX($O23:$X23,1,aux!$BA$1))/INDEX($O23:$X23,1,aux!$BA$1),"n.d.") -> -0.9031735993 | CC23: =+IF(ISNA(MATCH('5.1'!A23,AUX_2d_pais!$G$2:$G$40000,0)),0,1) -> 1
A24: 0469 | B24: Barbados | C24: 0 | D24: 0 | E24: 0 | F24: 0 | G24: 0 | H24: 36.689 | I24: 1.348 | J24: 0 | K24: 0 | L24: 0 | M24: 3.8037 | N24: 1.88303446e-06 | O24: 215.133 | P24: 300.615 | Q24: 195.992 | R24: 86.574 | S24: 252.275 | T24: 255.542 | U24: 416.993 | V24: 587.244 | W24: 826.278 | X24: 1065.735 | Y24: 420.2381 | Z24: 0.0001035825916 | AA24: 416.4344 | AC24: =L24-INDEX($C24:$L24,1,aux!$BA$1) -> 0 | AD24: 0 | AE24: =+IF(INDEX($C24:$L24,1,aux!$BA$1)>0,(L24/INDEX($C24:$L24,1,aux!$BA$1))^(1/($L$3-INDEX($C$3:$L$3,1,aux!$BA$1)))-1,"n.d.") -> n.d. | AF24: =IF(INDEX($C24:$L24,1,aux!$BA$1)>0,(L24-INDEX($C24:$L24,1,aux!$BA$1))/INDEX($C24:$L24,1,aux!$BA$1),"n.d.") -> n.d. | AH24: =X24-INDEX($O24:$X24,1,aux!$BA$1) -> 850.602 | AI24: 0.002807104394 | AJ24: =+IF(INDEX($O24:$X24,1,aux!$BA$1)>0,(X24/INDEX($O24:$X24,1,aux!$BA$1))^(1/($X$3-INDEX($O$3:$X$3,1,aux!$BA$1)))-1,"n.d.") -> 0.1945815406 | AK24: =IF(INDEX($O24:$X24,1,aux!$BA$1)>0,(X24-INDEX($O24:$X24,1,aux!$BA$1))/INDEX($O24:$X24,1,aux!$BA$1),"n.d.") -> 3.953842507 | BO24: 4240.418 | CC24: =+IF(ISNA(MATCH('5.1'!A24,AUX_2d_pais!$G$2:$G$40000,0)),0,1) -> 1
A25: 0640 | B25: Barém | C25: 0 | D25: 0.431 | E25: 0 | F25: 0 | G25: 0 | H25: 0 | I25: 0.438 | J25: 0 | K25: 0.222 | L25: 0.027 | M25: 0.1118 | N25: 5.534696549e-08 | O25: 413.79 | P25: 210.016 | Q25: 143.617 | R25: 125.697 | S25: 161.944 | T25: 35.548 | U25: 499.986 | V25: 368.601 | W25: 302.95 | X25: 56.127 | Y25: 231.8276 | Z25: 5.714213828e-05 | AA25: 231.7158 | AC25: =L25-INDEX($C25:$L25,1,aux!$BA$1) -> 0.027 | AD25: -2.998340252e-06 | AE25: =+IF(INDEX($C25:$L25,1,aux!$BA$1)>0,(L25/INDEX($C25:$L25,1,aux!$BA$1))^(1/($L$3-INDEX($C$3:$L$3,1,aux!$BA$1)))-1,"n.d.") -> n.d. | AF25: =IF(INDEX($C25:$L25,1,aux!$BA$1)>0,(L25-INDEX($C25:$L25,1,aux!$BA$1))/INDEX($C25:$L25,1,aux!$BA$1),"n.d.") -> n.d. | AH25: =X25-INDEX($O25:$X25,1,aux!$BA$1) -> -357.663 | AI25: -0.00118033743 | AJ25: =+IF(INDEX($O25:$X25,1,aux!$BA$1)>0,(X25/INDEX($O25:$X25,1,aux!$BA$1))^(1/($X$3-INDEX($O$3:$X$3,1,aux!$BA$1)))-1,"n.d.") -> -0.1990616418 | AK25: =IF(INDEX($O25:$X25,1,aux!$BA$1)>0,(X25-INDEX($O25:$X25,1,aux!$BA$1))/INDEX($O25:$X25,1,aux!$BA$1),"n.d.") -> -0.8643587327 | CC25: =+IF(ISNA(MATCH('5.1'!A25,AUX_2d_pais!$G$2:$G$40000,0)),0,1) -> 1
A26: 0073 | B26: Belarus | C26: 16.799 | D26: 0.262 | E26: 9.586 | F26: 0 | G26: 0 | H26: 18.707 | I26: 24.843 | J26: 170.612 | K26: 79 | L26: 170.64 | M26: 49.0449 | N26: 2.427984247e-05 | O26: 825.235 | P26: 1545.408 | Q26: 1624.416 | R26: 1923.473 | S26: 3618.865 | T26: 1867.316 | U26: 2172.811 | V26: 3075.214 | W26: 3342.353 | X26: 3097.899 | Y26: 2309.299 | Z26: 0.0005692086826 | AA26: 2260.2541 | AC26: =L26-INDEX($C26:$L26,1,aux!$BA$1) -> 153.841 | AD26: -0.01708398751 | AE26: =+IF(INDEX($C26:$L26,1,aux!$BA$1)>0,(L26/INDEX($C26:$L26,1,aux!$BA$1))^(1/($L$3-INDEX($C$3:$L$3,1,aux!$BA$1)))-1,"n.d.") -> 0.2937977131 | AF26: =IF(INDEX($C26:$L26,1,aux!$BA$1)>0,(L26-INDEX($C26:$L26,1,aux!$BA$1))/INDEX($C26:$L26,1,aux!$BA$1),"n.d.") -> 9.157747485 | AH26: =X26-INDEX($O26:$X26,1,aux!$BA$1) -> 2272.664 | AI26: 0.007500105926 | AJ26: =+IF(INDEX($O26:$X26,1,aux!$BA$1)>0,(X26/INDEX($O26:$X26,1,aux!$BA$1))^(1/($X$3-INDEX($O$3:$X$3,1,aux!$BA$1)))-1,"n.d.") -> 0.1583296667 | AK26: =IF(INDEX($O26:$X26,1,aux!$BA$1)>0,(X26-INDEX($O26:$X26,1,aux!$BA$1))/INDEX($O26:$X26,1,aux!$BA$1),"n.d.") -> 2.753959781 | CC26: =+IF(ISNA(MATCH('5.1'!A26,AUX_2d_pais!$G$2:$G$40000,0)),0,1) -> 1
A27: 0017 | B27: Bélgica | C27: 25413.294 | D27: 24090.206 | E27: 28813.41 | F27: 30612.117 | G27: 33172.484 | H27: 31275.537 | I27: 29405.435 | J27: 20889.917 | K27: 21822.237 | L27: 16269.098 | M27: 26176.3735 | N27: 0.01295870162 | O27: 56931.973 | P27: 65927.86 | Q27: 58936.14 | R27: 62055.34 | S27: 60166.057 | T27: 65035.803 | U27: 63899.613 | V27: 57217.922 | W27: 56323.931 | X27: 52612.622 | Y27: 59910.7261 | Z27: 0.01476712434 | AA27: 33734.3526 | AC27: =L27-INDEX($C27:$L27,1,aux!$BA$1) -> -9144.196 | AD27: 1.015459664 | AE27: =+IF(INDEX($C27:$L27,1,aux!$BA$1)>0,(L27/INDEX($C27:$L27,1,aux!$BA$1))^(1/($L$3-INDEX($C$3:$L$3,1,aux!$BA$1)))-1,"n.d.") -> -0.04834823554 | AF27: =IF(INDEX($C27:$L27,1,aux!$BA$1)>0,(L27-INDEX($C27:$L27,1,aux!$BA$1))/INDEX($C27:$L27,1,aux!$BA$1),"n.d.") -> -0.3598193922 | AH27: =X27-INDEX($O27:$X27,1,aux!$BA$1) -> -4319.351 | AI27: -0.01425445646 | AJ27: =+IF(INDEX($O27:$X27,1,aux!$BA$1)>0,(X27/INDEX($O27:$X27,1,aux!$BA$1))^(1/($X$3-INDEX($O$3:$X$3,1,aux!$BA$1)))-1,"n.d.") -> -0.008728466702 | AK27: =IF(INDEX($O27:$X27,1,aux!$BA$1)>0,(X27-INDEX($O27:$X27,1,aux!$BA$1))/INDEX($O27:$X27,1,aux!$BA$1),"n.d.") -> -0.07586863361 | CC27: =+IF(ISNA(MATCH('5.1'!A27,AUX_2d_pais!$G$2:$G$40000,0)),0,1) -> 1
A28: 0421 | B28: Belize | C28: 0 | D28: 0 | E28: 0 | F28: 0 | G28: 0 | H28: 0 | I28: 0 | J28: 0 | K28: 0 | L28: 0 | M28: 0 | N28: 0 | O28: 13.692 | P28: 7.715 | Q28: 0 | R28: 7.903 | S28: 0 | T28: 0 | U28: 0 | V28: 0 | W28: 0 | X28: 0 | Y28: 2.931 | Z28: 7.224489548e-07 | AA28: 2.931 | AC28: =L28-INDEX($C28:$L28,1,aux!$BA$1) -> 0 | AD28: 0 | AE28: =+IF(INDEX($C28:$L28,1,aux!$BA$1)>0,(L28/INDEX($C28:$L28,1,aux!$BA$1))^(1/($L$3-INDEX($C$3:$L$3,1,aux!$BA$1)))-1,"n.d.") -> n.d. | AF28: =IF(INDEX($C28:$L28,1,aux!$BA$1)>0,(L28-INDEX($C28:$L28,1,aux!$BA$1))/INDEX($C28:$L28,1,aux!$BA$1),"n.d.") -> n.d. | AH28: =X28-INDEX($O28:$X28,1,aux!$BA$1) -> -13.692 | AI28: -4.518549611e-05 | AJ28: =+IF(INDEX($O28:$X28,1,aux!$BA$1)>0,(X28/INDEX($O28:$X28,1,aux!$BA$1))^(1/($X$3-INDEX($O$3:$X$3,1,aux!$BA$1)))-1,"n.d.") -> -1 | AK28: =IF(INDEX($O28:$X28,1,aux!$BA$1)>0,(X28-INDEX($O28:$X28,1,aux!$BA$1))/INDEX($O28:$X28,1,aux!$BA$1),"n.d.") -> -1 | CC28: =+IF(ISNA(MATCH('5.1'!A28,AUX_2d_pais!$G$2:$G$40000,0)),0,1) -> 1
A29: 0284 | B29: Benim | C29: 4.766 | D29: 0 | E29: 0 | F29: 0 | G29: 0 | H29: 0 | I29: 0 | J29: 0 | K29: 0 | L29: 0.019 | M29: 0.4785 | N29: 2.368830321e-07 | O29: 308.112 | P29: 928.103 | Q29: 1253.783 | R29: 762.394 | S29: 461.053 | T29: 1228.087 | U29: 539.041 | V29: 87.567 | W29: 294.464 | X29: 93.03 | Y29: 595.5634 | Z29: 0.0001467977331 | AA29: 595.0849 | AC29: =L29-INDEX($C29:$L29,1,aux!$BA$1) -> -4.747 | AD29: 0.0005271526362 | AE29: =+IF(INDEX($C29:$L29,1,aux!$BA$1)>0,(L29/INDEX($C29:$L29,1,aux!$BA$1))^(1/($L$3-INDEX($C$3:$L$3,1,aux!$BA$1)))-1,"n.d.") -> -0.458747455 | AF29: =IF(INDEX($C29:$L29,1,aux!$BA$1)>0,(L29-INDEX($C29:$L29,1,aux!$BA$1))/INDEX($C29:$L29,1,aux!$BA$1),"n.d.") -> -0.9960134285 | AH29: =X29-INDEX($O29:$X29,1,aux!$BA$1) -> -215.082 | AI29: -0.0007098003853 | AJ29: =+IF(INDEX($O29:$X29,1,aux!$BA$1)>0,(X29/INDEX($O29:$X29,1,aux!$BA$1))^(1/($X$3-INDEX($O$3:$X$3,1,aux!$BA$1)))-1,"n.d.") -> -0.1245875637 | AK29: =IF(INDEX($O29:$X29,1,aux!$BA$1)>0,(X29-INDEX($O29:$X29,1,aux!$BA$1))/INDEX($O29:$X29,1,aux!$BA$1),"n.d.") -> -0.6980643402 | CC29: =+IF(ISNA(MATCH('5.1'!A29,AUX_2d_pais!$G$2:$G$40000,0)),0,1) -> 1
A30: 0413 | B30: Bermudas | C30: 0 | D30: 0 | E30: 0 | F30: 0 | G30: 0 | H30: 0 | I30: 0 | J30: 0 | K30: 0 | L30: 0 | M30: 0 | N30: 0 | O30: 1360.345 | P30: 0 | Q30: 0 | R30: 0.55 | S30: 0.043 | T30: 0.058 | U30: 0.473 | V30: 1.085 | W30: 20.565 | X30: 335.213 | Y30: 171.8332 | Z30: 4.235438954e-05 | AA30: 171.8332 | AC30: =L30-INDEX($C30:$L30,1,aux!$BA$1) -> 0 | AD30: 0 | AE30: =+IF(INDEX($C30:$L30,1,aux!$BA$1)>0,(L30/INDEX($C30:$L30,1,aux!$BA$1))^(1/($L$3-INDEX($C$3:$L$3,1,aux!$BA$1)))-1,"n.d.") -> n.d. | AF30: =IF(INDEX($C30:$L30,1,aux!$BA$1)>0,(L30-INDEX($C30:$L30,1,aux!$BA$1))/INDEX($C30:$L30,1,aux!$BA$1),"n.d.") -> n.d. | AH30: =X30-INDEX($O30:$X30,1,aux!$BA$1) -> -1025.132 | AI30: -0.003383077564 | AJ30: =+IF(INDEX($O30:$X30,1,aux!$BA$1)>0,(X30/INDEX($O30:$X30,1,aux!$BA$1))^(1/($X$3-INDEX($O$3:$X$3,1,aux!$BA$1)))-1,"n.d.") -> -0.1441296596 | AK30: =IF(INDEX($O30:$X30,1,aux!$BA$1)>0,(X30-INDEX($O30:$X30,1,aux!$BA$1))/INDEX($O30:$X30,1,aux!$BA$1),"n.d.") -> -0.7535823633 | CC30: =+IF(ISNA(MATCH('5.1'!A30,AUX_2d_pais!$G$2:$G$40000,0)),0,1) -> 1
A31: 0516 | B31: Bolívia | C31: 781.926 | D31: 220.511 | E31: 104.668 | F31: 9.594 | G31: 128.796 | H31: 451.221 | I31: 259.809 | J31: 408.056 | K31: 216.506 | L31: 662.203 | M31: 324.329 | N31: 0.0001605601607 | O31: 258.026 | P31: 94.065 | Q31: 15.123 | R31: 41.187 | S31: 151.735 | T31: 616.282 | U31: 1076.803 | V31: 1702.982 | W31: 2215.112 | X31: 840.362 | Y31: 701.1677 | Z31: 0.0001728276602 | AA31: 376.8387 | AC31: =L31-INDEX($C31:$L31,1,aux!$BA$1) -> -119.723 | AD31: 0.01329519593 | AE31: =+IF(INDEX($C31:$L31,1,aux!$BA$1)>0,(L31/INDEX($C31:$L31,1,aux!$BA$1))^(1/($L$3-INDEX($C$3:$L$3,1,aux!$BA$1)))-1,"n.d.") -> -0.01829588829 | AF31: =IF(INDEX($C31:$L31,1,aux!$BA$1)>0,(L31-INDEX($C31:$L31,1,aux!$BA$1))/INDEX($C31:$L31,1,aux!$BA$1),"n.d.") -> -0.1531129544 | AH31: =X31-INDEX($O31:$X31,1,aux!$BA$1) -> 582.336 | AI31: 0.001921789444 | AJ31: =+IF(INDEX($O31:$X31,1,aux!$BA$1)>0,(X31/INDEX($O31:$X31,1,aux!$BA$1))^(1/($X$3-INDEX($O$3:$X$3,1,aux!$BA$1)))-1,"n.d.") -> 0.1401923006 | AK31: =IF(INDEX($O31:$X31,1,aux!$BA$1)>0,(X31-INDEX($O31:$X31,1,aux!$BA$1))/INDEX($O31:$X31,1,aux!$BA$1),"n.d.") -> 2.256888841 | CC31: =+IF(ISNA(MATCH('5.1'!A31,AUX_2d_pais!$G$2:$G$40000,0)),0,1) -> 1
A32: 0477 | B32: Bonaire, Santo Eustáquio e Saba | C32: 0 | D32: 0 | E32: 0 | F32: 0 | G32: 0 | H32: 0 | I32: 0 | J32: 0 | K32: 0 | L32: 0 | M32: 0 | N32: 0 | O32: 0 | P32: 0 | Q32: 56.284 | R32: 39.55 | S32: 247.621 | T32: 157.26 | U32: 51.542 | V32: 78.798 | W32: 199.561 | X32: 136.387 | Y32: 96.7003 | Z32: 2.383522029e-05 | AA32: 96.7003 | AC32: =L32-INDEX($C32:$L32,1,aux!$BA$1) -> 0 | AD32: 0 | AE32: =+IF(INDEX($C32:$L32,1,aux!$BA$1)>0,(L32/INDEX($C32:$L32,1,aux!$BA$1))^(1/($L$3-INDEX($C$3:$L$3,1,aux!$BA$1)))-1,"n.d.") -> n.d. | AF32: =IF(INDEX($C32:$L32,1,aux!$BA$1)>0,(L32-INDEX($C32:$L32,1,aux!$BA$1))/INDEX($C32:$L32,1,aux!$BA$1),"n.d.") -> n.d. | AH32: =X32-INDEX($O32:$X32,1,aux!$BA$1) -> 136.387 | AI32: 0.0004500959873 | AJ32: =+IF(INDEX($O32:$X32,1,aux!$BA$1)>0,(X32/INDEX($O32:$X32,1,aux!$BA$1))^(1/($X$3-INDEX($O$3:$X$3,1,aux!$BA$1)))-1,"n.d.") -> n.d. | AK32: =IF(INDEX($O32:$X32,1,aux!$BA$1)>0,(X32-INDEX($O32:$X32,1,aux!$BA$1))/INDEX($O32:$X32,1,aux!$BA$1),"n.d.") -> n.d. | BO32: 967.003 | CC32: =+IF(ISNA(MATCH('5.1'!A32,AUX_2d_pais!$G$2:$G$40000,0)),0,1) -> 1
A33: 0093 | B33: Bósnia-Herzegovina | C33: 86.649 | D33: 213.392 | E33: 74.897 | F33: 107.068 | G33: 54.684 | H33: 157.4 | I33: 80.566 | J33: 87.67 | K33: 175.588 | L33: 717.437 | M33: 175.5351 | N33: 8.689924081e-05 | O33: 202.981 | P33: 172.407 | Q33: 55.136 | R33: 45.618 | S33: 51.703 | T33: 97.867 | U33: 183.235 | V33: 234.821 | W33: 109.063 | X33: 88.188 | Y33: 124.1019 | Z33: 3.058931694e-05 | AA33: -51.4332 | AC33: =L33-INDEX($C33:$L33,1,aux!$BA$1) -> 630.788 | AD33: -0.07004877966 | AE33: =+IF(INDEX($C33:$L33,1,aux!$BA$1)>0,(L33/INDEX($C33:$L33,1,aux!$BA$1))^(1/($L$3-INDEX($C$3:$L$3,1,aux!$BA$1)))-1,"n.d.") -> 0.2647428887 | AF33: =IF(INDEX($C33:$L33,1,aux!$BA$1)>0,(L33-INDEX($C33:$L33,1,aux!$BA$1))/INDEX($C33:$L33,1,aux!$BA$1),"n.d.") -> 7.279807038 | AH33: =X33-INDEX($O33:$X33,1,aux!$BA$1) -> -114.793 | AI33: -0.0003788327969 | AJ33: =+IF(INDEX($O33:$X33,1,aux!$BA$1)>0,(X33/INDEX($O33:$X33,1,aux!$BA$1))^(1/($X$3-INDEX($O$3:$X$3,1,aux!$BA$1)))-1,"n.d.") -> -0.08846640711 | AK33: =IF(INDEX($O33:$X33,1,aux!$BA$1)>0,(X33-INDEX($O33:$X33,1,aux!$BA$1))/INDEX($O33:$X33,1,aux!$BA$1),"n.d.") -> -0.5655356905 | CC33: =+IF(ISNA(MATCH('5.1'!A33,AUX_2d_pais!$G$2:$G$40000,0)),0,1) -> 1
A34: 0391 | B34: Botswana | C34: 0.129 | D34: 0 | E34: 0 | F34: 0 | G34: 0 | H34: 0 | I34: 0 | J34: 0 | K34: 0 | L34: 0 | M34: 0.0129 | N34: 6.386188326e-09 | O34: 0.713 | P34: 0 | Q34: 0.589 | R34: 0 | S34: 0.075 | T34: 0.365 | U34: 2.972 | V34: 22.191 | W34: 223.224 | X34: 76.601 | Y34: 32.673 | Z34: 8.053420232e-06 | AA34: 32.6601 | AC34: =L34-INDEX($C34:$L34,1,aux!$BA$1) -> -0.129 | AD34: 1.432540343e-05 | AE34: =+IF(INDEX($C34:$L34,1,aux!$BA$1)>0,(L34/INDEX($C34:$L34,1,aux!$BA$1))^(1/($L$3-INDEX($C$3:$L$3,1,aux!$BA$1)))-1,"n.d.") -> -1 | AF34: =IF(INDEX($C34:$L34,1,aux!$BA$1)>0,(L34-INDEX($C34:$L34,1,aux!$BA$1))/INDEX($C34:$L34,1,aux!$BA$1),"n.d.") -> -1 | AH34: =X34-INDEX($O34:$X34,1,aux!$BA$1) -> 75.888 | AI34: 0.0002504409092 | AJ34: =+IF(INDEX($O34:$X34,1,aux!$BA$1)>0,(X34/INDEX($O34:$X34,1,aux!$BA$1))^(1/($X$3-INDEX($O$3:$X$3,1,aux!$BA$1)))-1,"n.d.") -> 0.6814453933 | AK34: =IF(INDEX($O34:$X34,1,aux!$BA$1)>0,(X34-INDEX($O34:$X34,1,aux!$BA$1))/INDEX($O34:$X34,1,aux!$BA$1),"n.d.") -> 106.4347826 | CC34: =+IF(ISNA(MATCH('5.1'!A34,AUX_2d_pais!$G$2:$G$40000,0)),0,1) -> 1
A35: 0892 | B35: Bouvet, Ilha | C35: 0 | D35: 0 | E35: 0 | F35: 0 | G35: 0 | H35: 0 | I35: 0 | J35: 0 | K35: 0 | L35: 0 | M35: 0 | N35: 0 | O35: 0 | P35: 0 | Q35: 0 | R35: 0 | S35: 0 | T35: 0 | U35: 0 | V35: 0 | W35: 0 | X35: 0 | Y35: 0 | Z35: 0 | AA35: 0 | AC35: =L35-INDEX($C35:$L35,1,aux!$BA$1) -> 0 | AD35: 0 | AE35: =+IF(INDEX($C35:$L35,1,aux!$BA$1)>0,(L35/INDEX($C35:$L35,1,aux!$BA$1))^(1/($L$3-INDEX($C$3:$L$3,1,aux!$BA$1)))-1,"n.d.") -> n.d. | AF35: =IF(INDEX($C35:$L35,1,aux!$BA$1)>0,(L35-INDEX($C35:$L35,1,aux!$BA$1))/INDEX($C35:$L35,1,aux!$BA$1),"n.d.") -> n.d. | AH35: =X35-INDEX($O35:$X35,1,aux!$BA$1) -> 0 | AI35: 0 | AJ35: =+IF(INDEX($O35:$X35,1,aux!$BA$1)>0,(X35/INDEX($O35:$X35,1,aux!$BA$1))^(1/($X$3-INDEX($O$3:$X$3,1,aux!$BA$1)))-1,"n.d.") -> n.d. | AK35: =IF(INDEX($O35:$X35,1,aux!$BA$1)>0,(X35-INDEX($O35:$X35,1,aux!$BA$1))/INDEX($O35:$X35,1,aux!$BA$1),"n.d.") -> n.d. | AM35: =SUM(A35:AA35) -> 0 | BO35: 0 | CC35: =+IF(ISNA(MATCH('5.1'!A35,AUX_2d_pais!$G$2:$G$40000,0)),0,1) -> 0
A36: 0508 | B36: Brasil | C36: 34050.429 | D36: 27478.946 | E36: 21266.799 | F36: 24456.121 | G36: 37455.04 | H36: 37151.652 | I36: 27909.796 | J36: 67594.834 | K36: 102991.793 | L36: 83284.031 | M36: 46363.9441 | N36: 0.02295262625 | O36: 12135.277 | P36: 13634.28 | Q36: 12527.838 | R36: 13342.143 | S36: 7071.465 | T36: 8944.003 | U36: 14239.867 | V36: 14815.747 | W36: 11680.952 | X36: 8972.324 | Y36: 11736.3896 | Z36: 0.002892849676 | AA36: -34627.5545 | AC36: =L36-INDEX($C36:$L36,1,aux!$BA$1) -> 49233.602 | AD36: =AC36/$AC$252 -> -5.467373727 | AE36: =+IF(INDEX($C36:$L36,1,aux!$BA$1)>0,(L36/INDEX($C36:$L36,1,aux!$BA$1))^(1/($L$3-INDEX($C$3:$L$3,1,aux!$BA$1)))-1,"n.d.") -> 0.104485212 | AF36: =IF(INDEX($C36:$L36,1,aux!$BA$1)>0,(L36-INDEX($C36:$L36,1,aux!$BA$1))/INDEX($C36:$L36,1,aux!$BA$1),"n.d.") -> 1.445902546 | AH36: =X36-INDEX($O36:$X36,1,aux!$BA$1) -> -3162.953 | AI36: =AH36/$AH$252 -> -0.01043818292 | AJ36: =+IF(INDEX($O36:$X36,1,aux!$BA$1)>0,(X36/INDEX($O36:$X36,1,aux!$BA$1))^(1/($X$3-INDEX($O$3:$X$3,1,aux!$BA$1)))-1,"n.d.") -> -0.03299579734 | AK36: =IF(INDEX($O36:$X36,1,aux!$BA$1)>0,(X36-INDEX($O36:$X36,1,aux!$BA$1))/INDEX($O36:$X36,1,aux!$BA$1),"n.d.") -> -0.2606411868 | CC36: =+IF(ISNA(MATCH('5.1'!A36,AUX_2d_pais!$G$2:$G$40000,0)),0,1) -> 1
A37: 0703 | B37: Brunei Darussalam | C37: 0 | D37: 0 | E37: 0 | F37: 0 | G37: 0 | H37: 0 | I37: 0 | J37: 0 | K37: 0 | L37: 0 | M37: 0 | N37: 0 | O37: 113.149 | P37: 0 | Q37: 0 | R37: 0.413 | S37: 1.031 | T37: 0 | U37: 0 | V37: 0 | W37: 2.363 | X37: 0.075 | Y37: 11.7031 | Z37: 2.884644273e-06 | AA37: 11.7031 | AC37: =L37-INDEX($C37:$L37,1,aux!$BA$1) -> 0 | AD37: 0 | AE37: =+IF(INDEX($C37:$L37,1,aux!$BA$1)>0,(L37/INDEX($C37:$L37,1,aux!$BA$1))^(1/($L$3-INDEX($C$3:$L$3,1,aux!$BA$1)))-1,"n.d.") -> n.d. | AF37: =IF(INDEX($C37:$L37,1,aux!$BA$1)>0,(L37-INDEX($C37:$L37,1,aux!$BA$1))/INDEX($C37:$L37,1,aux!$BA$1),"n.d.") -> n.d. | AH37: =X37-INDEX($O37:$X37,1,aux!$BA$1) -> -113.074 | AI37: -0.0003731598589 | AJ37: =+IF(INDEX($O37:$X37,1,aux!$BA$1)>0,(X37/INDEX($O37:$X37,1,aux!$BA$1))^(1/($X$3-INDEX($O$3:$X$3,1,aux!$BA$1)))-1,"n.d.") -> -0.5565717133 | AK37: =IF(INDEX($O37:$X37,1,aux!$BA$1)>0,(X37-INDEX($O37:$X37,1,aux!$BA$1))/INDEX($O37:$X37,1,aux!$BA$1),"n.d.") -> -0.9993371572 | BO37: 117.031 | CC37: =+IF(ISNA(MATCH('5.1'!A37,AUX_2d_pais!$G$2:$G$40000,0)),0,1) -> 1
A38: 0068 | B38: Bulgária | C38: 424.066 | D38: 610.755 | E38: 335.172 | F38: 1313.305 | G38: 1379.472 | H38: 1241.41 | I38: 2110.155 | J38: 2734.517 | K38: 2240.982 | L38: 2076.52 | M38: 1446.6354 | N38: 0.0007161617135 | O38: 4084.21 | P38: 3747.872 | Q38: 3414.907 | R38: 3446.452 | S38: 3622.133 | T38: 3599.172 | U38: 4739.714 | V38: 3941.839 | W38: 4740.015 | X38: 4478.863 | Y38: 3981.5177 | Z38: 0.0009813863189 | AA38: 2534.8823 | AC38: =L38-INDEX($C38:$L38,1,aux!$BA$1) -> 1652.454 | AD38: -0.1835044201 | AE38: =+IF(INDEX($C38:$L38,1,aux!$BA$1)>0,(L38/INDEX($C38:$L38,1,aux!$BA$1))^(1/($L$3-INDEX($C$3:$L$3,1,aux!$BA$1)))-1,"n.d.") -> 0.1930423261 | AF38: =IF(INDEX($C38:$L38,1,aux!$BA$1)>0,(L38-INDEX($C38:$L38,1,aux!$BA$1))/INDEX($C38:$L38,1,aux!$BA$1),"n.d.") -> 3.896690609 | AH38: =X38-INDEX($O38:$X38,1,aux!$BA$1) -> 394.653 | AI38: 0.001302409553 | AJ38: =+IF(INDEX($O38:$X38,1,aux!$BA$1)>0,(X38/INDEX($O38:$X38,1,aux!$BA$1))^(1/($X$3-INDEX($O$3:$X$3,1,aux!$BA$1)))-1,"n.d.") -> 0.01030168971 | AK38: =IF(INDEX($O38:$X38,1,aux!$BA$1)>0,(X38-INDEX($O38:$X38,1,aux!$BA$1))/INDEX($O38:$X38,1,aux!$BA$1),"n.d.") -> 0.09662896864 | CC38: =+IF(ISNA(MATCH('5.1'!A38,AUX_2d_pais!$G$2:$G$40000,0)),0,1) -> 1
A39: 0236 | B39: Burquina Faso | C39: 0 | D39: 9.381 | E39: 9.421 | F39: 0 | G39: 10.756 | H39: 0 | I39: 0 | J39: 0 | K39: 0 | L39: 0 | M39: 2.9558 | N39: 1.463278717e-06 | O39: 409.653 | P39: 581.026 | Q39: 885.145 | R39: 1517.507 | S39: 1729.815 | T39: 1914.36 | U39: 1850.466 | V39: 1817.005 | W39: 1568.365 | X39: 2052.77 | Y39: 1432.6112 | Z39: 0.0003531178656 | AA39: 1429.6554 | AC39: =L39-INDEX($C39:$L39,1,aux!$BA$1) -> 0 | AD39: 0 | AE39: =+IF(INDEX($C39:$L39,1,aux!$BA$1)>0,(L39/INDEX($C39:$L39,1,aux!$BA$1))^(1/($L$3-INDEX($C$3:$L$3,1,aux!$BA$1)))-1,"n.d.") -> n.d. | AF39: =IF(INDEX($C39:$L39,1,aux!$BA$1)>0,(L39-INDEX($C39:$L39,1,aux!$BA$1))/INDEX($C39:$L39,1,aux!$BA$1),"n.d.") -> n.d. | AH39: =X39-INDEX($O39:$X39,1,aux!$BA$1) -> 1643.117 | AI39: 0.005422513644 | AJ39: =+IF(INDEX($O39:$X39,1,aux!$BA$1)>0,(X39/INDEX($O39:$X39,1,aux!$BA$1))^(1/($X$3-INDEX($O$3:$X$3,1,aux!$BA$1)))-1,"n.d.") -> 0.1961051224 | AK39: =IF(INDEX($O39:$X39,1,aux!$BA$1)>0,(X39-INDEX($O39:$X39,1,aux!$BA$1))/INDEX($O39:$X39,1,aux!$BA$1),"n.d.") -> 4.010997112 | CC39: =+IF(ISNA(MATCH('5.1'!A39,AUX_2d_pais!$G$2:$G$40000,0)),0,1) -> 1
A40: 0328 | B40: Burundi | C40: 0 | D40: 0 | E40: 0 | F40: 0 | G40: 0 | H40: 0 | I40: 0 | J40: 0 | K40: 0 | L40: 0 | M40: 0 | N40: 0 | O40: 16.398 | P40: 0 | Q40: 0.1 | R40: 0 | S40: 0 | T40: 15.187 | U40: 0 | V40: 0.015 | W40: 0 | X40: 0 | Y40: 3.17 | Z40: 7.813589856e-07 | AA40: 3.17 | AC40: =L40-INDEX($C40:$L40,1,aux!$BA$1) -> 0 | AD40: 0 | AE40: =+IF(INDEX($C40:$L40,1,aux!$BA$1)>0,(L40/INDEX($C40:$L40,1,aux!$BA$1))^(1/($L$3-INDEX($C$3:$L$3,1,aux!$BA$1)))-1,"n.d.") -> n.d. | AF40: =IF(INDEX($C40:$L40,1,aux!$BA$1)>0,(L40-INDEX($C40:$L40,1,aux!$BA$1))/INDEX($C40:$L40,1,aux!$BA$1),"n.d.") -> n.d. | AH40: =X40-INDEX($O40:$X40,1,aux!$BA$1) -> -16.398 | AI40: -5.411567085e-05 | AJ40: =+IF(INDEX($O40:$X40,1,aux!$BA$1)>0,(X40/INDEX($O40:$X40,1,aux!$BA$1))^(1/($X$3-INDEX($O$3:$X$3,1,aux!$BA$1)))-1,"n.d.") -> -1 | AK40: =IF(INDEX($O40:$X40,1,aux!$BA$1)>0,(X40-INDEX($O40:$X40,1,aux!$BA$1))/INDEX($O40:$X40,1,aux!$BA$1),"n.d.") -> -1 | BO40: 31.7 | CC40: =+IF(ISNA(MATCH('5.1'!A40,AUX_2d_pais!$G$2:$G$40000,0)),0,1) -> 1
A41: 0675 | B41: Butão | C41: 0 | D41: 0 | E41: 0 | F41: 2.092 | G41: 0 | H41: 0.5 | I41: 0 | J41: 6.089 | K41: 0 | L41: 0 | M41: 0.8681 | N41: 4.297558206e-07 | O41: 0 | P41: 0 | Q41: 0 | R41: 0 | S41: 1.652 | T41: 0 | U41: 0 | V41: 0 | W41: 0 | X41: 0.05 | Y41: 0.1702 | Z41: 4.195182945e-08 | AA41: -0.6979 | AC41: =L41-INDEX($C41:$L41,1,aux!$BA$1) -> 0 | AD41: 0 | AE41: =+IF(INDEX($C41:$L41,1,aux!$BA$1)>0,(L41/INDEX($C41:$L41,1,aux!$BA$1))^(1/($L$3-INDEX($C$3:$L$3,1,aux!$BA$1)))-1,"n.d.") -> n.d. | AF41: =IF(INDEX($C41:$L41,1,aux!$BA$1)>0,(L41-INDEX($C41:$L41,1,aux!$BA$1))/INDEX($C41:$L41,1,aux!$BA$1),"n.d.") -> n.d. | AH41: =X41-INDEX($O41:$X41,1,aux!$BA$1) -> 0.05 | AI41: 1.650069242e-07 | AJ41: =+IF(INDEX($O41:$X41,1,aux!$BA$1)>0,(X41/INDEX($O41:$X41,1,aux!$BA$1))^(1/($X$3-INDEX($O$3:$X$3,1,aux!$BA$1)))-1,"n.d.") -> n.d. | AK41: =IF(INDEX($O41:$X41,1,aux!$BA$1)>0,(X41-INDEX($O41:$X41,1,aux!$BA$1))/INDEX($O41:$X41,1,aux!$BA$1),"n.d.") -> n.d. | BO41: 10.383 | CC41: =+IF(ISNA(MATCH('5.1'!A41,AUX_2d_pais!$G$2:$G$40000,0)),0,1) -> 1
A42: 0247 | B42: Cabo Verde | C42: 3.675 | D42: 25.088 | E42: 21.006 | F42: 0.897 | G42: 3.862 | H42: 3.01 | I42: 8.564 | J42: 0.849 | K42: 1.477 | L42: 0.873 | M42: 6.9301 | N42: 3.430769281e-06 | O42: 11215.292 | P42: 9456.815 | Q42: 9251.711 | R42: 10709.684 | S42: 9269.923 | T42: 14779.555 | U42: 12024.594 | V42: 12798.454 | W42: 16173.013 | X42: 12045.25 | Y42: 11772.4291 | Z42: 0.002901732889 | AA42: 11765.499 | AC42: =L42-INDEX($C42:$L42,1,aux!$BA$1) -> -2.802 | AD42: 0.0003111610884 | AE42: =+IF(INDEX($C42:$L42,1,aux!$BA$1)>0,(L42/INDEX($C42:$L42,1,aux!$BA$1))^(1/($L$3-INDEX($C$3:$L$3,1,aux!$BA$1)))-1,"n.d.") -> -0.1476074298 | AF42: =IF(INDEX($C42:$L42,1,aux!$BA$1)>0,(L42-INDEX($C42:$L42,1,aux!$BA$1))/INDEX($C42:$L42,1,aux!$BA$1),"n.d.") -> -0.7624489796 | AH42: =X42-INDEX($O42:$X42,1,aux!$BA$1) -> 829.958 | AI42: 0.002738976335 | AJ42: =+IF(INDEX($O42:$X42,1,aux!$BA$1)>0,(X42/INDEX($O42:$X42,1,aux!$BA$1))^(1/($X$3-INDEX($O$3:$X$3,1,aux!$BA$1)))-1,"n.d.") -> 0.007964010598 | AK42: =IF(INDEX($O42:$X42,1,aux!$BA$1)>0,(X42-INDEX($O42:$X42,1,aux!$BA$1))/INDEX($O42:$X42,1,aux!$BA$1),"n.d.") -> 0.07400235322 | CC42: =+IF(ISNA(MATCH('5.1'!A42,AUX_2d_pais!$G$2:$G$40000,0)),0,1) -> 1
A43: 0463 | B43: Caimão, Ilhas | C43: 0 | D43: 0 | E43: 0 | F43: 0 | G43: 0 | H43: 0 | I43: 0 | J43: 0 | K43: 0 | L43: 0 | M43: 0 | N43: 0 | O43: 0 | P43: 0 | Q43: 0 | R43: 0 | S43: 0 | T43: 0 | U43: 0 | V43: 0.278 | W43: 0.067 | X43: 0.255 | Y43: 0.06 | Z43: 1.478912906e-08 | AA43: 0.06 | AC43: =L43-INDEX($C43:$L43,1,aux!$BA$1) -> 0 | AD43: 0 | AE43: =+IF(INDEX($C43:$L43,1,aux!$BA$1)>0,(L43/INDEX($C43:$L43,1,aux!$BA$1))^(1/($L$3-INDEX($C$3:$L$3,1,aux!$BA$1)))-1,"n.d.") -> n.d. | AF43: =IF(INDEX($C43:$L43,1,aux!$BA$1)>0,(L43-INDEX($C43:$L43,1,aux!$BA$1))/INDEX($C43:$L43,1,aux!$BA$1),"n.d.") -> n.d. | AH43: =X43-INDEX($O43:$X43,1,aux!$BA$1) -> 0.255 | AI43: 8.415353133e-07 | AJ43: =+IF(INDEX($O43:$X43,1,aux!$BA$1)>0,(X43/INDEX($O43:$X43,1,aux!$BA$1))^(1/($X$3-INDEX($O$3:$X$3,1,aux!$BA$1)))-1,"n.d.") -> n.d. | AK43: =IF(INDEX($O43:$X43,1,aux!$BA$1)>0,(X43-INDEX($O43:$X43,1,aux!$BA$1))/INDEX($O43:$X43,1,aux!$BA$1),"n.d.") -> n.d. | BO43: 0.6 | CC43: =+IF(ISNA(MATCH('5.1'!A43,AUX_2d_pais!$G$2:$G$40000,0)),0,1) -> 1
A44: 0302 | B44: Camarões | C44: 12934.036 | D44: 7744.378 | E44: 5145.13 | F44: 5697.717 | G44: 7851.684 | H44: 6586.445 | I44: 5217.135 | J44: 5840.54 | K44: 8019.057 | L44: 5083.009 | M44: 7011.9131 | N44: 0.003471271131 | O44: 434.224 | P44: 786.308 | Q44: 2526.901 | R44: 2728.457 | S44: 2703.332 | T44: 3631.093 | U44: 3558.777 | V44: 5335.911 | W44: 5827.591 | X44: 5311.497 | Y44: 3284.4091 | Z44: 0.000809559168 | AA44: -3727.504 | AC44: =L44-INDEX($C44:$L44,1,aux!$BA$1) -> -7851.027 | AD44: 0.8718537139 | AE44: =+IF(INDEX($C44:$L44,1,aux!$BA$1)>0,(L44/INDEX($C44:$L44,1,aux!$BA$1))^(1/($L$3-INDEX($C$3:$L$3,1,aux!$BA$1)))-1,"n.d.") -> -0.09857028924 | AF44: =IF(INDEX($C44:$L44,1,aux!$BA$1)>0,(L44-INDEX($C44:$L44,1,aux!$BA$1))/INDEX($C44:$L44,1,aux!$BA$1),"n.d.") -> -0.6070051916 | AH44: =X44-INDEX($O44:$X44,1,aux!$BA$1) -> 4877.273 | AI44: 0.01609567632 | AJ44: =+IF(INDEX($O44:$X44,1,aux!$BA$1)>0,(X44/INDEX($O44:$X44,1,aux!$BA$1))^(1/($X$3-INDEX($O$3:$X$3,1,aux!$BA$1)))-1,"n.d.") -> 0.3207897188 | AK44: =IF(INDEX($O44:$X44,1,aux!$BA$1)>0,(X44-INDEX($O44:$X44,1,aux!$BA$1))/INDEX($O44:$X44,1,aux!$BA$1),"n.d.") -> 11.23215898 | CC44: =+IF(ISNA(MATCH('5.1'!A44,AUX_2d_pais!$G$2:$G$40000,0)),0,1) -> 1
A45: 0696 | B45: Camboja | C45: 0 | D45: 0 | E45: 0 | F45: 1.363 | G45: 0 | H45: 4.569 | I45: 0.987 | J45: 4.305 | K45: 0 | L45: 0.194 | M45: 1.1418 | N45: 5.652519249e-07 | O45: 138.305 | P45: 0.029 | Q45: 18.902 | R45: 93.894 | S45: 151.517 | T45: 178.431 | U45: 89.025 | V45: 196.609 | W45: 504.662 | X45: 526.746 | Y45: 189.812 | Z45: 4.678590277e-05 | AA45: 188.6702 | AC45: =L45-INDEX($C45:$L45,1,aux!$BA$1) -> 0.194 | AD45: -2.154362996e-05 | AE45: =+IF(INDEX($C45:$L45,1,aux!$BA$1)>0,(L45/INDEX($C45:$L45,1,aux!$BA$1))^(1/($L$3-INDEX($C$3:$L$3,1,aux!$BA$1)))-1,"n.d.") -> n.d. | AF45: =IF(INDEX($C45:$L45,1,aux!$BA$1)>0,(L45-INDEX($C45:$L45,1,aux!$BA$1))/INDEX($C45:$L45,1,aux!$BA$1),"n.d.") -> n.d. | AH45: =X45-INDEX($O45:$X45,1,aux!$BA$1) -> 388.441 | AI45: 0.001281909093 | AJ45: =+IF(INDEX($O45:$X45,1,aux!$BA$1)>0,(X45/INDEX($O45:$X45,1,aux!$BA$1))^(1/($X$3-INDEX($O$3:$X$3,1,aux!$BA$1)))-1,"n.d.") -> 0.1601903873 | AK45: =IF(INDEX($O45:$X45,1,aux!$BA$1)>0,(X45-INDEX($O45:$X45,1,aux!$BA$1))/INDEX($O45:$X45,1,aux!$BA$1),"n.d.") -> 2.808582481 | CC45: =+IF(ISNA(MATCH('5.1'!A45,AUX_2d_pais!$G$2:$G$40000,0)),0,1) -> 1
A46: 0404 | B46: Canadá | C46: 7558.897 | D46: 2152.134 | E46: 2820.105 | F46: 2595.864 | G46: 826.458 | H46: 2352.729 | I46: 2931.917 | J46: 5163.848 | K46: 3776.607 | L46: 2168.033 | M46: 3234.6592 | N46: 0.001601328901 | O46: 14591.927 | P46: 17326.587 | Q46: 15843.688 | R46: 12596.018 | S46: 11708.035 | T46: 11671.515 | U46: 12679.099 | V46: 11341.93 | W46: 10516.788 | X46: 13418.16 | Y46: 13169.3747 | Z46: 0.003246059702 | AA46: 9934.7155 | AC46: =L46-INDEX($C46:$L46,1,aux!$BA$1) -> -5390.864 | AD46: 0.5986535009 | AE46: =+IF(INDEX($C46:$L46,1,aux!$BA$1)>0,(L46/INDEX($C46:$L46,1,aux!$BA$1))^(1/($L$3-INDEX($C$3:$L$3,1,aux!$BA$1)))-1,"n.d.") -> -0.1295693758 | AF46: =IF(INDEX($C46:$L46,1,aux!$BA$1)>0,(L46-INDEX($C46:$L46,1,aux!$BA$1))/INDEX($C46:$L46,1,aux!$BA$1),"n.d.") -> -0.7131813015 | AH46: =X46-INDEX($O46:$X46,1,aux!$BA$1) -> -1173.767 | AI46: -0.003873593647 | AJ46: =+IF(INDEX($O46:$X46,1,aux!$BA$1)>0,(X46/INDEX($O46:$X46,1,aux!$BA$1))^(1/($X$3-INDEX($O$3:$X$3,1,aux!$BA$1)))-1,"n.d.") -> -0.009274437651 | AK46: =IF(INDEX($O46:$X46,1,aux!$BA$1)>0,(X46-INDEX($O46:$X46,1,aux!$BA$1))/INDEX($O46:$X46,1,aux!$BA$1),"n.d.") -> -0.08043947862 | CC46: =+IF(ISNA(MATCH('5.1'!A46,AUX_2d_pais!$G$2:$G$40000,0)),0,1) -> 1
A47: 0644 | B47: Catar | C47: 0.324 | D47: 0.067 | E47: 0.744 | F47: 0.218 | G47: 0.702 | H47: 0.215 | I47: 0.563 | J47: 2.301 | K47: 0 | L47: 0 | M47: 0.5134 | N47: 2.541603943e-07 | O47: 863.005 | P47: 1808.811 | Q47: 769.611 | R47: 1182.787 | S47: 1401.772 | T47: 1775.093 | U47: 3236.779 | V47: 4277.538 | W47: 1098.196 | X47: 2271.223 | Y47: 1868.4815 | Z47: 0.0004605535676 | AA47: 1867.9681 | AC47: =L47-INDEX($C47:$L47,1,aux!$BA$1) -> -0.324 | AD47: 3.598008303e-05 | AE47: =+IF(INDEX($C47:$L47,1,aux!$BA$1)>0,(L47/INDEX($C47:$L47,1,aux!$BA$1))^(1/($L$3-INDEX($C$3:$L$3,1,aux!$BA$1)))-1,"n.d.") -> -1 | AF47: =IF(INDEX($C47:$L47,1,aux!$BA$1)>0,(L47-INDEX($C47:$L47,1,aux!$BA$1))/INDEX($C47:$L47,1,aux!$BA$1),"n.d.") -> -1 | AH47: =X47-INDEX($O47:$X47,1,aux!$BA$1) -> 1408.218 | AI47: 0.004647314415 | AJ47: =+IF(INDEX($O47:$X47,1,aux!$BA$1)>0,(X47/INDEX($O47:$X47,1,aux!$BA$1))^(1/($X$3-INDEX($O$3:$X$3,1,aux!$BA$1)))-1,"n.d.") -> 0.1135098208 | AK47: =IF(INDEX($O47:$X47,1,aux!$BA$1)>0,(X47-INDEX($O47:$X47,1,aux!$BA$1))/INDEX($O47:$X47,1,aux!$BA$1),"n.d.") -> 1.631761114 | CC47: =+IF(ISNA(MATCH('5.1'!A47,AUX_2d_pais!$G$2:$G$40000,0)),0,1) -> 1
A48: 0079 | B48: Cazaquistão | C48: 0 | D48: 0 | E48: 0 | F48: 0 | G48: 0 | H48: 0 | I48: 0 | J48: 0.015 | K48: 0 | L48: 1.211 | M48: 0.1226 | N48: 6.069354177e-08 | O48: 479.648 | P48: 734.936 | Q48: 730.428 | R48: 721.834 | S48: 405.569 | T48: 549.219 | U48: 966.025 | V48: 1228.042 | W48: 982.826 | X48: 838.34 | Y48: 763.6867 | Z48: 0.0001882376862 | AA48: 763.5641 | AC48: =L48-INDEX($C48:$L48,1,aux!$BA$1) -> 1.211 | AD48: -0.0001344811128 | AE48: =+IF(INDEX($C48:$L48,1,aux!$BA$1)>0,(L48/INDEX($C48:$L48,1,aux!$BA$1))^(1/($L$3-INDEX($C$3:$L$3,1,aux!$BA$1)))-1,"n.d.") -> n.d. | AF48: =IF(INDEX($C48:$L48,1,aux!$BA$1)>0,(L48-INDEX($C48:$L48,1,aux!$BA$1))/INDEX($C48:$L48,1,aux!$BA$1),"n.d.") -> n.d. | AH48: =X48-INDEX($O48:$X48,1,aux!$BA$1) -> 358.692 | AI48: 0.001183733273 | AJ48: =+IF(INDEX($O48:$X48,1,aux!$BA$1)>0,(X48/INDEX($O48:$X48,1,aux!$BA$1))^(1/($X$3-INDEX($O$3:$X$3,1,aux!$BA$1)))-1,"n.d.") -> 0.06400623344 | AK48: =IF(INDEX($O48:$X48,1,aux!$BA$1)>0,(X48-INDEX($O48:$X48,1,aux!$BA$1))/INDEX($O48:$X48,1,aux!$BA$1),"n.d.") -> 0.7478234038 | CC48: =+IF(ISNA(MATCH('5.1'!A48,AUX_2d_pais!$G$2:$G$40000,0)),0,1) -> 1
A49: 0306 | B49: Centro-Africana, República | C49: 354.024 | D49: 588.63 | E49: 610.099 | F49: 351.297 | G49: 1573.486 | H49: 2782.86 | I49: 1213.616 | J49: 3045.54 | K49: 1754.808 | L49: 1327.433 | M49: 1360.1793 | N49: 0.0006733613308 | O49: 7.539 | P49: 10.92 | Q49: 5.018 | R49: 0 | S49: 0 | T49: 0 | U49: 1.406 | V49: 0.03 | W49: 0.01 | X49: 0 | Y49: 2.4923 | Z49: 6.143157728e-07 | AA49: -1357.687 | AC49: =L49-INDEX($C49:$L49,1,aux!$BA$1) -> 973.409 | AD49: -0.108096718 | AE49: =+IF(INDEX($C49:$L49,1,aux!$BA$1)>0,(L49/INDEX($C49:$L49,1,aux!$BA$1))^(1/($L$3-INDEX($C$3:$L$3,1,aux!$BA$1)))-1,"n.d.") -> 0.1581786239 | AF49: =IF(INDEX($C49:$L49,1,aux!$BA$1)>0,(L49-INDEX($C49:$L49,1,aux!$BA$1))/INDEX($C49:$L49,1,aux!$BA$1),"n.d.") -> 2.749556527 | AH49: =X49-INDEX($O49:$X49,1,aux!$BA$1) -> -7.539 | AI49: -2.487974403e-05 | AJ49: =+IF(INDEX($O49:$X49,1,aux!$BA$1)>0,(X49/INDEX($O49:$X49,1,aux!$BA$1))^(1/($X$3-INDEX($O$3:$X$3,1,aux!$BA$1)))-1,"n.d.") -> -1 | AK49: =IF(INDEX($O49:$X49,1,aux!$BA$1)>0,(X49-INDEX($O49:$X49,1,aux!$BA$1))/INDEX($O49:$X49,1,aux!$BA$1),"n.d.") -> -1 | BO49: 13626.716 | CC49: =+IF(ISNA(MATCH('5.1'!A49,AUX_2d_pais!$G$2:$G$40000,0)),0,1) -> 1
A50: 0021 | B50: Ceuta | C50: 0 | D50: 0 | E50: 0 | F50: 0 | G50: 0 | H50: 0 | I50: 0 | J50: 0 | K50: 0 | L50: 0 | M50: 0 | N50: 0 | O50: 0 | P50: 0 | Q50: 0 | R50: 0 | S50: 0 | T50: 0 | U50: 0 | V50: 0 | W50: 0 | X50: 0 | Y50: 0 | Z50: 0 | AA50: 0 | AC50: =L50-INDEX($C50:$L50,1,aux!$BA$1) -> 0 | AD50: 0 | AE50: =+IF(INDEX($C50:$L50,1,aux!$BA$1)>0,(L50/INDEX($C50:$L50,1,aux!$BA$1))^(1/($L$3-INDEX($C$3:$L$3,1,aux!$BA$1)))-1,"n.d.") -> n.d. | AF50: =IF(INDEX($C50:$L50,1,aux!$BA$1)>0,(L50-INDEX($C50:$L50,1,aux!$BA$1))/INDEX($C50:$L50,1,aux!$BA$1),"n.d.") -> n.d. | AH50: =X50-INDEX($O50:$X50,1,aux!$BA$1) -> 0 | AI50: 0 | AJ50: =+IF(INDEX($O50:$X50,1,aux!$BA$1)>0,(X50/INDEX($O50:$X50,1,aux!$BA$1))^(1/($X$3-INDEX($O$3:$X$3,1,aux!$BA$1)))-1,"n.d.") -> n.d. | AK50: =IF(INDEX($O50:$X50,1,aux!$BA$1)>0,(X50-INDEX($O50:$X50,1,aux!$BA$1))/INDEX($O50:$X50,1,aux!$BA$1),"n.d.") -> n.d. | AM50: 0 | CC50: =+IF(ISNA(MATCH('5.1'!A50,AUX_2d_pais!$G$2:$G$40000,0)),0,1) -> 0
A51: 0022 | B51: Ceuta e Melilha | C51: 0 | D51: 0 | E51: 0 | F51: 0 | G51: 0 | H51: 0 | I51: 0 | J51: 0 | K51: 0 | L51: 0 | M51: 0 | N51: 0 | O51: 0.074 | P51: 0 | Q51: 0.021 | R51: 0.044 | S51: 0 | T51: 5.056 | U51: 0 | V51: 0 | W51: 0 | X51: 0 | Y51: 0.5195 | Z51: 1.280492091e-07 | AA51: 0.5195 | AC51: =L51-INDEX($C51:$L51,1,aux!$BA$1) -> 0 | AD51: 0 | AE51: =+IF(INDEX($C51:$L51,1,aux!$BA$1)>0,(L51/INDEX($C51:$L51,1,aux!$BA$1))^(1/($L$3-INDEX($C$3:$L$3,1,aux!$BA$1)))-1,"n.d.") -> n.d. | AF51: =IF(INDEX($C51:$L51,1,aux!$BA$1)>0,(L51-INDEX($C51:$L51,1,aux!$BA$1))/INDEX($C51:$L51,1,aux!$BA$1),"n.d.") -> n.d. | AH51: =X51-INDEX($O51:$X51,1,aux!$BA$1) -> -0.074 | AI51: -2.442102478e-07 | AJ51: =+IF(INDEX($O51:$X51,1,aux!$BA$1)>0,(X51/INDEX($O51:$X51,1,aux!$BA$1))^(1/($X$3-INDEX($O$3:$X$3,1,aux!$BA$1)))-1,"n.d.") -> -1 | AK51: =IF(INDEX($O51:$X51,1,aux!$BA$1)>0,(X51-INDEX($O51:$X51,1,aux!$BA$1))/INDEX($O51:$X51,1,aux!$BA$1),"n.d.") -> -1 | CC51: =+IF(ISNA(MATCH('5.1'!A51,AUX_2d_pais!$G$2:$G$40000,0)),0,1) -> 1
A52: 0244 | B52: Chade | C52: 0 | D52: 0 | E52: 0 | F52: 0.824 | G52: 0 | H52: 0 | I52: 0 | J52: 0 | K52: 0 | L52: 0 | M52: 0.0824 | N52: 4.079239675e-08 | O52: 0 | P52: 0 | Q52: 0 | R52: 3.022 | S52: 76.29 | T52: 69.216 | U52: 47.677 | V52: 0.334 | W52: 0 | X52: 0 | Y52: 19.6539 | Z52: 4.844401062e-06 | AA52: 19.5715 | AC52: =L52-INDEX($C52:$L52,1,aux!$BA$1) -> 0 | AD52: 0 | AE52: =+IF(INDEX($C52:$L52,1,aux!$BA$1)>0,(L52/INDEX($C52:$L52,1,aux!$BA$1))^(1/($L$3-INDEX($C$3:$L$3,1,aux!$BA$1)))-1,"n.d.") -> n.d. | AF52: =IF(INDEX($C52:$L52,1,aux!$BA$1)>0,(L52-INDEX($C52:$L52,1,aux!$BA$1))/INDEX($C52:$L52,1,aux!$BA$1),"n.d.") -> n.d. | AH52: =X52-INDEX($O52:$X52,1,aux!$BA$1) -> 0 | AI52: 0 | AJ52: =+IF(INDEX($O52:$X52,1,aux!$BA$1)>0,(X52/INDEX($O52:$X52,1,aux!$BA$1))^(1/($X$3-INDEX($O$3:$X$3,1,aux!$BA$1)))-1,"n.d.") -> n.d. | AK52: =IF(INDEX($O52:$X52,1,aux!$BA$1)>0,(X52-INDEX($O52:$X52,1,aux!$BA$1))/INDEX($O52:$X52,1,aux!$BA$1),"n.d.") -> n.d. | CC52: =+IF(ISNA(MATCH('5.1'!A52,AUX_2d_pais!$G$2:$G$40000,0)),0,1) -> 1
A53: 0061 | B53: Checa, República | C53: 4369.614 | D53: 3725.604 | E53: 4023.119 | F53: 4101.595 | G53: 5150.278 | H53: 8218.249 | I53: 10059.118 | J53: 8721.608 | K53: 12552.519 | L53: 11681.594 | M53: 7260.3298 | N53: 0.003594250652 | O53: 6247.962 | P53: 8424.869 | Q53: 9091.925 | R53: 6433.241 | S53: 8825.783 | T53: 9440.387 | U53: 7525.632 | V53: 8772.915 | W53: 8953.493 | X53: 9332.573 | Y53: 8304.878 | Z53: 0.002047031877 | AA53: 1044.5482 | AC53: =L53-INDEX($C53:$L53,1,aux!$BA$1) -> 7311.98 | AD53: -0.8119927391 | AE53: =+IF(INDEX($C53:$L53,1,aux!$BA$1)>0,(L53/INDEX($C53:$L53,1,aux!$BA$1))^(1/($L$3-INDEX($C$3:$L$3,1,aux!$BA$1)))-1,"n.d.") -> 0.1154523011 | AF53: =IF(INDEX($C53:$L53,1,aux!$BA$1)>0,(L53-INDEX($C53:$L53,1,aux!$BA$1))/INDEX($C53:$L53,1,aux!$BA$1),"n.d.") -> 1.673369776 | AH53: =X53-INDEX($O53:$X53,1,aux!$BA$1) -> 3084.611 | AI53: 0.01017964347 | AJ53: =+IF(INDEX($O53:$X53,1,aux!$BA$1)>0,(X53/INDEX($O53:$X53,1,aux!$BA$1))^(1/($X$3-INDEX($O$3:$X$3,1,aux!$BA$1)))-1,"n.d.") -> 0.04559273582 | AK53: =IF(INDEX($O53:$X53,1,aux!$BA$1)>0,(X53-INDEX($O53:$X53,1,aux!$BA$1))/INDEX($O53:$X53,1,aux!$BA$1),"n.d.") -> 0.4936987453 | CC53: =+IF(ISNA(MATCH('5.1'!A53,AUX_2d_pais!$G$2:$G$40000,0)),0,1) -> 1
A54: 0512 | B54: Chile | C54: 24412.144 | D54: 2410.218 | E54: 1693.448 | F54: 13186.788 | G54: 783.347 | H54: 3701.065 | I54: 17908.124 | J54: 3382.684 | K54: 700.4 | L54: 889.618 | M54: 6906.7836 | N54: 0.003419226418 | O54: 23611.507 | P54: 32728.861 | Q54: 29458.174 | R54: 34199.216 | S54: 35356.292 | T54: 33487.476 | U54: 33200.841 | V54: 38727.213 | W54: 32134.211 | X54: 27093.49 | Y54: 31999.7281 | Z54: 0.007887468482 | AA54: 25092.9445 | AC54: =L54-INDEX($C54:$L54,1,aux!$BA$1) -> -23522.526 | AD54: 2.61216802 | AE54: =+IF(INDEX($C54:$L54,1,aux!$BA$1)>0,(L54/INDEX($C54:$L54,1,aux!$BA$1))^(1/($L$3-INDEX($C$3:$L$3,1,aux!$BA$1)))-1,"n.d.") -> -0.3078861893 | AF54: =IF(INDEX($C54:$L54,1,aux!$BA$1)>0,(L54-INDEX($C54:$L54,1,aux!$BA$1))/INDEX($C54:$L54,1,aux!$BA$1),"n.d.") -> -0.9635583831 | AH54: =X54-INDEX($O54:$X54,1,aux!$BA$1) -> 3481.983 | AI54: 0.0114910261 | AJ54: =+IF(INDEX($O54:$X54,1,aux!$BA$1)>0,(X54/INDEX($O54:$X54,1,aux!$BA$1))^(1/($X$3-INDEX($O$3:$X$3,1,aux!$BA$1)))-1,"n.d.") -> 0.01540176995 | AK54: =IF(INDEX($O54:$X54,1,aux!$BA$1)>0,(X54-INDEX($O54:$X54,1,aux!$BA$1))/INDEX($O54:$X54,1,aux!$BA$1),"n.d.") -> 0.1474697485 | CC54: =+IF(ISNA(MATCH('5.1'!A54,AUX_2d_pais!$G$2:$G$40000,0)),0,1) -> 1
A55: 0720 | B55: China, República Popular da | C55: 43139.19 | D55: 23150.943 | E55: 15595.932 | F55: 18719.501 | G55: 20659.187 | H55: 21549.081 | I55: 24674.77 | J55: 28314.43 | K55: 38306.304 | L55: 31657.713 | M55: 26576.7051 | N55: 0.01315688712 | O55: 73292.324 | P55: 66003.329 | Q55: 85606.832 | R55: 74827.874 | S55: 83688.391 | T55: 123950.558 | U55: 128338.08 | V55: 114644.452 | W55: 110344.062 | X55: 106255.484 | Y55: 96695.1386 | Z55: 0.02383394808 | AA55: 70118.4335 | AC55: =L55-INDEX($C55:$L55,1,aux!$BA$1) -> -11481.477 | AD55: 1.275013876 | AE55: =+IF(INDEX($C55:$L55,1,aux!$BA$1)>0,(L55/INDEX($C55:$L55,1,aux!$BA$1))^(1/($L$3-INDEX($C$3:$L$3,1,aux!$BA$1)))-1,"n.d.") -> -0.03379894871 | AF55: =IF(INDEX($C55:$L55,1,aux!$BA$1)>0,(L55-INDEX($C55:$L55,1,aux!$BA$1))/INDEX($C55:$L55,1,aux!$BA$1),"n.d.") -> -0.266149573 | AH55: =X55-INDEX($O55:$X55,1,aux!$BA$1) -> 32963.16 | AI55: 0.1087829928 | AJ55: =+IF(INDEX($O55:$X55,1,aux!$BA$1)>0,(X55/INDEX($O55:$X55,1,aux!$BA$1))^(1/($X$3-INDEX($O$3:$X$3,1,aux!$BA$1)))-1,"n.d.") -> 0.04212887414 | AK55: =IF(INDEX($O55:$X55,1,aux!$BA$1)>0,(X55-INDEX($O55:$X55,1,aux!$BA$1))/INDEX($O55:$X55,1,aux!$BA$1),"n.d.") -> 0.4497491443 | CC55: =+IF(ISNA(MATCH('5.1'!A55,AUX_2d_pais!$G$2:$G$40000,0)),0,1) -> 1
A56: 0600 | B56: Chipre | C56: 0 | D56: 210.983 | E56: 1451.719 | F56: 418.487 | G56: 52.613 | H56: 224.536 | I56: 490.116 | J56: 13.499 | K56: 1316.773 | L56: 8.044 | M56: 418.677 | N56: 0.000207267455 | O56: 2673.237 | P56: 2216.807 | Q56: 2162.1 | R56: 2068.859 | S56: 1717.711 | T56: 2577.127 | U56: 3043.595 | V56: 3621.324 | W56: 3962.631 | X56: 2698.81 | Y56: 2674.2201 | Z56: 0.0006591564368 | AA56: 2255.5431 | AC56: =L56-INDEX($C56:$L56,1,aux!$BA$1) -> 8.044 | AD56: -0.0008932832958 | AE56: =+IF(INDEX($C56:$L56,1,aux!$BA$1)>0,(L56/INDEX($C56:$L56,1,aux!$BA$1))^(1/($L$3-INDEX($C$3:$L$3,1,aux!$BA$1)))-1,"n.d.") -> n.d. | AF56: =IF(INDEX($C56:$L56,1,aux!$BA$1)>0,(L56-INDEX($C56:$L56,1,aux!$BA$1))/INDEX($C56:$L56,1,aux!$BA$1),"n.d.") -> n.d. | AH56: =X56-INDEX($O56:$X56,1,aux!$BA$1) -> 25.573 | AI56: 8.439444144e-05 | AJ56: =+IF(INDEX($O56:$X56,1,aux!$BA$1)>0,(X56/INDEX($O56:$X56,1,aux!$BA$1))^(1/($X$3-INDEX($O$3:$X$3,1,aux!$BA$1)))-1,"n.d.") -> 0.001058430572 | AK56: =IF(INDEX($O56:$X56,1,aux!$BA$1)>0,(X56-INDEX($O56:$X56,1,aux!$BA$1))/INDEX($O56:$X56,1,aux!$BA$1),"n.d.") -> 0.009566304821 | CC56: =+IF(ISNA(MATCH('5.1'!A56,AUX_2d_pais!$G$2:$G$40000,0)),0,1) -> 1
A57: 0834 | B57: Christmas, Ilha | C57: 0 | D57: 0 | E57: 0 | F57: 0 | G57: 0 | H57: 0 | I57: 0 | J57: 0 | K57: 0 | L57: 0 | M57: 0 | N57: 0 | O57: 0 | P57: 0 | Q57: 0 | R57: 0 | S57: 0 | T57: 0 | U57: 0 | V57: 0 | W57: 0 | X57: 0 | Y57: 0 | Z57: 0 | AA57: 0 | AC57: =L57-INDEX($C57:$L57,1,aux!$BA$1) -> 0 | AD57: 0 | AE57: =+IF(INDEX($C57:$L57,1,aux!$BA$1)>0,(L57/INDEX($C57:$L57,1,aux!$BA$1))^(1/($L$3-INDEX($C$3:$L$3,1,aux!$BA$1)))-1,"n.d.") -> n.d. | AF57: =IF(INDEX($C57:$L57,1,aux!$BA$1)>0,(L57-INDEX($C57:$L57,1,aux!$BA$1))/INDEX($C57:$L57,1,aux!$BA$1),"n.d.") -> n.d. | AH57: =X57-INDEX($O57:$X57,1,aux!$BA$1) -> 0 | AI57: 0 | AJ57: =+IF(INDEX($O57:$X57,1,aux!$BA$1)>0,(X57/INDEX($O57:$X57,1,aux!$BA$1))^(1/($X$3-INDEX($O$3:$X$3,1,aux!$BA$1)))-1,"n.d.") -> n.d. | AK57: =IF(INDEX($O57:$X57,1,aux!$BA$1)>0,(X57-INDEX($O57:$X57,1,aux!$BA$1))/INDEX($O57:$X57,1,aux!$BA$1),"n.d.") -> n.d. | AM57: 0 | BO57: 0 | CC57: =+IF(ISNA(MATCH('5.1'!A57,AUX_2d_pais!$G$2:$G$40000,0)),0,1) -> 0
A58: 0833 | B58: Cocos (Keeling), Ilhas | C58: 20.799 | D58: 0 | E58: 0 | F58: 0 | G58: 0 | H58: 0 | I58: 0 | J58: 0 | K58: 0 | L58: 0 | M58: 2.0799 | N58: 1.029661481e-06 | O58: 0 | P58: 0 | Q58: 0 | R58: 0 | S58: 0 | T58: 0 | U58: 0 | V58: 0 | W58: 0 | X58: 0 | Y58: 0 | Z58: 0 | AA58: -2.0799 | AC58: =L58-INDEX($C58:$L58,1,aux!$BA$1) -> -20.799 | AD58: 0.002309721441 | AE58: =+IF(INDEX($C58:$L58,1,aux!$BA$1)>0,(L58/INDEX($C58:$L58,1,aux!$BA$1))^(1/($L$3-INDEX($C$3:$L$3,1,aux!$BA$1)))-1,"n.d.") -> -1 | AF58: =IF(INDEX($C58:$L58,1,aux!$BA$1)>0,(L58-INDEX($C58:$L58,1,aux!$BA$1))/INDEX($C58:$L58,1,aux!$BA$1),"n.d.") -> -1 | AH58: =X58-INDEX($O58:$X58,1,aux!$BA$1) -> 0 | AI58: 0 | AJ58: =+IF(INDEX($O58:$X58,1,aux!$BA$1)>0,(X58/INDEX($O58:$X58,1,aux!$BA$1))^(1/($X$3-INDEX($O$3:$X$3,1,aux!$BA$1)))-1,"n.d.") -> n.d. | AK58: =IF(INDEX($O58:$X58,1,aux!$BA$1)>0,(X58-INDEX($O58:$X58,1,aux!$BA$1))/INDEX($O58:$X58,1,aux!$BA$1),"n.d.") -> n.d. | BO58: 20.799 | CC58: =+IF(ISNA(MATCH('5.1'!A58,AUX_2d_pais!$G$2:$G$40000,0)),0,1) -> 1
A59: 0480 | B59: Colômbia | C59: 774.838 | D59: 235.073 | E59: 9.218 | F59: 291.165 | G59: 0.841 | H59: 14.375 | I59: 82.479 | J59: 3.72 | K59: 15.429 | L59: 32.294 | M59: 145.9432 | N59: 7.224967133e-05 | O59: 1559.868 | P59: 1445.525 | Q59: 599.937 | R59: 1251.855 | S59: 1341.93 | T59: 1250.725 | U59: 1511.966 | V59: 1170.929 | W59: 1237.029 | X59: 1012.2 | Y59: 1238.1964 | Z59: 0.0003051974394 | AA59: 1092.2532 | AC59: =L59-INDEX($C59:$L59,1,aux!$BA$1) -> -742.544 | AD59: 0.08245924312 | AE59: =+IF(INDEX($C59:$L59,1,aux!$BA$1)>0,(L59/INDEX($C59:$L59,1,aux!$BA$1))^(1/($L$3-INDEX($C$3:$L$3,1,aux!$BA$1)))-1,"n.d.") -> -0.2974831102 | AF59: =IF(INDEX($C59:$L59,1,aux!$BA$1)>0,(L59-INDEX($C59:$L59,1,aux!$BA$1))/INDEX($C59:$L59,1,aux!$BA$1),"n.d.") -> -0.9583216105 | AH59: =X59-INDEX($O59:$X59,1,aux!$BA$1) -> -547.668 | AI59: -0.001807380243 | AJ59: =+IF(INDEX($O59:$X59,1,aux!$BA$1)>0,(X59/INDEX($O59:$X59,1,aux!$BA$1))^(1/($X$3-INDEX($O$3:$X$3,1,aux!$BA$1)))-1,"n.d.") -> -0.04691651826 | AK59: =IF(INDEX($O59:$X59,1,aux!$BA$1)>0,(X59-INDEX($O59:$X59,1,aux!$BA$1))/INDEX($O59:$X59,1,aux!$BA$1),"n.d.") -> -0.3510989391 | CC59: =+IF(ISNA(MATCH('5.1'!A59,AUX_2d_pais!$G$2:$G$40000,0)),0,1) -> 1
A60: 0375 | B60: Comores | C60: 0 | D60: 0 | E60: 0 | F60: 0 | G60: 0 | H60: 0 | I60: 0 | J60: 0 | K60: 0 | L60: 0 | M60: 0 | N60: 0 | O60: 0 | P60: 0 | Q60: 0 | R60: 0 | S60: 0 | T60: 0 | U60: 0 | V60: 0 | W60: 0 | X60: 0 | Y60: 0 | Z60: 0 | AA60: 0 | AC60: =L60-INDEX($C60:$L60,1,aux!$BA$1) -> 0 | AD60: 0 | AE60: =+IF(INDEX($C60:$L60,1,aux!$BA$1)>0,(L60/INDEX($C60:$L60,1,aux!$BA$1))^(1/($L$3-INDEX($C$3:$L$3,1,aux!$BA$1)))-1,"n.d.") -> n.d. | AF60: =IF(INDEX($C60:$L60,1,aux!$BA$1)>0,(L60-INDEX($C60:$L60,1,aux!$BA$1))/INDEX($C60:$L60,1,aux!$BA$1),"n.d.") -> n.d. | AH60: =X60-INDEX($O60:$X60,1,aux!$BA$1) -> 0 | AI60: 0 | AJ60: =+IF(INDEX($O60:$X60,1,aux!$BA$1)>0,(X60/INDEX($O60:$X60,1,aux!$BA$1))^(1/($X$3-INDEX($O$3:$X$3,1,aux!$BA$1)))-1,"n.d.") -> n.d. | AK60: =IF(INDEX($O60:$X60,1,aux!$BA$1)>0,(X60-INDEX($O60:$X60,1,aux!$BA$1))/INDEX($O60:$X60,1,aux!$BA$1),"n.d.") -> n.d. | AM60: 0 | CC60: =+IF(ISNA(MATCH('5.1'!A60,AUX_2d_pais!$G$2:$G$40000,0)),0,1) -> 0
A61: 0318 | B61: Congo | C61: 1087.191 | D61: 1656.264 | E61: 4974.569 | F61: 3885.996 | G61: 7474.644 | H61: 6029.264 | I61: 3574.669 | J61: 5506.636 | K61: 6189.045 | L61: 3327.16 | M61: 4370.5438 | N61: 0.002163652387 | O61: 57.208 | P61: 166.228 | Q61: 154.414 | R61: 655.165 | S61: 1966.179 | T61: 290.025 | U61: 213.153 | V61: 186.793 | W61: 129.01 | X61: 270.474 | Y61: 408.8649 | Z61: 0.0001007792629 | AA61: -3961.6789 | AC61: =L61-INDEX($C61:$L61,1,aux!$BA$1) -> 2239.969 | AD61: -0.2487477487 | AE61: =+IF(INDEX($C61:$L61,1,aux!$BA$1)>0,(L61/INDEX($C61:$L61,1,aux!$BA$1))^(1/($L$3-INDEX($C$3:$L$3,1,aux!$BA$1)))-1,"n.d.") -> 0.132333104 | AF61: =IF(INDEX($C61:$L61,1,aux!$BA$1)>0,(L61-INDEX($C61:$L61,1,aux!$BA$1))/INDEX($C61:$L61,1,aux!$BA$1),"n.d.") -> 2.060327026 | AH61: =X61-INDEX($O61:$X61,1,aux!$BA$1) -> 213.266 | AI61: 0.0007038073338 | AJ61: =+IF(INDEX($O61:$X61,1,aux!$BA$1)>0,(X61/INDEX($O61:$X61,1,aux!$BA$1))^(1/($X$3-INDEX($O$3:$X$3,1,aux!$BA$1)))-1,"n.d.") -> 0.1884015113 | AK61: =IF(INDEX($O61:$X61,1,aux!$BA$1)>0,(X61-INDEX($O61:$X61,1,aux!$BA$1))/INDEX($O61:$X61,1,aux!$BA$1),"n.d.") -> 3.727905188 | CC61: =+IF(ISNA(MATCH('5.1'!A61,AUX_2d_pais!$G$2:$G$40000,0)),0,1) -> 1
A62: 0322 | B62: Congo, República Democrática do | C62: 9500.33 | D62: 5177.861 | E62: 4959.82 | F62: 4492.746 | G62: 6799.569 | H62: 4193.733 | I62: 3711.578 | J62: 3819.955 | K62: 1757.084 | L62: 1018.518 | M62: 4543.1194 | N62: 0.002249086518 | O62: 862.08 | P62: 83.738 | Q62: 92.895 | R62: 164.111 | S62: 169.463 | T62: 113.157 | U62: 414.718 | V62: 106.844 | W62: 258.086 | X62: 284.539 | Y62: 254.9631 | Z62: 6.284470321e-05 | AA62: -4288.1563 | AC62: =L62-INDEX($C62:$L62,1,aux!$BA$1) -> -8481.812 | AD62: 0.9419021604 | AE62: =+IF(INDEX($C62:$L62,1,aux!$BA$1)>0,(L62/INDEX($C62:$L62,1,aux!$BA$1))^(1/($L$3-INDEX($C$3:$L$3,1,aux!$BA$1)))-1,"n.d.") -> -0.219724843 | AF62: =IF(INDEX($C62:$L62,1,aux!$BA$1)>0,(L62-INDEX($C62:$L62,1,aux!$BA$1))/INDEX($C62:$L62,1,aux!$BA$1),"n.d.") -> -0.892791303 | AH62: =X62-INDEX($O62:$X62,1,aux!$BA$1) -> -577.541 | AI62: -0.00190596528 | AJ62: =+IF(INDEX($O62:$X62,1,aux!$BA$1)>0,(X62/INDEX($O62:$X62,1,aux!$BA$1))^(1/($X$3-INDEX($O$3:$X$3,1,aux!$BA$1)))-1,"n.d.") -> -0.1158815164 | AK62: =IF(INDEX($O62:$X62,1,aux!$BA$1)>0,(X62-INDEX($O62:$X62,1,aux!$BA$1))/INDEX($O62:$X62,1,aux!$BA$1),"n.d.") -> -0.6699389848 | CC62: =+IF(ISNA(MATCH('5.1'!A62,AUX_2d_pais!$G$2:$G$40000,0)),0,1) -> 1
A63: 0837 | B63: Cook, Ilhas | C63: 0 | D63: 0 | E63: 0 | F63: 0 | G63: 0 | H63: 0 | I63: 0 | J63: 0 | K63: 0 | L63: 0 | M63: 0 | N63: 0 | O63: 0 | P63: 0 | Q63: 0 | R63: 0 | S63: 0 | T63: 0 | U63: 0 | V63: 0 | W63: 0 | X63: 0 | Y63: 0 | Z63: 0 | AA63: 0 | AC63: =L63-INDEX($C63:$L63,1,aux!$BA$1) -> 0 | AD63: 0 | AE63: =+IF(INDEX($C63:$L63,1,aux!$BA$1)>0,(L63/INDEX($C63:$L63,1,aux!$BA$1))^(1/($L$3-INDEX($C$3:$L$3,1,aux!$BA$1)))-1,"n.d.") -> n.d. | AF63: =IF(INDEX($C63:$L63,1,aux!$BA$1)>0,(L63-INDEX($C63:$L63,1,aux!$BA$1))/INDEX($C63:$L63,1,aux!$BA$1),"n.d.") -> n.d. | AH63: =X63-INDEX($O63:$X63,1,aux!$BA$1) -> 0 | AI63: 0 | AJ63: =+IF(INDEX($O63:$X63,1,aux!$BA$1)>0,(X63/INDEX($O63:$X63,1,aux!$BA$1))^(1/($X$3-INDEX($O$3:$X$3,1,aux!$BA$1)))-1,"n.d.") -> n.d. | AK63: =IF(INDEX($O63:$X63,1,aux!$BA$1)>0,(X63-INDEX($O63:$X63,1,aux!$BA$1))/INDEX($O63:$X63,1,aux!$BA$1),"n.d.") -> n.d. | AM63: 0 | BO63: 0 | CC63: =+IF(ISNA(MATCH('5.1'!A63,AUX_2d_pais!$G$2:$G$40000,0)),0,1) -> 0
A64: 0728 | B64: Coreia, República da | C64: 701.171 | D64: 412.751 | E64: 375.723 | F64: 490.573 | G64: 1669.129 | H64: 2617.394 | I64: 2808.477 | J64: 3521.98 | K64: 4609.784 | L64: 3513.074 | M64: 2072.0056 | N64: 0.001025753331 | O64: 2274.979 | P64: 2096.319 | Q64: 3360.312 | R64: 2472.353 | S64: 3045.848 | T64: 3946.975 | U64: 4192.115 | V64: 3266.886 | W64: 2773.819 | X64: 3029.127 | Y64: 3045.8733 | Z64: 0.0007507635558 | AA64: 973.8677 | AC64: =L64-INDEX($C64:$L64,1,aux!$BA$1) -> 2811.903 | AD64: -0.312260813 | AE64: =+IF(INDEX($C64:$L64,1,aux!$BA$1)>0,(L64/INDEX($C64:$L64,1,aux!$BA$1))^(1/($L$3-INDEX($C$3:$L$3,1,aux!$BA$1)))-1,"n.d.") -> 0.1960865168 | AF64: =IF(INDEX($C64:$L64,1,aux!$BA$1)>0,(L64-INDEX($C64:$L64,1,aux!$BA$1))/INDEX($C64:$L64,1,aux!$BA$1),"n.d.") -> 4.010295634 | AH64: =X64-INDEX($O64:$X64,1,aux!$BA$1) -> 754.148 | AI64: 0.002488792837 | AJ64: =+IF(INDEX($O64:$X64,1,aux!$BA$1)>0,(X64/INDEX($O64:$X64,1,aux!$BA$1))^(1/($X$3-INDEX($O$3:$X$3,1,aux!$BA$1)))-1,"n.d.") -> 0.03232290988 | AK64: =IF(INDEX($O64:$X64,1,aux!$BA$1)>0,(X64-INDEX($O64:$X64,1,aux!$BA$1))/INDEX($O64:$X64,1,aux!$BA$1),"n.d.") -> 0.3314966863 | CC64: =+IF(ISNA(MATCH('5.1'!A64,AUX_2d_pais!$G$2:$G$40000,0)),0,1) -> 1
A65: 0724 | B65: Coreia, República Popular Democrática da | C65: 0 | D65: 0 | E65: 0 | F65: 0 | G65: 0 | H65: 0 | I65: 0 | J65: 0 | K65: 0 | L65: 0 | M65: 0 | N65: 0 | O65: 0 | P65: 0 | Q65: 0 | R65: 11.34 | S65: 0 | T65: 0 | U65: 0 | V65: 0 | W65: 0 | X65: 0 | Y65: 1.134 | Z65: 2.795145393e-07 | AA65: 1.134 | AC65: =L65-INDEX($C65:$L65,1,aux!$BA$1) -> 0 | AD65: 0 | AE65: =+IF(INDEX($C65:$L65,1,aux!$BA$1)>0,(L65/INDEX($C65:$L65,1,aux!$BA$1))^(1/($L$3-INDEX($C$3:$L$3,1,aux!$BA$1)))-1,"n.d.") -> n.d. | AF65: =IF(INDEX($C65:$L65,1,aux!$BA$1)>0,(L65-INDEX($C65:$L65,1,aux!$BA$1))/INDEX($C65:$L65,1,aux!$BA$1),"n.d.") -> n.d. | AH65: =X65-INDEX($O65:$X65,1,aux!$BA$1) -> 0 | AI65: 0 | AJ65: =+IF(INDEX($O65:$X65,1,aux!$BA$1)>0,(X65/INDEX($O65:$X65,1,aux!$BA$1))^(1/($X$3-INDEX($O$3:$X$3,1,aux!$BA$1)))-1,"n.d.") -> n.d. | AK65: =IF(INDEX($O65:$X65,1,aux!$BA$1)>0,(X65-INDEX($O65:$X65,1,aux!$BA$1))/INDEX($O65:$X65,1,aux!$BA$1),"n.d.") -> n.d. | BO65: 11.34 | CC65: =+IF(ISNA(MATCH('5.1'!A65,AUX_2d_pais!$G$2:$G$40000,0)),0,1) -> 1
A66: 0272 | B66: Costa do Marfim | C66: 1634.877 | D66: 1635.188 | E66: 1093.516 | F66: 1097.943 | G66: 991.123 | H66: 1357.726 | I66: 884.721 | J66: 810.383 | K66: 950.865 | L66: 448.027 | M66: 1090.4369 | N66: 0.0005398244497 | O66: 1092.62 | P66: 1977.727 | Q66: 2943.733 | R66: 5297.338 | S66: 6878.424 | T66: 6765.956 | U66: 4760.043 | V66: 5770.922 | W66: 7437.299 | X66: 3745.723 | Y66: 4666.9785 | Z66: 0.001150342456 | AA66: 3576.5416 | AC66: =L66-INDEX($C66:$L66,1,aux!$BA$1) -> -1186.85 | AD66: 0.131799264 | AE66: =+IF(INDEX($C66:$L66,1,aux!$BA$1)>0,(L66/INDEX($C66:$L66,1,aux!$BA$1))^(1/($L$3-INDEX($C$3:$L$3,1,aux!$BA$1)))-1,"n.d.") -> -0.1339649762 | AF66: =IF(INDEX($C66:$L66,1,aux!$BA$1)>0,(L66-INDEX($C66:$L66,1,aux!$BA$1))/INDEX($C66:$L66,1,aux!$BA$1),"n.d.") -> -0.7259567539 | AH66: =X66-INDEX($O66:$X66,1,aux!$BA$1) -> 2653.103 | AI66: 0.008755607311 | AJ66: =+IF(INDEX($O66:$X66,1,aux!$BA$1)>0,(X66/INDEX($O66:$X66,1,aux!$BA$1))^(1/($X$3-INDEX($O$3:$X$3,1,aux!$BA$1)))-1,"n.d.") -> 0.1467053392 | AK66: =IF(INDEX($O66:$X66,1,aux!$BA$1)>0,(X66-INDEX($O66:$X66,1,aux!$BA$1))/INDEX($O66:$X66,1,aux!$BA$1),"n.d.") -> 2.428202852 | CC66: =+IF(ISNA(MATCH('5.1'!A66,AUX_2d_pais!$G$2:$G$40000,0)),0,1) -> 1
A67: 0436 | B67: Costa Rica | C67: 1.044 | D67: 15.018 | E67: 0 | F67: 0 | G67: 0 | H67: 0 | I67: 0 | J67: 1.445 | K67: 1.5 | L67: 0.184 | M67: 1.9191 | N67: 9.500569005e-07 | O67: 2611.678 | P67: 1418.711 | Q67: 1026.917 | R67: 1098.645 | S67: 1647.353 | T67: 1466.399 | U67: 1617.133 | V67: 3447.302 | W67: 2100.827 | X67: 1321.41 | Y67: 1775.6375 | Z67: 0.0004376688693 | AA67: 1773.7184 | AC67: =L67-INDEX($C67:$L67,1,aux!$BA$1) -> -0.86 | AD67: 9.550268951e-05 | AE67: =+IF(INDEX($C67:$L67,1,aux!$BA$1)>0,(L67/INDEX($C67:$L67,1,aux!$BA$1))^(1/($L$3-INDEX($C$3:$L$3,1,aux!$BA$1)))-1,"n.d.") -> -0.1754153266 | AF67: =IF(INDEX($C67:$L67,1,aux!$BA$1)>0,(L67-INDEX($C67:$L67,1,aux!$BA$1))/INDEX($C67:$L67,1,aux!$BA$1),"n.d.") -> -0.8237547893 | AH67: =X67-INDEX($O67:$X67,1,aux!$BA$1) -> -1290.268 | AI67: -0.004258063081 | AJ67: =+IF(INDEX($O67:$X67,1,aux!$BA$1)>0,(X67/INDEX($O67:$X67,1,aux!$BA$1))^(1/($X$3-INDEX($O$3:$X$3,1,aux!$BA$1)))-1,"n.d.") -> -0.07290504537 | AK67: =IF(INDEX($O67:$X67,1,aux!$BA$1)>0,(X67-INDEX($O67:$X67,1,aux!$BA$1))/INDEX($O67:$X67,1,aux!$BA$1),"n.d.") -> -0.4940379327 | CC67: =+IF(ISNA(MATCH('5.1'!A67,AUX_2d_pais!$G$2:$G$40000,0)),0,1) -> 1
A68: 0092 | B68: Croácia | C68: 204.351 | D68: 95.041 | E68: 113.925 | F68: 51.099 | G68: 1534.669 | H68: 1779.475 | I68: 1241.871 | J68: 2856.164 | K68: 1159.924 | L68: 1072.02 | M68: 1010.8539 | N68: 0.0005004266183 | O68: 5461.684 | P68: 5161.479 | Q68: 2730.351 | R68: 2552.942 | S68: 4455.566 | T68: 4877.461 | U68: 5756.399 | V68: 6376.858 | W68: 5210.995 | X68: 4267.639 | Y68: 4685.1374 | Z68: 0.001154818362 | AA68: 3674.2835 | AC68: =L68-INDEX($C68:$L68,1,aux!$BA$1) -> 867.669 | AD68: =AC68/$AC$252 -> -0.09635432919 | AE68: =+IF(INDEX($C68:$L68,1,aux!$BA$1)>0,(L68/INDEX($C68:$L68,1,aux!$BA$1))^(1/($L$3-INDEX($C$3:$L$3,1,aux!$BA$1)))-1,"n.d.") -> 0.2022109521 | AF68: =IF(INDEX($C68:$L68,1,aux!$BA$1)>0,(L68-INDEX($C68:$L68,1,aux!$BA$1))/INDEX($C68:$L68,1,aux!$BA$1),"n.d.") -> 4.245973839 | AH68: =X68-INDEX($O68:$X68,1,aux!$BA$1) -> -1194.045 | AI68: =AH68/$AH$252 -> -0.003940513855 | AJ68: =+IF(INDEX($O68:$X68,1,aux!$BA$1)>0,(X68/INDEX($O68:$X68,1,aux!$BA$1))^(1/($X$3-INDEX($O$3:$X$3,1,aux!$BA$1)))-1,"n.d.") -> -0.02703844885 | AK68: =IF(INDEX($O68:$X68,1,aux!$BA$1)>0,(X68-INDEX($O68:$X68,1,aux!$BA$1))/INDEX($O68:$X68,1,aux!$BA$1),"n.d.") -> -0.2186221319 | CC68: =+IF(ISNA(MATCH('5.1'!A68,AUX_2d_pais!$G$2:$G$40000,0)),0,1) -> 1
A69: 0448 | B69: Cuba | C69: 4107.453 | D69: 4150.502 | E69: 4019.463 | F69: 3743.217 | G69: 4992.38 | H69: 3990.947 | I69: 5074.436 | J69: 6540.858 | K69: 6610.682 | L69: 6516.514 | M69: 4974.6452 | N69: 0.002462714814 | O69: 781.474 | P69: 1085.725 | Q69: 597.05 | R69: 1377.923 | S69: 3542.433 | T69: 2314.41 | U69: 3670.068 | V69: 2706.245 | W69: 803.072 | X69: 1687.153 | Y69: 1856.5553 | Z69: 0.0004576139324 | AA69: -3118.0899 | AC69: =L69-INDEX($C69:$L69,1,aux!$BA$1) -> 2409.061 | AD69: -0.2675253543 | AE69: =+IF(INDEX($C69:$L69,1,aux!$BA$1)>0,(L69/INDEX($C69:$L69,1,aux!$BA$1))^(1/($L$3-INDEX($C$3:$L$3,1,aux!$BA$1)))-1,"n.d.") -> 0.05261950797 | AF69: =IF(INDEX($C69:$L69,1,aux!$BA$1)>0,(L69-INDEX($C69:$L69,1,aux!$BA$1))/INDEX($C69:$L69,1,aux!$BA$1),"n.d.") -> 0.5865096935 | AH69: =X69-INDEX($O69:$X69,1,aux!$BA$1) -> 905.679 | AI69: 0.002988866121 | AJ69: =+IF(INDEX($O69:$X69,1,aux!$BA$1)>0,(X69/INDEX($O69:$X69,1,aux!$BA$1))^(1/($X$3-INDEX($O$3:$X$3,1,aux!$BA$1)))-1,"n.d.") -> 0.08927558774 | AK69: =IF(INDEX($O69:$X69,1,aux!$BA$1)>0,(X69-INDEX($O69:$X69,1,aux!$BA$1))/INDEX($O69:$X69,1,aux!$BA$1),"n.d.") -> 1.15893683 | CC69: =+IF(ISNA(MATCH('5.1'!A69,AUX_2d_pais!$G$2:$G$40000,0)),0,1) -> 1
A70: 0475 | B70: Curaçau | C70: 0 | D70: 0 | E70: 0 | F70: 0 | G70: 0 | H70: 0 | I70: 0 | J70: 0 | K70: 0 | L70: 0 | M70: 0 | N70: 0 | O70: 0 | P70: 0 | Q70: 21.134 | R70: 110.526 | S70: 47.557 | T70: 39.769 | U70: 51.935 | V70: 60.101 | W70: 376.261 | X70: 173.157 | Y70: 88.044 | Z70: 2.170156799e-05 | AA70: 88.044 | AC70: =L70-INDEX($C70:$L70,1,aux!$BA$1) -> 0 | AD70: 0 | AE70: =+IF(INDEX($C70:$L70,1,aux!$BA$1)>0,(L70/INDEX($C70:$L70,1,aux!$BA$1))^(1/($L$3-INDEX($C$3:$L$3,1,aux!$BA$1)))-1,"n.d.") -> n.d. | AF70: =IF(INDEX($C70:$L70,1,aux!$BA$1)>0,(L70-INDEX($C70:$L70,1,aux!$BA$1))/INDEX($C70:$L70,1,aux!$BA$1),"n.d.") -> n.d. | AH70: =X70-INDEX($O70:$X70,1,aux!$BA$1) -> 173.157 | AI70: 0.0005714420794 | AJ70: =+IF(INDEX($O70:$X70,1,aux!$BA$1)>0,(X70/INDEX($O70:$X70,1,aux!$BA$1))^(1/($X$3-INDEX($O$3:$X$3,1,aux!$BA$1)))-1,"n.d.") -> n.d. | AK70: =IF(INDEX($O70:$X70,1,aux!$BA$1)>0,(X70-INDEX($O70:$X70,1,aux!$BA$1))/INDEX($O70:$X70,1,aux!$BA$1),"n.d.") -> n.d. | CC70: =+IF(ISNA(MATCH('5.1'!A70,AUX_2d_pais!$G$2:$G$40000,0)),0,1) -> 1
A71: 0008 | B71: Dinamarca | C71: 4426.057 | D71: 2762.727 | E71: 2883.993 | F71: 2910.332 | G71: 3128.339 | H71: 2650.457 | I71: 3467.954 | J71: 3164.125 | K71: 3407.056 | L71: 3269.702 | M71: 3207.0742 | N71: 0.001587672854 | O71: 29951.917 | P71: 34965.672 | Q71: 42768.809 | R71: 26142.986 | S71: 25577.702 | T71: 29598.953 | U71: 35391.316 | V71: 33745.2 | W71: 43764.917 | X71: 39433.18 | Y71: 34134.0652 | Z71: 0.008413551595 | AA71: 30926.991 | AC71: =L71-INDEX($C71:$L71,1,aux!$BA$1) -> -1156.355 | AD71: 0.1284128053 | AE71: =+IF(INDEX($C71:$L71,1,aux!$BA$1)>0,(L71/INDEX($C71:$L71,1,aux!$BA$1))^(1/($L$3-INDEX($C$3:$L$3,1,aux!$BA$1)))-1,"n.d.") -> -0.03308586783 | AF71: =IF(INDEX($C71:$L71,1,aux!$BA$1)>0,(L71-INDEX($C71:$L71,1,aux!$BA$1))/INDEX($C71:$L71,1,aux!$BA$1),"n.d.") -> -0.2612607565 | AH71: =X71-INDEX($O71:$X71,1,aux!$BA$1) -> 9481.263 | AI71: 0.0312894809 | AJ71: =+IF(INDEX($O71:$X71,1,aux!$BA$1)>0,(X71/INDEX($O71:$X71,1,aux!$BA$1))^(1/($X$3-INDEX($O$3:$X$3,1,aux!$BA$1)))-1,"n.d.") -> 0.03102880189 | AK71: =IF(INDEX($O71:$X71,1,aux!$BA$1)>0,(X71-INDEX($O71:$X71,1,aux!$BA$1))/INDEX($O71:$X71,1,aux!$BA$1),"n.d.") -> 0.3165494549 | CC71: =+IF(ISNA(MATCH('5.1'!A71,AUX_2d_pais!$G$2:$G$40000,0)),0,1) -> 1
A72: 0460 | B72: Domínica | C72: 0 | D72: 0 | E72: 0 | F72: 0 | G72: 0 | H72: 0 | I72: 0 | J72: 0 | K72: 0 | L72: 0 | M72: 0 | N72: 0 | O72: 0 | P72: 0 | Q72: 0 | R72: 0 | S72: 0 | T72: 0.202 | U72: 0 | V72: 0 | W72: 0 | X72: 0 | Y72: 0.0202 | Z72: 4.979006785e-09 | AA72: 0.0202 | AC72: =L72-INDEX($C72:$L72,1,aux!$BA$1) -> 0 | AD72: 0 | AE72: =+IF(INDEX($C72:$L72,1,aux!$BA$1)>0,(L72/INDEX($C72:$L72,1,aux!$BA$1))^(1/($L$3-INDEX($C$3:$L$3,1,aux!$BA$1)))-1,"n.d.") -> n.d. | AF72: =IF(INDEX($C72:$L72,1,aux!$BA$1)>0,(L72-INDEX($C72:$L72,1,aux!$BA$1))/INDEX($C72:$L72,1,aux!$BA$1),"n.d.") -> n.d. | AH72: =X72-INDEX($O72:$X72,1,aux!$BA$1) -> 0 | AI72: 0 | AJ72: =+IF(INDEX($O72:$X72,1,aux!$BA$1)>0,(X72/INDEX($O72:$X72,1,aux!$BA$1))^(1/($X$3-INDEX($O$3:$X$3,1,aux!$BA$1)))-1,"n.d.") -> n.d. | AK72: =IF(INDEX($O72:$X72,1,aux!$BA$1)>0,(X72-INDEX($O72:$X72,1,aux!$BA$1))/INDEX($O72:$X72,1,aux!$BA$1),"n.d.") -> n.d. | BO72: =SUM(C72:L72,O72:X72) -> 0.202 | CC72: =+IF(ISNA(MATCH('5.1'!A72,AUX_2d_pais!$G$2:$G$40000,0)),0,1) -> 1
A73: 0456 | B73: Dominicana, República | C73: 0 | D73: 2.056 | E73: 25.891 | F73: 22.956 | G73: 0 | H73: 15.509 | I73: 2.153 | J73: 0.091 | K73: 1.01 | L73: 29.67 | M73: 9.9336 | N73: 4.917662043e-06 | O73: 3805.874 | P73: 4447.385 | Q73: 4695.036 | R73: 4166.565 | S73: 6653.332 | T73: 6215.012 | U73: 6583.376 | V73: 9043.637 | W73: 6554.288 | X73: 5300.529 | Y73: 5746.5034 | Z73: 0.001416429674 | AA73: 5736.5698 | AC73: =L73-INDEX($C73:$L73,1,aux!$BA$1) -> 29.67 | AD73: -0.003294842788 | AE73: =+IF(INDEX($C73:$L73,1,aux!$BA$1)>0,(L73/INDEX($C73:$L73,1,aux!$BA$1))^(1/($L$3-INDEX($C$3:$L$3,1,aux!$BA$1)))-1,"n.d.") -> n.d. | AF73: =IF(INDEX($C73:$L73,1,aux!$BA$1)>0,(L73-INDEX($C73:$L73,1,aux!$BA$1))/INDEX($C73:$L73,1,aux!$BA$1),"n.d.") -> n.d. | AH73: =X73-INDEX($O73:$X73,1,aux!$BA$1) -> 1494.655 | AI73: 0.004932568485 | AJ73: =+IF(INDEX($O73:$X73,1,aux!$BA$1)>0,(X73/INDEX($O73:$X73,1,aux!$BA$1))^(1/($X$3-INDEX($O$3:$X$3,1,aux!$BA$1)))-1,"n.d.") -> 0.03749253073 | AK73: =IF(INDEX($O73:$X73,1,aux!$BA$1)>0,(X73-INDEX($O73:$X73,1,aux!$BA$1))/INDEX($O73:$X73,1,aux!$BA$1),"n.d.") -> 0.3927231958 | CC73: =+IF(ISNA(MATCH('5.1'!A73,AUX_2d_pais!$G$2:$G$40000,0)),0,1) -> 1
A74: 0220 | B74: Egito | C74: 1189.014 | D74: 12.446 | E74: 1.671 | F74: 358.157 | G74: 53.514 | H74: 131.74 | I74: 28.256 | J74: 6.313 | K74: 17.35 | L74: 77.672 | M74: 187.6133 | N74: 9.287859429e-05 | O74: 30944.854 | P74: 34835.079 | Q74: 34857.787 | R74: 42723.008 | S74: 49698.489 | T74: 52305.19 | U74: 63016.787 | V74: 75621.647 | W74: 85408.049 | X74: 69138.724 | Y74: 53854.9614 | Z74: 0.01327446625 | AA74: 53667.3481 | AC74: =L74-INDEX($C74:$L74,1,aux!$BA$1) -> -1111.342 | AD74: 0.1234141279 | AE74: =+IF(INDEX($C74:$L74,1,aux!$BA$1)>0,(L74/INDEX($C74:$L74,1,aux!$BA$1))^(1/($L$3-INDEX($C$3:$L$3,1,aux!$BA$1)))-1,"n.d.") -> -0.2615145439 | AF74: =IF(INDEX($C74:$L74,1,aux!$BA$1)>0,(L74-INDEX($C74:$L74,1,aux!$BA$1))/INDEX($C74:$L74,1,aux!$BA$1),"n.d.") -> -0.9346752856 | AH74: =X74-INDEX($O74:$X74,1,aux!$BA$1) -> 38193.87 | AI74: 0.1260450602 | AJ74: =+IF(INDEX($O74:$X74,1,aux!$BA$1)>0,(X74/INDEX($O74:$X74,1,aux!$BA$1))^(1/($X$3-INDEX($O$3:$X$3,1,aux!$BA$1)))-1,"n.d.") -> 0.09343393171 | AK74: =IF(INDEX($O74:$X74,1,aux!$BA$1)>0,(X74-INDEX($O74:$X74,1,aux!$BA$1))/INDEX($O74:$X74,1,aux!$BA$1),"n.d.") -> 1.234255944 | CC74: =+IF(ISNA(MATCH('5.1'!A74,AUX_2d_pais!$G$2:$G$40000,0)),0,1) -> 1
A75: 0428 | B75: El Salvador | C75: 0 | D75: 7.633 | E75: 0 | F75: 0 | G75: 0 | H75: 1.254 | I75: 0 | J75: 1.08 | K75: 0.119 | L75: 0 | M75: 1.0086 | N75: 4.993108175e-07 | O75: 829.224 | P75: 181.299 | Q75: 185.659 | R75: 164.166 | S75: 171.185 | T75: 117.104 | U75: 120.874 | V75: 948.989 | W75: 742.734 | X75: 683.576 | Y75: 414.481 | Z75: 0.0001021635501 | AA75: 413.4724 | AC75: =L75-INDEX($C75:$L75,1,aux!$BA$1) -> 0 | AD75: 0 | AE75: =+IF(INDEX($C75:$L75,1,aux!$BA$1)>0,(L75/INDEX($C75:$L75,1,aux!$BA$1))^(1/($L$3-INDEX($C$3:$L$3,1,aux!$BA$1)))-1,"n.d.") -> n.d. | AF75: =IF(INDEX($C75:$L75,1,aux!$BA$1)>0,(L75-INDEX($C75:$L75,1,aux!$BA$1))/INDEX($C75:$L75,1,aux!$BA$1),"n.d.") -> n.d. | AH75: =X75-INDEX($O75:$X75,1,aux!$BA$1) -> -145.648 | AI75: -0.0004806585698 | AJ75: =+IF(INDEX($O75:$X75,1,aux!$BA$1)>0,(X75/INDEX($O75:$X75,1,aux!$BA$1))^(1/($X$3-INDEX($O$3:$X$3,1,aux!$BA$1)))-1,"n.d.") -> -0.02123272994 | AK75: =IF(INDEX($O75:$X75,1,aux!$BA$1)>0,(X75-INDEX($O75:$X75,1,aux!$BA$1))/INDEX($O75:$X75,1,aux!$BA$1),"n.d.") -> -0.1756437344 | CC75: =+IF(ISNA(MATCH('5.1'!A75,AUX_2d_pais!$G$2:$G$40000,0)),0,1) -> 1
A76: 0647 | B76: Emirados Árabes Unidos | C76: 64.896 | D76: 63.921 | E76: 85.537 | F76: 146.022 | G76: 52.876 | H76: 107.901 | I76: 79.478 | J76: 62.459 | K76: 110.234 | L76: 289.536 | M76: 106.286 | N76: 5.261724127e-05 | O76: 14156.546 | P76: 16216.238 | Q76: 11669.192 | R76: 12369.468 | S76: 19648.967 | T76: 20803.429 | U76: 22238.568 | V76: 19645.39 | W76: 13572.035 | X76: 17353.263 | Y76: 16767.3096 | Z76: 0.004132898429 | AA76: 16661.0236 | AC76: =L76-INDEX($C76:$L76,1,aux!$BA$1) -> 224.64 | AD76: -0.0249461909 | AE76: =+IF(INDEX($C76:$L76,1,aux!$BA$1)>0,(L76/INDEX($C76:$L76,1,aux!$BA$1))^(1/($L$3-INDEX($C$3:$L$3,1,aux!$BA$1)))-1,"n.d.") -> 0.1807690476 | AF76: =IF(INDEX($C76:$L76,1,aux!$BA$1)>0,(L76-INDEX($C76:$L76,1,aux!$BA$1))/INDEX($C76:$L76,1,aux!$BA$1),"n.d.") -> 3.461538462 | AH76: =X76-INDEX($O76:$X76,1,aux!$BA$1) -> 3196.717 | AI76: 0.01054960879 | AJ76: =+IF(INDEX($O76:$X76,1,aux!$BA$1)>0,(X76/INDEX($O76:$X76,1,aux!$BA$1))^(1/($X$3-INDEX($O$3:$X$3,1,aux!$BA$1)))-1,"n.d.") -> 0.02288043456 | AK76: =IF(INDEX($O76:$X76,1,aux!$BA$1)>0,(X76-INDEX($O76:$X76,1,aux!$BA$1))/INDEX($O76:$X76,1,aux!$BA$1),"n.d.") -> 0.2258119318 | CC76: =+IF(ISNA(MATCH('5.1'!A76,AUX_2d_pais!$G$2:$G$40000,0)),0,1) -> 1
A77: 0500 | B77: Equador | C77: 1.811 | D77: 5.736 | E77: 3.377 | F77: 3.749 | G77: 35.348 | H77: 7.747 | I77: 4.08 | J77: 10.166 | K77: 3.445 | L77: 50.333 | M77: 12.5792 | N77: 6.227375209e-06 | O77: 3497.791 | P77: 2075.598 | Q77: 6363.317 | R77: 4213.022 | S77: 1723.244 | T77: 2890.472 | U77: 1654.214 | V77: 2229.317 | W77: 1985.773 | X77: 1079.969 | Y77: 2771.2717 | Z77: 0.0006830782474 | AA77: 2758.6925 | AC77: =L77-INDEX($C77:$L77,1,aux!$BA$1) -> 48.522 | AD77: -0.005388350582 | AE77: =+IF(INDEX($C77:$L77,1,aux!$BA$1)>0,(L77/INDEX($C77:$L77,1,aux!$BA$1))^(1/($L$3-INDEX($C$3:$L$3,1,aux!$BA$1)))-1,"n.d.") -> 0.4468954529 | AF77: =IF(INDEX($C77:$L77,1,aux!$BA$1)>0,(L77-INDEX($C77:$L77,1,aux!$BA$1))/INDEX($C77:$L77,1,aux!$BA$1),"n.d.") -> 26.79293208 | AH77: =X77-INDEX($O77:$X77,1,aux!$BA$1) -> -2417.822 | AI77: -0.007979147428 | AJ77: =+IF(INDEX($O77:$X77,1,aux!$BA$1)>0,(X77/INDEX($O77:$X77,1,aux!$BA$1))^(1/($X$3-INDEX($O$3:$X$3,1,aux!$BA$1)))-1,"n.d.") -> -0.1224116973 | AK77: =IF(INDEX($O77:$X77,1,aux!$BA$1)>0,(X77-INDEX($O77:$X77,1,aux!$BA$1))/INDEX($O77:$X77,1,aux!$BA$1),"n.d.") -> -0.6912425585 | CC77: =+IF(ISNA(MATCH('5.1'!A77,AUX_2d_pais!$G$2:$G$40000,0)),0,1) -> 1
A78: 0336 | B78: Eritreia | C78: 0 | D78: 0 | E78: 0 | F78: 0 | G78: 0 | H78: 0 | I78: 0 | J78: 0 | K78: 0 | L78: 0 | M78: 0 | N78: 0 | O78: 0 | P78: 0 | Q78: 0 | R78: 0 | S78: 0 | T78: 0 | U78: 0 | V78: 0 | W78: 0 | X78: 0 | Y78: 0 | Z78: 0 | AA78: 0 | AC78: =L78-INDEX($C78:$L78,1,aux!$BA$1) -> 0 | AD78: 0 | AE78: =+IF(INDEX($C78:$L78,1,aux!$BA$1)>0,(L78/INDEX($C78:$L78,1,aux!$BA$1))^(1/($L$3-INDEX($C$3:$L$3,1,aux!$BA$1)))-1,"n.d.") -> n.d. | AF78: =IF(INDEX($C78:$L78,1,aux!$BA$1)>0,(L78-INDEX($C78:$L78,1,aux!$BA$1))/INDEX($C78:$L78,1,aux!$BA$1),"n.d.") -> n.d. | AH78: =X78-INDEX($O78:$X78,1,aux!$BA$1) -> 0 | AI78: 0 | AJ78: =+IF(INDEX($O78:$X78,1,aux!$BA$1)>0,(X78/INDEX($O78:$X78,1,aux!$BA$1))^(1/($X$3-INDEX($O$3:$X$3,1,aux!$BA$1)))-1,"n.d.") -> n.d. | AK78: =IF(INDEX($O78:$X78,1,aux!$BA$1)>0,(X78-INDEX($O78:$X78,1,aux!$BA$1))/INDEX($O78:$X78,1,aux!$BA$1),"n.d.") -> n.d. | AM78: =SUM(A78:AA78) -> 0 | BO78: 0 | CC78: =+IF(ISNA(MATCH('5.1'!A78,AUX_2d_pais!$G$2:$G$40000,0)),0,1) -> 0
A79: 0063 | B79: Eslováquia | C79: 2412.882 | D79: 1585.62 | E79: 1757.107 | F79: 1129.756 | G79: 1459.952 | H79: 1062.204 | I79: 616.669 | J79: 891.677 | K79: 1610.353 | L79: 1990.075 | M79: 1451.6295 | N79: 0.0007186340595 | O79: 1934.504 | P79: 2457.677 | Q79: 2442.723 | R79: 1956.63 | S79: 2034.411 | T79: 2782.736 | U79: 2961.186 | V79: 2657.306 | W79: 3218.795 | X79: 3651.397 | Y79: 2609.7365 | Z79: 0.0006432621654 | AA79: 1158.107 | AC79: =L79-INDEX($C79:$L79,1,aux!$BA$1) -> -422.807 | AD79: 0.0469525647 | AE79: =+IF(INDEX($C79:$L79,1,aux!$BA$1)>0,(L79/INDEX($C79:$L79,1,aux!$BA$1))^(1/($L$3-INDEX($C$3:$L$3,1,aux!$BA$1)))-1,"n.d.") -> -0.02117803445 | AF79: =IF(INDEX($C79:$L79,1,aux!$BA$1)>0,(L79-INDEX($C79:$L79,1,aux!$BA$1))/INDEX($C79:$L79,1,aux!$BA$1),"n.d.") -> -0.1752290415 | AH79: =X79-INDEX($O79:$X79,1,aux!$BA$1) -> 1716.893 | AI79: 0.005665984661 | AJ79: =+IF(INDEX($O79:$X79,1,aux!$BA$1)>0,(X79/INDEX($O79:$X79,1,aux!$BA$1))^(1/($X$3-INDEX($O$3:$X$3,1,aux!$BA$1)))-1,"n.d.") -> 0.07313505132 | AK79: =IF(INDEX($O79:$X79,1,aux!$BA$1)>0,(X79-INDEX($O79:$X79,1,aux!$BA$1))/INDEX($O79:$X79,1,aux!$BA$1),"n.d.") -> 0.8875107004 | CC79: =+IF(ISNA(MATCH('5.1'!A79,AUX_2d_pais!$G$2:$G$40000,0)),0,1) -> 1
A80: 0091 | B80: Eslovénia | C80: 1877.717 | D80: 1124.012 | E80: 2885.715 | F80: 6146.873 | G80: 3377.596 | H80: 2268.305 | I80: 4848.367 | J80: 4521.538 | K80: 3007.425 | L80: 3029.6 | M80: 3308.7148 | N80: 0.001637990374 | O80: 3264.811 | P80: 4521.242 | Q80: 3499.394 | R80: 3046.84 | S80: 2635.486 | T80: 3334.091 | U80: 9621.852 | V80: 4610.192 | W80: 3097.953 | X80: 2724.56 | Y80: 4035.6421 | Z80: 0.0009947271979 | AA80: 726.9273 | AC80: =L80-INDEX($C80:$L80,1,aux!$BA$1) -> 1151.883 | AD80: -0.1279161913 | AE80: =+IF(INDEX($C80:$L80,1,aux!$BA$1)>0,(L80/INDEX($C80:$L80,1,aux!$BA$1))^(1/($L$3-INDEX($C$3:$L$3,1,aux!$BA$1)))-1,"n.d.") -> 0.05459062434 | AF80: =IF(INDEX($C80:$L80,1,aux!$BA$1)>0,(L80-INDEX($C80:$L80,1,aux!$BA$1))/INDEX($C80:$L80,1,aux!$BA$1),"n.d.") -> 0.613448672 | AH80: =X80-INDEX($O80:$X80,1,aux!$BA$1) -> -540.251 | AI80: -0.001782903116 | AJ80: =+IF(INDEX($O80:$X80,1,aux!$BA$1)>0,(X80/INDEX($O80:$X80,1,aux!$BA$1))^(1/($X$3-INDEX($O$3:$X$3,1,aux!$BA$1)))-1,"n.d.") -> -0.01989878923 | AK80: =IF(INDEX($O80:$X80,1,aux!$BA$1)>0,(X80-INDEX($O80:$X80,1,aux!$BA$1))/INDEX($O80:$X80,1,aux!$BA$1),"n.d.") -> -0.1654769602 | CC80: =+IF(ISNA(MATCH('5.1'!A80,AUX_2d_pais!$G$2:$G$40000,0)),0,1) -> 1
A81: 0011 | B81: Espanha | C81: 1073961.11 | D81: 898279.437 | E81: 967768.768 | F81: 1017268.857 | G81: 993927.866 | H81: 1033505.8 | I81: 1134786.453 | J81: 1194038.806 | K81: 1184713.617 | L81: 1100438.174 | M81: 1059868.889 | N81: 0.5246916531 | O81: 886481.866 | P81: 864888.257 | Q81: 924764.698 | R81: 900085.232 | S81: 912849.346 | T81: 909004.109 | U81: 954863.615 | V81: 1034482.206 | W81: 1059289.253 | X81: 971439.396 | Y81: 941814.7978 | Z81: 0.2321436767 | AA81: -118054.091 | AC81: =L81-INDEX($C81:$L81,1,aux!$BA$1) -> 26477.064 | AD81: -2.940268398 | AE81: =+IF(INDEX($C81:$L81,1,aux!$BA$1)>0,(L81/INDEX($C81:$L81,1,aux!$BA$1))^(1/($L$3-INDEX($C$3:$L$3,1,aux!$BA$1)))-1,"n.d.") -> 0.002709737552 | AF81: =IF(INDEX($C81:$L81,1,aux!$BA$1)>0,(L81-INDEX($C81:$L81,1,aux!$BA$1))/INDEX($C81:$L81,1,aux!$BA$1),"n.d.") -> 0.0246536525 | AH81: =X81-INDEX($O81:$X81,1,aux!$BA$1) -> 84957.53 | AI81: 0.2803716142 | AJ81: =+IF(INDEX($O81:$X81,1,aux!$BA$1)>0,(X81/INDEX($O81:$X81,1,aux!$BA$1))^(1/($X$3-INDEX($O$3:$X$3,1,aux!$BA$1)))-1,"n.d.") -> 0.01022056743 | AK81: =IF(INDEX($O81:$X81,1,aux!$BA$1)>0,(X81-INDEX($O81:$X81,1,aux!$BA$1))/INDEX($O81:$X81,1,aux!$BA$1),"n.d.") -> 0.09583673762 | CC81: =+IF(ISNA(MATCH('5.1'!A81,AUX_2d_pais!$G$2:$G$40000,0)),0,1) -> 1
A82: 0400 | B82: Estados Unidos | C82: 46481.39 | D82: 43833.733 | E82: 40561.107 | F82: 44981.004 | G82: 50572.57 | H82: 46504.963 | I82: 40238.3 | J82: 44522.995 | K82: 45106.305 | L82: 46260.446 | M82: 44906.2813 | N82: 0.02223100538 | O82: 240320.38 | P82: 261465.448 | Q82: 268925.384 | R82: 280696.14 | S82: 336021.028 | T82: 304850.916 | U82: 294316.271 | V82: 315879.483 | W82: 309554.984 | X82: 309395.569 | Y82: 292142.5603 | Z82: 0.07200890049 | AA82: 247236.279 | AC82: =L82-INDEX($C82:$L82,1,aux!$BA$1) -> -220.944 | AD82: 0.02453575143 | AE82: =+IF(INDEX($C82:$L82,1,aux!$BA$1)>0,(L82/INDEX($C82:$L82,1,aux!$BA$1))^(1/($L$3-INDEX($C$3:$L$3,1,aux!$BA$1)))-1,"n.d.") -> -0.0005292731651 | AF82: =IF(INDEX($C82:$L82,1,aux!$BA$1)>0,(L82-INDEX($C82:$L82,1,aux!$BA$1))/INDEX($C82:$L82,1,aux!$BA$1),"n.d.") -> -0.004753386248 | AH82: =X82-INDEX($O82:$X82,1,aux!$BA$1) -> 69075.189 | AI82: 0.2279576895 | AJ82: =+IF(INDEX($O82:$X82,1,aux!$BA$1)>0,(X82/INDEX($O82:$X82,1,aux!$BA$1))^(1/($X$3-INDEX($O$3:$X$3,1,aux!$BA$1)))-1,"n.d.") -> 0.02846969352 | AK82: =IF(INDEX($O82:$X82,1,aux!$BA$1)>0,(X82-INDEX($O82:$X82,1,aux!$BA$1))/INDEX($O82:$X82,1,aux!$BA$1),"n.d.") -> 0.2874295929 | CC82: =+IF(ISNA(MATCH('5.1'!A82,AUX_2d_pais!$G$2:$G$40000,0)),0,1) -> 1
A83: 0053 | B83: Estónia | C83: 1813.454 | D83: 3607.899 | E83: 2821.891 | F83: 3741.44 | G83: 3934.295 | H83: 5462.882 | I83: 5142.443 | J83: 6650.796 | K83: 5673.949 | L83: 5098.599 | M83: 4394.7648 | N83: 0.002175643075 | O83: 3240.552 | P83: 2983.308 | Q83: 4867.828 | R83: 3616.101 | S83: 2630.21 | T83: 3066.302 | U83: 3067.135 | V83: 3214.941 | W83: 3512.717 | X83: 2400.964 | Y83: 3260.0058 | Z83: 0.0008035441088 | AA83: -1134.759 | AC83: =L83-INDEX($C83:$L83,1,aux!$BA$1) -> 3285.145 | AD83: -0.3648141662 | AE83: =+IF(INDEX($C83:$L83,1,aux!$BA$1)>0,(L83/INDEX($C83:$L83,1,aux!$BA$1))^(1/($L$3-INDEX($C$3:$L$3,1,aux!$BA$1)))-1,"n.d.") -> 0.1217154493 | AF83: =IF(INDEX($C83:$L83,1,aux!$BA$1)>0,(L83-INDEX($C83:$L83,1,aux!$BA$1))/INDEX($C83:$L83,1,aux!$BA$1),"n.d.") -> 1.811540298 | AH83: =X83-INDEX($O83:$X83,1,aux!$BA$1) -> -839.588 | AI83: -0.002770756669 | AJ83: =+IF(INDEX($O83:$X83,1,aux!$BA$1)>0,(X83/INDEX($O83:$X83,1,aux!$BA$1))^(1/($X$3-INDEX($O$3:$X$3,1,aux!$BA$1)))-1,"n.d.") -> -0.03277028986 | AK83: =IF(INDEX($O83:$X83,1,aux!$BA$1)>0,(X83-INDEX($O83:$X83,1,aux!$BA$1))/INDEX($O83:$X83,1,aux!$BA$1),"n.d.") -> -0.2590879579 | CC83: =+IF(ISNA(MATCH('5.1'!A83,AUX_2d_pais!$G$2:$G$40000,0)),0,1) -> 1
A84: 0334 | B84: Etiópia | C84: 0 | D84: 0 | E84: 0 | F84: 0 | G84: 0 | H84: 0 | I84: 0 | J84: 0 | K84: 0 | L84: 0 | M84: 0 | N84: 0 | O84: 312.95 | P84: 703.352 | Q84: 1170.174 | R84: 674.637 | S84: 439.803 | T84: 1001.433 | U84: 536.112 | V84: 1478.482 | W84: 3773.313 | X84: 467.988 | Y84: 1055.8244 | Z84: 0.0002602453887 | AA84: 1055.8244 | AC84: =L84-INDEX($C84:$L84,1,aux!$BA$1) -> 0 | AD84: 0 | AE84: =+IF(INDEX($C84:$L84,1,aux!$BA$1)>0,(L84/INDEX($C84:$L84,1,aux!$BA$1))^(1/($L$3-INDEX($C$3:$L$3,1,aux!$BA$1)))-1,"n.d.") -> n.d. | AF84: =IF(INDEX($C84:$L84,1,aux!$BA$1)>0,(L84-INDEX($C84:$L84,1,aux!$BA$1))/INDEX($C84:$L84,1,aux!$BA$1),"n.d.") -> n.d. | AH84: =X84-INDEX($O84:$X84,1,aux!$BA$1) -> 155.038 | AI84: 0.0005116468702 | AJ84: =+IF(INDEX($O84:$X84,1,aux!$BA$1)>0,(X84/INDEX($O84:$X84,1,aux!$BA$1))^(1/($X$3-INDEX($O$3:$X$3,1,aux!$BA$1)))-1,"n.d.") -> 0.04572562724 | AK84: =IF(INDEX($O84:$X84,1,aux!$BA$1)>0,(X84-INDEX($O84:$X84,1,aux!$BA$1))/INDEX($O84:$X84,1,aux!$BA$1),"n.d.") -> 0.4954082122 | CC84: =+IF(ISNA(MATCH('5.1'!A84,AUX_2d_pais!$G$2:$G$40000,0)),0,1) -> 1
A85: 0529 | B85: Falkland Ilhas (Malvinas) | C85: 0 | D85: 0 | E85: 0 | F85: 0 | G85: 0 | H85: 0 | I85: 0 | J85: 0 | K85: 0 | L85: 0 | M85: 0 | N85: 0 | O85: 0 | P85: 0 | Q85: 0 | R85: 0 | S85: 0 | T85: 0 | U85: 0 | V85: 0 | W85: 0 | X85: 0 | Y85: 0 | Z85: 0 | AA85: 0 | AC85: =L85-INDEX($C85:$L85,1,aux!$BA$1) -> 0 | AD85: 0 | AE85: =+IF(INDEX($C85:$L85,1,aux!$BA$1)>0,(L85/INDEX($C85:$L85,1,aux!$BA$1))^(1/($L$3-INDEX($C$3:$L$3,1,aux!$BA$1)))-1,"n.d.") -> n.d. | AF85: =IF(INDEX($C85:$L85,1,aux!$BA$1)>0,(L85-INDEX($C85:$L85,1,aux!$BA$1))/INDEX($C85:$L85,1,aux!$BA$1),"n.d.") -> n.d. | AH85: =X85-INDEX($O85:$X85,1,aux!$BA$1) -> 0 | AI85: 0 | AJ85: =+IF(INDEX($O85:$X85,1,aux!$BA$1)>0,(X85/INDEX($O85:$X85,1,aux!$BA$1))^(1/($X$3-INDEX($O$3:$X$3,1,aux!$BA$1)))-1,"n.d.") -> n.d. | AK85: =IF(INDEX($O85:$X85,1,aux!$BA$1)>0,(X85-INDEX($O85:$X85,1,aux!$BA$1))/INDEX($O85:$X85,1,aux!$BA$1),"n.d.") -> n.d. | AM85: 0 | BO85: 0 | CC85: =+IF(ISNA(MATCH('5.1'!A85,AUX_2d_pais!$G$2:$G$40000,0)),0,1) -> 0
A86: 0041 | B86: Faroé, Ilhas | C86: 0 | D86: 0 | E86: 0 | F86: 0 | G86: 0 | H86: 0 | I86: 0 | J86: 0 | K86: 0 | L86: 0 | M86: 0 | N86: 0 | O86: 0.011 | P86: 0 | Q86: 0 | R86: 0 | S86: 0 | T86: 0.265 | U86: 0.231 | V86: 0.753 | W86: 1.262 | X86: 0.79 | Y86: 0.3312 | Z86: 8.163599243e-08 | AA86: 0.3312 | AC86: =L86-INDEX($C86:$L86,1,aux!$BA$1) -> 0 | AD86: 0 | AE86: =+IF(INDEX($C86:$L86,1,aux!$BA$1)>0,(L86/INDEX($C86:$L86,1,aux!$BA$1))^(1/($L$3-INDEX($C$3:$L$3,1,aux!$BA$1)))-1,"n.d.") -> n.d. | AF86: =IF(INDEX($C86:$L86,1,aux!$BA$1)>0,(L86-INDEX($C86:$L86,1,aux!$BA$1))/INDEX($C86:$L86,1,aux!$BA$1),"n.d.") -> n.d. | AH86: =X86-INDEX($O86:$X86,1,aux!$BA$1) -> 0.779 | AI86: 2.570807879e-06 | AJ86: =+IF(INDEX($O86:$X86,1,aux!$BA$1)>0,(X86/INDEX($O86:$X86,1,aux!$BA$1))^(1/($X$3-INDEX($O$3:$X$3,1,aux!$BA$1)))-1,"n.d.") -> 0.6078601344 | AK86: =IF(INDEX($O86:$X86,1,aux!$BA$1)>0,(X86-INDEX($O86:$X86,1,aux!$BA$1))/INDEX($O86:$X86,1,aux!$BA$1),"n.d.") -> 70.81818182 | BO86: 3.312 | CC86: =+IF(ISNA(MATCH('5.1'!A86,AUX_2d_pais!$G$2:$G$40000,0)),0,1) -> 1
A87: 0815 | B87: Fiji, Ilhas | C87: 0 | D87: 0.24 | E87: 0 | F87: 0.743 | G87: 2.07 | H87: 0 | I87: 0.765 | J87: 0.231 | K87: 0 | L87: 0 | M87: 0.4049 | N87: 2.004471049e-07 | O87: 13.018 | P87: 12.808 | Q87: 0 | R87: 11.876 | S87: 0 | T87: 0 | U87: 16.035 | V87: 19.711 | W87: 0 | X87: 0.186 | Y87: 7.3634 | Z87: 1.814971216e-06 | AA87: 6.9585 | AC87: =L87-INDEX($C87:$L87,1,aux!$BA$1) -> 0 | AD87: 0 | AE87: =+IF(INDEX($C87:$L87,1,aux!$BA$1)>0,(L87/INDEX($C87:$L87,1,aux!$BA$1))^(1/($L$3-INDEX($C$3:$L$3,1,aux!$BA$1)))-1,"n.d.") -> n.d. | AF87: =IF(INDEX($C87:$L87,1,aux!$BA$1)>0,(L87-INDEX($C87:$L87,1,aux!$BA$1))/INDEX($C87:$L87,1,aux!$BA$1),"n.d.") -> n.d. | AH87: =X87-INDEX($O87:$X87,1,aux!$BA$1) -> -12.832 | AI87: -4.234737702e-05 | AJ87: =+IF(INDEX($O87:$X87,1,aux!$BA$1)>0,(X87/INDEX($O87:$X87,1,aux!$BA$1))^(1/($X$3-INDEX($O$3:$X$3,1,aux!$BA$1)))-1,"n.d.") -> -0.376270163 | AK87: =IF(INDEX($O87:$X87,1,aux!$BA$1)>0,(X87-INDEX($O87:$X87,1,aux!$BA$1))/INDEX($O87:$X87,1,aux!$BA$1),"n.d.") -> -0.985712091 | BO87: 77.683 | CC87: =+IF(ISNA(MATCH('5.1'!A87,AUX_2d_pais!$G$2:$G$40000,0)),0,1) -> 1
A88: 0708 | B88: Filipinas | C88: 27.883 | D88: 23.693 | E88: 25.252 | F88: 41.998 | G88: 49.417 | H88: 58.029 | I88: 43.645 | J88: 54.328 | K88: 34.784 | L88: 21.596 | M88: 38.0625 | N88: 1.884296846e-05 | O88: 888.657 | P88: 861.739 | Q88: 710.363 | R88: 979.936 | S88: 1155.887 | T88: 1049.845 | U88: 1196.366 | V88: 1607.432 | W88: 1450.622 | X88: 861.257 | Y88: 1076.2104 | Z88: 0.0002652702418 | AA88: 1038.1479 | AC88: =L88-INDEX($C88:$L88,1,aux!$BA$1) -> -6.287 | AD88: 0.0006981690802 | AE88: =+IF(INDEX($C88:$L88,1,aux!$BA$1)>0,(L88/INDEX($C88:$L88,1,aux!$BA$1))^(1/($L$3-INDEX($C$3:$L$3,1,aux!$BA$1)))-1,"n.d.") -> -0.02799069047 | AF88: =IF(INDEX($C88:$L88,1,aux!$BA$1)>0,(L88-INDEX($C88:$L88,1,aux!$BA$1))/INDEX($C88:$L88,1,aux!$BA$1),"n.d.") -> -0.2254778898 | AH88: =X88-INDEX($O88:$X88,1,aux!$BA$1) -> -27.4 | AI88: -9.042379444e-05 | AJ88: =+IF(INDEX($O88:$X88,1,aux!$BA$1)>0,(X88/INDEX($O88:$X88,1,aux!$BA$1))^(1/($X$3-INDEX($O$3:$X$3,1,aux!$BA$1)))-1,"n.d.") -> -0.003473772917 | AK88: =IF(INDEX($O88:$X88,1,aux!$BA$1)>0,(X88-INDEX($O88:$X88,1,aux!$BA$1))/INDEX($O88:$X88,1,aux!$BA$1),"n.d.") -> -0.03083304357 | CC88: =+IF(ISNA(MATCH('5.1'!A88,AUX_2d_pais!$G$2:$G$40000,0)),0,1) -> 1
A89: 0032 | B89: Finlândia | C89: 43049.725 | D89: 37119.11 | E89: 36355.896 | F89: 46321.698 | G89: 66543.586 | H89: 57607.914 | I89: 70349.473 | J89: 55274.481 | K89: 58560.896 | L89: 53577.691 | M89: 52476.047 | N89: 0.02597844331 | O89: 7767.677 | P89: 6763.637 | Q89: 8004.785 | R89: 7013.306 | S89: 6801.709 | T89: 9379.987 | U89: 9091.141 | V89: 12476.01 | W89: 9068.931 | X89: 7132.133 | Y89: 8349.9316 | Z89: 0.002058136935 | AA89: -44126.1154 | AC89: =L89-INDEX($C89:$L89,1,aux!$BA$1) -> 10527.966 | AD89: -1.169126823 | AE89: =+IF(INDEX($C89:$L89,1,aux!$BA$1)>0,(L89/INDEX($C89:$L89,1,aux!$BA$1))^(1/($L$3-INDEX($C$3:$L$3,1,aux!$BA$1)))-1,"n.d.") -> 0.02460640868 | AF89: =IF(INDEX($C89:$L89,1,aux!$BA$1)>0,(L89-INDEX($C89:$L89,1,aux!$BA$1))/INDEX($C89:$L89,1,aux!$BA$1),"n.d.") -> 0.2445536179 | AH89: =X89-INDEX($O89:$X89,1,aux!$BA$1) -> -635.544 | AI89: -0.002097383212 | AJ89: =+IF(INDEX($O89:$X89,1,aux!$BA$1)>0,(X89/INDEX($O89:$X89,1,aux!$BA$1))^(1/($X$3-INDEX($O$3:$X$3,1,aux!$BA$1)))-1,"n.d.") -> -0.009439697131 | AK89: =IF(INDEX($O89:$X89,1,aux!$BA$1)>0,(X89-INDEX($O89:$X89,1,aux!$BA$1))/INDEX($O89:$X89,1,aux!$BA$1),"n.d.") -> -0.08181905607 | CC89: =+IF(ISNA(MATCH('5.1'!A89,AUX_2d_pais!$G$2:$G$40000,0)),0,1) -> 1
A90: 0001 | B90: França | C90: 129591.295 | D90: 117078.614 | E90: 115712.675 | F90: 119790.555 | G90: 125724.118 | H90: 123952.355 | I90: 136826.945 | J90: 159171.741 | K90: 135486.391 | L90: 122495.124 | M90: 128582.9813 | N90: 0.06365543675 | O90: 435468.026 | P90: 444094.542 | Q90: 437966.784 | R90: 437317.576 | S90: 439088.308 | T90: 475284.936 | U90: 510600.054 | V90: 527209.004 | W90: 535030.277 | X90: 470638.683 | Y90: 471269.819 | Z90: 0.1161611696 | AA90: 342686.8377 | AC90: =L90-INDEX($C90:$L90,1,aux!$BA$1) -> -7096.171 | AD90: 0.7880272276 | AE90: =+IF(INDEX($C90:$L90,1,aux!$BA$1)>0,(L90/INDEX($C90:$L90,1,aux!$BA$1))^(1/($L$3-INDEX($C$3:$L$3,1,aux!$BA$1)))-1,"n.d.") -> -0.006237619037 | AF90: =IF(INDEX($C90:$L90,1,aux!$BA$1)>0,(L90-INDEX($C90:$L90,1,aux!$BA$1))/INDEX($C90:$L90,1,aux!$BA$1),"n.d.") -> -0.05475808387 | AH90: =X90-INDEX($O90:$X90,1,aux!$BA$1) -> 35170.657 | AI90: 0.1160680387 | AJ90: =+IF(INDEX($O90:$X90,1,aux!$BA$1)>0,(X90/INDEX($O90:$X90,1,aux!$BA$1))^(1/($X$3-INDEX($O$3:$X$3,1,aux!$BA$1)))-1,"n.d.") -> 0.008667267094 | AK90: =IF(INDEX($O90:$X90,1,aux!$BA$1)>0,(X90-INDEX($O90:$X90,1,aux!$BA$1))/INDEX($O90:$X90,1,aux!$BA$1),"n.d.") -> 0.08076518803 | CC90: =+IF(ISNA(MATCH('5.1'!A90,AUX_2d_pais!$G$2:$G$40000,0)),0,1) -> 1
A91: 0314 | B91: Gabão | C91: 3537.913 | D91: 1682.535 | E91: 2531.669 | F91: 1914.978 | G91: 3483.739 | H91: 3425.94 | I91: 2940.069 | J91: 2562.928 | K91: 2446.478 | L91: 2301.49 | M91: 2682.7739 | N91: 0.00132811623 | O91: 300.635 | P91: 214.778 | Q91: 409.212 | R91: 520.779 | S91: 666.031 | T91: 458.85 | U91: 312.686 | V91: 241.526 | W91: 292.519 | X91: 581.69 | Y91: 399.8706 | Z91: 9.856229854e-05 | AA91: -2282.9033 | AC91: =L91-INDEX($C91:$L91,1,aux!$BA$1) -> -1236.423 | AD91: 0.1373043278 | AE91: =+IF(INDEX($C91:$L91,1,aux!$BA$1)>0,(L91/INDEX($C91:$L91,1,aux!$BA$1))^(1/($L$3-INDEX($C$3:$L$3,1,aux!$BA$1)))-1,"n.d.") -> -0.04665229151 | AF91: =IF(INDEX($C91:$L91,1,aux!$BA$1)>0,(L91-INDEX($C91:$L91,1,aux!$BA$1))/INDEX($C91:$L91,1,aux!$BA$1),"n.d.") -> -0.349478068 | AH91: =X91-INDEX($O91:$X91,1,aux!$BA$1) -> 281.055 | AI91: 0.0009275204214 | AJ91: =+IF(INDEX($O91:$X91,1,aux!$BA$1)>0,(X91/INDEX($O91:$X91,1,aux!$BA$1))^(1/($X$3-INDEX($O$3:$X$3,1,aux!$BA$1)))-1,"n.d.") -> 0.07609404648 | AK91: =IF(INDEX($O91:$X91,1,aux!$BA$1)>0,(X91-INDEX($O91:$X91,1,aux!$BA$1))/INDEX($O91:$X91,1,aux!$BA$1),"n.d.") -> 0.9348711893 | CC91: =+IF(ISNA(MATCH('5.1'!A91,AUX_2d_pais!$G$2:$G$40000,0)),0,1) -> 1
A92: 0252 | B92: Gâmbia | C92: 0 | D92: 0 | E92: 0 | F92: 0 | G92: 0 | H92: 0 | I92: 0 | J92: 0 | K92: 0 | L92: 0 | M92: 0 | N92: 0 | O92: 4.993 | P92: 14.307 | Q92: 108.818 | R92: 73.041 | S92: 88.148 | T92: 4.329 | U92: 20.438 | V92: 13.333 | W92: 45.56 | X92: 0.15 | Y92: 37.3117 | Z92: 9.196792448e-06 | AA92: 37.3117 | AC92: =L92-INDEX($C92:$L92,1,aux!$BA$1) -> 0 | AD92: 0 | AE92: =+IF(INDEX($C92:$L92,1,aux!$BA$1)>0,(L92/INDEX($C92:$L92,1,aux!$BA$1))^(1/($L$3-INDEX($C$3:$L$3,1,aux!$BA$1)))-1,"n.d.") -> n.d. | AF92: =IF(INDEX($C92:$L92,1,aux!$BA$1)>0,(L92-INDEX($C92:$L92,1,aux!$BA$1))/INDEX($C92:$L92,1,aux!$BA$1),"n.d.") -> n.d. | AH92: =X92-INDEX($O92:$X92,1,aux!$BA$1) -> -4.843 | AI92: -1.598257068e-05 | AJ92: =+IF(INDEX($O92:$X92,1,aux!$BA$1)>0,(X92/INDEX($O92:$X92,1,aux!$BA$1))^(1/($X$3-INDEX($O$3:$X$3,1,aux!$BA$1)))-1,"n.d.") -> -0.3225786893 | AK92: =IF(INDEX($O92:$X92,1,aux!$BA$1)>0,(X92-INDEX($O92:$X92,1,aux!$BA$1))/INDEX($O92:$X92,1,aux!$BA$1),"n.d.") -> -0.9699579411 | CC92: =+IF(ISNA(MATCH('5.1'!A92,AUX_2d_pais!$G$2:$G$40000,0)),0,1) -> 1
A93: 0276 | B93: Gana | C93: 195.729 | D93: 201.177 | E93: 111.536 | F93: 58.721 | G93: 310.571 | H93: 199.277 | I93: 281.307 | J93: 570.937 | K93: 647.678 | L93: 331.43 | M93: 290.8363 | N93: 0.0001439794871 | O93: 1004.86 | P93: 1805.634 | Q93: 1926.332 | R93: 2019.755 | S93: 3676.31 | T93: 3578.412 | U93: 1243.705 | V93: 3580.45 | W93: 4835.002 | X93: 2614.306 | Y93: 2628.4766 | Z93: 0.000647881328 | AA93: 2337.6403 | AC93: =L93-INDEX($C93:$L93,1,aux!$BA$1) -> 135.701 | AD93: -0.01506954706 | AE93: =+IF(INDEX($C93:$L93,1,aux!$BA$1)>0,(L93/INDEX($C93:$L93,1,aux!$BA$1))^(1/($L$3-INDEX($C$3:$L$3,1,aux!$BA$1)))-1,"n.d.") -> 0.06026684776 | AF93: =IF(INDEX($C93:$L93,1,aux!$BA$1)>0,(L93-INDEX($C93:$L93,1,aux!$BA$1))/INDEX($C93:$L93,1,aux!$BA$1),"n.d.") -> 0.6933106489 | AH93: =X93-INDEX($O93:$X93,1,aux!$BA$1) -> 1609.446 | AI93: 0.005311394682 | AJ93: =+IF(INDEX($O93:$X93,1,aux!$BA$1)>0,(X93/INDEX($O93:$X93,1,aux!$BA$1))^(1/($X$3-INDEX($O$3:$X$3,1,aux!$BA$1)))-1,"n.d.") -> 0.1120875647 | AK93: =IF(INDEX($O93:$X93,1,aux!$BA$1)>0,(X93-INDEX($O93:$X93,1,aux!$BA$1))/INDEX($O93:$X93,1,aux!$BA$1),"n.d.") -> 1.601661923 | CC93: =+IF(ISNA(MATCH('5.1'!A93,AUX_2d_pais!$G$2:$G$40000,0)),0,1) -> 1
A94: 0076 | B94: Geórgia | C94: 0 | D94: 20.306 | E94: 5.82 | F94: 65.397 | G94: 0 | H94: 34.861 | I94: 0 | J94: 0 | K94: 32.415 | L94: 29.332 | M94: 18.8131 | N94: 9.313488341e-06 | O94: 2174.734 | P94: 2461.802 | Q94: 5385.214 | R94: 4699.307 | S94: 4821.2 | T94: 5013.519 | U94: 5727.638 | V94: 7138.821 | W94: 6595.106 | X94: 5943.433 | Y94: 4996.0774 | Z94: 0.001231460558 | AA94: 4977.2643 | AC94: =L94-INDEX($C94:$L94,1,aux!$BA$1) -> 29.332 | AD94: -0.00325730801 | AE94: =+IF(INDEX($C94:$L94,1,aux!$BA$1)>0,(L94/INDEX($C94:$L94,1,aux!$BA$1))^(1/($L$3-INDEX($C$3:$L$3,1,aux!$BA$1)))-1,"n.d.") -> n.d. | AF94: =IF(INDEX($C94:$L94,1,aux!$BA$1)>0,(L94-INDEX($C94:$L94,1,aux!$BA$1))/INDEX($C94:$L94,1,aux!$BA$1),"n.d.") -> n.d. | AH94: =X94-INDEX($O94:$X94,1,aux!$BA$1) -> 3768.699 | AI94: 0.0124372286 | AJ94: =+IF(INDEX($O94:$X94,1,aux!$BA$1)>0,(X94/INDEX($O94:$X94,1,aux!$BA$1))^(1/($X$3-INDEX($O$3:$X$3,1,aux!$BA$1)))-1,"n.d.") -> 0.1181873654 | AK94: =IF(INDEX($O94:$X94,1,aux!$BA$1)>0,(X94-INDEX($O94:$X94,1,aux!$BA$1))/INDEX($O94:$X94,1,aux!$BA$1),"n.d.") -> 1.73294711 | CC94: =+IF(ISNA(MATCH('5.1'!A94,AUX_2d_pais!$G$2:$G$40000,0)),0,1) -> 1
A95: 0893 | B95: Geórgia do Sul e Ilhas Sandwich do Sul | C95: 0 | D95: 0 | E95: 0 | F95: 0 | G95: 0 | H95: 0 | I95: 0 | J95: 0 | K95: 0 | L95: 0 | M95: 0 | N95: 0 | O95: 0 | P95: 0 | Q95: 0 | R95: 0 | S95: 0 | T95: 0 | U95: 0 | V95: 0 | W95: 0 | X95: 0 | Y95: 0 | Z95: 0 | AA95: 0 | AC95: =L95-INDEX($C95:$L95,1,aux!$BA$1) -> 0 | AD95: 0 | AE95: =+IF(INDEX($C95:$L95,1,aux!$BA$1)>0,(L95/INDEX($C95:$L95,1,aux!$BA$1))^(1/($L$3-INDEX($C$3:$L$3,1,aux!$BA$1)))-1,"n.d.") -> n.d. | AF95: =IF(INDEX($C95:$L95,1,aux!$BA$1)>0,(L95-INDEX($C95:$L95,1,aux!$BA$1))/INDEX($C95:$L95,1,aux!$BA$1),"n.d.") -> n.d. | AH95: =X95-INDEX($O95:$X95,1,aux!$BA$1) -> 0 | AI95: 0 | AJ95: =+IF(INDEX($O95:$X95,1,aux!$BA$1)>0,(X95/INDEX($O95:$X95,1,aux!$BA$1))^(1/($X$3-INDEX($O$3:$X$3,1,aux!$BA$1)))-1,"n.d.") -> n.d. | AK95: =IF(INDEX($O95:$X95,1,aux!$BA$1)>0,(X95-INDEX($O95:$X95,1,aux!$BA$1))/INDEX($O95:$X95,1,aux!$BA$1),"n.d.") -> n.d. | AM95: 0 | BO95: 0 | CC95: =+IF(ISNA(MATCH('5.1'!A95,AUX_2d_pais!$G$2:$G$40000,0)),0,1) -> 0
A96: 0044 | B96: Gibraltar | C96: 5.017 | D96: 0 | E96: 0 | F96: 0 | G96: 1.5 | H96: 0.818 | I96: 0 | J96: 9.504 | K96: 25.344 | L96: 0 | M96: 4.2183 | N96: 2.088283583e-06 | O96: 64.637 | P96: 63.126 | Q96: 83.456 | R96: 278.234 | S96: 180.036 | T96: 150.235 | U96: 105.676 | V96: 416.909 | W96: 720.22 | X96: 169.088 | Y96: 223.1617 | Z96: 5.500611972e-05 | AA96: 218.9434 | AC96: =L96-INDEX($C96:$L96,1,aux!$BA$1) -> -5.017 | AD96: 0.0005571360387 | AE96: =+IF(INDEX($C96:$L96,1,aux!$BA$1)>0,(L96/INDEX($C96:$L96,1,aux!$BA$1))^(1/($L$3-INDEX($C$3:$L$3,1,aux!$BA$1)))-1,"n.d.") -> -1 | AF96: =IF(INDEX($C96:$L96,1,aux!$BA$1)>0,(L96-INDEX($C96:$L96,1,aux!$BA$1))/INDEX($C96:$L96,1,aux!$BA$1),"n.d.") -> -1 | AH96: =X96-INDEX($O96:$X96,1,aux!$BA$1) -> 104.451 | AI96: 0.0003447027647 | AJ96: =+IF(INDEX($O96:$X96,1,aux!$BA$1)>0,(X96/INDEX($O96:$X96,1,aux!$BA$1))^(1/($X$3-INDEX($O$3:$X$3,1,aux!$BA$1)))-1,"n.d.") -> 0.1127651368 | AK96: =IF(INDEX($O96:$X96,1,aux!$BA$1)>0,(X96-INDEX($O96:$X96,1,aux!$BA$1))/INDEX($O96:$X96,1,aux!$BA$1),"n.d.") -> 1.615962993 | CC96: =+IF(ISNA(MATCH('5.1'!A96,AUX_2d_pais!$G$2:$G$40000,0)),0,1) -> 1
A97: 0473 | B97: Granada | C97: 0 | D97: 0 | E97: 0 | F97: 0 | G97: 0 | H97: 0 | I97: 0 | J97: 0 | K97: 0 | L97: 0 | M97: 0 | N97: 0 | O97: 6.746 | P97: 0 | Q97: 0 | R97: 0 | S97: 0.508 | T97: 0 | U97: 0 | V97: 0 | W97: 0.504 | X97: 0 | Y97: 0.7758 | Z97: 1.912234388e-07 | AA97: 0.7758 | AC97: =L97-INDEX($C97:$L97,1,aux!$BA$1) -> 0 | AD97: 0 | AE97: =+IF(INDEX($C97:$L97,1,aux!$BA$1)>0,(L97/INDEX($C97:$L97,1,aux!$BA$1))^(1/($L$3-INDEX($C$3:$L$3,1,aux!$BA$1)))-1,"n.d.") -> n.d. | AF97: =IF(INDEX($C97:$L97,1,aux!$BA$1)>0,(L97-INDEX($C97:$L97,1,aux!$BA$1))/INDEX($C97:$L97,1,aux!$BA$1),"n.d.") -> n.d. | AH97: =X97-INDEX($O97:$X97,1,aux!$BA$1) -> -6.746 | AI97: -2.226273421e-05 | AJ97: =+IF(INDEX($O97:$X97,1,aux!$BA$1)>0,(X97/INDEX($O97:$X97,1,aux!$BA$1))^(1/($X$3-INDEX($O$3:$X$3,1,aux!$BA$1)))-1,"n.d.") -> -1 | AK97: =IF(INDEX($O97:$X97,1,aux!$BA$1)>0,(X97-INDEX($O97:$X97,1,aux!$BA$1))/INDEX($O97:$X97,1,aux!$BA$1),"n.d.") -> -1 | BO97: 7.758 | CC97: =+IF(ISNA(MATCH('5.1'!A97,AUX_2d_pais!$G$2:$G$40000,0)),0,1) -> 1
A98: 0009 | B98: Grécia | C98: 1100.864 | D98: 613.494 | E98: 1226.929 | F98: 1273.159 | G98: 1410.583 | H98: 1359.643 | I98: 981.604 | J98: 1548.115 | K98: 2282.517 | L98: 1243.832 | M98: 1304.074 | N98: 0.0006455862136 | O98: 17421.662 | P98: 17174.483 | Q98: 20836.715 | R98: 18031.206 | S98: 17901.218 | T98: 17227.427 | U98: 21388.105 | V98: 20373.769 | W98: 28348.848 | X98: 23354.591 | Y98: 20205.8024 | Z98: 0.004980436992 | AA98: 18901.7284 | AC98: =L98-INDEX($C98:$L98,1,aux!$BA$1) -> 142.968 | AD98: -0.01587654478 | AE98: =+IF(INDEX($C98:$L98,1,aux!$BA$1)>0,(L98/INDEX($C98:$L98,1,aux!$BA$1))^(1/($L$3-INDEX($C$3:$L$3,1,aux!$BA$1)))-1,"n.d.") -> 0.01365929291 | AF98: =IF(INDEX($C98:$L98,1,aux!$BA$1)>0,(L98-INDEX($C98:$L98,1,aux!$BA$1))/INDEX($C98:$L98,1,aux!$BA$1),"n.d.") -> 0.129868903 | AH98: =X98-INDEX($O98:$X98,1,aux!$BA$1) -> 5932.929 | AI98: 0.01957948731 | AJ98: =+IF(INDEX($O98:$X98,1,aux!$BA$1)>0,(X98/INDEX($O98:$X98,1,aux!$BA$1))^(1/($X$3-INDEX($O$3:$X$3,1,aux!$BA$1)))-1,"n.d.") -> 0.03310037756 | AK98: =IF(INDEX($O98:$X98,1,aux!$BA$1)>0,(X98-INDEX($O98:$X98,1,aux!$BA$1))/INDEX($O98:$X98,1,aux!$BA$1),"n.d.") -> 0.3405489671 | CC98: =+IF(ISNA(MATCH('5.1'!A98,AUX_2d_pais!$G$2:$G$40000,0)),0,1) -> 1
A99: 0406 | B99: Gronelândia | C99: 0 | D99: 0 | E99: 0 | F99: 0 | G99: 0 | H99: 0 | I99: 0 | J99: 0 | K99: 0 | L99: 0 | M99: 0 | N99: 0 | O99: 0 | P99: 0 | Q99: 0 | R99: 0 | S99: 0 | T99: 0 | U99: 0 | V99: 0 | W99: 0.377 | X99: 0.153 | Y99: 0.053 | Z99: 1.306373067e-08 | AA99: 0.053 | AC99: =L99-INDEX($C99:$L99,1,aux!$BA$1) -> 0 | AD99: 0 | AE99: =+IF(INDEX($C99:$L99,1,aux!$BA$1)>0,(L99/INDEX($C99:$L99,1,aux!$BA$1))^(1/($L$3-INDEX($C$3:$L$3,1,aux!$BA$1)))-1,"n.d.") -> n.d. | AF99: =IF(INDEX($C99:$L99,1,aux!$BA$1)>0,(L99-INDEX($C99:$L99,1,aux!$BA$1))/INDEX($C99:$L99,1,aux!$BA$1),"n.d.") -> n.d. | AH99: =X99-INDEX($O99:$X99,1,aux!$BA$1) -> 0.153 | AI99: 5.04921188e-07 | AJ99: =+IF(INDEX($O99:$X99,1,aux!$BA$1)>0,(X99/INDEX($O99:$X99,1,aux!$BA$1))^(1/($X$3-INDEX($O$3:$X$3,1,aux!$BA$1)))-1,"n.d.") -> n.d. | AK99: =IF(INDEX($O99:$X99,1,aux!$BA$1)>0,(X99-INDEX($O99:$X99,1,aux!$BA$1))/INDEX($O99:$X99,1,aux!$BA$1),"n.d.") -> n.d. | BO99: 0.53 | CC99: =+IF(ISNA(MATCH('5.1'!A99,AUX_2d_pais!$G$2:$G$40000,0)),0,1) -> 1
A100: 0458 | B100: Guadalupe | C100: 0 | D100: 0 | E100: 0 | F100: 0 | G100: 0 | H100: 0 | I100: 0 | J100: 0 | K100: 0 | L100: 0 | M100: 0 | N100: 0 | O100: 0 | P100: 0 | Q100: 0 | R100: 0 | S100: 0 | T100: 0 | U100: 0 | V100: 0 | W100: 0 | X100: 0 | Y100: 0 | Z100: 0 | AA100: 0 | AC100: =L100-INDEX($C100:$L100,1,aux!$BA$1) -> 0 | AD100: =AC100/$AC$252 -> 0 | AE100: =+IF(INDEX($C100:$L100,1,aux!$BA$1)>0,(L100/INDEX($C100:$L100,1,aux!$BA$1))^(1/($L$3-INDEX($C$3:$L$3,1,aux!$BA$1)))-1,"n.d.") -> n.d. | AF100: =IF(INDEX($C100:$L100,1,aux!$BA$1)>0,(L100-INDEX($C100:$L100,1,aux!$BA$1))/INDEX($C100:$L100,1,aux!$BA$1),"n.d.") -> n.d. | AH100: =X100-INDEX($O100:$X100,1,aux!$BA$1) -> 0 | AI100: =AH100/$AH$252 -> 0 | AJ100: =+IF(INDEX($O100:$X100,1,aux!$BA$1)>0,(X100/INDEX($O100:$X100,1,aux!$BA$1))^(1/($X$3-INDEX($O$3:$X$3,1,aux!$BA$1)))-1,"n.d.") -> n.d. | AK100: =IF(INDEX($O100:$X100,1,aux!$BA$1)>0,(X100-INDEX($O100:$X100,1,aux!$BA$1))/INDEX($O100:$X100,1,aux!$BA$1),"n.d.") -> n.d. | AM100: 0 | BO100: 0 | CC100: =+IF(ISNA(MATCH('5.1'!A100,AUX_2d_pais!$G$2:$G$40000,0)),0,1) -> 0
A101: 0831 | B101: Guam | C101: 0 | D101: 0 | E101: 0 | F101: 0 | G101: 0 | H101: 0 | I101: 0 | J101: 0 | K101: 0 | L101: 0 | M101: 0 | N101: 0 | O101: 0 | P101: 0 | Q101: 0 | R101: 0 | S101: 0 | T101: 0 | U101: 0 | V101: 0.086 | W101: 0 | X101: 0 | Y101: 0.0086 | Z101: 2.119775166e-09 | AA101: 0.0086 | AC101: =L101-INDEX($C101:$L101,1,aux!$BA$1) -> 0 | AD101: =AC101/$AC$252 -> 0 | AE101: =+IF(INDEX($C101:$L101,1,aux!$BA$1)>0,(L101/INDEX($C101:$L101,1,aux!$BA$1))^(1/($L$3-INDEX($C$3:$L$3,1,aux!$BA$1)))-1,"n.d.") -> n.d. | AF101: =IF(INDEX($C101:$L101,1,aux!$BA$1)>0,(L101-INDEX($C101:$L101,1,aux!$BA$1))/INDEX($C101:$L101,1,aux!$BA$1),"n.d.") -> n.d. | AH101: =X101-INDEX($O101:$X101,1,aux!$BA$1) -> 0 | AI101: =AH101/$AH$252 -> 0 | AJ101: =+IF(INDEX($O101:$X101,1,aux!$BA$1)>0,(X101/INDEX($O101:$X101,1,aux!$BA$1))^(1/($X$3-INDEX($O$3:$X$3,1,aux!$BA$1)))-1,"n.d.") -> n.d. | AK101: =IF(INDEX($O101:$X101,1,aux!$BA$1)>0,(X101-INDEX($O101:$X101,1,aux!$BA$1))/INDEX($O101:$X101,1,aux!$BA$1),"n.d.") -> n.d. | BO101: 0.086 | CC101: =+IF(ISNA(MATCH('5.1'!A101,AUX_2d_pais!$G$2:$G$40000,0)),0,1) -> 1
A102: 0416 | B102: Guatemala | C102: 2.942 | D102: 0.974 | E102: 1.67 | F102: 0 | G102: 2.275 | H102: 3.945 | I102: 4.259 | J102: 24.347 | K102: 4.687 | L102: 10.227 | M102: 5.5326 | N102: 2.738932212e-06 | O102: 797.95 | P102: 1060.048 | Q102: 877.983 | R102: 1013.712 | S102: 1213.706 | T102: 2002.285 | U102: 2444.356 | V102: 5041.883 | W102: 5503.769 | X102: 4342.29 | Y102: 2429.7982 | Z102: 0.0005989099863 | AA102: 2424.2656 | AC102: =L102-INDEX($C102:$L102,1,aux!$BA$1) -> 7.285 | AD102: -0.0008089966199 | AE102: =+IF(INDEX($C102:$L102,1,aux!$BA$1)>0,(L102/INDEX($C102:$L102,1,aux!$BA$1))^(1/($L$3-INDEX($C$3:$L$3,1,aux!$BA$1)))-1,"n.d.") -> 0.1484784303 | AF102: =IF(INDEX($C102:$L102,1,aux!$BA$1)>0,(L102-INDEX($C102:$L102,1,aux!$BA$1))/INDEX($C102:$L102,1,aux!$BA$1),"n.d.") -> 2.476206662 | AH102: =X102-INDEX($O102:$X102,1,aux!$BA$1) -> 3544.34 | AI102: 0.01169681283 | AJ102: =+IF(INDEX($O102:$X102,1,aux!$BA$1)>0,(X102/INDEX($O102:$X102,1,aux!$BA$1))^(1/($X$3-INDEX($O$3:$X$3,1,aux!$BA$1)))-1,"n.d.") -> 0.2071166447 | AK102: =IF(INDEX($O102:$X102,1,aux!$BA$1)>0,(X102-INDEX($O102:$X102,1,aux!$BA$1))/INDEX($O102:$X102,1,aux!$BA$1),"n.d.") -> 4.441807131 | CC102: =+IF(ISNA(MATCH('5.1'!A102,AUX_2d_pais!$G$2:$G$40000,0)),0,1) -> 1
A103: 0488 | B103: Guiana | C103: 0 | D103: 0 | E103: 0 | F103: 0 | G103: 0 | H103: 0 | I103: 0 | J103: 0 | K103: 0 | L103: 0 | M103: 0 | N103: 0 | O103: 193.95 | P103: 85.7 | Q103: 79.618 | R103: 123.32 | S103: 184.476 | T103: 288.8 | U103: 232.623 | V103: 191.64 | W103: 223.888 | X103: 18.408 | Y103: 162.2423 | Z103: 3.999037191e-05 | AA103: 162.2423 | AC103: =L103-INDEX($C103:$L103,1,aux!$BA$1) -> 0 | AD103: 0 | AE103: =+IF(INDEX($C103:$L103,1,aux!$BA$1)>0,(L103/INDEX($C103:$L103,1,aux!$BA$1))^(1/($L$3-INDEX($C$3:$L$3,1,aux!$BA$1)))-1,"n.d.") -> n.d. | AF103: =IF(INDEX($C103:$L103,1,aux!$BA$1)>0,(L103-INDEX($C103:$L103,1,aux!$BA$1))/INDEX($C103:$L103,1,aux!$BA$1),"n.d.") -> n.d. | AH103: =X103-INDEX($O103:$X103,1,aux!$BA$1) -> -175.542 | AI103: -0.0005793129096 | AJ103: =+IF(INDEX($O103:$X103,1,aux!$BA$1)>0,(X103/INDEX($O103:$X103,1,aux!$BA$1))^(1/($X$3-INDEX($O$3:$X$3,1,aux!$BA$1)))-1,"n.d.") -> -0.2302166102 | AK103: =IF(INDEX($O103:$X103,1,aux!$BA$1)>0,(X103-INDEX($O103:$X103,1,aux!$BA$1))/INDEX($O103:$X103,1,aux!$BA$1),"n.d.") -> -0.9050889404 | BO103: 1622.423 | CC103: =+IF(ISNA(MATCH('5.1'!A103,AUX_2d_pais!$G$2:$G$40000,0)),0,1) -> 1
A104: 0496 | B104: Guiana Francesa | C104: 0 | D104: 0 | E104: 0 | F104: 0 | G104: 0 | H104: 0 | I104: 0 | J104: 0 | K104: 0 | L104: 0 | M104: 0 | N104: 0 | O104: 0 | P104: 0 | Q104: 0 | R104: 0 | S104: 0 | T104: 0 | U104: 0 | V104: 0 | W104: 0 | X104: 0 | Y104: 0 | Z104: 0 | AA104: 0 | AC104: =L104-INDEX($C104:$L104,1,aux!$BA$1) -> 0 | AD104: 0 | AE104: =+IF(INDEX($C104:$L104,1,aux!$BA$1)>0,(L104/INDEX($C104:$L104,1,aux!$BA$1))^(1/($L$3-INDEX($C$3:$L$3,1,aux!$BA$1)))-1,"n.d.") -> n.d. | AF104: =IF(INDEX($C104:$L104,1,aux!$BA$1)>0,(L104-INDEX($C104:$L104,1,aux!$BA$1))/INDEX($C104:$L104,1,aux!$BA$1),"n.d.") -> n.d. | AH104: =X104-INDEX($O104:$X104,1,aux!$BA$1) -> 0 | AI104: 0 | AJ104: =+IF(INDEX($O104:$X104,1,aux!$BA$1)>0,(X104/INDEX($O104:$X104,1,aux!$BA$1))^(1/($X$3-INDEX($O$3:$X$3,1,aux!$BA$1)))-1,"n.d.") -> n.d. | AK104: =IF(INDEX($O104:$X104,1,aux!$BA$1)>0,(X104-INDEX($O104:$X104,1,aux!$BA$1))/INDEX($O104:$X104,1,aux!$BA$1),"n.d.") -> n.d. | AM104: 0 | BO104: 0 | CC104: =+IF(ISNA(MATCH('5.1'!A104,AUX_2d_pais!$G$2:$G$40000,0)),0,1) -> 0
A105: 0260 | B105: Guiné | C105: 0.103 | D105: 0 | E105: 0 | F105: 0.838 | G105: 3.457 | H105: 0 | I105: 0.037 | J105: 0.045 | K105: 3.37 | L105: 0 | M105: 0.785 | N105: 3.886168865e-07 | O105: 767.29 | P105: 903.215 | Q105: 1494.135 | R105: 1275.358 | S105: 646.869 | T105: 505.214 | U105: 171.564 | V105: 304.884 | W105: 288.859 | X105: 140.809 | Y105: 649.8197 | Z105: 0.0001601711235 | AA105: 649.0347 | AC105: =L105-INDEX($C105:$L105,1,aux!$BA$1) -> -0.103 | AD105: 1.143811281e-05 | AE105: =+IF(INDEX($C105:$L105,1,aux!$BA$1)>0,(L105/INDEX($C105:$L105,1,aux!$BA$1))^(1/($L$3-INDEX($C$3:$L$3,1,aux!$BA$1)))-1,"n.d.") -> -1 | AF105: =IF(INDEX($C105:$L105,1,aux!$BA$1)>0,(L105-INDEX($C105:$L105,1,aux!$BA$1))/INDEX($C105:$L105,1,aux!$BA$1),"n.d.") -> -1 | AH105: =X105-INDEX($O105:$X105,1,aux!$BA$1) -> -626.481 | AI105: -0.002067474057 | AJ105: =+IF(INDEX($O105:$X105,1,aux!$BA$1)>0,(X105/INDEX($O105:$X105,1,aux!$BA$1))^(1/($X$3-INDEX($O$3:$X$3,1,aux!$BA$1)))-1,"n.d.") -> -0.1717038306 | AK105: =IF(INDEX($O105:$X105,1,aux!$BA$1)>0,(X105-INDEX($O105:$X105,1,aux!$BA$1))/INDEX($O105:$X105,1,aux!$BA$1),"n.d.") -> -0.8164852924 | CC105: =+IF(ISNA(MATCH('5.1'!A105,AUX_2d_pais!$G$2:$G$40000,0)),0,1) -> 1
A106: 0310 | B106: Guiné Equatorial | C106: 45.856 | D106: 0 | E106: 0.685 | F106: 139.081 | G106: 104.589 | H106: 0 | I106: 0 | J106: 29.932 | K106: 0 | L106: 0 | M106: 32.0143 | N106: 1.584878674e-05 | O106: 327.68 | P106: 366.703 | Q106: 415.02 | R106: 391.138 | S106: 567.114 | T106: 124.112 | U106: 148.031 | V106: 113.666 | W106: 345.356 | X106: 232.169 | Y106: 303.0989 | Z106: 7.470947919e-05 | AA106: 271.0846 | AC106: =L106-INDEX($C106:$L106,1,aux!$BA$1) -> -45.856 | AD106: 0.005092292244 | AE106: =+IF(INDEX($C106:$L106,1,aux!$BA$1)>0,(L106/INDEX($C106:$L106,1,aux!$BA$1))^(1/($L$3-INDEX($C$3:$L$3,1,aux!$BA$1)))-1,"n.d.") -> -1 | AF106: =IF(INDEX($C106:$L106,1,aux!$BA$1)>0,(L106-INDEX($C106:$L106,1,aux!$BA$1))/INDEX($C106:$L106,1,aux!$BA$1),"n.d.") -> -1 | AH106: =X106-INDEX($O106:$X106,1,aux!$BA$1) -> -95.511 | AI106: -0.0003151995267 | AJ106: =+IF(INDEX($O106:$X106,1,aux!$BA$1)>0,(X106/INDEX($O106:$X106,1,aux!$BA$1))^(1/($X$3-INDEX($O$3:$X$3,1,aux!$BA$1)))-1,"n.d.") -> -0.03756213831 | AK106: =IF(INDEX($O106:$X106,1,aux!$BA$1)>0,(X106-INDEX($O106:$X106,1,aux!$BA$1))/INDEX($O106:$X106,1,aux!$BA$1),"n.d.") -> -0.2914764404 | CC106: =+IF(ISNA(MATCH('5.1'!A106,AUX_2d_pais!$G$2:$G$40000,0)),0,1) -> 1
A107: 0257 | B107: Guiné-Bissau | C107: 0.517 | D107: 0.214 | E107: 41.76 | F107: 3.295 | G107: 0 | H107: 0 | I107: 0 | J107: 0 | K107: 12.198 | L107: 0.061 | M107: 5.8045 | N107: 2.87353722e-06 | O107: 536.739 | P107: 485.051 | Q107: 485.089 | R107: 483.132 | S107: 729.41 | T107: 707.425 | U107: 764.766 | V107: 2656.784 | W107: 3415.376 | X107: 994.775 | Y107: 1125.8547 | Z107: 0.0002775068411 | AA107: 1120.0502 | AC107: =L107-INDEX($C107:$L107,1,aux!$BA$1) -> -0.456 | AD107: 5.063863537e-05 | AE107: =+IF(INDEX($C107:$L107,1,aux!$BA$1)>0,(L107/INDEX($C107:$L107,1,aux!$BA$1))^(1/($L$3-INDEX($C$3:$L$3,1,aux!$BA$1)))-1,"n.d.") -> -0.2113741065 | AF107: =IF(INDEX($C107:$L107,1,aux!$BA$1)>0,(L107-INDEX($C107:$L107,1,aux!$BA$1))/INDEX($C107:$L107,1,aux!$BA$1),"n.d.") -> -0.8820116054 | AH107: =X107-INDEX($O107:$X107,1,aux!$BA$1) -> 458.036 | AI107: 0.00151158223 | AJ107: =+IF(INDEX($O107:$X107,1,aux!$BA$1)>0,(X107/INDEX($O107:$X107,1,aux!$BA$1))^(1/($X$3-INDEX($O$3:$X$3,1,aux!$BA$1)))-1,"n.d.") -> 0.070960673 | AK107: =IF(INDEX($O107:$X107,1,aux!$BA$1)>0,(X107-INDEX($O107:$X107,1,aux!$BA$1))/INDEX($O107:$X107,1,aux!$BA$1),"n.d.") -> 0.8533682106 | CC107: =+IF(ISNA(MATCH('5.1'!A107,AUX_2d_pais!$G$2:$G$40000,0)),0,1) -> 1
A108: 0452 | B108: Haiti | C108: 0 | D108: 0 | E108: 0 | F108: 0 | G108: 0 | H108: 0 | I108: 0 | J108: 0 | K108: 0 | L108: 0 | M108: 0 | N108: 0 | O108: 402.302 | P108: 209.894 | Q108: 140.168 | R108: 0.031 | S108: 0.026 | T108: 291.398 | U108: 1.769 | V108: 0.605 | W108: 59.388 | X108: 30.996 | Y108: 113.6577 | Z108: 2.801497324e-05 | AA108: 113.6577 | AC108: =L108-INDEX($C108:$L108,1,aux!$BA$1) -> 0 | AD108: 0 | AE108: =+IF(INDEX($C108:$L108,1,aux!$BA$1)>0,(L108/INDEX($C108:$L108,1,aux!$BA$1))^(1/($L$3-INDEX($C$3:$L$3,1,aux!$BA$1)))-1,"n.d.") -> n.d. | AF108: =IF(INDEX($C108:$L108,1,aux!$BA$1)>0,(L108-INDEX($C108:$L108,1,aux!$BA$1))/INDEX($C108:$L108,1,aux!$BA$1),"n.d.") -> n.d. | AH108: =X108-INDEX($O108:$X108,1,aux!$BA$1) -> -371.306 | AI108: -0.00122536122 | AJ108: =+IF(INDEX($O108:$X108,1,aux!$BA$1)>0,(X108/INDEX($O108:$X108,1,aux!$BA$1))^(1/($X$3-INDEX($O$3:$X$3,1,aux!$BA$1)))-1,"n.d.") -> -0.2478474364 | AK108: =IF(INDEX($O108:$X108,1,aux!$BA$1)>0,(X108-INDEX($O108:$X108,1,aux!$BA$1))/INDEX($O108:$X108,1,aux!$BA$1),"n.d.") -> -0.9229534032 | CC108: =+IF(ISNA(MATCH('5.1'!A108,AUX_2d_pais!$G$2:$G$40000,0)),0,1) -> 1
A109: 0835 | B109: Heard, Ilha e McDonald, Ilhas | C109: 0 | D109: 0 | E109: 0 | F109: 0 | G109: 0 | H109: 0 | I109: 0 | J109: 0 | K109: 0 | L109: 0 | M109: 0 | N109: 0 | O109: 0 | P109: 0 | Q109: 0 | R109: 0 | S109: 0 | T109: 0 | U109: 0 | V109: 0 | W109: 0 | X109: 0 | Y109: 0 | Z109: 0 | AA109: 0 | AC109: =L109-INDEX($C109:$L109,1,aux!$BA$1) -> 0 | AD109: 0 | AE109: =+IF(INDEX($C109:$L109,1,aux!$BA$1)>0,(L109/INDEX($C109:$L109,1,aux!$BA$1))^(1/($L$3-INDEX($C$3:$L$3,1,aux!$BA$1)))-1,"n.d.") -> n.d. | AF109: =IF(INDEX($C109:$L109,1,aux!$BA$1)>0,(L109-INDEX($C109:$L109,1,aux!$BA$1))/INDEX($C109:$L109,1,aux!$BA$1),"n.d.") -> n.d. | AH109: =X109-INDEX($O109:$X109,1,aux!$BA$1) -> 0 | AI109: 0 | AJ109: =+IF(INDEX($O109:$X109,1,aux!$BA$1)>0,(X109/INDEX($O109:$X109,1,aux!$BA$1))^(1/($X$3-INDEX($O$3:$X$3,1,aux!$BA$1)))-1,"n.d.") -> n.d. | AK109: =IF(INDEX($O109:$X109,1,aux!$BA$1)>0,(X109-INDEX($O109:$X109,1,aux!$BA$1))/INDEX($O109:$X109,1,aux!$BA$1),"n.d.") -> n.d. | AM109: 0 | BO109: 0 | CC109: =+IF(ISNA(MATCH('5.1'!A109,AUX_2d_pais!$G$2:$G$40000,0)),0,1) -> 0
A110: 0424 | B110: Honduras | C110: 0 | D110: 0 | E110: 187.497 | F110: 578.4 | G110: 0 | H110: 69.087 | I110: 0 | J110: 20.557 | K110: 0.349 | L110: 53.6 | M110: 90.949 | N110: 4.502460791e-05 | O110: 936.138 | P110: 1200.899 | Q110: 576.24 | R110: 516.887 | S110: 590.034 | T110: 1260.487 | U110: 1041.085 | V110: 903.894 | W110: 587.764 | X110: 754.289 | Y110: 836.7717 | Z110: 0.0002062520778 | AA110: 745.8227 | AC110: =L110-INDEX($C110:$L110,1,aux!$BA$1) -> 53.6 | AD110: -0.005952260649 | AE110: =+IF(INDEX($C110:$L110,1,aux!$BA$1)>0,(L110/INDEX($C110:$L110,1,aux!$BA$1))^(1/($L$3-INDEX($C$3:$L$3,1,aux!$BA$1)))-1,"n.d.") -> n.d. | AF110: =IF(INDEX($C110:$L110,1,aux!$BA$1)>0,(L110-INDEX($C110:$L110,1,aux!$BA$1))/INDEX($C110:$L110,1,aux!$BA$1),"n.d.") -> n.d. | AH110: =X110-INDEX($O110:$X110,1,aux!$BA$1) -> -181.849 | AI110: -0.0006001268831 | AJ110: =+IF(INDEX($O110:$X110,1,aux!$BA$1)>0,(X110/INDEX($O110:$X110,1,aux!$BA$1))^(1/($X$3-INDEX($O$3:$X$3,1,aux!$BA$1)))-1,"n.d.") -> -0.02371291453 | AK110: =IF(INDEX($O110:$X110,1,aux!$BA$1)>0,(X110-INDEX($O110:$X110,1,aux!$BA$1))/INDEX($O110:$X110,1,aux!$BA$1),"n.d.") -> -0.1942544796 | CC110: =+IF(ISNA(MATCH('5.1'!A110,AUX_2d_pais!$G$2:$G$40000,0)),0,1) -> 1
A111: 0740 | B111: HongKong | C111: 1476.135 | D111: 1328.45 | E111: 1605.125 | F111: 1208.603 | G111: 1265.561 | H111: 1603.442 | I111: 1480.513 | J111: 1740.267 | K111: 1464.214 | L111: 1126.538 | M111: 1429.8848 | N111: 0.0007078692727 | O111: 14987.702 | P111: 9199.162 | Q111: 5426.026 | R111: 2062 | S111: 1800.274 | T111: 9062.541 | U111: 2275.871 | V111: 7475.58 | W111: 6764.392 | X111: 2199.373 | Y111: 6125.2921 | Z111: 0.00150979559 | AA111: 4695.4073 | AC111: =L111-INDEX($C111:$L111,1,aux!$BA$1) -> -349.597 | AD111: 0.03882262063 | AE111: =+IF(INDEX($C111:$L111,1,aux!$BA$1)>0,(L111/INDEX($C111:$L111,1,aux!$BA$1))^(1/($L$3-INDEX($C$3:$L$3,1,aux!$BA$1)))-1,"n.d.") -> -0.02958443898 | AF111: =IF(INDEX($C111:$L111,1,aux!$BA$1)>0,(L111-INDEX($C111:$L111,1,aux!$BA$1))/INDEX($C111:$L111,1,aux!$BA$1),"n.d.") -> -0.2368326745 | AH111: =X111-INDEX($O111:$X111,1,aux!$BA$1) -> -12788.329 | AI111: -0.04220325667 | AJ111: =+IF(INDEX($O111:$X111,1,aux!$BA$1)>0,(X111/INDEX($O111:$X111,1,aux!$BA$1))^(1/($X$3-INDEX($O$3:$X$3,1,aux!$BA$1)))-1,"n.d.") -> -0.1920286112 | AK111: =IF(INDEX($O111:$X111,1,aux!$BA$1)>0,(X111-INDEX($O111:$X111,1,aux!$BA$1))/INDEX($O111:$X111,1,aux!$BA$1),"n.d.") -> -0.8532548219 | CC111: =+IF(ISNA(MATCH('5.1'!A111,AUX_2d_pais!$G$2:$G$40000,0)),0,1) -> 1
A112: 0064 | B112: Hungria | C112: 3882.488 | D112: 1019.603 | E112: 1224.955 | F112: 1260.006 | G112: 1151.824 | H112: 2479.778 | I112: 3016.373 | J112: 3970.526 | K112: 7746.24 | L112: 5574.277 | M112: 3132.607 | N112: 0.001550807617 | O112: 5446.551 | P112: 3852.459 | Q112: 4166.805 | R112: 3674.849 | S112: 4254.8 | T112: 6238.285 | U112: 4871.491 | V112: 5833.408 | W112: 5395.915 | X112: 5173.428 | Y112: 4890.7991 | Z112: 0.001205510985 | AA112: 1758.1921 | AC112: =L112-INDEX($C112:$L112,1,aux!$BA$1) -> 1691.789 | AD112: -0.1878725577 | AE112: =+IF(INDEX($C112:$L112,1,aux!$BA$1)>0,(L112/INDEX($C112:$L112,1,aux!$BA$1))^(1/($L$3-INDEX($C$3:$L$3,1,aux!$BA$1)))-1,"n.d.") -> 0.04100582162 | AF112: =IF(INDEX($C112:$L112,1,aux!$BA$1)>0,(L112-INDEX($C112:$L112,1,aux!$BA$1))/INDEX($C112:$L112,1,aux!$BA$1),"n.d.") -> 0.4357486746 | AH112: =X112-INDEX($O112:$X112,1,aux!$BA$1) -> -273.123 | AI112: -0.000901343723 | AJ112: =+IF(INDEX($O112:$X112,1,aux!$BA$1)>0,(X112/INDEX($O112:$X112,1,aux!$BA$1))^(1/($X$3-INDEX($O$3:$X$3,1,aux!$BA$1)))-1,"n.d.") -> -0.005700030542 | AK112: =IF(INDEX($O112:$X112,1,aux!$BA$1)>0,(X112-INDEX($O112:$X112,1,aux!$BA$1))/INDEX($O112:$X112,1,aux!$BA$1),"n.d.") -> -0.05014604655 | CC112: =+IF(ISNA(MATCH('5.1'!A112,AUX_2d_pais!$G$2:$G$40000,0)),0,1) -> 1
A113: 0653 | B113: Iémen | C113: 0 | D113: 0 | E113: 0 | F113: 0 | G113: 0 | H113: 0 | I113: 0 | J113: 0 | K113: 0 | L113: 0 | M113: 0 | N113: 0 | O113: 115.936 | P113: 7.805 | Q113: 3.184 | R113: 1363.654 | S113: 121.658 | T113: 49.909 | U113: 124.966 | V113: 654.576 | W113: 911.227 | X113: 75.322 | Y113: 342.8237 | Z113: 8.450106576e-05 | AA113: 342.8237 | AC113: =L113-INDEX($C113:$L113,1,aux!$BA$1) -> 0 | AD113: 0 | AE113: =+IF(INDEX($C113:$L113,1,aux!$BA$1)>0,(L113/INDEX($C113:$L113,1,aux!$BA$1))^(1/($L$3-INDEX($C$3:$L$3,1,aux!$BA$1)))-1,"n.d.") -> n.d. | AF113: =IF(INDEX($C113:$L113,1,aux!$BA$1)>0,(L113-INDEX($C113:$L113,1,aux!$BA$1))/INDEX($C113:$L113,1,aux!$BA$1),"n.d.") -> n.d. | AH113: =X113-INDEX($O113:$X113,1,aux!$BA$1) -> -40.614 | AI113: -0.0001340318244 | AJ113: =+IF(INDEX($O113:$X113,1,aux!$BA$1)>0,(X113/INDEX($O113:$X113,1,aux!$BA$1))^(1/($X$3-INDEX($O$3:$X$3,1,aux!$BA$1)))-1,"n.d.") -> -0.04678848253 | AK113: =IF(INDEX($O113:$X113,1,aux!$BA$1)>0,(X113-INDEX($O113:$X113,1,aux!$BA$1))/INDEX($O113:$X113,1,aux!$BA$1),"n.d.") -> -0.3503139663 | BO113: 3428.237 | CC113: =+IF(ISNA(MATCH('5.1'!A113,AUX_2d_pais!$G$2:$G$40000,0)),0,1) -> 1
A114: 0664 | B114: Índia | C114: 759.902 | D114: 305.305 | E114: 669.299 | F114: 658.324 | G114: 1174.9 | H114: 1590.79 | I114: 1672.551 | J114: 2618.793 | K114: 2815.529 | L114: 3229.558 | M114: 1549.4951 | N114: 0.0007670827534 | O114: 7659.385 | P114: 7164.445 | Q114: 7579.921 | R114: 12161.953 | S114: 7938.81 | T114: 9859.56 | U114: 13942.766 | V114: 14069.095 | W114: 14469.423 | X114: 15408.216 | Y114: 11025.3574 | Z114: 0.002717590559 | AA114: 9475.8623 | AC114: =L114-INDEX($C114:$L114,1,aux!$BA$1) -> 2469.656 | AD114: -0.2742544072 | AE114: =+IF(INDEX($C114:$L114,1,aux!$BA$1)>0,(L114/INDEX($C114:$L114,1,aux!$BA$1))^(1/($L$3-INDEX($C$3:$L$3,1,aux!$BA$1)))-1,"n.d.") -> 0.1744123544 | AF114: =IF(INDEX($C114:$L114,1,aux!$BA$1)>0,(L114-INDEX($C114:$L114,1,aux!$BA$1))/INDEX($C114:$L114,1,aux!$BA$1),"n.d.") -> 3.249966443 | AH114: =X114-INDEX($O114:$X114,1,aux!$BA$1) -> 7748.831 | AI114: 0.02557221538 | AJ114: =+IF(INDEX($O114:$X114,1,aux!$BA$1)>0,(X114/INDEX($O114:$X114,1,aux!$BA$1))^(1/($X$3-INDEX($O$3:$X$3,1,aux!$BA$1)))-1,"n.d.") -> 0.08075864354 | AK114: =IF(INDEX($O114:$X114,1,aux!$BA$1)>0,(X114-INDEX($O114:$X114,1,aux!$BA$1))/INDEX($O114:$X114,1,aux!$BA$1),"n.d.") -> 1.011677961 | CC114: =+IF(ISNA(MATCH('5.1'!A114,AUX_2d_pais!$G$2:$G$40000,0)),0,1) -> 1
A115: 0700 | B115: Indonésia | C115: 2849.405 | D115: 1317.159 | E115: 2443.107 | F115: 2073.659 | G115: 2882.246 | H115: 1573.942 | I115: 1749.941 | J115: 2086.529 | K115: 1848.81 | L115: 1963.011 | M115: 2078.7809 | N115: 0.001029107466 | O115: 675.726 | P115: 416.343 | Q115: 351.335 | R115: 834.63 | S115: 375.602 | T115: 1051.783 | U115: 1469.991 | V115: 1570.05 | W115: 3892.216 | X115: 1467.224 | Y115: 1210.49 | Z115: 0.000298368214 | AA115: -868.2909 | AC115: =L115-INDEX($C115:$L115,1,aux!$BA$1) -> -886.394 | AD115: 0.09843373368 | AE115: =+IF(INDEX($C115:$L115,1,aux!$BA$1)>0,(L115/INDEX($C115:$L115,1,aux!$BA$1))^(1/($L$3-INDEX($C$3:$L$3,1,aux!$BA$1)))-1,"n.d.") -> -0.04055799574 | AF115: =IF(INDEX($C115:$L115,1,aux!$BA$1)>0,(L115-INDEX($C115:$L115,1,aux!$BA$1))/INDEX($C115:$L115,1,aux!$BA$1),"n.d.") -> -0.3110803834 | AH115: =X115-INDEX($O115:$X115,1,aux!$BA$1) -> 791.498 | AI115: 0.002612053009 | AJ115: =+IF(INDEX($O115:$X115,1,aux!$BA$1)>0,(X115/INDEX($O115:$X115,1,aux!$BA$1))^(1/($X$3-INDEX($O$3:$X$3,1,aux!$BA$1)))-1,"n.d.") -> 0.08996857508 | AK115: =IF(INDEX($O115:$X115,1,aux!$BA$1)>0,(X115-INDEX($O115:$X115,1,aux!$BA$1))/INDEX($O115:$X115,1,aux!$BA$1),"n.d.") -> 1.171329799 | CC115: =+IF(ISNA(MATCH('5.1'!A115,AUX_2d_pais!$G$2:$G$40000,0)),0,1) -> 1
A116: 0616 | B116: Irão, República Islâmica do | C116: 0 | D116: 21.754 | E116: 0 | F116: 0.443 | G116: 0 | H116: 0 | I116: 13.143 | J116: 0.328 | K116: 0.185 | L116: 31.883 | M116: 6.7736 | N116: 3.35329343e-06 | O116: 20002.289 | P116: 5374.228 | Q116: 320.834 | R116: 2202.883 | S116: 6620.217 | T116: 7826.011 | U116: 8761.546 | V116: 4151.966 | W116: 274.997 | X116: 131.177 | Y116: 5566.6148 | Z116: 0.001372089745 | AA116: 5559.8412 | AC116: =L116-INDEX($C116:$L116,1,aux!$BA$1) -> 31.883 | AD116: -0.003540595639 | AE116: =+IF(INDEX($C116:$L116,1,aux!$BA$1)>0,(L116/INDEX($C116:$L116,1,aux!$BA$1))^(1/($L$3-INDEX($C$3:$L$3,1,aux!$BA$1)))-1,"n.d.") -> n.d. | AF116: =IF(INDEX($C116:$L116,1,aux!$BA$1)>0,(L116-INDEX($C116:$L116,1,aux!$BA$1))/INDEX($C116:$L116,1,aux!$BA$1),"n.d.") -> n.d. | AH116: =X116-INDEX($O116:$X116,1,aux!$BA$1) -> -19871.112 | AI116: -0.06557742142 | AJ116: =+IF(INDEX($O116:$X116,1,aux!$BA$1)>0,(X116/INDEX($O116:$X116,1,aux!$BA$1))^(1/($X$3-INDEX($O$3:$X$3,1,aux!$BA$1)))-1,"n.d.") -> -0.4279687204 | AK116: =IF(INDEX($O116:$X116,1,aux!$BA$1)>0,(X116-INDEX($O116:$X116,1,aux!$BA$1))/INDEX($O116:$X116,1,aux!$BA$1),"n.d.") -> -0.9934419006 | CC116: =+IF(ISNA(MATCH('5.1'!A116,AUX_2d_pais!$G$2:$G$40000,0)),0,1) -> 1
A117: 0612 | B117: Iraque | C117: 0 | D117: 0 | E117: 0 | F117: 0 | G117: 0 | H117: 0 | I117: 0 | J117: 0 | K117: 0 | L117: 0 | M117: 0 | N117: 0 | O117: 53.547 | P117: 672.426 | Q117: 791.159 | R117: 1448.998 | S117: 336.143 | T117: 3258.316 | U117: 2042.254 | V117: 2693.579 | W117: 282.05 | X117: 773.672 | Y117: 1235.2144 | Z117: 0.0003044624197 | AA117: 1235.2144 | AC117: =L117-INDEX($C117:$L117,1,aux!$BA$1) -> 0 | AD117: 0 | AE117: =+IF(INDEX($C117:$L117,1,aux!$BA$1)>0,(L117/INDEX($C117:$L117,1,aux!$BA$1))^(1/($L$3-INDEX($C$3:$L$3,1,aux!$BA$1)))-1,"n.d.") -> n.d. | AF117: =IF(INDEX($C117:$L117,1,aux!$BA$1)>0,(L117-INDEX($C117:$L117,1,aux!$BA$1))/INDEX($C117:$L117,1,aux!$BA$1),"n.d.") -> n.d. | AH117: =X117-INDEX($O117:$X117,1,aux!$BA$1) -> 720.125 | AI117: 0.002376512225 | AJ117: =+IF(INDEX($O117:$X117,1,aux!$BA$1)>0,(X117/INDEX($O117:$X117,1,aux!$BA$1))^(1/($X$3-INDEX($O$3:$X$3,1,aux!$BA$1)))-1,"n.d.") -> 0.3454547049 | AK117: =IF(INDEX($O117:$X117,1,aux!$BA$1)>0,(X117-INDEX($O117:$X117,1,aux!$BA$1))/INDEX($O117:$X117,1,aux!$BA$1),"n.d.") -> 13.44846583 | CC117: =+IF(ISNA(MATCH('5.1'!A117,AUX_2d_pais!$G$2:$G$40000,0)),0,1) -> 1
A118: 0007 | B118: Irlanda | C118: 821.764 | D118: 1636.145 | E118: 2025.288 | F118: 3229.095 | G118: 2827.735 | H118: 2984.572 | I118: 2374.372 | J118: 1313.017 | K118: 3272.344 | L118: 1653.853 | M118: 2213.8185 | N118: 0.001095958284 | O118: 6976.938 | P118: 8710.445 | Q118: 11119.245 | R118: 14042.919 | S118: 15264.452 | T118: 15498.888 | U118: 15698.07 | V118: 20208.006 | W118: 32553.432 | X118: 31710.821 | Y118: 17178.3216 | Z118: 0.004234206921 | AA118: 14964.5031 | AC118: =L118-INDEX($C118:$L118,1,aux!$BA$1) -> 832.089 | AD118: -0.09240318304 | AE118: =+IF(INDEX($C118:$L118,1,aux!$BA$1)>0,(L118/INDEX($C118:$L118,1,aux!$BA$1))^(1/($L$3-INDEX($C$3:$L$3,1,aux!$BA$1)))-1,"n.d.") -> 0.08081154997 | AF118: =IF(INDEX($C118:$L118,1,aux!$BA$1)>0,(L118-INDEX($C118:$L118,1,aux!$BA$1))/INDEX($C118:$L118,1,aux!$BA$1),"n.d.") -> 1.012564435 | AH118: =X118-INDEX($O118:$X118,1,aux!$BA$1) -> 24733.883 | AI118: 0.08162523913 | AJ118: =+IF(INDEX($O118:$X118,1,aux!$BA$1)>0,(X118/INDEX($O118:$X118,1,aux!$BA$1))^(1/($X$3-INDEX($O$3:$X$3,1,aux!$BA$1)))-1,"n.d.") -> 0.1832058041 | AK118: =IF(INDEX($O118:$X118,1,aux!$BA$1)>0,(X118-INDEX($O118:$X118,1,aux!$BA$1))/INDEX($O118:$X118,1,aux!$BA$1),"n.d.") -> 3.545091414 | CC118: =+IF(ISNA(MATCH('5.1'!A118,AUX_2d_pais!$G$2:$G$40000,0)),0,1) -> 1
A119: 0024 | B119: Islândia | C119: 0.02 | D119: 0 | E119: 1.832 | F119: 0 | G119: 0.073 | H119: 0 | I119: 0.105 | J119: 2.177 | K119: 6.414 | L119: 43.177 | M119: 5.3798 | N119: 2.663288059e-06 | O119: 38.879 | P119: 69.365 | Q119: 74.417 | R119: 214.617 | S119: 376.784 | T119: 243.237 | U119: 705.27 | V119: 595.515 | W119: 669.103 | X119: 597.954 | Y119: 358.5141 | Z119: 8.83685216e-05 | AA119: 353.1343 | AC119: =L119-INDEX($C119:$L119,1,aux!$BA$1) -> 43.157 | AD119: -0.004792569269 | AE119: =+IF(INDEX($C119:$L119,1,aux!$BA$1)>0,(L119/INDEX($C119:$L119,1,aux!$BA$1))^(1/($L$3-INDEX($C$3:$L$3,1,aux!$BA$1)))-1,"n.d.") -> 1.346762626 | AF119: =IF(INDEX($C119:$L119,1,aux!$BA$1)>0,(L119-INDEX($C119:$L119,1,aux!$BA$1))/INDEX($C119:$L119,1,aux!$BA$1),"n.d.") -> 2157.85 | AH119: =X119-INDEX($O119:$X119,1,aux!$BA$1) -> 559.075 | AI119: 0.001845024923 | AJ119: =+IF(INDEX($O119:$X119,1,aux!$BA$1)>0,(X119/INDEX($O119:$X119,1,aux!$BA$1))^(1/($X$3-INDEX($O$3:$X$3,1,aux!$BA$1)))-1,"n.d.") -> 0.3548263423 | AK119: =IF(INDEX($O119:$X119,1,aux!$BA$1)>0,(X119-INDEX($O119:$X119,1,aux!$BA$1))/INDEX($O119:$X119,1,aux!$BA$1),"n.d.") -> 14.37987088 | CC119: =+IF(ISNA(MATCH('5.1'!A119,AUX_2d_pais!$G$2:$G$40000,0)),0,1) -> 1
A120: 0624 | B120: Israel | C120: 1103.748 | D120: 310.96 | E120: 496.951 | F120: 1118.364 | G120: 2333.282 | H120: 4032.171 | I120: 1757.412 | J120: 3830.53 | K120: 2947.293 | L120: 458.555 | M120: 1838.9266 | N120: 0.0009103667896 | O120: 21372.737 | P120: 21755.423 | Q120: 20906.425 | R120: 21669.351 | S120: 26017.946 | T120: 24289.576 | U120: 24518.609 | V120: 33052.644 | W120: 38683.331 | X120: 34411.598 | Y120: 26667.764 | Z120: 0.006573216728 | AA120: 24828.8374 | AC120: =L120-INDEX($C120:$L120,1,aux!$BA$1) -> -645.193 | AD120: 0.07164844971 | AE120: =+IF(INDEX($C120:$L120,1,aux!$BA$1)>0,(L120/INDEX($C120:$L120,1,aux!$BA$1))^(1/($L$3-INDEX($C$3:$L$3,1,aux!$BA$1)))-1,"n.d.") -> -0.09298702368 | AF120: =IF(INDEX($C120:$L120,1,aux!$BA$1)>0,(L120-INDEX($C120:$L120,1,aux!$BA$1))/INDEX($C120:$L120,1,aux!$BA$1),"n.d.") -> -0.5845473786 | AH120: =X120-INDEX($O120:$X120,1,aux!$BA$1) -> 13038.861 | AI120: 0.04303004697 | AJ120: =+IF(INDEX($O120:$X120,1,aux!$BA$1)>0,(X120/INDEX($O120:$X120,1,aux!$BA$1))^(1/($X$3-INDEX($O$3:$X$3,1,aux!$BA$1)))-1,"n.d.") -> 0.05434500369 | AK120: =IF(INDEX($O120:$X120,1,aux!$BA$1)>0,(X120-INDEX($O120:$X120,1,aux!$BA$1))/INDEX($O120:$X120,1,aux!$BA$1),"n.d.") -> 0.6100697819 | CC120: =+IF(ISNA(MATCH('5.1'!A120,AUX_2d_pais!$G$2:$G$40000,0)),0,1) -> 1
A121: 0005 | B121: Itália | C121: 89607.204 | D121: 79868.14 | E121: 77244.142 | F121: 85272.485 | G121: 92930.99 | H121: 85893.776 | I121: 98150.803 | J121: 111481.506 | K121: 102551.872 | L121: 82822.46 | M121: 90582.3378 | N121: 0.04484309056 | O121: 265774.343 | P121: 239664.69 | Q121: 271779.998 | R121: 258793.138 | S121: 284528.962 | T121: 277036.998 | U121: 278027.397 | V121: 273657.142 | W121: 272479.462 | X121: 248639.857 | Y121: 267038.1987 | Z121: 0.06582103976 | AA121: 176455.8609 | AC121: =L121-INDEX($C121:$L121,1,aux!$BA$1) -> -6784.744 | AD121: 0.7534433717 | AE121: =+IF(INDEX($C121:$L121,1,aux!$BA$1)>0,(L121/INDEX($C121:$L121,1,aux!$BA$1))^(1/($L$3-INDEX($C$3:$L$3,1,aux!$BA$1)))-1,"n.d.") -> -0.008710336385 | AF121: =IF(INDEX($C121:$L121,1,aux!$BA$1)>0,(L121-INDEX($C121:$L121,1,aux!$BA$1))/INDEX($C121:$L121,1,aux!$BA$1),"n.d.") -> -0.07571650154 | AH121: =X121-INDEX($O121:$X121,1,aux!$BA$1) -> -17134.486 | AI121: -0.05654617664 | AJ121: =+IF(INDEX($O121:$X121,1,aux!$BA$1)>0,(X121/INDEX($O121:$X121,1,aux!$BA$1))^(1/($X$3-INDEX($O$3:$X$3,1,aux!$BA$1)))-1,"n.d.") -> -0.00737733313 | AK121: =IF(INDEX($O121:$X121,1,aux!$BA$1)>0,(X121-INDEX($O121:$X121,1,aux!$BA$1))/INDEX($O121:$X121,1,aux!$BA$1),"n.d.") -> -0.06447005308 | CC121: =+IF(ISNA(MATCH('5.1'!A121,AUX_2d_pais!$G$2:$G$40000,0)),0,1) -> 1
A122: 0464 | B122: Jamaica | C122: 0 | D122: 0 | E122: 0 | F122: 14.422 | G122: 0 | H122: 0 | I122: 0 | J122: 0 | K122: 0 | L122: 0 | M122: 1.4422 | N122: 7.139659538e-07 | O122: 189.315 | P122: 137.268 | Q122: 162.158 | R122: 47.185 | S122: 158.342 | T122: 450.868 | U122: 419.943 | V122: 1741.996 | W122: 1741.737 | X122: 735.434 | Y122: 578.4246 | Z122: 0.0001425732677 | AA122: 576.9824 | AC122: =L122-INDEX($C122:$L122,1,aux!$BA$1) -> 0 | AD122: 0 | AE122: =+IF(INDEX($C122:$L122,1,aux!$BA$1)>0,(L122/INDEX($C122:$L122,1,aux!$BA$1))^(1/($L$3-INDEX($C$3:$L$3,1,aux!$BA$1)))-1,"n.d.") -> n.d. | AF122: =IF(INDEX($C122:$L122,1,aux!$BA$1)>0,(L122-INDEX($C122:$L122,1,aux!$BA$1))/INDEX($C122:$L122,1,aux!$BA$1),"n.d.") -> n.d. | AH122: =X122-INDEX($O122:$X122,1,aux!$BA$1) -> 546.119 | AI122: 0.001802268328 | AJ122: =+IF(INDEX($O122:$X122,1,aux!$BA$1)>0,(X122/INDEX($O122:$X122,1,aux!$BA$1))^(1/($X$3-INDEX($O$3:$X$3,1,aux!$BA$1)))-1,"n.d.") -> 0.1627445099 | AK122: =IF(INDEX($O122:$X122,1,aux!$BA$1)>0,(X122-INDEX($O122:$X122,1,aux!$BA$1))/INDEX($O122:$X122,1,aux!$BA$1),"n.d.") -> 2.884710667 | CC122: =+IF(ISNA(MATCH('5.1'!A122,AUX_2d_pais!$G$2:$G$40000,0)),0,1) -> 1
A123: 0732 | B123: Japão | C123: 600.488 | D123: 1357.676 | E123: 1621.852 | F123: 843.053 | G123: 1002.493 | H123: 1931.167 | I123: 1725.815 | J123: 1391.424 | K123: 1593.047 | L123: 1671.965 | M123: 1373.898 | N123: 0.0006801528193 | O123: 9550.112 | P123: 10338.533 | Q123: 9146.99 | R123: 8973.085 | S123: 7291.864 | T123: 7451.368 | U123: 7614.29 | V123: 8088.844 | W123: 8994.75 | X123: 8049.531 | Y123: 8549.9367 | Z123: 0.002107435289 | AA123: 7176.0387 | AC123: =L123-INDEX($C123:$L123,1,aux!$BA$1) -> 1071.477 | AD123: -0.118987134 | AE123: =+IF(INDEX($C123:$L123,1,aux!$BA$1)>0,(L123/INDEX($C123:$L123,1,aux!$BA$1))^(1/($L$3-INDEX($C$3:$L$3,1,aux!$BA$1)))-1,"n.d.") -> 0.1205046157 | AF123: =IF(INDEX($C123:$L123,1,aux!$BA$1)>0,(L123-INDEX($C123:$L123,1,aux!$BA$1))/INDEX($C123:$L123,1,aux!$BA$1),"n.d.") -> 1.784343734 | AH123: =X123-INDEX($O123:$X123,1,aux!$BA$1) -> -1500.581 | AI123: -0.004952125106 | AJ123: =+IF(INDEX($O123:$X123,1,aux!$BA$1)>0,(X123/INDEX($O123:$X123,1,aux!$BA$1))^(1/($X$3-INDEX($O$3:$X$3,1,aux!$BA$1)))-1,"n.d.") -> -0.01881399333 | AK123: =IF(INDEX($O123:$X123,1,aux!$BA$1)>0,(X123-INDEX($O123:$X123,1,aux!$BA$1))/INDEX($O123:$X123,1,aux!$BA$1),"n.d.") -> -0.1571270578 | CC123: =+IF(ISNA(MATCH('5.1'!A123,AUX_2d_pais!$G$2:$G$40000,0)),0,1) -> 1
A124: 0338 | B124: Jibuti | C124: 0 | D124: 0 | E124: 0 | F124: 0 | G124: 0 | H124: 0 | I124: 0 | J124: 0.398 | K124: 0 | L124: 0 | M124: 0.0398 | N124: 1.970312367e-08 | O124: 105.261 | P124: 28.656 | Q124: 0.483 | R124: 0 | S124: 8.488 | T124: 0.04 | U124: 0 | V124: 0 | W124: 0.367 | X124: 79.489 | Y124: 22.2784 | Z124: 5.491302216e-06 | AA124: 22.2386 | AC124: =L124-INDEX($C124:$L124,1,aux!$BA$1) -> 0 | AD124: 0 | AE124: =+IF(INDEX($C124:$L124,1,aux!$BA$1)>0,(L124/INDEX($C124:$L124,1,aux!$BA$1))^(1/($L$3-INDEX($C$3:$L$3,1,aux!$BA$1)))-1,"n.d.") -> n.d. | AF124: =IF(INDEX($C124:$L124,1,aux!$BA$1)>0,(L124-INDEX($C124:$L124,1,aux!$BA$1))/INDEX($C124:$L124,1,aux!$BA$1),"n.d.") -> n.d. | AH124: =X124-INDEX($O124:$X124,1,aux!$BA$1) -> -25.772 | AI124: -8.505116899e-05 | AJ124: =+IF(INDEX($O124:$X124,1,aux!$BA$1)>0,(X124/INDEX($O124:$X124,1,aux!$BA$1))^(1/($X$3-INDEX($O$3:$X$3,1,aux!$BA$1)))-1,"n.d.") -> -0.03072092325 | AK124: =IF(INDEX($O124:$X124,1,aux!$BA$1)>0,(X124-INDEX($O124:$X124,1,aux!$BA$1))/INDEX($O124:$X124,1,aux!$BA$1),"n.d.") -> -0.2448390192 | BO124: 223.182 | CC124: =+IF(ISNA(MATCH('5.1'!A124,AUX_2d_pais!$G$2:$G$40000,0)),0,1) -> 1
A125: 0628 | B125: Jordânia | C125: 0.215 | D125: 0 | E125: 0.029 | F125: 0 | G125: 0.988 | H125: 0 | I125: 0.345 | J125: 0 | K125: 0.811 | L125: 0.122 | M125: 0.251 | N125: 1.24258393e-07 | O125: 3159.304 | P125: 3364.43 | Q125: 6783.1 | R125: 6329.899 | S125: 5125.894 | T125: 5436.84 | U125: 12893.067 | V125: 13049.497 | W125: 9113.519 | X125: 8691.632 | Y125: 7394.7182 | Z125: 0.001822690698 | AA125: 7394.4672 | AC125: =L125-INDEX($C125:$L125,1,aux!$BA$1) -> -0.093 | AD125: 1.032761642e-05 | AE125: =+IF(INDEX($C125:$L125,1,aux!$BA$1)>0,(L125/INDEX($C125:$L125,1,aux!$BA$1))^(1/($L$3-INDEX($C$3:$L$3,1,aux!$BA$1)))-1,"n.d.") -> -0.06101656647 | AF125: =IF(INDEX($C125:$L125,1,aux!$BA$1)>0,(L125-INDEX($C125:$L125,1,aux!$BA$1))/INDEX($C125:$L125,1,aux!$BA$1),"n.d.") -> -0.4325581395 | AH125: =X125-INDEX($O125:$X125,1,aux!$BA$1) -> 5532.328 | AI125: 0.01825744854 | AJ125: =+IF(INDEX($O125:$X125,1,aux!$BA$1)>0,(X125/INDEX($O125:$X125,1,aux!$BA$1))^(1/($X$3-INDEX($O$3:$X$3,1,aux!$BA$1)))-1,"n.d.") -> 0.1190112037 | AK125: =IF(INDEX($O125:$X125,1,aux!$BA$1)>0,(X125-INDEX($O125:$X125,1,aux!$BA$1))/INDEX($O125:$X125,1,aux!$BA$1),"n.d.") -> 1.751122399 | CC125: =+IF(ISNA(MATCH('5.1'!A125,AUX_2d_pais!$G$2:$G$40000,0)),0,1) -> 1
A126: 0812 | B126: Kiribati | C126: 0 | D126: 0 | E126: 0 | F126: 0 | G126: 0 | H126: 0 | I126: 0 | J126: 0 | K126: 0 | L126: 0 | M126: 0 | N126: 0 | O126: 0 | P126: 0 | Q126: 0 | R126: 0 | S126: 0 | T126: 0 | U126: 0 | V126: 0 | W126: 0 | X126: 0 | Y126: 0 | Z126: 0 | AA126: 0 | AC126: =L126-INDEX($C126:$L126,1,aux!$BA$1) -> 0 | AD126: 0 | AE126: =+IF(INDEX($C126:$L126,1,aux!$BA$1)>0,(L126/INDEX($C126:$L126,1,aux!$BA$1))^(1/($L$3-INDEX($C$3:$L$3,1,aux!$BA$1)))-1,"n.d.") -> n.d. | AF126: =IF(INDEX($C126:$L126,1,aux!$BA$1)>0,(L126-INDEX($C126:$L126,1,aux!$BA$1))/INDEX($C126:$L126,1,aux!$BA$1),"n.d.") -> n.d. | AH126: =X126-INDEX($O126:$X126,1,aux!$BA$1) -> 0 | AI126: 0 | AJ126: =+IF(INDEX($O126:$X126,1,aux!$BA$1)>0,(X126/INDEX($O126:$X126,1,aux!$BA$1))^(1/($X$3-INDEX($O$3:$X$3,1,aux!$BA$1)))-1,"n.d.") -> n.d. | AK126: =IF(INDEX($O126:$X126,1,aux!$BA$1)>0,(X126-INDEX($O126:$X126,1,aux!$BA$1))/INDEX($O126:$X126,1,aux!$BA$1),"n.d.") -> n.d. | AM126: 0 | BO126: 0 | CC126: =+IF(ISNA(MATCH('5.1'!A126,AUX_2d_pais!$G$2:$G$40000,0)),0,1) -> 0
A127: 0095 | B127: Kosovo | C127: 0 | D127: 0 | E127: 0 | F127: 0 | G127: 0 | H127: 0 | I127: 0 | J127: 0 | K127: 0 | L127: 0 | M127: 0 | N127: 0 | O127: 4.61 | P127: 0.746 | Q127: 1.7 | R127: 0.332 | S127: 0.053 | T127: 18.042 | U127: 15.991 | V127: 17.625 | W127: 25.573 | X127: 40.878 | Y127: 12.555 | Z127: 3.094625257e-06 | AA127: 12.555 | AC127: =L127-INDEX($C127:$L127,1,aux!$BA$1) -> 0 | AD127: 0 | AE127: =+IF(INDEX($C127:$L127,1,aux!$BA$1)>0,(L127/INDEX($C127:$L127,1,aux!$BA$1))^(1/($L$3-INDEX($C$3:$L$3,1,aux!$BA$1)))-1,"n.d.") -> n.d. | AF127: =IF(INDEX($C127:$L127,1,aux!$BA$1)>0,(L127-INDEX($C127:$L127,1,aux!$BA$1))/INDEX($C127:$L127,1,aux!$BA$1),"n.d.") -> n.d. | AH127: =X127-INDEX($O127:$X127,1,aux!$BA$1) -> 36.268 | AI127: 0.0001196894225 | AJ127: =+IF(INDEX($O127:$X127,1,aux!$BA$1)>0,(X127/INDEX($O127:$X127,1,aux!$BA$1))^(1/($X$3-INDEX($O$3:$X$3,1,aux!$BA$1)))-1,"n.d.") -> 0.2744120145 | AK127: =IF(INDEX($O127:$X127,1,aux!$BA$1)>0,(X127-INDEX($O127:$X127,1,aux!$BA$1))/INDEX($O127:$X127,1,aux!$BA$1),"n.d.") -> 7.867245119 | BO127: 125.55 | CC127: =+IF(ISNA(MATCH('5.1'!A127,AUX_2d_pais!$G$2:$G$40000,0)),0,1) -> 1
A128: 0636 | B128: Kuwait | C128: 0 | D128: 0 | E128: 0.048 | F128: 0.146 | G128: 0 | H128: 0 | I128: 0.189 | J128: 0 | K128: 0 | L128: 0.104 | M128: 0.0487 | N128: 2.410909856e-08 | O128: 1267.992 | P128: 998.508 | Q128: 1588.544 | R128: 1219.864 | S128: 1805.299 | T128: 2044.139 | U128: 1998.535 | V128: 2124.192 | W128: 2443.778 | X128: 1091.554 | Y128: 1658.2405 | Z128: 0.0004087322129 | AA128: 1658.1918 | AC128: =L128-INDEX($C128:$L128,1,aux!$BA$1) -> 0.104 | AD128: -1.154916245e-05 | AE128: =+IF(INDEX($C128:$L128,1,aux!$BA$1)>0,(L128/INDEX($C128:$L128,1,aux!$BA$1))^(1/($L$3-INDEX($C$3:$L$3,1,aux!$BA$1)))-1,"n.d.") -> n.d. | AF128: =IF(INDEX($C128:$L128,1,aux!$BA$1)>0,(L128-INDEX($C128:$L128,1,aux!$BA$1))/INDEX($C128:$L128,1,aux!$BA$1),"n.d.") -> n.d. | AH128: =X128-INDEX($O128:$X128,1,aux!$BA$1) -> -176.438 | AI128: -0.0005822698337 | AJ128: =+IF(INDEX($O128:$X128,1,aux!$BA$1)>0,(X128/INDEX($O128:$X128,1,aux!$BA$1))^(1/($X$3-INDEX($O$3:$X$3,1,aux!$BA$1)))-1,"n.d.") -> -0.01651020731 | AK128: =IF(INDEX($O128:$X128,1,aux!$BA$1)>0,(X128-INDEX($O128:$X128,1,aux!$BA$1))/INDEX($O128:$X128,1,aux!$BA$1),"n.d.") -> -0.1391475656 | CC128: =+IF(ISNA(MATCH('5.1'!A128,AUX_2d_pais!$G$2:$G$40000,0)),0,1) -> 1
A129: 0684 | B129: Laos, República Democrática Popular do | C129: 0 | D129: 0 | E129: 0 | F129: 0 | G129: 0 | H129: 0 | I129: 0 | J129: 0 | K129: 0 | L129: 0 | M129: 0 | N129: 0 | O129: 0 | P129: 0 | Q129: 0 | R129: 0 | S129: 0 | T129: 0 | U129: 0.249 | V129: 2.544 | W129: 1.322 | X129: 3.327 | Y129: 0.7442 | Z129: 1.834344975e-07 | AA129: 0.7442 | AC129: =L129-INDEX($C129:$L129,1,aux!$BA$1) -> 0 | AD129: 0 | AE129: =+IF(INDEX($C129:$L129,1,aux!$BA$1)>0,(L129/INDEX($C129:$L129,1,aux!$BA$1))^(1/($L$3-INDEX($C$3:$L$3,1,aux!$BA$1)))-1,"n.d.") -> n.d. | AF129: =IF(INDEX($C129:$L129,1,aux!$BA$1)>0,(L129-INDEX($C129:$L129,1,aux!$BA$1))/INDEX($C129:$L129,1,aux!$BA$1),"n.d.") -> n.d. | AH129: =X129-INDEX($O129:$X129,1,aux!$BA$1) -> 3.327 | AI129: 1.097956073e-05 | AJ129: =+IF(INDEX($O129:$X129,1,aux!$BA$1)>0,(X129/INDEX($O129:$X129,1,aux!$BA$1))^(1/($X$3-INDEX($O$3:$X$3,1,aux!$BA$1)))-1,"n.d.") -> n.d. | AK129: =IF(INDEX($O129:$X129,1,aux!$BA$1)>0,(X129-INDEX($O129:$X129,1,aux!$BA$1))/INDEX($O129:$X129,1,aux!$BA$1),"n.d.") -> n.d. | BO129: 7.442 | CC129: =+IF(ISNA(MATCH('5.1'!A129,AUX_2d_pais!$G$2:$G$40000,0)),0,1) -> 1
A130: 0395 | B130: Lesoto | C130: 0 | D130: 0 | E130: 0 | F130: 0 | G130: 0 | H130: 0 | I130: 0 | J130: 0 | K130: 0 | L130: 0 | M130: 0 | N130: 0 | O130: 0 | P130: 0 | Q130: 0 | R130: 0 | S130: 0 | T130: 0 | U130: 0 | V130: 0 | W130: 0 | X130: 0 | Y130: 0 | Z130: 0 | AA130: 0 | AC130: =L130-INDEX($C130:$L130,1,aux!$BA$1) -> 0 | AD130: 0 | AE130: =+IF(INDEX($C130:$L130,1,aux!$BA$1)>0,(L130/INDEX($C130:$L130,1,aux!$BA$1))^(1/($L$3-INDEX($C$3:$L$3,1,aux!$BA$1)))-1,"n.d.") -> n.d. | AF130: =IF(INDEX($C130:$L130,1,aux!$BA$1)>0,(L130-INDEX($C130:$L130,1,aux!$BA$1))/INDEX($C130:$L130,1,aux!$BA$1),"n.d.") -> n.d. | AH130: =X130-INDEX($O130:$X130,1,aux!$BA$1) -> 0 | AI130: 0 | AJ130: =+IF(INDEX($O130:$X130,1,aux!$BA$1)>0,(X130/INDEX($O130:$X130,1,aux!$BA$1))^(1/($X$3-INDEX($O$3:$X$3,1,aux!$BA$1)))-1,"n.d.") -> n.d. | AK130: =IF(INDEX($O130:$X130,1,aux!$BA$1)>0,(X130-INDEX($O130:$X130,1,aux!$BA$1))/INDEX($O130:$X130,1,aux!$BA$1),"n.d.") -> n.d. | AM130: 0 | BO130: 0 | CC130: =+IF(ISNA(MATCH('5.1'!A130,AUX_2d_pais!$G$2:$G$40000,0)),0,1) -> 0
A131: 0054 | B131: Letónia | C131: 631.904 | D131: 909.863 | E131: 538.392 | F131: 1167.913 | G131: 1454.449 | H131: 2567.595 | I131: 2712.399 | J131: 1290.289 | K131: 779.12 | L131: 670.705 | M131: 1272.2629 | N131: 0.0006298380217 | O131: 4833.65 | P131: 5967.216 | Q131: 6497.563 | R131: 5727.658 | S131: 6425.551 | T131: 5948.32 | U131: 5097.835 | V131: 5435.688 | W131: 4541.425 | X131: 4354.343 | Y131: 5482.9249 | Z131: 0.0013514614 | AA131: 4210.662 | AC131: =L131-INDEX($C131:$L131,1,aux!$BA$1) -> 38.801 | AD131: -0.004308837042 | AE131: =+IF(INDEX($C131:$L131,1,aux!$BA$1)>0,(L131/INDEX($C131:$L131,1,aux!$BA$1))^(1/($L$3-INDEX($C$3:$L$3,1,aux!$BA$1)))-1,"n.d.") -> 0.006643293215 | AF131: =IF(INDEX($C131:$L131,1,aux!$BA$1)>0,(L131-INDEX($C131:$L131,1,aux!$BA$1))/INDEX($C131:$L131,1,aux!$BA$1),"n.d.") -> 0.06140331443 | AH131: =X131-INDEX($O131:$X131,1,aux!$BA$1) -> -479.307 | AI131: -0.001581779476 | AJ131: =+IF(INDEX($O131:$X131,1,aux!$BA$1)>0,(X131/INDEX($O131:$X131,1,aux!$BA$1))^(1/($X$3-INDEX($O$3:$X$3,1,aux!$BA$1)))-1,"n.d.") -> -0.01153606978 | AK131: =IF(INDEX($O131:$X131,1,aux!$BA$1)>0,(X131-INDEX($O131:$X131,1,aux!$BA$1))/INDEX($O131:$X131,1,aux!$BA$1),"n.d.") -> -0.0991604688 | CC131: =+IF(ISNA(MATCH('5.1'!A131,AUX_2d_pais!$G$2:$G$40000,0)),0,1) -> 1
A132: 0604 | B132: Líbano | C132: 1.975 | D132: 5.013 | E132: 2.281 | F132: 1.105 | G132: 1.838 | H132: 12.607 | I132: 0.099 | J132: 12.124 | K132: 0.459 | L132: 0.917 | M132: 3.8418 | N132: 1.901895993e-06 | O132: 8583.336 | P132: 6007.874 | Q132: 8705.671 | R132: 6747.048 | S132: 8228.807 | T132: 6028.82 | U132: 7991.401 | V132: 11550.167 | W132: 7662.437 | X132: 4172.065 | Y132: 7567.7626 | Z132: 0.00186534363 | AA132: 7563.9208 | AC132: =L132-INDEX($C132:$L132,1,aux!$BA$1) -> -1.058 | AD132: 0.000117490518 | AE132: =+IF(INDEX($C132:$L132,1,aux!$BA$1)>0,(L132/INDEX($C132:$L132,1,aux!$BA$1))^(1/($L$3-INDEX($C$3:$L$3,1,aux!$BA$1)))-1,"n.d.") -> -0.08171386682 | AF132: =IF(INDEX($C132:$L132,1,aux!$BA$1)>0,(L132-INDEX($C132:$L132,1,aux!$BA$1))/INDEX($C132:$L132,1,aux!$BA$1),"n.d.") -> -0.5356962025 | AH132: =X132-INDEX($O132:$X132,1,aux!$BA$1) -> -4411.271 | AI132: -0.01455780519 | AJ132: =+IF(INDEX($O132:$X132,1,aux!$BA$1)>0,(X132/INDEX($O132:$X132,1,aux!$BA$1))^(1/($X$3-INDEX($O$3:$X$3,1,aux!$BA$1)))-1,"n.d.") -> -0.07702842096 | AK132: =IF(INDEX($O132:$X132,1,aux!$BA$1)>0,(X132-INDEX($O132:$X132,1,aux!$BA$1))/INDEX($O132:$X132,1,aux!$BA$1),"n.d.") -> -0.5139343258 | CC132: =+IF(ISNA(MATCH('5.1'!A132,AUX_2d_pais!$G$2:$G$40000,0)),0,1) -> 1
A133: 0268 | B133: Libéria | C133: 0.035 | D133: 0 | E133: 0 | F133: 0 | G133: 0 | H133: 0 | I133: 0 | J133: 0 | K133: 0 | L133: 0 | M133: 0.0035 | N133: 1.732686755e-09 | O133: 0 | P133: 0 | Q133: 147.914 | R133: 275.406 | S133: 325.672 | T133: 28.721 | U133: 1.844 | V133: 0 | W133: 0 | X133: 0.055 | Y133: 77.9612 | Z133: 1.921630415e-05 | AA133: 77.9577 | AC133: =L133-INDEX($C133:$L133,1,aux!$BA$1) -> -0.035 | AD133: 3.886737364e-06 | AE133: =+IF(INDEX($C133:$L133,1,aux!$BA$1)>0,(L133/INDEX($C133:$L133,1,aux!$BA$1))^(1/($L$3-INDEX($C$3:$L$3,1,aux!$BA$1)))-1,"n.d.") -> -1 | AF133: =IF(INDEX($C133:$L133,1,aux!$BA$1)>0,(L133-INDEX($C133:$L133,1,aux!$BA$1))/INDEX($C133:$L133,1,aux!$BA$1),"n.d.") -> -1 | AH133: =X133-INDEX($O133:$X133,1,aux!$BA$1) -> 0.055 | AI133: 1.815076166e-07 | AJ133: =+IF(INDEX($O133:$X133,1,aux!$BA$1)>0,(X133/INDEX($O133:$X133,1,aux!$BA$1))^(1/($X$3-INDEX($O$3:$X$3,1,aux!$BA$1)))-1,"n.d.") -> n.d. | AK133: =IF(INDEX($O133:$X133,1,aux!$BA$1)>0,(X133-INDEX($O133:$X133,1,aux!$BA$1))/INDEX($O133:$X133,1,aux!$BA$1),"n.d.") -> n.d. | CC133: =+IF(ISNA(MATCH('5.1'!A133,AUX_2d_pais!$G$2:$G$40000,0)),0,1) -> 1
A134: 0216 | B134: Líbia, Jamahira Árabe da | C134: 0 | D134: 0 | E134: 0 | F134: 0 | G134: 0 | H134: 1.114 | I134: 0 | J134: 0.176 | K134: 0.034 | L134: 0 | M134: 0.1324 | N134: 6.554506468e-08 | O134: 128.269 | P134: 594.572 | Q134: 1712.993 | R134: 377.296 | S134: 734.965 | T134: 199.303 | U134: 296.395 | V134: 2823.444 | W134: 1904.326 | X134: 186.913 | Y134: 895.8476 | Z134: 0.0002208134296 | AA134: 895.7152 | AC134: =L134-INDEX($C134:$L134,1,aux!$BA$1) -> 0 | AD134: 0 | AE134: =+IF(INDEX($C134:$L134,1,aux!$BA$1)>0,(L134/INDEX($C134:$L134,1,aux!$BA$1))^(1/($L$3-INDEX($C$3:$L$3,1,aux!$BA$1)))-1,"n.d.") -> n.d. | AF134: =IF(INDEX($C134:$L134,1,aux!$BA$1)>0,(L134-INDEX($C134:$L134,1,aux!$BA$1))/INDEX($C134:$L134,1,aux!$BA$1),"n.d.") -> n.d. | AH134: =X134-INDEX($O134:$X134,1,aux!$BA$1) -> 58.644 | AI134: 0.0001935333212 | AJ134: =+IF(INDEX($O134:$X134,1,aux!$BA$1)>0,(X134/INDEX($O134:$X134,1,aux!$BA$1))^(1/($X$3-INDEX($O$3:$X$3,1,aux!$BA$1)))-1,"n.d.") -> 0.04272225857 | AK134: =IF(INDEX($O134:$X134,1,aux!$BA$1)>0,(X134-INDEX($O134:$X134,1,aux!$BA$1))/INDEX($O134:$X134,1,aux!$BA$1),"n.d.") -> 0.4571954252 | CC134: =+IF(ISNA(MATCH('5.1'!A134,AUX_2d_pais!$G$2:$G$40000,0)),0,1) -> 1
A135: 0037 | B135: Liechtenstein | C135: 0.396 | D135: 0 | E135: 0 | F135: 0.07 | G135: 0 | H135: 0 | I135: 0 | J135: 0 | K135: 0.247 | L135: 0 | M135: 0.0713 | N135: 3.529730447e-08 | O135: 15.616 | P135: 0 | Q135: 15.041 | R135: 3.648 | S135: 0.23 | T135: 0 | U135: 0 | V135: 22.745 | W135: 11.304 | X135: 12.334 | Y135: 8.0918 | Z135: 1.994511243e-06 | AA135: 8.0205 | AC135: =L135-INDEX($C135:$L135,1,aux!$BA$1) -> -0.396 | AD135: 4.397565703e-05 | AE135: =+IF(INDEX($C135:$L135,1,aux!$BA$1)>0,(L135/INDEX($C135:$L135,1,aux!$BA$1))^(1/($L$3-INDEX($C$3:$L$3,1,aux!$BA$1)))-1,"n.d.") -> -1 | AF135: =IF(INDEX($C135:$L135,1,aux!$BA$1)>0,(L135-INDEX($C135:$L135,1,aux!$BA$1))/INDEX($C135:$L135,1,aux!$BA$1),"n.d.") -> -1 | AH135: =X135-INDEX($O135:$X135,1,aux!$BA$1) -> -3.282 | AI135: -1.08310545e-05 | AJ135: =+IF(INDEX($O135:$X135,1,aux!$BA$1)>0,(X135/INDEX($O135:$X135,1,aux!$BA$1))^(1/($X$3-INDEX($O$3:$X$3,1,aux!$BA$1)))-1,"n.d.") -> -0.02587451637 | AK135: =IF(INDEX($O135:$X135,1,aux!$BA$1)>0,(X135-INDEX($O135:$X135,1,aux!$BA$1))/INDEX($O135:$X135,1,aux!$BA$1),"n.d.") -> -0.2101690574 | CC135: =+IF(ISNA(MATCH('5.1'!A135,AUX_2d_pais!$G$2:$G$40000,0)),0,1) -> 1
A136: 0055 | B136: Lituânia | C136: 543.427 | D136: 1202.537 | E136: 311.668 | F136: 751.195 | G136: 1973.967 | H136: 1840.453 | I136: 1155.063 | J136: 1334.531 | K136: 987.283 | L136: 2243.713 | M136: 1234.3837 | N136: 0.0006110857965 | O136: 4187.389 | P136: 4701.913 | Q136: 4856.816 | R136: 5021.786 | S136: 4414.794 | T136: 4313.939 | U136: 6563.963 | V136: 7326.417 | W136: 7770.333 | X136: 8029.234 | Y136: 5718.6584 | Z136: 0.001409566286 | AA136: 4484.2747 | AC136: =L136-INDEX($C136:$L136,1,aux!$BA$1) -> 1700.286 | AD136: -0.1888161464 | AE136: =+IF(INDEX($C136:$L136,1,aux!$BA$1)>0,(L136/INDEX($C136:$L136,1,aux!$BA$1))^(1/($L$3-INDEX($C$3:$L$3,1,aux!$BA$1)))-1,"n.d.") -> 0.1706447487 | AF136: =IF(INDEX($C136:$L136,1,aux!$BA$1)>0,(L136-INDEX($C136:$L136,1,aux!$BA$1))/INDEX($C136:$L136,1,aux!$BA$1),"n.d.") -> 3.12882135 | AH136: =X136-INDEX($O136:$X136,1,aux!$BA$1) -> 3841.845 | AI136: 0.01267862053 | AJ136: =+IF(INDEX($O136:$X136,1,aux!$BA$1)>0,(X136/INDEX($O136:$X136,1,aux!$BA$1))^(1/($X$3-INDEX($O$3:$X$3,1,aux!$BA$1)))-1,"n.d.") -> 0.07501502473 | AK136: =IF(INDEX($O136:$X136,1,aux!$BA$1)>0,(X136-INDEX($O136:$X136,1,aux!$BA$1))/INDEX($O136:$X136,1,aux!$BA$1),"n.d.") -> 0.9174798425 | CC136: =+IF(ISNA(MATCH('5.1'!A136,AUX_2d_pais!$G$2:$G$40000,0)),0,1) -> 1
A137: 0018 | B137: Luxemburgo | C137: 912.433 | D137: 582.722 | E137: 604.203 | F137: 395.707 | G137: 349.898 | H137: 319.872 | I137: 222.553 | J137: 179.737 | K137: 425.871 | L137: 520.182 | M137: 451.3178 | N137: 0.0002234263927 | O137: 1534.855 | P137: 1988.776 | Q137: 2192.837 | R137: 2227.274 | S137: 2094.292 | T137: 2435.599 | U137: 2391.831 | V137: 2328.115 | W137: 2936.864 | X137: 2890.964 | Y137: 2302.1407 | Z137: 0.0005674442656 | AA137: 1850.8229 | AC137: =L137-INDEX($C137:$L137,1,aux!$BA$1) -> -392.251 | AD137: 0.04355933193 | AE137: =+IF(INDEX($C137:$L137,1,aux!$BA$1)>0,(L137/INDEX($C137:$L137,1,aux!$BA$1))^(1/($L$3-INDEX($C$3:$L$3,1,aux!$BA$1)))-1,"n.d.") -> -0.06052805583 | AF137: =IF(INDEX($C137:$L137,1,aux!$BA$1)>0,(L137-INDEX($C137:$L137,1,aux!$BA$1))/INDEX($C137:$L137,1,aux!$BA$1),"n.d.") -> -0.4298956745 | AH137: =X137-INDEX($O137:$X137,1,aux!$BA$1) -> 1356.109 | AI137: 0.004475347499 | AJ137: =+IF(INDEX($O137:$X137,1,aux!$BA$1)>0,(X137/INDEX($O137:$X137,1,aux!$BA$1))^(1/($X$3-INDEX($O$3:$X$3,1,aux!$BA$1)))-1,"n.d.") -> 0.07288411316 | AK137: =IF(INDEX($O137:$X137,1,aux!$BA$1)>0,(X137-INDEX($O137:$X137,1,aux!$BA$1))/INDEX($O137:$X137,1,aux!$BA$1),"n.d.") -> 0.8835420936 | CC137: =+IF(ISNA(MATCH('5.1'!A137,AUX_2d_pais!$G$2:$G$40000,0)),0,1) -> 1
A138: 0743 | B138: Macau | C138: 1.69 | D138: 6.937 | E138: 2.087 | F138: 0.604 | G138: 1.582 | H138: 25.234 | I138: 5.933 | J138: 0.069 | K138: 0.983 | L138: 0.069 | M138: 4.5188 | N138: 2.237047117e-06 | O138: 9.42 | P138: 20.737 | Q138: 15.219 | R138: 14.548 | S138: 19.367 | T138: 106.18 | U138: 17.541 | V138: 121.536 | W138: 100.741 | X138: 35.126 | Y138: 46.0415 | Z138: 1.134856143e-05 | AA138: 41.5227 | AC138: =L138-INDEX($C138:$L138,1,aux!$BA$1) -> -1.621 | AD138: 0.0001800114648 | AE138: =+IF(INDEX($C138:$L138,1,aux!$BA$1)>0,(L138/INDEX($C138:$L138,1,aux!$BA$1))^(1/($L$3-INDEX($C$3:$L$3,1,aux!$BA$1)))-1,"n.d.") -> -0.2990896269 | AF138: =IF(INDEX($C138:$L138,1,aux!$BA$1)>0,(L138-INDEX($C138:$L138,1,aux!$BA$1))/INDEX($C138:$L138,1,aux!$BA$1),"n.d.") -> -0.9591715976 | AH138: =X138-INDEX($O138:$X138,1,aux!$BA$1) -> 25.706 | AI138: 8.483335985e-05 | AJ138: =+IF(INDEX($O138:$X138,1,aux!$BA$1)>0,(X138/INDEX($O138:$X138,1,aux!$BA$1))^(1/($X$3-INDEX($O$3:$X$3,1,aux!$BA$1)))-1,"n.d.") -> 0.157467069 | AK138: =IF(INDEX($O138:$X138,1,aux!$BA$1)>0,(X138-INDEX($O138:$X138,1,aux!$BA$1))/INDEX($O138:$X138,1,aux!$BA$1),"n.d.") -> 2.728874735 | CC138: =+IF(ISNA(MATCH('5.1'!A138,AUX_2d_pais!$G$2:$G$40000,0)),0,1) -> 1
A139: 0096 | B139: Macedónia, Antiga República jugoslava da | C139: 0.342 | D139: 0 | E139: 0.041 | F139: 1.006 | G139: 0.082 | H139: 42.069 | I139: 226.33 | J139: 439.374 | K139: 328.974 | L139: 260.067 | M139: 129.8285 | N139: 6.427203497e-05 | O139: 407.616 | P139: 323.529 | Q139: 533.078 | R139: 333.743 | S139: 360.268 | T139: 588.372 | U139: 381.367 | V139: 513.664 | W139: 466.784 | X139: 612.181 | Y139: 452.0602 | Z139: 0.0001114262774 | AA139: 322.2317 | AC139: =L139-INDEX($C139:$L139,1,aux!$BA$1) -> 259.725 | AD139: -0.02884236748 | AE139: =+IF(INDEX($C139:$L139,1,aux!$BA$1)>0,(L139/INDEX($C139:$L139,1,aux!$BA$1))^(1/($L$3-INDEX($C$3:$L$3,1,aux!$BA$1)))-1,"n.d.") -> 1.089862352 | AF139: =IF(INDEX($C139:$L139,1,aux!$BA$1)>0,(L139-INDEX($C139:$L139,1,aux!$BA$1))/INDEX($C139:$L139,1,aux!$BA$1),"n.d.") -> 759.4298246 | AH139: =X139-INDEX($O139:$X139,1,aux!$BA$1) -> 204.565 | AI139: 0.0006750928289 | AJ139: =+IF(INDEX($O139:$X139,1,aux!$BA$1)>0,(X139/INDEX($O139:$X139,1,aux!$BA$1))^(1/($X$3-INDEX($O$3:$X$3,1,aux!$BA$1)))-1,"n.d.") -> 0.04622574475 | AK139: =IF(INDEX($O139:$X139,1,aux!$BA$1)>0,(X139-INDEX($O139:$X139,1,aux!$BA$1))/INDEX($O139:$X139,1,aux!$BA$1),"n.d.") -> 0.5018571401 | CC139: =+IF(ISNA(MATCH('5.1'!A139,AUX_2d_pais!$G$2:$G$40000,0)),0,1) -> 1
A140: 0370 | B140: Madagáscar | C140: 8.695 | D140: 0 | E140: 0 | F140: 34.121 | G140: 9.172 | H140: 17.479 | I140: 4.101 | J140: 6.941 | K140: 26.02 | L140: 11.009 | M140: 11.7538 | N140: 5.818758167e-06 | O140: 81.51 | P140: 147.77 | Q140: 290.273 | R140: 272.089 | S140: 209.628 | T140: 175.549 | U140: 159.846 | V140: 115.082 | W140: 246.12 | X140: 80.021 | Y140: 177.7888 | Z140: 4.382235849e-05 | AA140: 166.035 | AC140: =L140-INDEX($C140:$L140,1,aux!$BA$1) -> 2.314 | AD140: -0.0002569688646 | AE140: =+IF(INDEX($C140:$L140,1,aux!$BA$1)>0,(L140/INDEX($C140:$L140,1,aux!$BA$1))^(1/($L$3-INDEX($C$3:$L$3,1,aux!$BA$1)))-1,"n.d.") -> 0.02656505422 | AF140: =IF(INDEX($C140:$L140,1,aux!$BA$1)>0,(L140-INDEX($C140:$L140,1,aux!$BA$1))/INDEX($C140:$L140,1,aux!$BA$1),"n.d.") -> 0.2661299597 | AH140: =X140-INDEX($O140:$X140,1,aux!$BA$1) -> -1.489 | AI140: -4.913906202e-06 | AJ140: =+IF(INDEX($O140:$X140,1,aux!$BA$1)>0,(X140/INDEX($O140:$X140,1,aux!$BA$1))^(1/($X$3-INDEX($O$3:$X$3,1,aux!$BA$1)))-1,"n.d.") -> -0.002046415661 | AK140: =IF(INDEX($O140:$X140,1,aux!$BA$1)>0,(X140-INDEX($O140:$X140,1,aux!$BA$1))/INDEX($O140:$X140,1,aux!$BA$1),"n.d.") -> -0.01826769722 | CC140: =+IF(ISNA(MATCH('5.1'!A140,AUX_2d_pais!$G$2:$G$40000,0)),0,1) -> 1
A141: 0701 | B141: Malásia | C141: 325.231 | D141: 307.83 | E141: 142.984 | F141: 290.966 | G141: 261.951 | H141: 459.313 | I141: 330.444 | J141: 521.257 | K141: 650.895 | L141: 406.154 | M141: 369.7025 | N141: 0.0001830224643 | O141: 1877.529 | P141: 1983.665 | Q141: 1692.768 | R141: 2008.352 | S141: 1740.981 | T141: 3003.892 | U141: 3008.339 | V141: 3273.899 | W141: 1514.76 | X141: 1181.844 | Y141: 2128.6029 | Z141: 0.0005246697169 | AA141: 1758.9004 | AC141: =L141-INDEX($C141:$L141,1,aux!$BA$1) -> 80.923 | AD141: -0.008986469934 | AE141: =+IF(INDEX($C141:$L141,1,aux!$BA$1)>0,(L141/INDEX($C141:$L141,1,aux!$BA$1))^(1/($L$3-INDEX($C$3:$L$3,1,aux!$BA$1)))-1,"n.d.") -> 0.02499580726 | AF141: =IF(INDEX($C141:$L141,1,aux!$BA$1)>0,(L141-INDEX($C141:$L141,1,aux!$BA$1))/INDEX($C141:$L141,1,aux!$BA$1),"n.d.") -> 0.2488169947 | AH141: =X141-INDEX($O141:$X141,1,aux!$BA$1) -> -695.685 | AI141: -0.002295856841 | AJ141: =+IF(INDEX($O141:$X141,1,aux!$BA$1)>0,(X141/INDEX($O141:$X141,1,aux!$BA$1))^(1/($X$3-INDEX($O$3:$X$3,1,aux!$BA$1)))-1,"n.d.") -> -0.0501309823 | AK141: =IF(INDEX($O141:$X141,1,aux!$BA$1)>0,(X141-INDEX($O141:$X141,1,aux!$BA$1))/INDEX($O141:$X141,1,aux!$BA$1),"n.d.") -> -0.3705322261 | CC141: =+IF(ISNA(MATCH('5.1'!A141,AUX_2d_pais!$G$2:$G$40000,0)),0,1) -> 1
A142: 0386 | B142: Malavi | C142: 0 | D142: 0.687 | E142: 0.366 | F142: 3.314 | G142: 0 | H142: 0 | I142: 0 | J142: 0 | K142: 1.394 | L142: 0 | M142: 0.5761 | N142: 2.852002399e-07 | O142: 0.139 | P142: 24.375 | Q142: 3.566 | R142: 36.19 | S142: 153.563 | T142: 136.362 | U142: 3.209 | V142: 4.666 | W142: 1.776 | X142: 0.23 | Y142: 36.4076 | Z142: 8.973944922e-06 | AA142: 35.8315 | AC142: =L142-INDEX($C142:$L142,1,aux!$BA$1) -> 0 | AD142: 0 | AE142: =+IF(INDEX($C142:$L142,1,aux!$BA$1)>0,(L142/INDEX($C142:$L142,1,aux!$BA$1))^(1/($L$3-INDEX($C$3:$L$3,1,aux!$BA$1)))-1,"n.d.") -> n.d. | AF142: =IF(INDEX($C142:$L142,1,aux!$BA$1)>0,(L142-INDEX($C142:$L142,1,aux!$BA$1))/INDEX($C142:$L142,1,aux!$BA$1),"n.d.") -> n.d. | AH142: =X142-INDEX($O142:$X142,1,aux!$BA$1) -> 0.091 | AI142: 3.00312602e-07 | AJ142: =+IF(INDEX($O142:$X142,1,aux!$BA$1)>0,(X142/INDEX($O142:$X142,1,aux!$BA$1))^(1/($X$3-INDEX($O$3:$X$3,1,aux!$BA$1)))-1,"n.d.") -> 0.05755131213 | AK142: =IF(INDEX($O142:$X142,1,aux!$BA$1)>0,(X142-INDEX($O142:$X142,1,aux!$BA$1))/INDEX($O142:$X142,1,aux!$BA$1),"n.d.") -> 0.654676259 | CC142: =+IF(ISNA(MATCH('5.1'!A142,AUX_2d_pais!$G$2:$G$40000,0)),0,1) -> 1
A143: 0667 | B143: Maldivas | C143: 0 | D143: 0 | E143: 0 | F143: 0 | G143: 0 | H143: 0 | I143: 0 | J143: 0 | K143: 0 | L143: 0 | M143: 0 | N143: 0 | O143: 0 | P143: 0 | Q143: 0 | R143: 0 | S143: 0.515 | T143: 0.148 | U143: 1.525 | V143: 0.895 | W143: 1.715 | X143: 0 | Y143: 0.4798 | Z143: 1.182637354e-07 | AA143: 0.4798 | AC143: =L143-INDEX($C143:$L143,1,aux!$BA$1) -> 0 | AD143: 0 | AE143: =+IF(INDEX($C143:$L143,1,aux!$BA$1)>0,(L143/INDEX($C143:$L143,1,aux!$BA$1))^(1/($L$3-INDEX($C$3:$L$3,1,aux!$BA$1)))-1,"n.d.") -> n.d. | AF143: =IF(INDEX($C143:$L143,1,aux!$BA$1)>0,(L143-INDEX($C143:$L143,1,aux!$BA$1))/INDEX($C143:$L143,1,aux!$BA$1),"n.d.") -> n.d. | AH143: =X143-INDEX($O143:$X143,1,aux!$BA$1) -> 0 | AI143: 0 | AJ143: =+IF(INDEX($O143:$X143,1,aux!$BA$1)>0,(X143/INDEX($O143:$X143,1,aux!$BA$1))^(1/($X$3-INDEX($O$3:$X$3,1,aux!$BA$1)))-1,"n.d.") -> n.d. | AK143: =IF(INDEX($O143:$X143,1,aux!$BA$1)>0,(X143-INDEX($O143:$X143,1,aux!$BA$1))/INDEX($O143:$X143,1,aux!$BA$1),"n.d.") -> n.d. | CC143: =+IF(ISNA(MATCH('5.1'!A143,AUX_2d_pais!$G$2:$G$40000,0)),0,1) -> 1
A144: 0232 | B144: Mali | C144: 0 | D144: 1.901 | E144: 0 | F144: 0.293 | G144: 0.855 | H144: 5.829 | I144: 1.237 | J144: 1.345 | K144: 2.509 | L144: 0.206 | M144: 1.4175 | N144: 7.017381358e-07 | O144: 26.96 | P144: 18.782 | Q144: 109.282 | R144: 220.657 | S144: 602.647 | T144: 417.174 | U144: 1086.68 | V144: 416.175 | W144: 163.09 | X144: 97.942 | Y144: 315.9389 | Z144: 7.787435281e-05 | AA144: 314.5214 | AC144: =L144-INDEX($C144:$L144,1,aux!$BA$1) -> 0.206 | AD144: -2.287622563e-05 | AE144: =+IF(INDEX($C144:$L144,1,aux!$BA$1)>0,(L144/INDEX($C144:$L144,1,aux!$BA$1))^(1/($L$3-INDEX($C$3:$L$3,1,aux!$BA$1)))-1,"n.d.") -> n.d. | AF144: =IF(INDEX($C144:$L144,1,aux!$BA$1)>0,(L144-INDEX($C144:$L144,1,aux!$BA$1))/INDEX($C144:$L144,1,aux!$BA$1),"n.d.") -> n.d. | AH144: =X144-INDEX($O144:$X144,1,aux!$BA$1) -> 70.982 | AI144: 0.0002342504298 | AJ144: =+IF(INDEX($O144:$X144,1,aux!$BA$1)>0,(X144/INDEX($O144:$X144,1,aux!$BA$1))^(1/($X$3-INDEX($O$3:$X$3,1,aux!$BA$1)))-1,"n.d.") -> 0.1541171585 | AK144: =IF(INDEX($O144:$X144,1,aux!$BA$1)>0,(X144-INDEX($O144:$X144,1,aux!$BA$1))/INDEX($O144:$X144,1,aux!$BA$1),"n.d.") -> 2.632863501 | CC144: =+IF(ISNA(MATCH('5.1'!A144,AUX_2d_pais!$G$2:$G$40000,0)),0,1) -> 1
A145: 0046 | B145: Malta | C145: 69.67 | D145: 3.97 | E145: 3.962 | F145: 0 | G145: 10.871 | H145: 14.845 | I145: 13.588 | J145: 2.495 | K145: 28.321 | L145: 5.325 | M145: 15.3047 | N145: 7.576643138e-06 | O145: 1453.088 | P145: 1664.104 | Q145: 2514.544 | R145: 2481.873 | S145: 1916.933 | T145: 2384.077 | U145: 2445.739 | V145: 3996.097 | W145: 4756.915 | X145: 3828.947 | Y145: 2744.2317 | Z145: 0.0006764132799 | AA145: 2728.927 | AC145: =L145-INDEX($C145:$L145,1,aux!$BA$1) -> -64.345 | AD145: 0.007145489019 | AE145: =+IF(INDEX($C145:$L145,1,aux!$BA$1)>0,(L145/INDEX($C145:$L145,1,aux!$BA$1))^(1/($L$3-INDEX($C$3:$L$3,1,aux!$BA$1)))-1,"n.d.") -> -0.248516739 | AF145: =IF(INDEX($C145:$L145,1,aux!$BA$1)>0,(L145-INDEX($C145:$L145,1,aux!$BA$1))/INDEX($C145:$L145,1,aux!$BA$1),"n.d.") -> -0.9235682503 | AH145: =X145-INDEX($O145:$X145,1,aux!$BA$1) -> 2375.859 | AI145: 0.007840663717 | AJ145: =+IF(INDEX($O145:$X145,1,aux!$BA$1)>0,(X145/INDEX($O145:$X145,1,aux!$BA$1))^(1/($X$3-INDEX($O$3:$X$3,1,aux!$BA$1)))-1,"n.d.") -> 0.1136639458 | AK145: =IF(INDEX($O145:$X145,1,aux!$BA$1)>0,(X145-INDEX($O145:$X145,1,aux!$BA$1))/INDEX($O145:$X145,1,aux!$BA$1),"n.d.") -> 1.635041374 | CC145: =+IF(ISNA(MATCH('5.1'!A145,AUX_2d_pais!$G$2:$G$40000,0)),0,1) -> 1
A146: 0820 | B146: Marianas do Norte, Ilhas | C146: 0 | D146: 0 | E146: 0 | F146: 0 | G146: 0 | H146: 0 | I146: 0 | J146: 0 | K146: 0 | L146: 0 | M146: 0 | N146: 0 | O146: 0 | P146: 0 | Q146: 0 | R146: 0 | S146: 0 | T146: 0 | U146: 0 | V146: 0 | W146: 0 | X146: 0 | Y146: 0 | Z146: 0 | AA146: 0 | AC146: =L146-INDEX($C146:$L146,1,aux!$BA$1) -> 0 | AD146: 0 | AE146: =+IF(INDEX($C146:$L146,1,aux!$BA$1)>0,(L146/INDEX($C146:$L146,1,aux!$BA$1))^(1/($L$3-INDEX($C$3:$L$3,1,aux!$BA$1)))-1,"n.d.") -> n.d. | AF146: =IF(INDEX($C146:$L146,1,aux!$BA$1)>0,(L146-INDEX($C146:$L146,1,aux!$BA$1))/INDEX($C146:$L146,1,aux!$BA$1),"n.d.") -> n.d. | AH146: =X146-INDEX($O146:$X146,1,aux!$BA$1) -> 0 | AI146: 0 | AJ146: =+IF(INDEX($O146:$X146,1,aux!$BA$1)>0,(X146/INDEX($O146:$X146,1,aux!$BA$1))^(1/($X$3-INDEX($O$3:$X$3,1,aux!$BA$1)))-1,"n.d.") -> n.d. | AK146: =IF(INDEX($O146:$X146,1,aux!$BA$1)>0,(X146-INDEX($O146:$X146,1,aux!$BA$1))/INDEX($O146:$X146,1,aux!$BA$1),"n.d.") -> n.d. | AM146: =SUM(A146:AA146) -> 0 | BO146: =SUM(C146:L146,O146:X146) -> 0 | CC146: =+IF(ISNA(MATCH('5.1'!A146,AUX_2d_pais!$G$2:$G$40000,0)),0,1) -> 0
A147: 0204 | B147: Marrocos | C147: 5487 | D147: 8332.155 | E147: 9605.74 | F147: 11829.62 | G147: 13305.855 | H147: 16108.681 | I147: 13587.864 | J147: 18101.38 | K147: 18815.403 | L147: 11964.306 | M147: 12713.8004 | N147: 0.006294009589 | O147: 53916.627 | P147: 51200.421 | Q147: 45260.446 | R147: 51812.721 | S147: 54605.601 | T147: 59028.314 | U147: 50773.67 | V147: 66369.107 | W147: 67595.964 | X147: 46747.934 | Y147: 54731.0805 | Z147: 0.01349041689 | AA147: 42017.2801 | AC147: =L147-INDEX($C147:$L147,1,aux!$BA$1) -> 6477.306 | AD147: -0.7193024928 | AE147: =+IF(INDEX($C147:$L147,1,aux!$BA$1)>0,(L147/INDEX($C147:$L147,1,aux!$BA$1))^(1/($L$3-INDEX($C$3:$L$3,1,aux!$BA$1)))-1,"n.d.") -> 0.0904781053 | AF147: =IF(INDEX($C147:$L147,1,aux!$BA$1)>0,(L147-INDEX($C147:$L147,1,aux!$BA$1))/INDEX($C147:$L147,1,aux!$BA$1),"n.d.") -> 1.180482231 | AH147: =X147-INDEX($O147:$X147,1,aux!$BA$1) -> -7168.693 | AI147: -0.02365767964 | AJ147: =+IF(INDEX($O147:$X147,1,aux!$BA$1)>0,(X147/INDEX($O147:$X147,1,aux!$BA$1))^(1/($X$3-INDEX($O$3:$X$3,1,aux!$BA$1)))-1,"n.d.") -> -0.01572711093 | AK147: =IF(INDEX($O147:$X147,1,aux!$BA$1)>0,(X147-INDEX($O147:$X147,1,aux!$BA$1))/INDEX($O147:$X147,1,aux!$BA$1),"n.d.") -> -0.1329588552 | CC147: =+IF(ISNA(MATCH('5.1'!A147,AUX_2d_pais!$G$2:$G$40000,0)),0,1) -> 1
A148: 0824 | B148: Marshall, Ilhas | C148: 0 | D148: 0 | E148: 0 | F148: 0 | G148: 0 | H148: 0 | I148: 0 | J148: 0 | K148: 0 | L148: 0 | M148: 0 | N148: 0 | O148: 0 | P148: 0 | Q148: 0 | R148: 0 | S148: 0 | T148: 0 | U148: 0 | V148: 0 | W148: 0 | X148: 0 | Y148: 0 | Z148: 0 | AA148: 0 | AC148: =L148-INDEX($C148:$L148,1,aux!$BA$1) -> 0 | AD148: 0 | AE148: =+IF(INDEX($C148:$L148,1,aux!$BA$1)>0,(L148/INDEX($C148:$L148,1,aux!$BA$1))^(1/($L$3-INDEX($C$3:$L$3,1,aux!$BA$1)))-1,"n.d.") -> n.d. | AF148: =IF(INDEX($C148:$L148,1,aux!$BA$1)>0,(L148-INDEX($C148:$L148,1,aux!$BA$1))/INDEX($C148:$L148,1,aux!$BA$1),"n.d.") -> n.d. | AH148: =X148-INDEX($O148:$X148,1,aux!$BA$1) -> 0 | AI148: 0 | AJ148: =+IF(INDEX($O148:$X148,1,aux!$BA$1)>0,(X148/INDEX($O148:$X148,1,aux!$BA$1))^(1/($X$3-INDEX($O$3:$X$3,1,aux!$BA$1)))-1,"n.d.") -> n.d. | AK148: =IF(INDEX($O148:$X148,1,aux!$BA$1)>0,(X148-INDEX($O148:$X148,1,aux!$BA$1))/INDEX($O148:$X148,1,aux!$BA$1),"n.d.") -> n.d. | AM148: 0 | CC148: =+IF(ISNA(MATCH('5.1'!A148,AUX_2d_pais!$G$2:$G$40000,0)),0,1) -> 0
A149: 0462 | B149: Martinica | C149: 0 | D149: 0 | E149: 0 | F149: 0 | G149: 0 | H149: 0 | I149: 0 | J149: 0 | K149: 0 | L149: 0 | M149: 0 | N149: 0 | O149: 0 | P149: 0 | Q149: 0 | R149: 0 | S149: 0 | T149: 0 | U149: 0 | V149: 0 | W149: 0 | X149: 0 | Y149: 0 | Z149: 0 | AA149: 0 | AC149: =L149-INDEX($C149:$L149,1,aux!$BA$1) -> 0 | AD149: 0 | AE149: =+IF(INDEX($C149:$L149,1,aux!$BA$1)>0,(L149/INDEX($C149:$L149,1,aux!$BA$1))^(1/($L$3-INDEX($C$3:$L$3,1,aux!$BA$1)))-1,"n.d.") -> n.d. | AF149: =IF(INDEX($C149:$L149,1,aux!$BA$1)>0,(L149-INDEX($C149:$L149,1,aux!$BA$1))/INDEX($C149:$L149,1,aux!$BA$1),"n.d.") -> n.d. | AH149: =X149-INDEX($O149:$X149,1,aux!$BA$1) -> 0 | AI149: 0 | AJ149: =+IF(INDEX($O149:$X149,1,aux!$BA$1)>0,(X149/INDEX($O149:$X149,1,aux!$BA$1))^(1/($X$3-INDEX($O$3:$X$3,1,aux!$BA$1)))-1,"n.d.") -> n.d. | AK149: =IF(INDEX($O149:$X149,1,aux!$BA$1)>0,(X149-INDEX($O149:$X149,1,aux!$BA$1))/INDEX($O149:$X149,1,aux!$BA$1),"n.d.") -> n.d. | AM149: 0 | BO149: 0 | CC149: =+IF(ISNA(MATCH('5.1'!A149,AUX_2d_pais!$G$2:$G$40000,0)),0,1) -> 0
A150: 0373 | B150: Maurícias | C150: 0.066 | D150: 0 | E150: 0.186 | F150: 2.38 | G150: 0.05 | H150: 0.238 | I150: 0 | J150: 0 | K150: 0 | L150: 72.52 | M150: 7.544 | N150: 3.734682537e-06 | O150: 65.486 | P150: 61.569 | Q150: 94.705 | R150: 125.631 | S150: 181.497 | T150: 314.168 | U150: 161.067 | V150: 180.776 | W150: 183.985 | X150: 88.223 | Y150: 145.7107 | Z150: 3.591557247e-05 | AA150: 138.1667 | AC150: =L150-INDEX($C150:$L150,1,aux!$BA$1) -> 72.454 | AD150: -0.008045990542 | AE150: =+IF(INDEX($C150:$L150,1,aux!$BA$1)>0,(L150/INDEX($C150:$L150,1,aux!$BA$1))^(1/($L$3-INDEX($C$3:$L$3,1,aux!$BA$1)))-1,"n.d.") -> 1.177104712 | AF150: =IF(INDEX($C150:$L150,1,aux!$BA$1)>0,(L150-INDEX($C150:$L150,1,aux!$BA$1))/INDEX($C150:$L150,1,aux!$BA$1),"n.d.") -> 1097.787879 | AH150: =X150-INDEX($O150:$X150,1,aux!$BA$1) -> 22.737 | AI150: 7.50352487e-05 | AJ150: =+IF(INDEX($O150:$X150,1,aux!$BA$1)>0,(X150/INDEX($O150:$X150,1,aux!$BA$1))^(1/($X$3-INDEX($O$3:$X$3,1,aux!$BA$1)))-1,"n.d.") -> 0.03366898181 | AK150: =IF(INDEX($O150:$X150,1,aux!$BA$1)>0,(X150-INDEX($O150:$X150,1,aux!$BA$1))/INDEX($O150:$X150,1,aux!$BA$1),"n.d.") -> 0.3472039825 | CC150: =+IF(ISNA(MATCH('5.1'!A150,AUX_2d_pais!$G$2:$G$40000,0)),0,1) -> 1
A151: 0228 | B151: Mauritânia | C151: 0 | D151: 0 | E151: 0 | F151: 0 | G151: 0 | H151: 0 | I151: 0 | J151: 0.003 | K151: 0 | L151: 41.212 | M151: 4.1215 | N151: 2.040362418e-06 | O151: 20.378 | P151: 9.617 | Q151: 0.033 | R151: 82.657 | S151: 223.387 | T151: 399.023 | U151: 836.496 | V151: 933.057 | W151: 891.097 | X151: 1007.781 | Y151: 440.3526 | Z151: 0.0001085405239 | AA151: 436.2311 | AC151: =L151-INDEX($C151:$L151,1,aux!$BA$1) -> 41.212 | AD151: -0.004576577721 | AE151: =+IF(INDEX($C151:$L151,1,aux!$BA$1)>0,(L151/INDEX($C151:$L151,1,aux!$BA$1))^(1/($L$3-INDEX($C$3:$L$3,1,aux!$BA$1)))-1,"n.d.") -> n.d. | AF151: =IF(INDEX($C151:$L151,1,aux!$BA$1)>0,(L151-INDEX($C151:$L151,1,aux!$BA$1))/INDEX($C151:$L151,1,aux!$BA$1),"n.d.") -> n.d. | AH151: =X151-INDEX($O151:$X151,1,aux!$BA$1) -> 987.403 | AI151: 0.003258566639 | AJ151: =+IF(INDEX($O151:$X151,1,aux!$BA$1)>0,(X151/INDEX($O151:$X151,1,aux!$BA$1))^(1/($X$3-INDEX($O$3:$X$3,1,aux!$BA$1)))-1,"n.d.") -> 0.5425702684 | AK151: =IF(INDEX($O151:$X151,1,aux!$BA$1)>0,(X151-INDEX($O151:$X151,1,aux!$BA$1))/INDEX($O151:$X151,1,aux!$BA$1),"n.d.") -> 48.45436255 | CC151: =+IF(ISNA(MATCH('5.1'!A151,AUX_2d_pais!$G$2:$G$40000,0)),0,1) -> 1
A152: 0377 | B152: Mayotte | C152: 0 | D152: 0 | E152: 0 | F152: 0 | G152: 0 | H152: 0 | I152: 0 | J152: 0 | K152: 0 | L152: 0 | M152: 0 | N152: 0 | O152: 0 | P152: 0.002 | Q152: 0 | R152: 0 | S152: 0 | T152: 0 | U152: 0 | V152: 0 | W152: 0 | X152: 0 | Y152: 0.0002 | Z152: 4.929709688e-11 | AA152: 0.0002 | AC152: =L152-INDEX($C152:$L152,1,aux!$BA$1) -> 0 | AD152: 0 | AE152: =+IF(INDEX($C152:$L152,1,aux!$BA$1)>0,(L152/INDEX($C152:$L152,1,aux!$BA$1))^(1/($L$3-INDEX($C$3:$L$3,1,aux!$BA$1)))-1,"n.d.") -> n.d. | AF152: =IF(INDEX($C152:$L152,1,aux!$BA$1)>0,(L152-INDEX($C152:$L152,1,aux!$BA$1))/INDEX($C152:$L152,1,aux!$BA$1),"n.d.") -> n.d. | AH152: =X152-INDEX($O152:$X152,1,aux!$BA$1) -> 0 | AI152: 0 | AJ152: =+IF(INDEX($O152:$X152,1,aux!$BA$1)>0,(X152/INDEX($O152:$X152,1,aux!$BA$1))^(1/($X$3-INDEX($O$3:$X$3,1,aux!$BA$1)))-1,"n.d.") -> n.d. | AK152: =IF(INDEX($O152:$X152,1,aux!$BA$1)>0,(X152-INDEX($O152:$X152,1,aux!$BA$1))/INDEX($O152:$X152,1,aux!$BA$1),"n.d.") -> n.d. | BO152: 0.002 | CC152: =+IF(ISNA(MATCH('5.1'!A152,AUX_2d_pais!$G$2:$G$40000,0)),0,1) -> 1
A153: 0023 | B153: Melilha | C153: 0 | D153: 0 | E153: 0 | F153: 0 | G153: 0 | H153: 0 | I153: 0 | J153: 0 | K153: 0 | L153: 0 | M153: 0 | N153: 0 | O153: 36.999 | P153: 0 | Q153: 0 | R153: 13.962 | S153: 5.976 | T153: 5.69 | U153: 29.158 | V153: 11.33 | W153: 0 | X153: 0 | Y153: 10.3115 | Z153: 2.541635072e-06 | AA153: 10.3115 | AC153: =L153-INDEX($C153:$L153,1,aux!$BA$1) -> 0 | AD153: 0 | AE153: =+IF(INDEX($C153:$L153,1,aux!$BA$1)>0,(L153/INDEX($C153:$L153,1,aux!$BA$1))^(1/($L$3-INDEX($C$3:$L$3,1,aux!$BA$1)))-1,"n.d.") -> n.d. | AF153: =IF(INDEX($C153:$L153,1,aux!$BA$1)>0,(L153-INDEX($C153:$L153,1,aux!$BA$1))/INDEX($C153:$L153,1,aux!$BA$1),"n.d.") -> n.d. | AH153: =X153-INDEX($O153:$X153,1,aux!$BA$1) -> -36.999 | AI153: -0.0001221018237 | AJ153: =+IF(INDEX($O153:$X153,1,aux!$BA$1)>0,(X153/INDEX($O153:$X153,1,aux!$BA$1))^(1/($X$3-INDEX($O$3:$X$3,1,aux!$BA$1)))-1,"n.d.") -> -1 | AK153: =IF(INDEX($O153:$X153,1,aux!$BA$1)>0,(X153-INDEX($O153:$X153,1,aux!$BA$1))/INDEX($O153:$X153,1,aux!$BA$1),"n.d.") -> -1 | CC153: =+IF(ISNA(MATCH('5.1'!A153,AUX_2d_pais!$G$2:$G$40000,0)),0,1) -> 1
A154: 0832 | B154: Menores distantes dos Estados Unidos, lhas | C154: 0 | D154: 0 | E154: 0 | F154: 0 | G154: 0 | H154: 0 | I154: 0 | J154: 0 | K154: 0 | L154: 0 | M154: 0 | N154: 0 | O154: 0 | P154: 0 | Q154: 0 | R154: 0 | S154: 0 | T154: 0 | U154: 0 | V154: 0.001 | W154: 0 | X154: 0 | Y154: 0.0001 | Z154: 2.464854844e-11 | AA154: 0.0001 | AC154: =L154-INDEX($C154:$L154,1,aux!$BA$1) -> 0 | AD154: 0 | AE154: =+IF(INDEX($C154:$L154,1,aux!$BA$1)>0,(L154/INDEX($C154:$L154,1,aux!$BA$1))^(1/($L$3-INDEX($C$3:$L$3,1,aux!$BA$1)))-1,"n.d.") -> n.d. | AF154: =IF(INDEX($C154:$L154,1,aux!$BA$1)>0,(L154-INDEX($C154:$L154,1,aux!$BA$1))/INDEX($C154:$L154,1,aux!$BA$1),"n.d.") -> n.d. | AH154: =X154-INDEX($O154:$X154,1,aux!$BA$1) -> 0 | AI154: 0 | AJ154: =+IF(INDEX($O154:$X154,1,aux!$BA$1)>0,(X154/INDEX($O154:$X154,1,aux!$BA$1))^(1/($X$3-INDEX($O$3:$X$3,1,aux!$BA$1)))-1,"n.d.") -> n.d. | AK154: =IF(INDEX($O154:$X154,1,aux!$BA$1)>0,(X154-INDEX($O154:$X154,1,aux!$BA$1))/INDEX($O154:$X154,1,aux!$BA$1),"n.d.") -> n.d. | BO154: 0.001 | CC154: =+IF(ISNA(MATCH('5.1'!A154,AUX_2d_pais!$G$2:$G$40000,0)),0,1) -> 1
A155: 0412 | B155: México | C155: 610.437 | D155: 8.782 | E155: 388.725 | F155: 902.79 | G155: 948.046 | H155: 240.9 | I155: 1084.582 | J155: 1026.221 | K155: 783.807 | L155: 837.805 | M155: 683.2095 | N155: 0.0003382251576 | O155: 18481.348 | P155: 23905.701 | Q155: 22641.29 | R155: 25615.776 | S155: 31702.627 | T155: 30158.755 | U155: 28829.337 | V155: 50710.656 | W155: 56408.351 | X155: 54935.609 | Y155: 34338.945 | Z155: 0.008464051492 | AA155: 33655.7355 | AC155: =L155-INDEX($C155:$L155,1,aux!$BA$1) -> 227.368 | AD155: -0.02524913431 | AE155: =+IF(INDEX($C155:$L155,1,aux!$BA$1)>0,(L155/INDEX($C155:$L155,1,aux!$BA$1))^(1/($L$3-INDEX($C$3:$L$3,1,aux!$BA$1)))-1,"n.d.") -> 0.03580501873 | AF155: =IF(INDEX($C155:$L155,1,aux!$BA$1)>0,(L155-INDEX($C155:$L155,1,aux!$BA$1))/INDEX($C155:$L155,1,aux!$BA$1),"n.d.") -> 0.3724675929 | AH155: =X155-INDEX($O155:$X155,1,aux!$BA$1) -> 36454.261 | AI155: 0.1203041096 | AJ155: =+IF(INDEX($O155:$X155,1,aux!$BA$1)>0,(X155/INDEX($O155:$X155,1,aux!$BA$1))^(1/($X$3-INDEX($O$3:$X$3,1,aux!$BA$1)))-1,"n.d.") -> 0.1286750428 | AK155: =IF(INDEX($O155:$X155,1,aux!$BA$1)>0,(X155-INDEX($O155:$X155,1,aux!$BA$1))/INDEX($O155:$X155,1,aux!$BA$1),"n.d.") -> 1.97248929 | CC155: =+IF(ISNA(MATCH('5.1'!A155,AUX_2d_pais!$G$2:$G$40000,0)),0,1) -> 1
A156: 0823 | B156: Micronésia, Estados Federados da | C156: 0 | D156: 0 | E156: 0 | F156: 0 | G156: 0 | H156: 0 | I156: 0 | J156: 0 | K156: 0 | L156: 0.195 | M156: 0.0195 | N156: 9.653540493e-09 | O156: 0 | P156: 0 | Q156: 0 | R156: 0 | S156: 0 | T156: 0 | U156: 0 | V156: 0 | W156: 0 | X156: 0 | Y156: 0 | Z156: 0 | AA156: -0.0195 | AC156: =L156-INDEX($C156:$L156,1,aux!$BA$1) -> 0.195 | AD156: -2.16546796e-05 | AE156: =+IF(INDEX($C156:$L156,1,aux!$BA$1)>0,(L156/INDEX($C156:$L156,1,aux!$BA$1))^(1/($L$3-INDEX($C$3:$L$3,1,aux!$BA$1)))-1,"n.d.") -> n.d. | AF156: =IF(INDEX($C156:$L156,1,aux!$BA$1)>0,(L156-INDEX($C156:$L156,1,aux!$BA$1))/INDEX($C156:$L156,1,aux!$BA$1),"n.d.") -> n.d. | AH156: =X156-INDEX($O156:$X156,1,aux!$BA$1) -> 0 | AI156: 0 | AJ156: =+IF(INDEX($O156:$X156,1,aux!$BA$1)>0,(X156/INDEX($O156:$X156,1,aux!$BA$1))^(1/($X$3-INDEX($O$3:$X$3,1,aux!$BA$1)))-1,"n.d.") -> n.d. | AK156: =IF(INDEX($O156:$X156,1,aux!$BA$1)>0,(X156-INDEX($O156:$X156,1,aux!$BA$1))/INDEX($O156:$X156,1,aux!$BA$1),"n.d.") -> n.d. | BO156: 0.195 | CC156: =+IF(ISNA(MATCH('5.1'!A156,AUX_2d_pais!$G$2:$G$40000,0)),0,1) -> 1
A157: 0366 | B157: Moçambique | C157: 18.451 | D157: 23.199 | E157: 8.58 | F157: 11.978 | G157: 1.151 | H157: 9.784 | I157: 148.809 | J157: 25.237 | K157: 36.171 | L157: 2.076 | M157: 28.5436 | N157: 1.413060505e-05 | O157: 7071.746 | P157: 10024.664 | Q157: 10634.053 | R157: 10638.84 | S157: 12372.734 | T157: 9888.979 | U157: 7339.826 | V157: 7004.704 | W157: 6420.586 | X157: 5742.617 | Y157: 8713.8749 | Z157: 0.002147843676 | AA157: 8685.3313 | AC157: =L157-INDEX($C157:$L157,1,aux!$BA$1) -> -16.375 | AD157: 0.001818437838 | AE157: =+IF(INDEX($C157:$L157,1,aux!$BA$1)>0,(L157/INDEX($C157:$L157,1,aux!$BA$1))^(1/($L$3-INDEX($C$3:$L$3,1,aux!$BA$1)))-1,"n.d.") -> -0.2155259093 | AF157: =IF(INDEX($C157:$L157,1,aux!$BA$1)>0,(L157-INDEX($C157:$L157,1,aux!$BA$1))/INDEX($C157:$L157,1,aux!$BA$1),"n.d.") -> -0.8874857731 | AH157: =X157-INDEX($O157:$X157,1,aux!$BA$1) -> -1329.129 | AI157: -0.004386309762 | AJ157: =+IF(INDEX($O157:$X157,1,aux!$BA$1)>0,(X157/INDEX($O157:$X157,1,aux!$BA$1))^(1/($X$3-INDEX($O$3:$X$3,1,aux!$BA$1)))-1,"n.d.") -> -0.02286698175 | AK157: =IF(INDEX($O157:$X157,1,aux!$BA$1)>0,(X157-INDEX($O157:$X157,1,aux!$BA$1))/INDEX($O157:$X157,1,aux!$BA$1),"n.d.") -> -0.1879491995 | CC157: =+IF(ISNA(MATCH('5.1'!A157,AUX_2d_pais!$G$2:$G$40000,0)),0,1) -> 1
A158: 0074 | B158: Moldava, República de | C158: 78.388 | D158: 7.056 | E158: 25.118 | F158: 14.474 | G158: 30.04 | H158: 33.942 | I158: 0 | J158: 0.287 | K158: 10.032 | L158: 14.242 | M158: 21.3579 | N158: 1.057330013e-05 | O158: 4144.332 | P158: 4375.943 | Q158: 3931.74 | R158: 2557.508 | S158: 2249.645 | T158: 2164.006 | U158: 2907.17 | V158: 2690.976 | W158: 2400.625 | X158: 2363.948 | Y158: 2978.5893 | Z158: 0.0007341790265 | AA158: 2957.2314 | AC158: =L158-INDEX($C158:$L158,1,aux!$BA$1) -> -64.146 | AD158: 0.007123390141 | AE158: =+IF(INDEX($C158:$L158,1,aux!$BA$1)>0,(L158/INDEX($C158:$L158,1,aux!$BA$1))^(1/($L$3-INDEX($C$3:$L$3,1,aux!$BA$1)))-1,"n.d.") -> -0.1726250316 | AF158: =IF(INDEX($C158:$L158,1,aux!$BA$1)>0,(L158-INDEX($C158:$L158,1,aux!$BA$1))/INDEX($C158:$L158,1,aux!$BA$1),"n.d.") -> -0.8183140277 | AH158: =X158-INDEX($O158:$X158,1,aux!$BA$1) -> -1780.384 | AI158: -0.005875513754 | AJ158: =+IF(INDEX($O158:$X158,1,aux!$BA$1)>0,(X158/INDEX($O158:$X158,1,aux!$BA$1))^(1/($X$3-INDEX($O$3:$X$3,1,aux!$BA$1)))-1,"n.d.") -> -0.0604730019 | AK158: =IF(INDEX($O158:$X158,1,aux!$BA$1)>0,(X158-INDEX($O158:$X158,1,aux!$BA$1))/INDEX($O158:$X158,1,aux!$BA$1),"n.d.") -> -0.4295949263 | CC158: =+IF(ISNA(MATCH('5.1'!A158,AUX_2d_pais!$G$2:$G$40000,0)),0,1) -> 1
A159: 0716 | B159: Mongólia | C159: 0 | D159: 0 | E159: 0 | F159: 0 | G159: 0 | H159: 0 | I159: 0 | J159: 0 | K159: 0 | L159: 0 | M159: 0 | N159: 0 | O159: 0 | P159: 0.028 | Q159: 0 | R159: 120.59 | S159: 39.478 | T159: 0.005 | U159: 0.284 | V159: 0 | W159: 0.019 | X159: 0.048 | Y159: 16.0452 | Z159: 3.954908894e-06 | AA159: 16.0452 | AC159: =L159-INDEX($C159:$L159,1,aux!$BA$1) -> 0 | AD159: 0 | AE159: =+IF(INDEX($C159:$L159,1,aux!$BA$1)>0,(L159/INDEX($C159:$L159,1,aux!$BA$1))^(1/($L$3-INDEX($C$3:$L$3,1,aux!$BA$1)))-1,"n.d.") -> n.d. | AF159: =IF(INDEX($C159:$L159,1,aux!$BA$1)>0,(L159-INDEX($C159:$L159,1,aux!$BA$1))/INDEX($C159:$L159,1,aux!$BA$1),"n.d.") -> n.d. | AH159: =X159-INDEX($O159:$X159,1,aux!$BA$1) -> 0.048 | AI159: 1.584066472e-07 | AJ159: =+IF(INDEX($O159:$X159,1,aux!$BA$1)>0,(X159/INDEX($O159:$X159,1,aux!$BA$1))^(1/($X$3-INDEX($O$3:$X$3,1,aux!$BA$1)))-1,"n.d.") -> n.d. | AK159: =IF(INDEX($O159:$X159,1,aux!$BA$1)>0,(X159-INDEX($O159:$X159,1,aux!$BA$1))/INDEX($O159:$X159,1,aux!$BA$1),"n.d.") -> n.d. | BO159: 160.452 | CC159: =+IF(ISNA(MATCH('5.1'!A159,AUX_2d_pais!$G$2:$G$40000,0)),0,1) -> 1
A160: 0470 | B160: Monserrate | C160: 0 | D160: 0 | E160: 0 | F160: 0 | G160: 0 | H160: 0 | I160: 0 | J160: 0 | K160: 0 | L160: 0 | M160: 0 | N160: 0 | O160: 0 | P160: 0 | Q160: 0 | R160: 0 | S160: 0 | T160: 0 | U160: 0 | V160: 0 | W160: 0 | X160: 0.004 | Y160: 0.0004 | Z160: 9.859419376e-11 | AA160: 0.0004 | AC160: =L160-INDEX($C160:$L160,1,aux!$BA$1) -> 0 | AD160: 0 | AE160: =+IF(INDEX($C160:$L160,1,aux!$BA$1)>0,(L160/INDEX($C160:$L160,1,aux!$BA$1))^(1/($L$3-INDEX($C$3:$L$3,1,aux!$BA$1)))-1,"n.d.") -> n.d. | AF160: =IF(INDEX($C160:$L160,1,aux!$BA$1)>0,(L160-INDEX($C160:$L160,1,aux!$BA$1))/INDEX($C160:$L160,1,aux!$BA$1),"n.d.") -> n.d. | AH160: =X160-INDEX($O160:$X160,1,aux!$BA$1) -> 0.004 | AI160: 1.320055393e-08 | AJ160: =+IF(INDEX($O160:$X160,1,aux!$BA$1)>0,(X160/INDEX($O160:$X160,1,aux!$BA$1))^(1/($X$3-INDEX($O$3:$X$3,1,aux!$BA$1)))-1,"n.d.") -> n.d. | AK160: =IF(INDEX($O160:$X160,1,aux!$BA$1)>0,(X160-INDEX($O160:$X160,1,aux!$BA$1))/INDEX($O160:$X160,1,aux!$BA$1),"n.d.") -> n.d. | BO160: 0.004 | CC160: =+IF(ISNA(MATCH('5.1'!A160,AUX_2d_pais!$G$2:$G$40000,0)),0,1) -> 1
A161: 0097 | B161: Montenegro | C161: 0 | D161: 0 | E161: 0 | F161: 0 | G161: 0 | H161: 0 | I161: 66.197 | J161: 0 | K161: 0 | L161: 0 | M161: 6.6197 | N161: 3.277104718e-06 | O161: 119.471 | P161: 76.819 | Q161: 72.273 | R161: 33.285 | S161: 49.108 | T161: 442.403 | U161: 173.544 | V161: 194.144 | W161: 227.842 | X161: 150.666 | Y161: 153.9555 | Z161: 3.794779599e-05 | AA161: 147.3358 | AC161: =L161-INDEX($C161:$L161,1,aux!$BA$1) -> 0 | AD161: 0 | AE161: =+IF(INDEX($C161:$L161,1,aux!$BA$1)>0,(L161/INDEX($C161:$L161,1,aux!$BA$1))^(1/($L$3-INDEX($C$3:$L$3,1,aux!$BA$1)))-1,"n.d.") -> n.d. | AF161: =IF(INDEX($C161:$L161,1,aux!$BA$1)>0,(L161-INDEX($C161:$L161,1,aux!$BA$1))/INDEX($C161:$L161,1,aux!$BA$1),"n.d.") -> n.d. | AH161: =X161-INDEX($O161:$X161,1,aux!$BA$1) -> 31.195 | AI161: 0.00010294782 | AJ161: =+IF(INDEX($O161:$X161,1,aux!$BA$1)>0,(X161/INDEX($O161:$X161,1,aux!$BA$1))^(1/($X$3-INDEX($O$3:$X$3,1,aux!$BA$1)))-1,"n.d.") -> 0.0261119634 | AK161: =IF(INDEX($O161:$X161,1,aux!$BA$1)>0,(X161-INDEX($O161:$X161,1,aux!$BA$1))/INDEX($O161:$X161,1,aux!$BA$1),"n.d.") -> 0.2611093906 | BO161: 1605.752 | CC161: =+IF(ISNA(MATCH('5.1'!A161,AUX_2d_pais!$G$2:$G$40000,0)),0,1) -> 1
A162: 0676 | B162: Myanmar | C162: 0 | D162: 0 | E162: 0 | F162: 0.043 | G162: 128.133 | H162: 3.047 | I162: 80.373 | J162: 75.98 | K162: 228.638 | L162: 181.346 | M162: 69.756 | N162: 3.453294208e-05 | O162: 0 | P162: 0 | Q162: 0.562 | R162: 8.263 | S162: 8.086 | T162: 39.178 | U162: 2.65 | V162: 31.86 | W162: 60.57 | X162: 56.815 | Y162: 20.7984 | Z162: 5.126503699e-06 | AA162: -48.9576 | AC162: =L162-INDEX($C162:$L162,1,aux!$BA$1) -> 181.346 | AD162: -0.02013840783 | AE162: =+IF(INDEX($C162:$L162,1,aux!$BA$1)>0,(L162/INDEX($C162:$L162,1,aux!$BA$1))^(1/($L$3-INDEX($C$3:$L$3,1,aux!$BA$1)))-1,"n.d.") -> n.d. | AF162: =IF(INDEX($C162:$L162,1,aux!$BA$1)>0,(L162-INDEX($C162:$L162,1,aux!$BA$1))/INDEX($C162:$L162,1,aux!$BA$1),"n.d.") -> n.d. | AH162: =X162-INDEX($O162:$X162,1,aux!$BA$1) -> 56.815 | AI162: 0.0001874973679 | AJ162: =+IF(INDEX($O162:$X162,1,aux!$BA$1)>0,(X162/INDEX($O162:$X162,1,aux!$BA$1))^(1/($X$3-INDEX($O$3:$X$3,1,aux!$BA$1)))-1,"n.d.") -> n.d. | AK162: =IF(INDEX($O162:$X162,1,aux!$BA$1)>0,(X162-INDEX($O162:$X162,1,aux!$BA$1))/INDEX($O162:$X162,1,aux!$BA$1),"n.d.") -> n.d. | CC162: =+IF(ISNA(MATCH('5.1'!A162,AUX_2d_pais!$G$2:$G$40000,0)),0,1) -> 1
A163: 0389 | B163: Namíbia | C163: 844.307 | D163: 180.795 | E163: 360.172 | F163: 450.423 | G163: 230.843 | H163: 708.77 | I163: 279.86 | J163: 378.337 | K163: 369.304 | L163: 787.203 | M163: 459.0014 | N163: 0.0002272301847 | O163: 0.968 | P163: 45.053 | Q163: 4.066 | R163: 9.28 | S163: 7.209 | T163: 15.106 | U163: 7.388 | V163: 37.505 | W163: 8.236 | X163: 110.216 | Y163: 24.5027 | Z163: 6.039559879e-06 | AA163: -434.4987 | AC163: =L163-INDEX($C163:$L163,1,aux!$BA$1) -> -57.104 | AD163: 0.006341378584 | AE163: =+IF(INDEX($C163:$L163,1,aux!$BA$1)>0,(L163/INDEX($C163:$L163,1,aux!$BA$1))^(1/($L$3-INDEX($C$3:$L$3,1,aux!$BA$1)))-1,"n.d.") -> -0.007750918377 | AF163: =IF(INDEX($C163:$L163,1,aux!$BA$1)>0,(L163-INDEX($C163:$L163,1,aux!$BA$1))/INDEX($C163:$L163,1,aux!$BA$1),"n.d.") -> -0.06763416625 | AH163: =X163-INDEX($O163:$X163,1,aux!$BA$1) -> 109.248 | AI163: 0.000360533529 | AJ163: =+IF(INDEX($O163:$X163,1,aux!$BA$1)>0,(X163/INDEX($O163:$X163,1,aux!$BA$1))^(1/($X$3-INDEX($O$3:$X$3,1,aux!$BA$1)))-1,"n.d.") -> 0.692331649 | AK163: =IF(INDEX($O163:$X163,1,aux!$BA$1)>0,(X163-INDEX($O163:$X163,1,aux!$BA$1))/INDEX($O163:$X163,1,aux!$BA$1),"n.d.") -> 112.8595041 | CC163: =+IF(ISNA(MATCH('5.1'!A163,AUX_2d_pais!$G$2:$G$40000,0)),0,1) -> 1
A164: 0803 | B164: Nauru | C164: 0 | D164: 0 | E164: 0 | F164: 0 | G164: 0 | H164: 0 | I164: 0 | J164: 0 | K164: 0 | L164: 0 | M164: 0 | N164: 0 | O164: 0 | P164: 0 | Q164: 0 | R164: 0 | S164: 0 | T164: 0 | U164: 0 | V164: 0 | W164: 0 | X164: 0 | Y164: 0 | Z164: 0 | AA164: 0 | AC164: =L164-INDEX($C164:$L164,1,aux!$BA$1) -> 0 | AD164: 0 | AE164: =+IF(INDEX($C164:$L164,1,aux!$BA$1)>0,(L164/INDEX($C164:$L164,1,aux!$BA$1))^(1/($L$3-INDEX($C$3:$L$3,1,aux!$BA$1)))-1,"n.d.") -> n.d. | AF164: =IF(INDEX($C164:$L164,1,aux!$BA$1)>0,(L164-INDEX($C164:$L164,1,aux!$BA$1))/INDEX($C164:$L164,1,aux!$BA$1),"n.d.") -> n.d. | AH164: =X164-INDEX($O164:$X164,1,aux!$BA$1) -> 0 | AI164: 0 | AJ164: =+IF(INDEX($O164:$X164,1,aux!$BA$1)>0,(X164/INDEX($O164:$X164,1,aux!$BA$1))^(1/($X$3-INDEX($O$3:$X$3,1,aux!$BA$1)))-1,"n.d.") -> n.d. | AK164: =IF(INDEX($O164:$X164,1,aux!$BA$1)>0,(X164-INDEX($O164:$X164,1,aux!$BA$1))/INDEX($O164:$X164,1,aux!$BA$1),"n.d.") -> n.d. | AM164: 0 | BO164: 0 | CC164: =+IF(ISNA(MATCH('5.1'!A164,AUX_2d_pais!$G$2:$G$40000,0)),0,1) -> 0
A165: 0672 | B165: Nepal | C165: 14.192 | D165: 1.93 | E165: 5.534 | F165: 0.731 | G165: 0.414 | H165: 1.614 | I165: 1.678 | J165: 2.654 | K165: 13.316 | L165: 7.176 | M165: 4.9239 | N165: 2.437593233e-06 | O165: 0 | P165: 0 | Q165: 0.001 | R165: 0 | S165: 0 | T165: 0 | U165: 28.542 | V165: 2.739 | W165: 0 | X165: 0.012 | Y165: 3.1294 | Z165: 7.713516749e-07 | AA165: -1.7945 | AC165: =L165-INDEX($C165:$L165,1,aux!$BA$1) -> -7.016 | AD165: =AC165/$AC$252 -> 0.000779124267 | AE165: =+IF(INDEX($C165:$L165,1,aux!$BA$1)>0,(L165/INDEX($C165:$L165,1,aux!$BA$1))^(1/($L$3-INDEX($C$3:$L$3,1,aux!$BA$1)))-1,"n.d.") -> -0.0729712502 | AF165: =IF(INDEX($C165:$L165,1,aux!$BA$1)>0,(L165-INDEX($C165:$L165,1,aux!$BA$1))/INDEX($C165:$L165,1,aux!$BA$1),"n.d.") -> -0.4943630214 | AH165: =X165-INDEX($O165:$X165,1,aux!$BA$1) -> 0.012 | AI165: =AH165/$AH$252 -> 3.96016618e-08 | AJ165: =+IF(INDEX($O165:$X165,1,aux!$BA$1)>0,(X165/INDEX($O165:$X165,1,aux!$BA$1))^(1/($X$3-INDEX($O$3:$X$3,1,aux!$BA$1)))-1,"n.d.") -> n.d. | AK165: =IF(INDEX($O165:$X165,1,aux!$BA$1)>0,(X165-INDEX($O165:$X165,1,aux!$BA$1))/INDEX($O165:$X165,1,aux!$BA$1),"n.d.") -> n.d. | BO165: 80.533 | CC165: =+IF(ISNA(MATCH('5.1'!A165,AUX_2d_pais!$G$2:$G$40000,0)),0,1) -> 1
A166: 0432 | B166: Nicarágua | C166: 0 | D166: 0 | E166: 0 | F166: 12.686 | G166: 0.399 | H166: 0 | I166: 0 | J166: 0 | K166: 0 | L166: 0 | M166: 1.3085 | N166: 6.477773198e-07 | O166: 330.878 | P166: 326.119 | Q166: 459.583 | R166: 300.829 | S166: 479.445 | T166: 233.871 | U166: 137.708 | V166: 833.534 | W166: 1180.265 | X166: 737.948 | Y166: 502.018 | Z166: 0.0001237401499 | AA166: 500.7095 | AC166: =L166-INDEX($C166:$L166,1,aux!$BA$1) -> 0 | AD166: 0 | AE166: =+IF(INDEX($C166:$L166,1,aux!$BA$1)>0,(L166/INDEX($C166:$L166,1,aux!$BA$1))^(1/($L$3-INDEX($C$3:$L$3,1,aux!$BA$1)))-1,"n.d.") -> n.d. | AF166: =IF(INDEX($C166:$L166,1,aux!$BA$1)>0,(L166-INDEX($C166:$L166,1,aux!$BA$1))/INDEX($C166:$L166,1,aux!$BA$1),"n.d.") -> n.d. | AH166: =X166-INDEX($O166:$X166,1,aux!$BA$1) -> 407.07 | AI166: 0.001343387372 | AJ166: =+IF(INDEX($O166:$X166,1,aux!$BA$1)>0,(X166/INDEX($O166:$X166,1,aux!$BA$1))^(1/($X$3-INDEX($O$3:$X$3,1,aux!$BA$1)))-1,"n.d.") -> 0.09321713403 | AK166: =IF(INDEX($O166:$X166,1,aux!$BA$1)>0,(X166-INDEX($O166:$X166,1,aux!$BA$1))/INDEX($O166:$X166,1,aux!$BA$1),"n.d.") -> 1.230272185 | CC166: =+IF(ISNA(MATCH('5.1'!A166,AUX_2d_pais!$G$2:$G$40000,0)),0,1) -> 1
A167: 0240 | B167: Niger | C167: 0 | D167: 29.7 | E167: 0 | F167: 0 | G167: 0 | H167: 0 | I167: 0 | J167: 0 | K167: 0 | L167: 0 | M167: 2.97 | N167: 1.470308475e-06 | O167: 54.402 | P167: 0.406 | Q167: 49.798 | R167: 167.371 | S167: 532.318 | T167: 506.778 | U167: 677.17 | V167: 234.018 | W167: 2241.851 | X167: 163.976 | Y167: 462.8088 | Z167: 0.0001140756513 | AA167: 459.8388 | AC167: =L167-INDEX($C167:$L167,1,aux!$BA$1) -> 0 | AD167: 0 | AE167: =+IF(INDEX($C167:$L167,1,aux!$BA$1)>0,(L167/INDEX($C167:$L167,1,aux!$BA$1))^(1/($L$3-INDEX($C$3:$L$3,1,aux!$BA$1)))-1,"n.d.") -> n.d. | AF167: =IF(INDEX($C167:$L167,1,aux!$BA$1)>0,(L167-INDEX($C167:$L167,1,aux!$BA$1))/INDEX($C167:$L167,1,aux!$BA$1),"n.d.") -> n.d. | AH167: =X167-INDEX($O167:$X167,1,aux!$BA$1) -> 109.574 | AI167: 0.0003616093742 | AJ167: =+IF(INDEX($O167:$X167,1,aux!$BA$1)>0,(X167/INDEX($O167:$X167,1,aux!$BA$1))^(1/($X$3-INDEX($O$3:$X$3,1,aux!$BA$1)))-1,"n.d.") -> 0.1304220036 | AK167: =IF(INDEX($O167:$X167,1,aux!$BA$1)>0,(X167-INDEX($O167:$X167,1,aux!$BA$1))/INDEX($O167:$X167,1,aux!$BA$1),"n.d.") -> 2.014153891 | CC167: =+IF(ISNA(MATCH('5.1'!A167,AUX_2d_pais!$G$2:$G$40000,0)),0,1) -> 1
A168: 0288 | B168: Nigéria | C168: 384.179 | D168: 707.77 | E168: 941.526 | F168: 1595.557 | G168: 2142.095 | H168: 3024.054 | I168: 2245.728 | J168: 4034.17 | K168: 5567.324 | L168: 3727.236 | M168: 2436.9639 | N168: 0.001206427164 | O168: 7817.887 | P168: 3558.986 | Q168: 7113.543 | R168: 5321.87 | S168: 3919.314 | T168: 2379.201 | U168: 2326.797 | V168: 3658.458 | W168: 5614.763 | X168: 3778.452 | Y168: 4548.9271 | Z168: 0.0011212445 | AA168: 2111.9632 | AC168: =L168-INDEX($C168:$L168,1,aux!$BA$1) -> 3343.057 | AD168: -0.3712452729 | AE168: =+IF(INDEX($C168:$L168,1,aux!$BA$1)>0,(L168/INDEX($C168:$L168,1,aux!$BA$1))^(1/($L$3-INDEX($C$3:$L$3,1,aux!$BA$1)))-1,"n.d.") -> 0.2872128405 | AF168: =IF(INDEX($C168:$L168,1,aux!$BA$1)>0,(L168-INDEX($C168:$L168,1,aux!$BA$1))/INDEX($C168:$L168,1,aux!$BA$1),"n.d.") -> 8.701821286 | AH168: =X168-INDEX($O168:$X168,1,aux!$BA$1) -> -4039.435 | AI168: -0.01333069489 | AJ168: =+IF(INDEX($O168:$X168,1,aux!$BA$1)>0,(X168/INDEX($O168:$X168,1,aux!$BA$1))^(1/($X$3-INDEX($O$3:$X$3,1,aux!$BA$1)))-1,"n.d.") -> -0.0776115936 | AK168: =IF(INDEX($O168:$X168,1,aux!$BA$1)>0,(X168-INDEX($O168:$X168,1,aux!$BA$1))/INDEX($O168:$X168,1,aux!$BA$1),"n.d.") -> -0.5166914027 | CC168: =+IF(ISNA(MATCH('5.1'!A168,AUX_2d_pais!$G$2:$G$40000,0)),0,1) -> 1
A169: 0838 | B169: Niue | C169: 0 | D169: 0 | E169: 0 | F169: 0 | G169: 0 | H169: 0 | I169: 0 | J169: 0 | K169: 0 | L169: 0 | M169: 0 | N169: 0 | O169: 0 | P169: 0 | Q169: 0 | R169: 0 | S169: 0 | T169: 0 | U169: 0 | V169: 0 | W169: 0 | X169: 0 | Y169: 0 | Z169: 0 | AA169: 0 | AC169: =L169-INDEX($C169:$L169,1,aux!$BA$1) -> 0 | AD169: 0 | AE169: =+IF(INDEX($C169:$L169,1,aux!$BA$1)>0,(L169/INDEX($C169:$L169,1,aux!$BA$1))^(1/($L$3-INDEX($C$3:$L$3,1,aux!$BA$1)))-1,"n.d.") -> n.d. | AF169: =IF(INDEX($C169:$L169,1,aux!$BA$1)>0,(L169-INDEX($C169:$L169,1,aux!$BA$1))/INDEX($C169:$L169,1,aux!$BA$1),"n.d.") -> n.d. | AH169: =X169-INDEX($O169:$X169,1,aux!$BA$1) -> 0 | AI169: 0 | AJ169: =+IF(INDEX($O169:$X169,1,aux!$BA$1)>0,(X169/INDEX($O169:$X169,1,aux!$BA$1))^(1/($X$3-INDEX($O$3:$X$3,1,aux!$BA$1)))-1,"n.d.") -> n.d. | AK169: =IF(INDEX($O169:$X169,1,aux!$BA$1)>0,(X169-INDEX($O169:$X169,1,aux!$BA$1))/INDEX($O169:$X169,1,aux!$BA$1),"n.d.") -> n.d. | AM169: 0 | BO169: 0 | CC169: =+IF(ISNA(MATCH('5.1'!A169,AUX_2d_pais!$G$2:$G$40000,0)),0,1) -> 0
A170: 0836 | B170: Norfolk, Ilha | C170: 0 | D170: 0 | E170: 0 | F170: 0 | G170: 0 | H170: 0 | I170: 0 | J170: 0 | K170: 0 | L170: 0 | M170: 0 | N170: 0 | O170: 0 | P170: 0 | Q170: 0 | R170: 0 | S170: 0 | T170: 0 | U170: 0 | V170: 0 | W170: 0 | X170: 0 | Y170: 0 | Z170: 0 | AA170: 0 | AC170: =L170-INDEX($C170:$L170,1,aux!$BA$1) -> 0 | AD170: 0 | AE170: =+IF(INDEX($C170:$L170,1,aux!$BA$1)>0,(L170/INDEX($C170:$L170,1,aux!$BA$1))^(1/($L$3-INDEX($C$3:$L$3,1,aux!$BA$1)))-1,"n.d.") -> n.d. | AF170: =IF(INDEX($C170:$L170,1,aux!$BA$1)>0,(L170-INDEX($C170:$L170,1,aux!$BA$1))/INDEX($C170:$L170,1,aux!$BA$1),"n.d.") -> n.d. | AH170: =X170-INDEX($O170:$X170,1,aux!$BA$1) -> 0 | AI170: 0 | AJ170: =+IF(INDEX($O170:$X170,1,aux!$BA$1)>0,(X170/INDEX($O170:$X170,1,aux!$BA$1))^(1/($X$3-INDEX($O$3:$X$3,1,aux!$BA$1)))-1,"n.d.") -> n.d. | AK170: =IF(INDEX($O170:$X170,1,aux!$BA$1)>0,(X170-INDEX($O170:$X170,1,aux!$BA$1))/INDEX($O170:$X170,1,aux!$BA$1),"n.d.") -> n.d. | AM170: 0 | BO170: 0 | CC170: =+IF(ISNA(MATCH('5.1'!A170,AUX_2d_pais!$G$2:$G$40000,0)),0,1) -> 0
A171: 0028 | B171: Noruega | C171: 2580.716 | D171: 941.685 | E171: 762.864 | F171: 654.954 | G171: 21.139 | H171: 117.009 | I171: 190.958 | J171: 69.52 | K171: 193.42 | L171: 143.918 | M171: 567.6183 | N171: 0.0002810013458 | O171: 2836.796 | P171: 3897.324 | Q171: 3644.771 | R171: 3237.471 | S171: 3612.911 | T171: 4580.549 | U171: 4867.566 | V171: 4357.334 | W171: 4672.131 | X171: 4680.772 | Y171: 4038.7625 | Z171: 0.0009954963312 | AA171: 3471.1442 | AC171: =L171-INDEX($C171:$L171,1,aux!$BA$1) -> -2436.798 | AD171: 0.2706055381 | AE171: =+IF(INDEX($C171:$L171,1,aux!$BA$1)>0,(L171/INDEX($C171:$L171,1,aux!$BA$1))^(1/($L$3-INDEX($C$3:$L$3,1,aux!$BA$1)))-1,"n.d.") -> -0.2743815408 | AF171: =IF(INDEX($C171:$L171,1,aux!$BA$1)>0,(L171-INDEX($C171:$L171,1,aux!$BA$1))/INDEX($C171:$L171,1,aux!$BA$1),"n.d.") -> -0.9442333058 | AH171: =X171-INDEX($O171:$X171,1,aux!$BA$1) -> 1843.976 | AI171: 0.00608537616 | AJ171: =+IF(INDEX($O171:$X171,1,aux!$BA$1)>0,(X171/INDEX($O171:$X171,1,aux!$BA$1))^(1/($X$3-INDEX($O$3:$X$3,1,aux!$BA$1)))-1,"n.d.") -> 0.05722028358 | AK171: =IF(INDEX($O171:$X171,1,aux!$BA$1)>0,(X171-INDEX($O171:$X171,1,aux!$BA$1))/INDEX($O171:$X171,1,aux!$BA$1),"n.d.") -> 0.6500206571 | CC171: =+IF(ISNA(MATCH('5.1'!A171,AUX_2d_pais!$G$2:$G$40000,0)),0,1) -> 1
A172: 0809 | B172: Nova Caledónia | C172: 0 | D172: 0 | E172: 0 | F172: 0 | G172: 0 | H172: 0 | I172: 0 | J172: 0 | K172: 0 | L172: 0 | M172: 0 | N172: 0 | O172: 6.075 | P172: 11.784 | Q172: 8.574 | R172: 21.602 | S172: 43.324 | T172: 23.153 | U172: 280.805 | V172: 26.331 | W172: 29.072 | X172: 197.058 | Y172: 64.7778 | Z172: 1.596678741e-05 | AA172: 64.7778 | AC172: =L172-INDEX($C172:$L172,1,aux!$BA$1) -> 0 | AD172: 0 | AE172: =+IF(INDEX($C172:$L172,1,aux!$BA$1)>0,(L172/INDEX($C172:$L172,1,aux!$BA$1))^(1/($L$3-INDEX($C$3:$L$3,1,aux!$BA$1)))-1,"n.d.") -> n.d. | AF172: =IF(INDEX($C172:$L172,1,aux!$BA$1)>0,(L172-INDEX($C172:$L172,1,aux!$BA$1))/INDEX($C172:$L172,1,aux!$BA$1),"n.d.") -> n.d. | AH172: =X172-INDEX($O172:$X172,1,aux!$BA$1) -> 190.983 | AI172: 0.000630270348 | AJ172: =+IF(INDEX($O172:$X172,1,aux!$BA$1)>0,(X172/INDEX($O172:$X172,1,aux!$BA$1))^(1/($X$3-INDEX($O$3:$X$3,1,aux!$BA$1)))-1,"n.d.") -> 0.4719538666 | AK172: =IF(INDEX($O172:$X172,1,aux!$BA$1)>0,(X172-INDEX($O172:$X172,1,aux!$BA$1))/INDEX($O172:$X172,1,aux!$BA$1),"n.d.") -> 31.43753086 | CC172: =+IF(ISNA(MATCH('5.1'!A172,AUX_2d_pais!$G$2:$G$40000,0)),0,1) -> 1
A173: 0804 | B173: Nova Zelânda | C173: 64.243 | D173: 23.547 | E173: 6.908 | F173: 3.062 | G173: 1.078 | H173: 0.694 | I173: 4.177 | J173: 25.521 | K173: 159.562 | L173: 35.719 | M173: 32.4511 | N173: 1.606502605e-05 | O173: 1335.23 | P173: 1307.248 | Q173: 1097.589 | R173: 1886.328 | S173: 1827.061 | T173: 1502.262 | U173: 1351.606 | V173: 1869.274 | W173: 1597.566 | X173: 1571.413 | Y173: 1534.5577 | Z173: 0.000378246198 | AA173: 1502.1066 | AC173: =L173-INDEX($C173:$L173,1,aux!$BA$1) -> -28.524 | AD173: 0.003167579902 | AE173: =+IF(INDEX($C173:$L173,1,aux!$BA$1)>0,(L173/INDEX($C173:$L173,1,aux!$BA$1))^(1/($L$3-INDEX($C$3:$L$3,1,aux!$BA$1)))-1,"n.d.") -> -0.06313971061 | AF173: =IF(INDEX($C173:$L173,1,aux!$BA$1)>0,(L173-INDEX($C173:$L173,1,aux!$BA$1))/INDEX($C173:$L173,1,aux!$BA$1),"n.d.") -> -0.4440016811 | AH173: =X173-INDEX($O173:$X173,1,aux!$BA$1) -> 236.183 | AI173: 0.0007794366074 | AJ173: =+IF(INDEX($O173:$X173,1,aux!$BA$1)>0,(X173/INDEX($O173:$X173,1,aux!$BA$1))^(1/($X$3-INDEX($O$3:$X$3,1,aux!$BA$1)))-1,"n.d.") -> 0.01826159058 | AK173: =IF(INDEX($O173:$X173,1,aux!$BA$1)>0,(X173-INDEX($O173:$X173,1,aux!$BA$1))/INDEX($O173:$X173,1,aux!$BA$1),"n.d.") -> 0.1768856302 | CC173: =+IF(ISNA(MATCH('5.1'!A173,AUX_2d_pais!$G$2:$G$40000,0)),0,1) -> 1
A174: 0357 | B174: Oceano Indico, Território Britânico do | C174: 0 | D174: 0 | E174: 0 | F174: 0 | G174: 0 | H174: 0 | I174: 0 | J174: 0 | K174: 0 | L174: 0 | M174: 0 | N174: 0 | O174: 0 | P174: 0 | Q174: 0 | R174: 0 | S174: 0 | T174: 0 | U174: 0 | V174: 0 | W174: 0 | X174: 0 | Y174: 0 | Z174: 0 | AA174: 0 | AC174: =L174-INDEX($C174:$L174,1,aux!$BA$1) -> 0 | AD174: 0 | AE174: =+IF(INDEX($C174:$L174,1,aux!$BA$1)>0,(L174/INDEX($C174:$L174,1,aux!$BA$1))^(1/($L$3-INDEX($C$3:$L$3,1,aux!$BA$1)))-1,"n.d.") -> n.d. | AF174: =IF(INDEX($C174:$L174,1,aux!$BA$1)>0,(L174-INDEX($C174:$L174,1,aux!$BA$1))/INDEX($C174:$L174,1,aux!$BA$1),"n.d.") -> n.d. | AH174: =X174-INDEX($O174:$X174,1,aux!$BA$1) -> 0 | AI174: 0 | AJ174: =+IF(INDEX($O174:$X174,1,aux!$BA$1)>0,(X174/INDEX($O174:$X174,1,aux!$BA$1))^(1/($X$3-INDEX($O$3:$X$3,1,aux!$BA$1)))-1,"n.d.") -> n.d. | AK174: =IF(INDEX($O174:$X174,1,aux!$BA$1)>0,(X174-INDEX($O174:$X174,1,aux!$BA$1))/INDEX($O174:$X174,1,aux!$BA$1),"n.d.") -> n.d. | AM174: 0 | BO174: 0 | CC174: =+IF(ISNA(MATCH('5.1'!A174,AUX_2d_pais!$G$2:$G$40000,0)),0,1) -> 0
A175: 0649 | B175: Omã | C175: 0 | D175: 0 | E175: 0 | F175: 0.725 | G175: 0 | H175: 0 | I175: 0 | J175: 0.501 | K175: 0 | L175: 0 | M175: 0.1226 | N175: 6.069354177e-08 | O175: 195.366 | P175: 487.865 | Q175: 309.325 | R175: 334.071 | S175: 466.697 | T175: 353.991 | U175: 490.533 | V175: 781.698 | W175: 811.205 | X175: 369.455 | Y175: 460.0206 | Z175: 0.0001133884004 | AA175: 459.898 | AC175: =L175-INDEX($C175:$L175,1,aux!$BA$1) -> 0 | AD175: 0 | AE175: =+IF(INDEX($C175:$L175,1,aux!$BA$1)>0,(L175/INDEX($C175:$L175,1,aux!$BA$1))^(1/($L$3-INDEX($C$3:$L$3,1,aux!$BA$1)))-1,"n.d.") -> n.d. | AF175: =IF(INDEX($C175:$L175,1,aux!$BA$1)>0,(L175-INDEX($C175:$L175,1,aux!$BA$1))/INDEX($C175:$L175,1,aux!$BA$1),"n.d.") -> n.d. | AH175: =X175-INDEX($O175:$X175,1,aux!$BA$1) -> 174.089 | AI175: 0.0005745178084 | AJ175: =+IF(INDEX($O175:$X175,1,aux!$BA$1)>0,(X175/INDEX($O175:$X175,1,aux!$BA$1))^(1/($X$3-INDEX($O$3:$X$3,1,aux!$BA$1)))-1,"n.d.") -> 0.07336107177 | AK175: =IF(INDEX($O175:$X175,1,aux!$BA$1)>0,(X175-INDEX($O175:$X175,1,aux!$BA$1))/INDEX($O175:$X175,1,aux!$BA$1),"n.d.") -> 0.8910915922 | CC175: =+IF(ISNA(MATCH('5.1'!A175,AUX_2d_pais!$G$2:$G$40000,0)),0,1) -> 1
A176: 0003 | B176: Países Baixos | C176: 98760.742 | D176: 56702.762 | E176: 42880.55 | F176: 58823.683 | G176: 53307.234 | H176: 40947.688 | I176: 45973.477 | J176: 44038.155 | K176: 44734.005 | L176: 42792.996 | M176: 52896.1292 | N176: 0.02618640642 | O176: 208446.665 | P176: 181358.704 | Q176: 166871.21 | R176: 182386.909 | S176: 183275.968 | T176: 212266.801 | U176: 232267.893 | V176: 219445.927 | W176: 213997.748 | X176: 189893.803 | Y176: 199021.1628 | Z176: 0.04905582772 | AA176: 146125.0336 | AC176: =L176-INDEX($C176:$L176,1,aux!$BA$1) -> -55967.746 | AD176: 6.215197987 | AE176: =+IF(INDEX($C176:$L176,1,aux!$BA$1)>0,(L176/INDEX($C176:$L176,1,aux!$BA$1))^(1/($L$3-INDEX($C$3:$L$3,1,aux!$BA$1)))-1,"n.d.") -> -0.08873823187 | AF176: =IF(INDEX($C176:$L176,1,aux!$BA$1)>0,(L176-INDEX($C176:$L176,1,aux!$BA$1))/INDEX($C176:$L176,1,aux!$BA$1),"n.d.") -> -0.5667003393 | AH176: =X176-INDEX($O176:$X176,1,aux!$BA$1) -> -18552.862 | AI176: -0.06122701386 | AJ176: =+IF(INDEX($O176:$X176,1,aux!$BA$1)>0,(X176/INDEX($O176:$X176,1,aux!$BA$1))^(1/($X$3-INDEX($O$3:$X$3,1,aux!$BA$1)))-1,"n.d.") -> -0.01030412507 | AK176: =IF(INDEX($O176:$X176,1,aux!$BA$1)>0,(X176-INDEX($O176:$X176,1,aux!$BA$1))/INDEX($O176:$X176,1,aux!$BA$1),"n.d.") -> -0.08900531942 | CC176: =+IF(ISNA(MATCH('5.1'!A176,AUX_2d_pais!$G$2:$G$40000,0)),0,1) -> 1
A177: 0825 | B177: Palau | C177: 0 | D177: 0 | E177: 0 | F177: 0 | G177: 0 | H177: 0 | I177: 0 | J177: 0 | K177: 0 | L177: 0 | M177: 0 | N177: 0 | O177: 0 | P177: 0 | Q177: 0 | R177: 0 | S177: 0 | T177: 0 | U177: 0 | V177: 0 | W177: 0 | X177: 0 | Y177: 0 | Z177: 0 | AA177: 0 | AC177: =L177-INDEX($C177:$L177,1,aux!$BA$1) -> 0 | AD177: 0 | AE177: =+IF(INDEX($C177:$L177,1,aux!$BA$1)>0,(L177/INDEX($C177:$L177,1,aux!$BA$1))^(1/($L$3-INDEX($C$3:$L$3,1,aux!$BA$1)))-1,"n.d.") -> n.d. | AF177: =IF(INDEX($C177:$L177,1,aux!$BA$1)>0,(L177-INDEX($C177:$L177,1,aux!$BA$1))/INDEX($C177:$L177,1,aux!$BA$1),"n.d.") -> n.d. | AH177: =X177-INDEX($O177:$X177,1,aux!$BA$1) -> 0 | AI177: 0 | AJ177: =+IF(INDEX($O177:$X177,1,aux!$BA$1)>0,(X177/INDEX($O177:$X177,1,aux!$BA$1))^(1/($X$3-INDEX($O$3:$X$3,1,aux!$BA$1)))-1,"n.d.") -> n.d. | AK177: =IF(INDEX($O177:$X177,1,aux!$BA$1)>0,(X177-INDEX($O177:$X177,1,aux!$BA$1))/INDEX($O177:$X177,1,aux!$BA$1),"n.d.") -> n.d. | AM177: 0 | BO177: 0 | CC177: =+IF(ISNA(MATCH('5.1'!A177,AUX_2d_pais!$G$2:$G$40000,0)),0,1) -> 0
A178: 0442 | B178: Panamá | C178: 5.832 | D178: 41.448 | E178: 171.421 | F178: 130.779 | G178: 48.49 | H178: 14.82 | I178: 55.438 | J178: 13.047 | K178: 0.265 | L178: 0 | M178: 48.154 | N178: 2.383879943e-05 | O178: 750.341 | P178: 1482.265 | Q178: 1456.33 | R178: 1379.924 | S178: 3513.26 | T178: 2619.174 | U178: 1823.644 | V178: 2126.093 | W178: 2834.632 | X178: 1655.017 | Y178: 1964.068 | Z178: 0.0004841142524 | AA178: 1915.914 | AC178: =L178-INDEX($C178:$L178,1,aux!$BA$1) -> -5.832 | AD178: 0.0006476414945 | AE178: =+IF(INDEX($C178:$L178,1,aux!$BA$1)>0,(L178/INDEX($C178:$L178,1,aux!$BA$1))^(1/($L$3-INDEX($C$3:$L$3,1,aux!$BA$1)))-1,"n.d.") -> -1 | AF178: =IF(INDEX($C178:$L178,1,aux!$BA$1)>0,(L178-INDEX($C178:$L178,1,aux!$BA$1))/INDEX($C178:$L178,1,aux!$BA$1),"n.d.") -> -1 | AH178: =X178-INDEX($O178:$X178,1,aux!$BA$1) -> 904.676 | AI178: 0.002985556083 | AJ178: =+IF(INDEX($O178:$X178,1,aux!$BA$1)>0,(X178/INDEX($O178:$X178,1,aux!$BA$1))^(1/($X$3-INDEX($O$3:$X$3,1,aux!$BA$1)))-1,"n.d.") -> 0.09187150269 | AK178: =IF(INDEX($O178:$X178,1,aux!$BA$1)>0,(X178-INDEX($O178:$X178,1,aux!$BA$1))/INDEX($O178:$X178,1,aux!$BA$1),"n.d.") -> 1.205686481 | CC178: =+IF(ISNA(MATCH('5.1'!A178,AUX_2d_pais!$G$2:$G$40000,0)),0,1) -> 1
A179: 0801 | B179: Papuásia-Nova Guiné | C179: 0 | D179: 0 | E179: 0 | F179: 0 | G179: 0 | H179: 0 | I179: 0 | J179: 0 | K179: 0 | L179: 0 | M179: 0 | N179: 0 | O179: 0 | P179: 0 | Q179: 0 | R179: 0 | S179: 0 | T179: 0 | U179: 4.264 | V179: 0 | W179: 0 | X179: 0 | Y179: 0.4264 | Z179: 1.051014105e-07 | AA179: 0.4264 | AC179: =L179-INDEX($C179:$L179,1,aux!$BA$1) -> 0 | AD179: 0 | AE179: =+IF(INDEX($C179:$L179,1,aux!$BA$1)>0,(L179/INDEX($C179:$L179,1,aux!$BA$1))^(1/($L$3-INDEX($C$3:$L$3,1,aux!$BA$1)))-1,"n.d.") -> n.d. | AF179: =IF(INDEX($C179:$L179,1,aux!$BA$1)>0,(L179-INDEX($C179:$L179,1,aux!$BA$1))/INDEX($C179:$L179,1,aux!$BA$1),"n.d.") -> n.d. | AH179: =X179-INDEX($O179:$X179,1,aux!$BA$1) -> 0 | AI179: 0 | AJ179: =+IF(INDEX($O179:$X179,1,aux!$BA$1)>0,(X179/INDEX($O179:$X179,1,aux!$BA$1))^(1/($X$3-INDEX($O$3:$X$3,1,aux!$BA$1)))-1,"n.d.") -> n.d. | AK179: =IF(INDEX($O179:$X179,1,aux!$BA$1)>0,(X179-INDEX($O179:$X179,1,aux!$BA$1))/INDEX($O179:$X179,1,aux!$BA$1),"n.d.") -> n.d. | BO179: 4.264 | CC179: =+IF(ISNA(MATCH('5.1'!A179,AUX_2d_pais!$G$2:$G$40000,0)),0,1) -> 1
A180: 0662 | B180: Paquistão | C180: 13.933 | D180: 1.213 | E180: 16.078 | F180: 6.321 | G180: 2.239 | H180: 0.51 | I180: 1.855 | J180: 0.839 | K180: 0.981 | L180: 14.311 | M180: 5.828 | N180: 2.885170974e-06 | O180: 1414.882 | P180: 756.396 | Q180: 901.503 | R180: 1511.74 | S180: 1990.382 | T180: 2025.628 | U180: 2074.336 | V180: 2014.851 | W180: 3986.871 | X180: 4716.269 | Y180: 2139.2858 | Z180: 0.0005273028967 | AA180: 2133.4578 | AC180: =L180-INDEX($C180:$L180,1,aux!$BA$1) -> 0.378 | AD180: -4.197676353e-05 | AE180: =+IF(INDEX($C180:$L180,1,aux!$BA$1)>0,(L180/INDEX($C180:$L180,1,aux!$BA$1))^(1/($L$3-INDEX($C$3:$L$3,1,aux!$BA$1)))-1,"n.d.") -> 0.002978688079 | AF180: =IF(INDEX($C180:$L180,1,aux!$BA$1)>0,(L180-INDEX($C180:$L180,1,aux!$BA$1))/INDEX($C180:$L180,1,aux!$BA$1),"n.d.") -> 0.02712983564 | AH180: =X180-INDEX($O180:$X180,1,aux!$BA$1) -> 3301.387 | AI180: 0.01089503429 | AJ180: =+IF(INDEX($O180:$X180,1,aux!$BA$1)>0,(X180/INDEX($O180:$X180,1,aux!$BA$1))^(1/($X$3-INDEX($O$3:$X$3,1,aux!$BA$1)))-1,"n.d.") -> 0.1431351896 | AK180: =IF(INDEX($O180:$X180,1,aux!$BA$1)>0,(X180-INDEX($O180:$X180,1,aux!$BA$1))/INDEX($O180:$X180,1,aux!$BA$1),"n.d.") -> 2.333330271 | CC180: =+IF(ISNA(MATCH('5.1'!A180,AUX_2d_pais!$G$2:$G$40000,0)),0,1) -> 1
A181: 0520 | B181: Paraguai | C181: 1467.119 | D181: 386.266 | E181: 532.86 | F181: 150.05 | G181: 375.999 | H181: 67.421 | I181: 77.998 | J181: 19.546 | K181: 154.58 | L181: 875.26 | M181: 410.7099 | N181: 0.0002033233154 | O181: 498.285 | P181: 1138.893 | Q181: 353.057 | R181: 195.283 | S181: 800.308 | T181: 531.258 | U181: 1627.158 | V181: 1417.965 | W181: 40.341 | X181: 68.929 | Y181: 667.1477 | Z181: 0.000164442224 | AA181: 256.4378 | AC181: =L181-INDEX($C181:$L181,1,aux!$BA$1) -> -591.859 | AD181: 0.06572572827 | AE181: =+IF(INDEX($C181:$L181,1,aux!$BA$1)>0,(L181/INDEX($C181:$L181,1,aux!$BA$1))^(1/($L$3-INDEX($C$3:$L$3,1,aux!$BA$1)))-1,"n.d.") -> -0.05577686366 | AF181: =IF(INDEX($C181:$L181,1,aux!$BA$1)>0,(L181-INDEX($C181:$L181,1,aux!$BA$1))/INDEX($C181:$L181,1,aux!$BA$1),"n.d.") -> -0.4034158102 | AH181: =X181-INDEX($O181:$X181,1,aux!$BA$1) -> -429.356 | AI181: -0.001416934259 | AJ181: =+IF(INDEX($O181:$X181,1,aux!$BA$1)>0,(X181/INDEX($O181:$X181,1,aux!$BA$1))^(1/($X$3-INDEX($O$3:$X$3,1,aux!$BA$1)))-1,"n.d.") -> -0.1973113366 | AK181: =IF(INDEX($O181:$X181,1,aux!$BA$1)>0,(X181-INDEX($O181:$X181,1,aux!$BA$1))/INDEX($O181:$X181,1,aux!$BA$1),"n.d.") -> -0.8616675196 | CC181: =+IF(ISNA(MATCH('5.1'!A181,AUX_2d_pais!$G$2:$G$40000,0)),0,1) -> 1
A182: 0504 | B182: Peru | C182: 10.11 | D182: 2.151 | E182: 1.549 | F182: 1.202 | G182: 54.061 | H182: 0.17 | I182: 0.591 | J182: 128.275 | K182: 142.192 | L182: 26.637 | M182: 36.6938 | N182: 1.816538893e-05 | O182: 4351.541 | P182: 7102.957 | Q182: 7021.418 | R182: 8748.573 | S182: 15240.814 | T182: 11389.536 | U182: 5614.058 | V182: 6781.823 | W182: 4880.479 | X182: 3828.156 | Y182: 7495.9355 | Z182: 0.001847639293 | AA182: 7459.2417 | AC182: =L182-INDEX($C182:$L182,1,aux!$BA$1) -> 16.527 | AD182: -0.001835317383 | AE182: =+IF(INDEX($C182:$L182,1,aux!$BA$1)>0,(L182/INDEX($C182:$L182,1,aux!$BA$1))^(1/($L$3-INDEX($C$3:$L$3,1,aux!$BA$1)))-1,"n.d.") -> 0.1136487642 | AF182: =IF(INDEX($C182:$L182,1,aux!$BA$1)>0,(L182-INDEX($C182:$L182,1,aux!$BA$1))/INDEX($C182:$L182,1,aux!$BA$1),"n.d.") -> 1.634718101 | AH182: =X182-INDEX($O182:$X182,1,aux!$BA$1) -> -523.385 | AI182: -0.00172724298 | AJ182: =+IF(INDEX($O182:$X182,1,aux!$BA$1)>0,(X182/INDEX($O182:$X182,1,aux!$BA$1))^(1/($X$3-INDEX($O$3:$X$3,1,aux!$BA$1)))-1,"n.d.") -> -0.01413764593 | AK182: =IF(INDEX($O182:$X182,1,aux!$BA$1)>0,(X182-INDEX($O182:$X182,1,aux!$BA$1))/INDEX($O182:$X182,1,aux!$BA$1),"n.d.") -> -0.1202757828 | CC182: =+IF(ISNA(MATCH('5.1'!A182,AUX_2d_pais!$G$2:$G$40000,0)),0,1) -> 1
A183: 0813 | B183: Pitcairn | C183: 0 | D183: 0 | E183: 0 | F183: 0 | G183: 0 | H183: 0 | I183: 0 | J183: 0 | K183: 0 | L183: 0 | M183: 0 | N183: 0 | O183: 0 | P183: 0 | Q183: 0 | R183: 0 | S183: 0 | T183: 0 | U183: 0 | V183: 0 | W183: 0 | X183: 0 | Y183: 0 | Z183: 0 | AA183: 0 | AC183: =L183-INDEX($C183:$L183,1,aux!$BA$1) -> 0 | AD183: 0 | AE183: =+IF(INDEX($C183:$L183,1,aux!$BA$1)>0,(L183/INDEX($C183:$L183,1,aux!$BA$1))^(1/($L$3-INDEX($C$3:$L$3,1,aux!$BA$1)))-1,"n.d.") -> n.d. | AF183: =IF(INDEX($C183:$L183,1,aux!$BA$1)>0,(L183-INDEX($C183:$L183,1,aux!$BA$1))/INDEX($C183:$L183,1,aux!$BA$1),"n.d.") -> n.d. | AH183: =X183-INDEX($O183:$X183,1,aux!$BA$1) -> 0 | AI183: 0 | AJ183: =+IF(INDEX($O183:$X183,1,aux!$BA$1)>0,(X183/INDEX($O183:$X183,1,aux!$BA$1))^(1/($X$3-INDEX($O$3:$X$3,1,aux!$BA$1)))-1,"n.d.") -> n.d. | AK183: =IF(INDEX($O183:$X183,1,aux!$BA$1)>0,(X183-INDEX($O183:$X183,1,aux!$BA$1))/INDEX($O183:$X183,1,aux!$BA$1),"n.d.") -> n.d. | AM183: 0 | BO183: 0 | CC183: =+IF(ISNA(MATCH('5.1'!A183,AUX_2d_pais!$G$2:$G$40000,0)),0,1) -> 0
A184: 0822 | B184: Polinésia Francesa | C184: 0 | D184: 0 | E184: 0 | F184: 0 | G184: 0 | H184: 0 | I184: 0 | J184: 1.903 | K184: 0 | L184: 0 | M184: 0.1903 | N184: 9.420865415e-08 | O184: 0.01 | P184: 0.507 | Q184: 0 | R184: 15.877 | S184: 139.146 | T184: 284.187 | U184: 293.622 | V184: 281.278 | W184: 322.473 | X184: 309.096 | Y184: 164.6196 | Z184: 4.057634185e-05 | AA184: 164.4293 | AC184: =L184-INDEX($C184:$L184,1,aux!$BA$1) -> 0 | AD184: 0 | AE184: =+IF(INDEX($C184:$L184,1,aux!$BA$1)>0,(L184/INDEX($C184:$L184,1,aux!$BA$1))^(1/($L$3-INDEX($C$3:$L$3,1,aux!$BA$1)))-1,"n.d.") -> n.d. | AF184: =IF(INDEX($C184:$L184,1,aux!$BA$1)>0,(L184-INDEX($C184:$L184,1,aux!$BA$1))/INDEX($C184:$L184,1,aux!$BA$1),"n.d.") -> n.d. | AH184: =X184-INDEX($O184:$X184,1,aux!$BA$1) -> 309.086 | AI184: 0.001020026603 | AJ184: =+IF(INDEX($O184:$X184,1,aux!$BA$1)>0,(X184/INDEX($O184:$X184,1,aux!$BA$1))^(1/($X$3-INDEX($O$3:$X$3,1,aux!$BA$1)))-1,"n.d.") -> 2.154272902 | AK184: =IF(INDEX($O184:$X184,1,aux!$BA$1)>0,(X184-INDEX($O184:$X184,1,aux!$BA$1))/INDEX($O184:$X184,1,aux!$BA$1),"n.d.") -> 30908.6 | CC184: =+IF(ISNA(MATCH('5.1'!A184,AUX_2d_pais!$G$2:$G$40000,0)),0,1) -> 1
A185: 0060 | B185: Polónia | C185: 5853.59 | D185: 6778.851 | E185: 13544.796 | F185: 22906.696 | G185: 20012.324 | H185: 23860.52 | I185: 26744.816 | J185: 25675.995 | K185: 21000.42 | L185: 18490.328 | M185: 18486.8336 | N185: 0.009151969064 | O185: 41040.153 | P185: 49059.441 | Q185: 50407.945 | R185: 63075.082 | S185: 86455.23 | T185: 79336.587 | U185: 76244.985 | V185: 105702.915 | W185: 91290.321 | X185: 82785.101 | Y185: 72539.776 | Z185: 0.01788000183 | AA185: 54052.9424 | AC185: =L185-INDEX($C185:$L185,1,aux!$BA$1) -> 12636.738 | AD185: -1.403305193 | AE185: =+IF(INDEX($C185:$L185,1,aux!$BA$1)>0,(L185/INDEX($C185:$L185,1,aux!$BA$1))^(1/($L$3-INDEX($C$3:$L$3,1,aux!$BA$1)))-1,"n.d.") -> 0.1363247851 | AF185: =IF(INDEX($C185:$L185,1,aux!$BA$1)>0,(L185-INDEX($C185:$L185,1,aux!$BA$1))/INDEX($C185:$L185,1,aux!$BA$1),"n.d.") -> 2.158801351 | AH185: =X185-INDEX($O185:$X185,1,aux!$BA$1) -> 41744.948 | AI185: 0.1377641094 | AJ185: =+IF(INDEX($O185:$X185,1,aux!$BA$1)>0,(X185/INDEX($O185:$X185,1,aux!$BA$1))^(1/($X$3-INDEX($O$3:$X$3,1,aux!$BA$1)))-1,"n.d.") -> 0.08108628271 | AK185: =IF(INDEX($O185:$X185,1,aux!$BA$1)>0,(X185-INDEX($O185:$X185,1,aux!$BA$1))/INDEX($O185:$X185,1,aux!$BA$1),"n.d.") -> 1.017173303 | CC185: =+IF(ISNA(MATCH('5.1'!A185,AUX_2d_pais!$G$2:$G$40000,0)),0,1) -> 1
A186: 0346 | B186: Quénia | C186: 40.868 | D186: 22.18 | E186: 19.157 | F186: 19.188 | G186: 15.882 | H186: 22.624 | I186: 19.362 | J186: 20.385 | K186: 16.297 | L186: 0 | M186: 19.5943 | N186: 9.700224025e-06 | O186: 2161.314 | P186: 1488.638 | Q186: 3110.971 | R186: 1360.743 | S186: 818.551 | T186: 1487.367 | U186: 1418.227 | V186: 4355.927 | W186: 4140.984 | X186: 2213.811 | Y186: 2255.6533 | Z186: 0.0005559857963 | AA186: 2236.059 | AC186: =L186-INDEX($C186:$L186,1,aux!$BA$1) -> -40.868 | AD186: 0.004538376645 | AE186: =+IF(INDEX($C186:$L186,1,aux!$BA$1)>0,(L186/INDEX($C186:$L186,1,aux!$BA$1))^(1/($L$3-INDEX($C$3:$L$3,1,aux!$BA$1)))-1,"n.d.") -> -1 | AF186: =IF(INDEX($C186:$L186,1,aux!$BA$1)>0,(L186-INDEX($C186:$L186,1,aux!$BA$1))/INDEX($C186:$L186,1,aux!$BA$1),"n.d.") -> -1 | AH186: =X186-INDEX($O186:$X186,1,aux!$BA$1) -> 52.497 | AI186: 0.00017324737 | AJ186: =+IF(INDEX($O186:$X186,1,aux!$BA$1)>0,(X186/INDEX($O186:$X186,1,aux!$BA$1))^(1/($X$3-INDEX($O$3:$X$3,1,aux!$BA$1)))-1,"n.d.") -> 0.002670124529 | AK186: =IF(INDEX($O186:$X186,1,aux!$BA$1)>0,(X186-INDEX($O186:$X186,1,aux!$BA$1))/INDEX($O186:$X186,1,aux!$BA$1),"n.d.") -> 0.02428939062 | CC186: =+IF(ISNA(MATCH('5.1'!A186,AUX_2d_pais!$G$2:$G$40000,0)),0,1) -> 1
A187: 0083 | B187: Quirguizistão | C187: 0 | D187: 0 | E187: 0 | F187: 0 | G187: 0 | H187: 0 | I187: 0 | J187: 0 | K187: 0 | L187: 0 | M187: 0 | N187: 0 | O187: 40.6 | P187: 232.788 | Q187: 195.848 | R187: 106.645 | S187: 95.45 | T187: 96.688 | U187: 78.28 | V187: 139.115 | W187: 87.123 | X187: 114.811 | Y187: 118.7348 | Z187: 2.926640469e-05 | AA187: 118.7348 | AC187: =L187-INDEX($C187:$L187,1,aux!$BA$1) -> 0 | AD187: 0 | AE187: =+IF(INDEX($C187:$L187,1,aux!$BA$1)>0,(L187/INDEX($C187:$L187,1,aux!$BA$1))^(1/($L$3-INDEX($C$3:$L$3,1,aux!$BA$1)))-1,"n.d.") -> n.d. | AF187: =IF(INDEX($C187:$L187,1,aux!$BA$1)>0,(L187-INDEX($C187:$L187,1,aux!$BA$1))/INDEX($C187:$L187,1,aux!$BA$1),"n.d.") -> n.d. | AH187: =X187-INDEX($O187:$X187,1,aux!$BA$1) -> 74.211 | AI187: 0.000244906577 | AJ187: =+IF(INDEX($O187:$X187,1,aux!$BA$1)>0,(X187/INDEX($O187:$X187,1,aux!$BA$1))^(1/($X$3-INDEX($O$3:$X$3,1,aux!$BA$1)))-1,"n.d.") -> 0.122436913 | AK187: =IF(INDEX($O187:$X187,1,aux!$BA$1)>0,(X187-INDEX($O187:$X187,1,aux!$BA$1))/INDEX($O187:$X187,1,aux!$BA$1),"n.d.") -> 1.827857143 | CC187: =+IF(ISNA(MATCH('5.1'!A187,AUX_2d_pais!$G$2:$G$40000,0)),0,1) -> 1
A188: 0890 | B188: Região Polar | C188: 0 | D188: 0 | E188: 0 | F188: 0 | G188: 0 | H188: 0 | I188: 0 | J188: 0 | K188: 0 | L188: 0 | M188: 0 | N188: 0 | O188: 0 | P188: 0 | Q188: 0 | R188: 0 | S188: 0 | T188: 0 | U188: 0 | V188: 0 | W188: 0 | X188: 0 | Y188: 0 | Z188: 0 | AA188: 0 | AC188: =L188-INDEX($C188:$L188,1,aux!$BA$1) -> 0 | AD188: 0 | AE188: =+IF(INDEX($C188:$L188,1,aux!$BA$1)>0,(L188/INDEX($C188:$L188,1,aux!$BA$1))^(1/($L$3-INDEX($C$3:$L$3,1,aux!$BA$1)))-1,"n.d.") -> n.d. | AF188: =IF(INDEX($C188:$L188,1,aux!$BA$1)>0,(L188-INDEX($C188:$L188,1,aux!$BA$1))/INDEX($C188:$L188,1,aux!$BA$1),"n.d.") -> n.d. | AH188: =X188-INDEX($O188:$X188,1,aux!$BA$1) -> 0 | AI188: 0 | AJ188: =+IF(INDEX($O188:$X188,1,aux!$BA$1)>0,(X188/INDEX($O188:$X188,1,aux!$BA$1))^(1/($X$3-INDEX($O$3:$X$3,1,aux!$BA$1)))-1,"n.d.") -> n.d. | AK188: =IF(INDEX($O188:$X188,1,aux!$BA$1)>0,(X188-INDEX($O188:$X188,1,aux!$BA$1))/INDEX($O188:$X188,1,aux!$BA$1),"n.d.") -> n.d. | AM188: 0 | BO188: 0 | CC188: =+IF(ISNA(MATCH('5.1'!A188,AUX_2d_pais!$G$2:$G$40000,0)),0,1) -> 0
A189: 0006 | B189: Reino Unido | C189: 19665.974 | D189: 15716.882 | E189: 22326.659 | F189: 26491.304 | G189: 27272.101 | H189: 21867.474 | I189: 21691.667 | J189: 43149.869 | K189: 29242.903 | L189: 24474.836 | M189: 25189.9669 | N189: 0.01247037772 | O189: 194480.43 | P189: 192861.329 | Q189: 222613.551 | R189: 272194.822 | S189: 308803.863 | T189: 236601.821 | U189: 225859.974 | V189: 265070.857 | W189: 288418.201 | X189: 259441.639 | Y189: 246634.6487 | Z189: 0.06079186086 | AA189: 221444.6818 | AC189: =L189-INDEX($C189:$L189,1,aux!$BA$1) -> 4808.862 | AD189: -0.5340223889 | AE189: =+IF(INDEX($C189:$L189,1,aux!$BA$1)>0,(L189/INDEX($C189:$L189,1,aux!$BA$1))^(1/($L$3-INDEX($C$3:$L$3,1,aux!$BA$1)))-1,"n.d.") -> 0.02460397553 | AF189: =IF(INDEX($C189:$L189,1,aux!$BA$1)>0,(L189-INDEX($C189:$L189,1,aux!$BA$1))/INDEX($C189:$L189,1,aux!$BA$1),"n.d.") -> 0.2445270191 | AH189: =X189-INDEX($O189:$X189,1,aux!$BA$1) -> 64961.209 | AI189: 0.2143809857 | AJ189: =+IF(INDEX($O189:$X189,1,aux!$BA$1)>0,(X189/INDEX($O189:$X189,1,aux!$BA$1))^(1/($X$3-INDEX($O$3:$X$3,1,aux!$BA$1)))-1,"n.d.") -> 0.03254047774 | AK189: =IF(INDEX($O189:$X189,1,aux!$BA$1)>0,(X189-INDEX($O189:$X189,1,aux!$BA$1))/INDEX($O189:$X189,1,aux!$BA$1),"n.d.") -> 0.3340244003 | CC189: =+IF(ISNA(MATCH('5.1'!A189,AUX_2d_pais!$G$2:$G$40000,0)),0,1) -> 1
A190: 0372 | B190: Reunião, Ilha da | C190: 0 | D190: 0 | E190: 0 | F190: 0 | G190: 0 | H190: 0 | I190: 0 | J190: 0 | K190: 0 | L190: 0 | M190: 0 | N190: 0 | O190: 0 | P190: 0 | Q190: 0 | R190: 0 | S190: 0 | T190: 0 | U190: 0 | V190: 0 | W190: 0 | X190: 0 | Y190: 0 | Z190: 0 | AA190: 0 | AC190: =L190-INDEX($C190:$L190,1,aux!$BA$1) -> 0 | AD190: 0 | AE190: =+IF(INDEX($C190:$L190,1,aux!$BA$1)>0,(L190/INDEX($C190:$L190,1,aux!$BA$1))^(1/($L$3-INDEX($C$3:$L$3,1,aux!$BA$1)))-1,"n.d.") -> n.d. | AF190: =IF(INDEX($C190:$L190,1,aux!$BA$1)>0,(L190-INDEX($C190:$L190,1,aux!$BA$1))/INDEX($C190:$L190,1,aux!$BA$1),"n.d.") -> n.d. | AH190: =X190-INDEX($O190:$X190,1,aux!$BA$1) -> 0 | AI190: 0 | AJ190: =+IF(INDEX($O190:$X190,1,aux!$BA$1)>0,(X190/INDEX($O190:$X190,1,aux!$BA$1))^(1/($X$3-INDEX($O$3:$X$3,1,aux!$BA$1)))-1,"n.d.") -> n.d. | AK190: =IF(INDEX($O190:$X190,1,aux!$BA$1)>0,(X190-INDEX($O190:$X190,1,aux!$BA$1))/INDEX($O190:$X190,1,aux!$BA$1),"n.d.") -> n.d. | AM190: 0 | BO190: 0 | CC190: =+IF(ISNA(MATCH('5.1'!A190,AUX_2d_pais!$G$2:$G$40000,0)),0,1) -> 0
A191: 0066 | B191: Roménia | C191: 1383.696 | D191: 1187.327 | E191: 1499.969 | F191: 2927.587 | G191: 2716.804 | H191: 2948.037 | I191: 3079.317 | J191: 3061.335 | K191: 3317.786 | L191: 3402.573 | M191: 2552.4431 | N191: 0.001263595529 | O191: 11668.968 | P191: 9221.499 | Q191: 8933.2 | R191: 7517.876 | S191: 6665.672 | T191: 6895.98 | U191: 10131.836 | V191: 11103.218 | W191: 10412.224 | X191: 8291.594 | Y191: 9084.2067 | Z191: 0.002239125089 | AA191: 6531.7636 | AC191: =L191-INDEX($C191:$L191,1,aux!$BA$1) -> 2018.877 | AD191: -0.224195562 | AE191: =+IF(INDEX($C191:$L191,1,aux!$BA$1)>0,(L191/INDEX($C191:$L191,1,aux!$BA$1))^(1/($L$3-INDEX($C$3:$L$3,1,aux!$BA$1)))-1,"n.d.") -> 0.1051431332 | AF191: =IF(INDEX($C191:$L191,1,aux!$BA$1)>0,(L191-INDEX($C191:$L191,1,aux!$BA$1))/INDEX($C191:$L191,1,aux!$BA$1),"n.d.") -> 1.45904664 | AH191: =X191-INDEX($O191:$X191,1,aux!$BA$1) -> -3377.374 | AI191: -0.01114580191 | AJ191: =+IF(INDEX($O191:$X191,1,aux!$BA$1)>0,(X191/INDEX($O191:$X191,1,aux!$BA$1))^(1/($X$3-INDEX($O$3:$X$3,1,aux!$BA$1)))-1,"n.d.") -> -0.03725398186 | AK191: =IF(INDEX($O191:$X191,1,aux!$BA$1)>0,(X191-INDEX($O191:$X191,1,aux!$BA$1))/INDEX($O191:$X191,1,aux!$BA$1),"n.d.") -> -0.2894321074 | CC191: =+IF(ISNA(MATCH('5.1'!A191,AUX_2d_pais!$G$2:$G$40000,0)),0,1) -> 1
A192: 0324 | B192: Ruanda | C192: 0 | D192: 0 | E192: 0 | F192: 0 | G192: 0 | H192: 0 | I192: 0.529 | J192: 0 | K192: 0 | L192: 0.175 | M192: 0.0704 | N192: 3.485175645e-08 | O192: 0 | P192: 0 | Q192: 0.188 | R192: 0 | S192: 0.035 | T192: 0 | U192: 0 | V192: 203.088 | W192: 105.144 | X192: 110.278 | Y192: 41.8733 | Z192: 1.032116063e-05 | AA192: 41.8029 | AC192: =L192-INDEX($C192:$L192,1,aux!$BA$1) -> 0.175 | AD192: -1.943368682e-05 | AE192: =+IF(INDEX($C192:$L192,1,aux!$BA$1)>0,(L192/INDEX($C192:$L192,1,aux!$BA$1))^(1/($L$3-INDEX($C$3:$L$3,1,aux!$BA$1)))-1,"n.d.") -> n.d. | AF192: =IF(INDEX($C192:$L192,1,aux!$BA$1)>0,(L192-INDEX($C192:$L192,1,aux!$BA$1))/INDEX($C192:$L192,1,aux!$BA$1),"n.d.") -> n.d. | AH192: =X192-INDEX($O192:$X192,1,aux!$BA$1) -> 110.278 | AI192: 0.0003639326717 | AJ192: =+IF(INDEX($O192:$X192,1,aux!$BA$1)>0,(X192/INDEX($O192:$X192,1,aux!$BA$1))^(1/($X$3-INDEX($O$3:$X$3,1,aux!$BA$1)))-1,"n.d.") -> n.d. | AK192: =IF(INDEX($O192:$X192,1,aux!$BA$1)>0,(X192-INDEX($O192:$X192,1,aux!$BA$1))/INDEX($O192:$X192,1,aux!$BA$1),"n.d.") -> n.d. | BO192: 419.437 | CC192: =+IF(ISNA(MATCH('5.1'!A192,AUX_2d_pais!$G$2:$G$40000,0)),0,1) -> 1
A193: 0075 | B193: Rússia, Federação da | C193: 6997.716 | D193: 8477.272 | E193: 7295.532 | F193: 11242.586 | G193: 13860.059 | H193: 18958.553 | I193: 22689.214 | J193: 26204.501 | K193: 27114.083 | L193: 22549.797 | M193: 16538.9313 | N193: 0.008187653488 | O193: 36099.699 | P193: 48011.252 | Q193: 47942.22 | R193: 41795.445 | S193: 35801.832 | T193: 34875.73 | U193: 37021.475 | V193: 36482.631 | W193: 43534.046 | X193: 33954.614 | Y193: 39551.8944 | Z193: 0.00974896785 | AA193: 23012.9631 | AC193: =L193-INDEX($C193:$L193,1,aux!$BA$1) -> 15552.081 | AD193: -1.72705298 | AE193: =+IF(INDEX($C193:$L193,1,aux!$BA$1)>0,(L193/INDEX($C193:$L193,1,aux!$BA$1))^(1/($L$3-INDEX($C$3:$L$3,1,aux!$BA$1)))-1,"n.d.") -> 0.1388463837 | AF193: =IF(INDEX($C193:$L193,1,aux!$BA$1)>0,(L193-INDEX($C193:$L193,1,aux!$BA$1))/INDEX($C193:$L193,1,aux!$BA$1),"n.d.") -> 2.222451011 | AH193: =X193-INDEX($O193:$X193,1,aux!$BA$1) -> -2145.085 | AI193: -0.007079077559 | AJ193: =+IF(INDEX($O193:$X193,1,aux!$BA$1)>0,(X193/INDEX($O193:$X193,1,aux!$BA$1))^(1/($X$3-INDEX($O$3:$X$3,1,aux!$BA$1)))-1,"n.d.") -> -0.006783529154 | AK193: =IF(INDEX($O193:$X193,1,aux!$BA$1)>0,(X193-INDEX($O193:$X193,1,aux!$BA$1))/INDEX($O193:$X193,1,aux!$BA$1),"n.d.") -> -0.05942113257 | CC193: =+IF(ISNA(MATCH('5.1'!A193,AUX_2d_pais!$G$2:$G$40000,0)),0,1) -> 1
A194: 0806 | B194: Salomão, Ilhas | C194: 0 | D194: 0 | E194: 0 | F194: 0 | G194: 0 | H194: 0 | I194: 0 | J194: 0 | K194: 0 | L194: 0 | M194: 0 | N194: 0 | O194: 0 | P194: 0 | Q194: 0 | R194: 0 | S194: 0 | T194: 0 | U194: 0 | V194: 0 | W194: 0 | X194: 0 | Y194: 0 | Z194: 0 | AA194: 0 | AC194: =L194-INDEX($C194:$L194,1,aux!$BA$1) -> 0 | AD194: 0 | AE194: =+IF(INDEX($C194:$L194,1,aux!$BA$1)>0,(L194/INDEX($C194:$L194,1,aux!$BA$1))^(1/($L$3-INDEX($C$3:$L$3,1,aux!$BA$1)))-1,"n.d.") -> n.d. | AF194: =IF(INDEX($C194:$L194,1,aux!$BA$1)>0,(L194-INDEX($C194:$L194,1,aux!$BA$1))/INDEX($C194:$L194,1,aux!$BA$1),"n.d.") -> n.d. | AH194: =X194-INDEX($O194:$X194,1,aux!$BA$1) -> 0 | AI194: 0 | AJ194: =+IF(INDEX($O194:$X194,1,aux!$BA$1)>0,(X194/INDEX($O194:$X194,1,aux!$BA$1))^(1/($X$3-INDEX($O$3:$X$3,1,aux!$BA$1)))-1,"n.d.") -> n.d. | AK194: =IF(INDEX($O194:$X194,1,aux!$BA$1)>0,(X194-INDEX($O194:$X194,1,aux!$BA$1))/INDEX($O194:$X194,1,aux!$BA$1),"n.d.") -> n.d. | AM194: 0 | BO194: 0 | CC194: =+IF(ISNA(MATCH('5.1'!A194,AUX_2d_pais!$G$2:$G$40000,0)),0,1) -> 0
A195: 0819 | B195: Samoa | C195: 0 | D195: 0 | E195: 0 | F195: 0 | G195: 0 | H195: 0 | I195: 0 | J195: 0 | K195: 0 | L195: 0 | M195: 0 | N195: 0 | O195: 0 | P195: 0 | Q195: 0 | R195: 0 | S195: 0 | T195: 0 | U195: 0 | V195: 0 | W195: 0 | X195: 0 | Y195: 0 | Z195: 0 | AA195: 0 | AC195: =L195-INDEX($C195:$L195,1,aux!$BA$1) -> 0 | AD195: 0 | AE195: =+IF(INDEX($C195:$L195,1,aux!$BA$1)>0,(L195/INDEX($C195:$L195,1,aux!$BA$1))^(1/($L$3-INDEX($C$3:$L$3,1,aux!$BA$1)))-1,"n.d.") -> n.d. | AF195: =IF(INDEX($C195:$L195,1,aux!$BA$1)>0,(L195-INDEX($C195:$L195,1,aux!$BA$1))/INDEX($C195:$L195,1,aux!$BA$1),"n.d.") -> n.d. | AH195: =X195-INDEX($O195:$X195,1,aux!$BA$1) -> 0 | AI195: 0 | AJ195: =+IF(INDEX($O195:$X195,1,aux!$BA$1)>0,(X195/INDEX($O195:$X195,1,aux!$BA$1))^(1/($X$3-INDEX($O$3:$X$3,1,aux!$BA$1)))-1,"n.d.") -> n.d. | AK195: =IF(INDEX($O195:$X195,1,aux!$BA$1)>0,(X195-INDEX($O195:$X195,1,aux!$BA$1))/INDEX($O195:$X195,1,aux!$BA$1),"n.d.") -> n.d. | AM195: 0 | BO195: 0 | CC195: =+IF(ISNA(MATCH('5.1'!A195,AUX_2d_pais!$G$2:$G$40000,0)),0,1) -> 0
A196: 0830 | B196: Samoa Americana | C196: 0 | D196: 0 | E196: 0 | F196: 0 | G196: 0 | H196: 0 | I196: 0 | J196: 0 | K196: 0 | L196: 0 | M196: 0 | N196: 0 | O196: 0 | P196: 0 | Q196: 0 | R196: 0 | S196: 0 | T196: 0 | U196: 0 | V196: 0 | W196: 0 | X196: 0 | Y196: 0 | Z196: 0 | AA196: 0 | AC196: =L196-INDEX($C196:$L196,1,aux!$BA$1) -> 0 | AD196: 0 | AE196: =+IF(INDEX($C196:$L196,1,aux!$BA$1)>0,(L196/INDEX($C196:$L196,1,aux!$BA$1))^(1/($L$3-INDEX($C$3:$L$3,1,aux!$BA$1)))-1,"n.d.") -> n.d. | AF196: =IF(INDEX($C196:$L196,1,aux!$BA$1)>0,(L196-INDEX($C196:$L196,1,aux!$BA$1))/INDEX($C196:$L196,1,aux!$BA$1),"n.d.") -> n.d. | AH196: =X196-INDEX($O196:$X196,1,aux!$BA$1) -> 0 | AI196: 0 | AJ196: =+IF(INDEX($O196:$X196,1,aux!$BA$1)>0,(X196/INDEX($O196:$X196,1,aux!$BA$1))^(1/($X$3-INDEX($O$3:$X$3,1,aux!$BA$1)))-1,"n.d.") -> n.d. | AK196: =IF(INDEX($O196:$X196,1,aux!$BA$1)>0,(X196-INDEX($O196:$X196,1,aux!$BA$1))/INDEX($O196:$X196,1,aux!$BA$1),"n.d.") -> n.d. | AM196: =SUM(A196:AA196) -> 0 | BO196: =SUM(C196:L196,O196:X196) -> 0 | CC196: =+IF(ISNA(MATCH('5.1'!A196,AUX_2d_pais!$G$2:$G$40000,0)),0,1) -> 0
A197: 0329 | B197: Santa Helena | C197: 0 | D197: 0 | E197: 0 | F197: 0 | G197: 0 | H197: 0 | I197: 0 | J197: 0 | K197: 0 | L197: 0 | M197: 0 | N197: 0 | O197: 0 | P197: 0 | Q197: 0 | R197: 0 | S197: 0 | T197: 0 | U197: 0 | V197: 0 | W197: 0 | X197: 0 | Y197: 0 | Z197: 0 | AA197: 0 | AC197: =L197-INDEX($C197:$L197,1,aux!$BA$1) -> 0 | AD197: 0 | AE197: =+IF(INDEX($C197:$L197,1,aux!$BA$1)>0,(L197/INDEX($C197:$L197,1,aux!$BA$1))^(1/($L$3-INDEX($C$3:$L$3,1,aux!$BA$1)))-1,"n.d.") -> n.d. | AF197: =IF(INDEX($C197:$L197,1,aux!$BA$1)>0,(L197-INDEX($C197:$L197,1,aux!$BA$1))/INDEX($C197:$L197,1,aux!$BA$1),"n.d.") -> n.d. | AH197: =X197-INDEX($O197:$X197,1,aux!$BA$1) -> 0 | AI197: 0 | AJ197: =+IF(INDEX($O197:$X197,1,aux!$BA$1)>0,(X197/INDEX($O197:$X197,1,aux!$BA$1))^(1/($X$3-INDEX($O$3:$X$3,1,aux!$BA$1)))-1,"n.d.") -> n.d. | AK197: =IF(INDEX($O197:$X197,1,aux!$BA$1)>0,(X197-INDEX($O197:$X197,1,aux!$BA$1))/INDEX($O197:$X197,1,aux!$BA$1),"n.d.") -> n.d. | AM197: 0 | BO197: 0 | CC197: =+IF(ISNA(MATCH('5.1'!A197,AUX_2d_pais!$G$2:$G$40000,0)),0,1) -> 0
A198: 0465 | B198: Santa Lúcia | C198: 0 | D198: 0 | E198: 0 | F198: 0 | G198: 0 | H198: 0 | I198: 0 | J198: 0 | K198: 0 | L198: 0 | M198: 0 | N198: 0 | O198: 5.924 | P198: 29.508 | Q198: 21.805 | R198: 25.366 | S198: 54.471 | T198: 59.069 | U198: 54.703 | V198: 146.674 | W198: 216.657 | X198: 34.182 | Y198: 64.8359 | Z198: 1.598110822e-05 | AA198: 64.8359 | AC198: =L198-INDEX($C198:$L198,1,aux!$BA$1) -> 0 | AD198: 0 | AE198: =+IF(INDEX($C198:$L198,1,aux!$BA$1)>0,(L198/INDEX($C198:$L198,1,aux!$BA$1))^(1/($L$3-INDEX($C$3:$L$3,1,aux!$BA$1)))-1,"n.d.") -> n.d. | AF198: =IF(INDEX($C198:$L198,1,aux!$BA$1)>0,(L198-INDEX($C198:$L198,1,aux!$BA$1))/INDEX($C198:$L198,1,aux!$BA$1),"n.d.") -> n.d. | AH198: =X198-INDEX($O198:$X198,1,aux!$BA$1) -> 28.258 | AI198: 9.325531326e-05 | AJ198: =+IF(INDEX($O198:$X198,1,aux!$BA$1)>0,(X198/INDEX($O198:$X198,1,aux!$BA$1))^(1/($X$3-INDEX($O$3:$X$3,1,aux!$BA$1)))-1,"n.d.") -> 0.2149987313 | AK198: =IF(INDEX($O198:$X198,1,aux!$BA$1)>0,(X198-INDEX($O198:$X198,1,aux!$BA$1))/INDEX($O198:$X198,1,aux!$BA$1),"n.d.") -> 4.770087779 | BO198: 648.359 | CC198: =+IF(ISNA(MATCH('5.1'!A198,AUX_2d_pais!$G$2:$G$40000,0)),0,1) -> 1
A199: 0045 | B199: Santa Sé (Cidade Estado do Vaticano) | C199: 0 | D199: 0 | E199: 0 | F199: 0 | G199: 0 | H199: 0 | I199: 0 | J199: 0 | K199: 0 | L199: 0 | M199: 0 | N199: 0 | O199: 0 | P199: 0 | Q199: 2.619 | R199: 0 | S199: 0 | T199: 0 | U199: 0 | V199: 0 | W199: 0 | X199: 0 | Y199: 0.2619 | Z199: 6.455454837e-08 | AA199: 0.2619 | AC199: =L199-INDEX($C199:$L199,1,aux!$BA$1) -> 0 | AD199: 0 | AE199: =+IF(INDEX($C199:$L199,1,aux!$BA$1)>0,(L199/INDEX($C199:$L199,1,aux!$BA$1))^(1/($L$3-INDEX($C$3:$L$3,1,aux!$BA$1)))-1,"n.d.") -> n.d. | AF199: =IF(INDEX($C199:$L199,1,aux!$BA$1)>0,(L199-INDEX($C199:$L199,1,aux!$BA$1))/INDEX($C199:$L199,1,aux!$BA$1),"n.d.") -> n.d. | AH199: =X199-INDEX($O199:$X199,1,aux!$BA$1) -> 0 | AI199: 0 | AJ199: =+IF(INDEX($O199:$X199,1,aux!$BA$1)>0,(X199/INDEX($O199:$X199,1,aux!$BA$1))^(1/($X$3-INDEX($O$3:$X$3,1,aux!$BA$1)))-1,"n.d.") -> n.d. | AK199: =IF(INDEX($O199:$X199,1,aux!$BA$1)>0,(X199-INDEX($O199:$X199,1,aux!$BA$1))/INDEX($O199:$X199,1,aux!$BA$1),"n.d.") -> n.d. | BO199: 2.619 | CC199: =+IF(ISNA(MATCH('5.1'!A199,AUX_2d_pais!$G$2:$G$40000,0)),0,1) -> 1
A200: 0466 | B200: São Bartolomeu | C200: 0 | D200: 0 | E200: 0 | F200: 0 | G200: 0 | H200: 0.017 | I200: 0 | J200: 0 | K200: 0 | L200: 0 | M200: 0.0017 | N200: 8.415907097e-10 | O200: 0 | P200: 0 | Q200: 14.635 | R200: 83.775 | S200: 223.323 | T200: 814.215 | U200: 887.694 | V200: 1164.501 | W200: 905.358 | X200: 585.208 | Y200: 467.8709 | Z200: 0.0001153233854 | AA200: 467.8692 | AC200: =L200-INDEX($C200:$L200,1,aux!$BA$1) -> 0 | AD200: 0 | AE200: =+IF(INDEX($C200:$L200,1,aux!$BA$1)>0,(L200/INDEX($C200:$L200,1,aux!$BA$1))^(1/($L$3-INDEX($C$3:$L$3,1,aux!$BA$1)))-1,"n.d.") -> n.d. | AF200: =IF(INDEX($C200:$L200,1,aux!$BA$1)>0,(L200-INDEX($C200:$L200,1,aux!$BA$1))/INDEX($C200:$L200,1,aux!$BA$1),"n.d.") -> n.d. | AH200: =X200-INDEX($O200:$X200,1,aux!$BA$1) -> 585.208 | AI200: 0.001931267442 | AJ200: =+IF(INDEX($O200:$X200,1,aux!$BA$1)>0,(X200/INDEX($O200:$X200,1,aux!$BA$1))^(1/($X$3-INDEX($O$3:$X$3,1,aux!$BA$1)))-1,"n.d.") -> n.d. | AK200: =IF(INDEX($O200:$X200,1,aux!$BA$1)>0,(X200-INDEX($O200:$X200,1,aux!$BA$1))/INDEX($O200:$X200,1,aux!$BA$1),"n.d.") -> n.d. | CC200: =+IF(ISNA(MATCH('5.1'!A200,AUX_2d_pais!$G$2:$G$40000,0)),0,1) -> 1
... 54 more rows

Sheet 5.1_var
A1: ="Principais contributos por país para a variação das trocas comerciais PT-Todo o Mundo_x000D_ no período " & INDEX('5.2'!P3:X3,1,aux!BA1) & "-2020 Produtos da Floresta (valores em milhares de euros)" -> Principais contributos por país para a variação das trocas comerciais PT-Todo o Mundo no período 2011-2020 Produtos da Floresta (valores em milhares de euros)
E5: aumento das importações | J5: aumento das exportações
E17: redução das importações | J17: redução das exportações
A28: Fonte: GPP a partir de dados INE/Comércio Internacional (2019 provisórios; 2020 preliminares) | H28: ='3'!Y116 -> 2021-12-30
A29: Cód. NC | B29: Descritivo | C29: ="Variação das Importações " & INDEX('5.2'!C3:L3,1,aux!BA1) & "-"& '5.2'!L3&"" -> Variação das Importações 2011-2020 | F29: Cód. NC | G29: Descritivo | H29: ="Variação das Exportações " & INDEX('5.2'!P3:X3,1,aux!BA1) & "-"& '5.2'!Y3 &"" -> Variação das Exportações 2011-2020
C30: variação total em valor | D30: % do aumento/ redução total | H30: variação total em valor | I30: % do aumento/ redução total
A31: =IF(C31>0,aux!CY6,"") -> 0508 | B31: =IF(C31>0,aux!CZ6,"") -> Brasil | C31: =IF(aux!DA6>0,aux!DA6,0) -> 49233.602 | D31: =IF(SUM($C$31:$C$41)<>0,C31/SUM($C$31:$C$41),0) -> 0.2556019216 | F31: =IF(H31>0,aux!DD6,"") -> 0052 | G31: =IF(H31>0,aux!DE6,"") -> Turquia | H31: =IF(aux!DF6>0,aux!DF6,0) -> 98999.371 | I31: =IF(SUM($H$31:$H$41)<>0,H31/SUM($H$31:$H$41),0) -> 0.149096453
A32: =IF(C32>0,aux!CY7,"") -> 0011 | B32: =IF(C32>0,aux!CZ7,"") -> Espanha | C32: =IF(aux!DA7>0,aux!DA7,0) -> 26477.064 | D32: =IF(SUM($C$31:$C$41)<>0,C32/SUM($C$31:$C$41),0) -> 0.1374587307 | F32: =IF(H32>0,aux!DD7,"") -> 0011 | G32: =IF(H32>0,aux!DE7,"") -> Espanha | H32: =IF(aux!DF7>0,aux!DF7,0) -> 84957.53 | I32: =IF(SUM($H$31:$H$41)<>0,H32/SUM($H$31:$H$41),0) -> 0.1279489581
A33: =IF(C33>0,aux!CY8,"") -> 0075 | B33: =IF(C33>0,aux!CZ8,"") -> Rússia, Federação da | C33: =IF(aux!DA8>0,aux!DA8,0) -> 15552.081 | D33: 0.08074042174 | F33: =IF(H33>0,aux!DD8,"") -> 0400 | G33: =IF(H33>0,aux!DE8,"") -> Estados Unidos | H33: =IF(aux!DF8>0,aux!DF8,0) -> 69075.189 | I33: 0.1040296071
A34: =IF(C34>0,aux!CY9,"") -> 0060 | B34: =IF(C34>0,aux!CZ9,"") -> Polónia | C34: =IF(aux!DA9>0,aux!DA9,0) -> 12636.738 | D34: 0.0656050824 | F34: =IF(H34>0,aux!DD9,"") -> 0006 | G34: =IF(H34>0,aux!DE9,"") -> Reino Unido | H34: =IF(aux!DF9>0,aux!DF9,0) -> 64961.209 | I34: 0.09783381191
A35: =IF(C35>0,aux!CY10,"") -> 0032 | B35: =IF(C35>0,aux!CZ10,"") -> Finlândia | C35: =IF(aux!DA10>0,aux!DA10,0) -> 10527.966 | D35: 0.05465714941 | F35: =IF(H35>0,aux!DD10,"") -> 0060 | G35: =IF(H35>0,aux!DE10,"") -> Polónia | H35: =IF(aux!DF10>0,aux!DF10,0) -> 41744.948 | I35: 0.06286932546
A36: =IF(C36>0,aux!CY11,"") -> 0052 | B36: =IF(C36>0,aux!CZ11,"") -> Turquia | C36: =IF(aux!DA11>0,aux!DA11,0) -> 9518.936 | D36: 0.04941865382 | F36: =IF(H36>0,aux!DD11,"") -> 0220 | G36: =IF(H36>0,aux!DE11,"") -> Egito | H36: =IF(aux!DF11>0,aux!DF11,0) -> 38193.87 | I36: 0.05752128003
A37: =IF(C37>0,aux!CY12,"") -> 0061 | B37: =IF(C37>0,aux!CZ12,"") -> Checa, República | C37: =IF(aux!DA12>0,aux!DA12,0) -> 7311.98 | D37: 0.03796098727 | F37: =IF(H37>0,aux!DD12,"") -> 0412 | G37: =IF(H37>0,aux!DE12,"") -> México | H37: =IF(aux!DF12>0,aux!DF12,0) -> 36454.261 | I37: 0.05490136913
A38: =IF(C38>0,aux!CY13,"") -> 0204 | B38: =IF(C38>0,aux!CZ13,"") -> Marrocos | C38: =IF(aux!DA13>0,aux!DA13,0) -> 6477.306 | D38: 0.03362768096 | F38: =IF(H38>0,aux!DD13,"") -> 0001 | G38: =IF(H38>0,aux!DE13,"") -> França | H38: =IF(aux!DF13>0,aux!DF13,0) -> 35170.657 | I38: 0.05296821741
A39: =IF(C39>0,aux!CY14,"") -> 0528 | B39: =IF(C39>0,aux!CZ14,"") -> Argentina | C39: =IF(aux!DA14>0,aux!DA14,0) -> 4994.118 | D39: 0.02592753944 | F39: =IF(H39>0,aux!DD14,"") -> 0720 | G39: =IF(H39>0,aux!DE14,"") -> China, República Popular da | H39: =IF(aux!DF14>0,aux!DF14,0) -> 32963.16 | I39: 0.04964365111
A40: =IF(C40>0,aux!CY15,"") -> 0006 | B40: =IF(C40>0,aux!CZ15,"") -> Reino Unido | C40: =IF(aux!DA15>0,aux!DA15,0) -> 4808.862 | D40: 0.02496576156 | F40: =IF(H40>0,aux!DD15,"") -> 0007 | G40: =IF(H40>0,aux!DE15,"") -> Irlanda | H40: =IF(aux!DF15>0,aux!DF15,0) -> 24733.883 | I40: 0.03725007731
B41: Outros contributos para o aumento das importações | C41: =SUMIF(aux!DA16:DA252,">0") -> 45079.625 | D41: 0.2340360711 | G41: Outros contributos para o aumento das exportações | H41: =SUMIF(aux!DF16:DF252,">0") -> 136741.403 | I41: 0.2059372494
B42: Outros contributos para a redução das importações | C42: =SUMIF(aux!DA6:DA242,"<0") -> -28680.818 | D42: =IF(SUM($C$42:$C$52)<>0,C42/SUM($C$42:$C$52),0) -> 0.1422625292 | G42: Outros contributos para a redução das exportações | H42: =SUMIF(aux!DF6:DF242,"<0") -> -51695.982 | I42: =IF(SUM($H$42:$H$52)<>0,H42/SUM($H$42:$H$52),0) -> 0.1431984359
A43: =IF(C43<>0,aux!CY243,"") -> 0005 | B43: =IF(C43<0,aux!CZ243,"") -> Itália | C43: =IF(aux!DA243<0,aux!DA243,0) -> -6784.744 | D43: =IF(SUM($C$42:$C$52)<>0,C43/SUM($C$42:$C$52),0) -> 0.033653672 | F43: =IF(H43<>0,aux!DD243,"") -> 0604 | G43: =IF(H43<>0,aux!DE243,"") -> Líbano | H43: =IF(aux!DF243<0,aux!DF243,0) -> -4411.271 | I43: =IF(SUM($H$42:$H$52)<>0,H43/SUM($H$42:$H$52),0) -> 0.01221926895
A44: =IF(C44<>0,aux!CY244,"") -> 0001 | B44: =IF(C44<0,aux!CZ244,"") -> França | C44: =IF(aux!DA244<0,aux!DA244,0) -> -7096.171 | D44: 0.03519841151 | F44: =IF(H44<>0,aux!DD244,"") -> 0204 | G44: =IF(H44<>0,aux!DE244,"") -> Marrocos | H44: =IF(aux!DF244<0,aux!DF244,0) -> -7168.693 | I44: 0.01985735806
A45: =IF(C45<>0,aux!CY245,"") -> 0302 | B45: =IF(C45<0,aux!CZ245,"") -> Camarões | C45: =IF(aux!DA245<0,aux!DA245,0) -> -7851.027 | D45: 0.03894264655 | F45: =IF(H45<>0,aux!DD245,"") -> 0039 | G45: =IF(H45<>0,aux!DE245,"") -> Suíça | H45: =IF(aux!DF245<0,aux!DF245,0) -> -11109.214 | I45: 0.03077264436
A46: =IF(C46<>0,aux!CY246,"") -> 0322 | B46: =IF(C46<0,aux!CZ246,"") -> Congo, República Democrática do | C46: =IF(aux!DA246<0,aux!DA246,0) -> -8481.812 | D46: 0.04207146489 | F46: =IF(H46<>0,aux!DD246,"") -> 0740 | G46: =IF(H46<>0,aux!DE246,"") -> HongKong | H46: =IF(aux!DF246<0,aux!DF246,0) -> -12788.329 | I46: 0.03542381129
A47: =IF(C47<>0,aux!CY247,"") -> 0017 | B47: =IF(C47<0,aux!CZ247,"") -> Bélgica | C47: =IF(aux!DA247<0,aux!DA247,0) -> -9144.196 | D47: 0.04535702053 | F47: =IF(H47<>0,aux!DD247,"") -> 0005 | G47: =IF(H47<>0,aux!DE247,"") -> Itália | H47: =IF(aux!DF247<0,aux!DF247,0) -> -17134.486 | I47: 0.04746271374
A48: =IF(C48<>0,aux!CY248,"") -> 0004 | B48: =IF(C48<0,aux!CZ248,"") -> Alemanha | C48: =IF(aux!DA248<0,aux!DA248,0) -> -9186.155 | D48: 0.04556514546 | F48: =IF(H48<>0,aux!DD248,"") -> 0003 | G48: =IF(H48<>0,aux!DE248,"") -> Países Baixos | H48: =IF(aux!DF248<0,aux!DF248,0) -> -18552.862 | I48: 0.05139163078
A49: =IF(C49<>0,aux!CY249,"") -> 0720 | B49: =IF(C49<0,aux!CZ249,"") -> China, República Popular da | C49: =IF(aux!DA249<0,aux!DA249,0) -> -11481.477 | D49: 0.05695039651 | F49: =IF(H49<>0,aux!DD249,"") -> 0616 | G49: =IF(H49<>0,aux!DE249,"") -> Irão, República Islâmica do | H49: =IF(aux!DF249<0,aux!DF249,0) -> -19871.112 | I49: 0.05504319771
A50: =IF(C50<>0,aux!CY250,"") -> 0512 | B50: =IF(C50<0,aux!CZ250,"") -> Chile | C50: =IF(aux!DA250<0,aux!DA250,0) -> -23522.526 | D50: 0.1166763808 | F50: =IF(H50<>0,aux!DD250,"") -> 0632 | G50: =IF(H50<>0,aux!DE250,"") -> Arábia Saudita | H50: =IF(aux!DF250<0,aux!DF250,0) -> -23223.333 | I50: 0.06432888657
A51: =IF(C51<>0,aux!CY251,"") -> 0524 | B51: =IF(C51<0,aux!CZ251,"") -> Uruguai | C51: =IF(aux!DA251<0,aux!DA251,0) -> -33408.193 | D51: 0.1657112441 | F51: =IF(H51<>0,aux!DD251,"") -> 0330 | G51: =IF(H51<>0,aux!DE251,"") -> Angola | H51: =IF(aux!DF251<0,aux!DF251,0) -> -55697.185 | I51: 0.154281812
A52: =IF(C52<>0,aux!CY252,"") -> 0003 | B52: =IF(C52<0,aux!CZ252,"") -> Países Baixos | C52: =IF(aux!DA252<0,aux!DA252,0) -> -55967.746 | D52: 0.2776110884 | F52: =IF(H52<>0,aux!DD252,"") -> 0004 | G52: =IF(H52<>0,aux!DE252,"") -> Alemanha | H52: =IF(aux!DF252<0,aux!DF252,0) -> -139356.937 | I52: 0.3860202406
A53: TOTAL | C53: =SUM(C31:C52) -> -8986.587 | F53: TOTAL | H53: =SUM(H31:H52) -> 302986.077

Sheet 5.2
A1: Trocas comerciais Portugal-Todo o Mundo 2011-2020 em milhares de euros (NC 2 dígitos) | C1: Produtos da Floresta
A2: Cód. NC | B2: Descritivo | C2: Importações | P2: Exportações | AC2: Saldo período (exp-imp) | AD2: Evolução das importações | AE2: =+"Variação das Importações " & INDEX(C3:K3,1,aux!BA1) & "-"& L3 &"" -> Variação das Importações 2011-2020 | AJ2: Evolução das exportações | AK2: ="Variação das Exportações " & INDEX(P3:X3,1,aux!BA1) & "-"& Y3 &"" -> Variação das Exportações 2011-2020
C3: 2011 | D3: 2012 | E3: 2013 | F3: 2014 | G3: 2015 | H3: 2016 | I3: 2017 | J3: 2018 | K3: 2019 | L3: 2020 | M3: média período | N3: % Subtot | O3: % Total | P3: 2011 | Q3: 2012 | R3: 2013 | S3: 2014 | T3: 2015 | U3: 2016 | V3: 2017 | W3: 2018 | X3: 2019 | Y3: 2020 | Z3: média período | AA3: % Subtot | AB3: % Total | AE3: variação total em valor | AF3: % no subtotal de variação | AG3: % no total de variação | AH3: taxa de variação média anual | AI3: taxa de variação total | AK3: variação total em valor | AL3: % no subtotal de variação | AM3: % no total de variação | AN3: taxa de variação média anual | AO3: taxa de variação total | CC3: filtro
A4: 01 | B4: Animais vivos | C4: 0 | D4: 0 | E4: 0 | F4: 0 | G4: 0 | H4: 0 | I4: 0 | J4: 0 | K4: 0 | L4: 0 | M4: 0 | O4: 0 | P4: 0 | Q4: 0 | R4: 0 | S4: 0 | T4: 0 | U4: 0 | V4: 0 | W4: 0 | X4: 0 | Y4: 0 | Z4: 0 | AB4: 0 | AC4: 0 | AE4: =L4-INDEX($C4:$L4,1,aux!$BA$1) -> 0 | AF4: =IF($AE$37<>0,AE4/$AE$37, "n.d.") -> n.d. | AG4: =IF($AE$53<>0,AE4/$AE$53, "n.d.") -> 0 | AH4: =+IF(INDEX($C4:$L4,1,aux!$BA$1)>0,(L4/INDEX($C4:$L4,1,aux!$BA$1))^(1/($L$3-INDEX($C$3:$L$3,1,aux!$BA$1)))-1,"n.d.") -> n.d. | AI4: =IF(INDEX($C4:$L4,1,aux!$BA$1)>0,(L4-INDEX($C4:$L4,1,aux!$BA$1))/INDEX($C4:$L4,1,aux!$BA$1),"n.d.") -> n.d. | AK4: =Y4-INDEX($P4:$Y4,1,aux!$BA$1) -> 0 | AL4: =IF($AK$37<>0,AK4/$AK$37, "n.d.") -> n.d. | AM4: =IF($AK$53<>0,AK4/$AK$53, "n.d.") -> 0 | AN4: =+IF(INDEX($P4:$Y4,1,aux!$BA$1)>0,(Y4/INDEX($P4:$Y4,1,aux!$BA$1))^(1/($Y$3-INDEX($P$3:$Y$3,1,aux!$BA$1)))-1,"n.d.") -> n.d. | AO4: =IF(INDEX($P4:$Y4,1,aux!$BA$1)>0,(Y4-INDEX($P4:$Y4,1,aux!$BA$1))/INDEX($P4:$Y4,1,aux!$BA$1),"n.d.") -> n.d. | AP4: =SUM(C4:AC4) -> 0 | CC4: =SUM(C4:L4,P4:Y4) -> 0
A5: 02 | B5: Carnes e miudezas | C5: 0 | D5: 0 | E5: 0 | F5: 0 | G5: 0 | H5: 0 | I5: 0 | J5: 0 | K5: 0 | L5: 0 | M5: 0 | O5: 0 | P5: 0 | Q5: 0 | R5: 0 | S5: 0 | T5: 0 | U5: 0 | V5: 0 | W5: 0 | X5: 0 | Y5: 0 | Z5: 0 | AB5: 0 | AC5: 0 | AE5: =L5-INDEX($C5:$L5,1,aux!$BA$1) -> 0 | AF5: n.d. | AG5: 0 | AH5: =+IF(INDEX($C5:$L5,1,aux!$BA$1)>0,(L5/INDEX($C5:$L5,1,aux!$BA$1))^(1/($L$3-INDEX($C$3:$L$3,1,aux!$BA$1)))-1,"n.d.") -> n.d. | AI5: =IF(INDEX($C5:$L5,1,aux!$BA$1)>0,(L5-INDEX($C5:$L5,1,aux!$BA$1))/INDEX($C5:$L5,1,aux!$BA$1),"n.d.") -> n.d. | AK5: =Y5-INDEX($P5:$Y5,1,aux!$BA$1) -> 0 | AL5: n.d. | AM5: 0 | AN5: =+IF(INDEX($P5:$Y5,1,aux!$BA$1)>0,(Y5/INDEX($P5:$Y5,1,aux!$BA$1))^(1/($Y$3-INDEX($P$3:$Y$3,1,aux!$BA$1)))-1,"n.d.") -> n.d. | AO5: =IF(INDEX($P5:$Y5,1,aux!$BA$1)>0,(Y5-INDEX($P5:$Y5,1,aux!$BA$1))/INDEX($P5:$Y5,1,aux!$BA$1),"n.d.") -> n.d. | AP5: 0 | CC5: 0
A6: 04 | B6: Leite e laticínios; ovos; mel, etc. | C6: 0 | D6: 0 | E6: 0 | F6: 0 | G6: 0 | H6: 0 | I6: 0 | J6: 0 | K6: 0 | L6: 0 | M6: 0 | O6: 0 | P6: 0 | Q6: 0 | R6: 0 | S6: 0 | T6: 0 | U6: 0 | V6: 0 | W6: 0 | X6: 0 | Y6: 0 | Z6: 0 | AB6: 0 | AC6: 0 | AE6: =L6-INDEX($C6:$L6,1,aux!$BA$1) -> 0 | AF6: n.d. | AG6: 0 | AH6: =+IF(INDEX($C6:$L6,1,aux!$BA$1)>0,(L6/INDEX($C6:$L6,1,aux!$BA$1))^(1/($L$3-INDEX($C$3:$L$3,1,aux!$BA$1)))-1,"n.d.") -> n.d. | AI6: =IF(INDEX($C6:$L6,1,aux!$BA$1)>0,(L6-INDEX($C6:$L6,1,aux!$BA$1))/INDEX($C6:$L6,1,aux!$BA$1),"n.d.") -> n.d. | AK6: =Y6-INDEX($P6:$Y6,1,aux!$BA$1) -> 0 | AL6: n.d. | AM6: 0 | AN6: =+IF(INDEX($P6:$Y6,1,aux!$BA$1)>0,(Y6/INDEX($P6:$Y6,1,aux!$BA$1))^(1/($Y$3-INDEX($P$3:$Y$3,1,aux!$BA$1)))-1,"n.d.") -> n.d. | AO6: =IF(INDEX($P6:$Y6,1,aux!$BA$1)>0,(Y6-INDEX($P6:$Y6,1,aux!$BA$1))/INDEX($P6:$Y6,1,aux!$BA$1),"n.d.") -> n.d. | AP6: 0 | CC6: 0
A7: 05a | B7: Outros produtos de origem animal (exc. NC 0508, 051191) (a) | C7: 0 | D7: 0 | E7: 0 | F7: 0 | G7: 0 | H7: 0 | I7: 0 | J7: 0 | K7: 0 | L7: 0 | M7: 0 | O7: 0 | P7: 0 | Q7: 0 | R7: 0 | S7: 0 | T7: 0 | U7: 0 | V7: 0 | W7: 0 | X7: 0 | Y7: 0 | Z7: 0 | AB7: 0 | AC7: 0 | AE7: =L7-INDEX($C7:$L7,1,aux!$BA$1) -> 0 | AF7: n.d. | AG7: 0 | AH7: =+IF(INDEX($C7:$L7,1,aux!$BA$1)>0,(L7/INDEX($C7:$L7,1,aux!$BA$1))^(1/($L$3-INDEX($C$3:$L$3,1,aux!$BA$1)))-1,"n.d.") -> n.d. | AI7: =IF(INDEX($C7:$L7,1,aux!$BA$1)>0,(L7-INDEX($C7:$L7,1,aux!$BA$1))/INDEX($C7:$L7,1,aux!$BA$1),"n.d.") -> n.d. | AK7: =Y7-INDEX($P7:$Y7,1,aux!$BA$1) -> 0 | AL7: n.d. | AM7: 0 | AN7: =+IF(INDEX($P7:$Y7,1,aux!$BA$1)>0,(Y7/INDEX($P7:$Y7,1,aux!$BA$1))^(1/($Y$3-INDEX($P$3:$Y$3,1,aux!$BA$1)))-1,"n.d.") -> n.d. | AO7: =IF(INDEX($P7:$Y7,1,aux!$BA$1)>0,(Y7-INDEX($P7:$Y7,1,aux!$BA$1))/INDEX($P7:$Y7,1,aux!$BA$1),"n.d.") -> n.d. | AP7: 0 | CC7: 0
A8: 06 | B8: Plantas vivas e produtos de floricultura | C8: 0 | D8: 0 | E8: 0 | F8: 0 | G8: 0 | H8: 0 | I8: 0 | J8: 0 | K8: 0 | L8: 0 | M8: 0 | O8: 0 | P8: 0 | Q8: 0 | R8: 0 | S8: 0 | T8: 0 | U8: 0 | V8: 0 | W8: 0 | X8: 0 | Y8: 0 | Z8: 0 | AB8: 0 | AC8: 0 | AE8: =L8-INDEX($C8:$L8,1,aux!$BA$1) -> 0 | AF8: n.d. | AG8: 0 | AH8: =+IF(INDEX($C8:$L8,1,aux!$BA$1)>0,(L8/INDEX($C8:$L8,1,aux!$BA$1))^(1/($L$3-INDEX($C$3:$L$3,1,aux!$BA$1)))-1,"n.d.") -> n.d. | AI8: =IF(INDEX($C8:$L8,1,aux!$BA$1)>0,(L8-INDEX($C8:$L8,1,aux!$BA$1))/INDEX($C8:$L8,1,aux!$BA$1),"n.d.") -> n.d. | AK8: =Y8-INDEX($P8:$Y8,1,aux!$BA$1) -> 0 | AL8: n.d. | AM8: 0 | AN8: =+IF(INDEX($P8:$Y8,1,aux!$BA$1)>0,(Y8/INDEX($P8:$Y8,1,aux!$BA$1))^(1/($Y$3-INDEX($P$3:$Y$3,1,aux!$BA$1)))-1,"n.d.") -> n.d. | AO8: =IF(INDEX($P8:$Y8,1,aux!$BA$1)>0,(Y8-INDEX($P8:$Y8,1,aux!$BA$1))/INDEX($P8:$Y8,1,aux!$BA$1),"n.d.") -> n.d. | AP8: 0 | CC8: 0
A9: 07 | B9: Produtos hortícolas | C9: 0 | D9: 0 | E9: 0 | F9: 0 | G9: 0 | H9: 0 | I9: 0 | J9: 0 | K9: 0 | L9: 0 | M9: 0 | O9: 0 | P9: 0 | Q9: 0 | R9: 0 | S9: 0 | T9: 0 | U9: 0 | V9: 0 | W9: 0 | X9: 0 | Y9: 0 | Z9: 0 | AB9: 0 | AC9: 0 | AE9: =L9-INDEX($C9:$L9,1,aux!$BA$1) -> 0 | AF9: n.d. | AG9: 0 | AH9: =+IF(INDEX($C9:$L9,1,aux!$BA$1)>0,(L9/INDEX($C9:$L9,1,aux!$BA$1))^(1/($L$3-INDEX($C$3:$L$3,1,aux!$BA$1)))-1,"n.d.") -> n.d. | AI9: =IF(INDEX($C9:$L9,1,aux!$BA$1)>0,(L9-INDEX($C9:$L9,1,aux!$BA$1))/INDEX($C9:$L9,1,aux!$BA$1),"n.d.") -> n.d. | AK9: =Y9-INDEX($P9:$Y9,1,aux!$BA$1) -> 0 | AL9: n.d. | AM9: 0 | AN9: =+IF(INDEX($P9:$Y9,1,aux!$BA$1)>0,(Y9/INDEX($P9:$Y9,1,aux!$BA$1))^(1/($Y$3-INDEX($P$3:$Y$3,1,aux!$BA$1)))-1,"n.d.") -> n.d. | AO9: =IF(INDEX($P9:$Y9,1,aux!$BA$1)>0,(Y9-INDEX($P9:$Y9,1,aux!$BA$1))/INDEX($P9:$Y9,1,aux!$BA$1),"n.d.") -> n.d. | AP9: 0 | CC9: 0
A10: 08 | B10: Frutas | C10: 0 | D10: 0 | E10: 0 | F10: 0 | G10: 0 | H10: 0 | I10: 0 | J10: 0 | K10: 0 | L10: 0 | M10: 0 | O10: 0 | P10: 0 | Q10: 0 | R10: 0 | S10: 0 | T10: 0 | U10: 0 | V10: 0 | W10: 0 | X10: 0 | Y10: 0 | Z10: 0 | AB10: 0 | AC10: 0 | AE10: =L10-INDEX($C10:$L10,1,aux!$BA$1) -> 0 | AF10: n.d. | AG10: 0 | AH10: =+IF(INDEX($C10:$L10,1,aux!$BA$1)>0,(L10/INDEX($C10:$L10,1,aux!$BA$1))^(1/($L$3-INDEX($C$3:$L$3,1,aux!$BA$1)))-1,"n.d.") -> n.d. | AI10: =IF(INDEX($C10:$L10,1,aux!$BA$1)>0,(L10-INDEX($C10:$L10,1,aux!$BA$1))/INDEX($C10:$L10,1,aux!$BA$1),"n.d.") -> n.d. | AK10: =Y10-INDEX($P10:$Y10,1,aux!$BA$1) -> 0 | AL10: n.d. | AM10: 0 | AN10: =+IF(INDEX($P10:$Y10,1,aux!$BA$1)>0,(Y10/INDEX($P10:$Y10,1,aux!$BA$1))^(1/($Y$3-INDEX($P$3:$Y$3,1,aux!$BA$1)))-1,"n.d.") -> n.d. | AO10: =IF(INDEX($P10:$Y10,1,aux!$BA$1)>0,(Y10-INDEX($P10:$Y10,1,aux!$BA$1))/INDEX($P10:$Y10,1,aux!$BA$1),"n.d.") -> n.d. | AP10: 0 | CC10: 0
